Workbook

Sheet Passageavgifter (hidden)
B3: Passageavgift JA | D3: Passageavgift UA
A4: Område | B4: P | C4: G | D4: P | E4: G
A5: Göteborg: C | B5: 0 | C5: 0 | D5: 0 | E5: 0
A6: Malmö: D | B6: 0 | C6: 0 | D6: 0 | E6: 0
A7: Malmö: E | B7: 0 | C7: 0 | D7: 0 | E7: 0
A8: Ulriksdal – Skavstaby: F | B8: 0 | C8: 0 | D8: 0 | E8: 0
A9: Huvudsta – Barkarby: G | B9: 0 | C9: 0 | D9: 0 | E9: 0
A10: Flemingsberg – Björnkulla – Malmsjö – Södertälje Syd övre :H | B10: 0 | C10: 0 | D10: 0 | E10: 0
B17: Statistik | C17: Statistik | E17: Andelar av persontågen i högtrafik | J17: Andelar av godstågspassager i högtrafik
A18: Område | B18: Persontåg | C18: godståg | E18: Snabb | F18: Pendel | G18: Fjärr | H18: Reg | J18: Vagnslast | K18: Lokal | L18: system | M18: malm | N18: kombi
A19: Göteborg: C | B19: 70103 | C19: 7106 | E19: 0.09715900173 | F19: 0.4382357558 | G19: 0.06765029038 | H19: 0.3969549521 | J19: 0.14 | K19: 0.5 | L19: 0.22 | M19: 0 | N19: 0.14
A20: Malmö: D | B20: 37301 | C20: 3883 | E20: 0.1063388626 | F20: 0.4626777251 | G20: 0.0740521327 | H20: 0.3569312796 | J20: 0.21 | K20: 0.37 | L20: 0.21 | M20: 0 | N20: 0.21
A21: Malmö: E | B21: 28908 | C21: 1650 | E21: 0.0181531176 | F21: 0.6140489345 | G21: 0.1093133386 | H21: 0.2584846093 | J21: 0.333 | K21: 0 | L21: 0.333 | M21: 0 | N21: 0.333
A22: Ulriksdal – Skavstaby: F | B22: 55187 | C22: 0 | E22: 0.05502392344 | F22: 0.7320574163 | G22: 0.03209728868 | H22: 0.1808213716 | J22: 0.2713178295 | K22: 0 | L22: 0.4573643411 | M22: 0 | N22: 0.2713178295
A23: Huvudsta – Barkarby: G | B23: 24651 | C23: 0 | E23: 0 | F23: 0.7345844504 | G23: 0 | H23: 0.2654155496 | J23: 0.2713178295 | K23: 0 | L23: 0.4573643411 | M23: 0 | N23: 0.2713178295
A24: Flemingsberg – Björnkulla – Malmsjö – Södertälje Syd övre :H | B24: 30393 | C24: 726 | E24: 0.3475721066 | F24: 0.1931361811 | G24: 0.0259218693 | H24: 0.433369843 | J24: 0.2713178295 | K24: 0 | L24: 0.4573643411 | M24: 0 | N24: 0.2713178295
A30: Passageavgifter JA | E30: =+SUMPRODUCT($B$19:$B$28,E19:E28,$B$5:$B$14) -> 0 | F30: =+SUMPRODUCT($B$19:$B$28,F19:F28,$B$5:$B$14) -> 0 | G30: =+SUMPRODUCT($B$19:$B$28,G19:G28,$B$5:$B$14) -> 0 | H30: =+SUMPRODUCT($B$19:$B$28,H19:H28,$B$5:$B$14) -> 0 | J30: =+SUMPRODUCT($C$19:$C$28,J19:J28,$C$5:$C$14) -> 0 | K30: =+SUMPRODUCT($C$19:$C$28,K19:K28,$C$5:$C$14) -> 0 | L30: =+SUMPRODUCT($C$19:$C$28,L19:L28,$C$5:$C$14) -> 0 | M30: =+SUMPRODUCT($C$19:$C$28,M19:M28,$C$5:$C$14) -> 0 | N30: =+SUMPRODUCT($C$19:$C$28,N19:N28,$C$5:$C$14) -> 0
A31: Passageavgift UA | E31: =+SUMPRODUCT($B$19:$B$28,E19:E28,$D$5:$D$14) -> 0 | F31: =+SUMPRODUCT($B$19:$B$28,F19:F28,$D$5:$D$14) -> 0 | G31: =+SUMPRODUCT($B$19:$B$28,G19:G28,$D$5:$D$14) -> 0 | H31: =+SUMPRODUCT($B$19:$B$28,H19:H28,$D$5:$D$14) -> 0 | J31: =+SUMPRODUCT($C$19:$C$28,J19:J28,$E$5:$E$14) -> 0 | K31: =+SUMPRODUCT($C$19:$C$28,K19:K28,$E$5:$E$14) -> 0 | L31: =+SUMPRODUCT($C$19:$C$28,L19:L28,$E$5:$E$14) -> 0 | M31: =+SUMPRODUCT($C$19:$C$28,M19:M28,$E$5:$E$14) -> 0 | N31: =+SUMPRODUCT($C$19:$C$28,N19:N28,$E$5:$E$14) -> 0
B33: JA | C33: UA
A34: Snabbtåg | B34: =+E30/1000000 -> 0 | C34: =+E31/1000000 -> 0
A35: Långväga IC, nattåg | B35: =+G30/1000000 -> 0 | C35: =+G31/1000000 -> 0
A36: Pendeltåg | B36: =+F30/1000000 -> 0 | C36: =+F31/1000000 -> 0
A37: Regionaltåg | B37: =+H30/1000000 -> 0 | C37: =+H31/1000000 -> 0
A38: alla persontåg | B38: =+SUM(B34:B37) -> 0 | C38: =+SUM(C34:C37) -> 0
A40: Vagnslast | B40: =+J30/1000000 -> 0 | C40: =+J31/1000000 -> 0
A41: Lokal | B41: =+K30/1000000 -> 0 | C41: =+K31/1000000 -> 0
A42: system | B42: =+L30/1000000 -> 0 | C42: =+L31/1000000 -> 0
A43: malm | B43: =+M30/1000000 -> 0 | C43: =+M31/1000000 -> 0
A44: kombi | B44: =+N30/1000000 -> 0 | C44: =+N31/1000000 -> 0
A45: Alla godståg | B45: =+SUM(B40:B44) -> 0 | C45: =+SUM(C40:C44) -> 0

Sheet Handledning
A1: Handledning
A2: I denna flik: - Kort beskrivning av de flikar som en användare normalt sett använder - Kort beskrivning av hantering av olika typer av effekter - Persontågstyper i prognos och kalkyl som används i modellen För mer information om handhavande, vänligen se Banseks användarhandledning som finns publicerad på Bansekwebben.
A4: Flik
A5: Beskrivning av åtgärd | B5: Här beskrivs och definieras kalkylspecifika förutsättningar
B6: =+'Beskrivning av åtgärd'!A32 -> 1. Beskriv aktuell åtgärd och effekter i kalkylen
B7: =+'Beskrivning av åtgärd'!A46 -> 2. Korrigering av prognosindata
B8: =+'Beskrivning av åtgärd'!A53 -> 3. Byggtid och kalkylperiod
B9: =+'Beskrivning av åtgärd'!A59 -> 4. Kalkylspecifika tillväxttal
B10: =+'Beskrivning av åtgärd'!A65 -> 5. Om åtgärden innebär förändringar i kapacitetsberäkningens linjedelar
B11: =+'Beskrivning av åtgärd'!A85 -> 6. Om åtgärden innebär andra förändringar i kapacitetsberäkningen:
B12: =+'Beskrivning av åtgärd'!A102 -> 7. Om effekterna beräknas utanför modellen - med tidtabellsanalys/simulering
B13: ='Beskrivning av åtgärd'!A146 -> 8. Åtgärd som påverkar drivmedelstyp (exempelvis elektrifiering)
B14: ='Beskrivning av åtgärd'!A156 -> 9. Förändrade banavgifter
B15: ='Beskrivning av åtgärd'!A179 -> 10. Andel gjutjärnsbromsar
A16: Länkar | B16: Nyckel länk-bandel-linjedel
B17: Förändrad gångtid UA-JA persontåg per länk
B18: Elektrifiering per länk i JA och UA
B19: Avstånd per länk i JA och UA
B20: Fyrspår i JA och UA
A21: Tidtabellsanalys person | B21: Redovisa förändrad tidtabellstid samt förseningstid framtagen med tidtabellsanalys
A22: Persontågslinjer | B22: Ändra antal dubbelturer för aktuella persontrafiklinjer i kolumn H
B23: Ändra tågtyp per linje i kolumn K
A24: Bangods_linjedel | B24: Per Bangodssträcka följande:
B25: Byte av drivmedelstyp, exempelvis vid elektrifiering
B26: Gångtidsförändring, minuter
B27: Avståndsförändring, km
B28: Förändrad förseningstid, minuter
A29: Bansek_gods | B29: Resultat från separat Bansek_gods kalkyl läggs in här
A30: Trafikomflyttningar | B30: Om annat än defaultsatta värden ska användas så anges detta här
B31: Default: 50 % av tillkommande/försvinnande resenärer är överflyttade från/till personbil
B32: samt 100 % gods till/från lastbil
B33: Här anges också om det överflyttade godset ska ha en annan fördelning av lastbils-/fartygsttper
B34: än de defaultsatta (fördelning enligt bas-prognosen)
A35: Investering och UH | B35: Ange investeringskostnad per år under byggtiden i UA och JA, exkl skattefaktor
B36: Kostnader för Underhåll, reinvestering och drift ; tre alternativ
B37: Alternativ 1: Uppgift finns om förändrad genomsnittlig årlig kostnad; ange beloppet under alternativ 1
B38: Alternativ 2: Uppgifter finns årliga kostnader under kalkylperioden; ange årliga belopp under alternativ 2 för UA och JA
B39: Alternativ 3: Beräknas med schablonvärden
A40: Plankorsningar | B40: Här anges om några plankorsningar åtgärdas i UA. Man kan göra en ändring av skyddsnivå för olika plankorsningar, men saknar möjligheten att ange ÅDT (för väg- eller cykeltrafik) för en plankorsning, ändra till planskildhet eller beräkna omledningseffekter. I sådana fall ska Plankorsningsmodellen användas.
A41: Kap.ber UA | B41: Ange förändrad linjedelsindelning, se över formler och parametervärden
A42: Kap.ber JA | B42: Ange förändrad linjedelsindelning, se över formler och parametervärden om förändringar i JA
A45: Kort beskrivning av hantering av olika typer av effekter
A47: Om åtgärden innebär förändrade gångtider och/eller förändrade avstånd
A48: 1. Sök fram aktuella länkar i "Länkar" | C48: Tips är att filtrera på stråk eller Linjedel
A49: Ändra tider och avstånd per länk | C49: OBS varje länk avser EN RIKTNING
A51: 2. Sök fram aktuell sträcka i "Bangods_linjedel" | C51: Tips är att filtera på stråk eller sträcka
A52: Ange aktuella förändringar per sträcka | C52: OBS varje sträcka avser BÅDA RKTNINGARNA
A54: Om åtgärden innebär förändringar i kapacitetsarkets linjedelsindelning; fler eller färre linjedelar:
A55: 1. Beskriv vilka ändringar som görs i linjedelsindelningen i flik "Beskrivning av åtgärd". | C55: Obs särskilt viktigt att ange linjedelar i JA och UA under punkt 4
A58: 2. Ändra i "Kap.beräkning UA" | C58: Lägg till nya linjedelar, se över parametervärden och formler i kapacitetsberäkningen
C59: Se också till att antal tåg på de nya linjedelarna är korrekta
A61: 3. Ändra i nyckeln flik "Länkar"
A63: Om åtgärden innebär elektrifiering
A64: Ändra värde i kolumn V "EL UA" i flik "länkar"
A66: Förändrad turtäthet Persontåg
A67: Ange förändrat antal dubbelturer i flik "Persontågslinjer"
A69: Om åtgärden innebär förändring i kapacitetspåverkande variabler (dubbelspår, fjb osv)
A70: Beskriv förändring i "Beskrivning av åtgärd"
A71: Genomför förändringen i "Kap.ber UA"
A73: Persontågstyper i prognos och kalkyl
C74: Tågtypnr | D74: Min platser | E74: Beläggnings- | F74: kostnad minsta tåg | H74: kostnad extra platser | J74: Drivmedel
E75: grad | F75: kr/tågkm | G75: kr/tågminut | H75: kr/km | I75: kr/minut
A76: IC/IR-tåg | B76: =+Indata_Kalkylvärden!A33 -> GIR-200 | C76: =+Indata_Kalkylvärden!B33 -> 1 | D76: =+Indata_Kalkylvärden!C33 -> 150 | E76: =+Indata_Kalkylvärden!D33 -> 0.5 | F76: =+Indata_Kalkylvärden!L33 -> 13.07369128 | G76: =+Indata_Kalkylvärden!M33 -> 51.88452541 | H76: =+Indata_Kalkylvärden!N33 -> 0.0755704698 | I76: =+Indata_Kalkylvärden!O33 -> 0.1403451582 | J76: E
A77: Snabbtåg | B77: =+Indata_Kalkylvärden!A31 -> GHS-T250 | C77: =+Indata_Kalkylvärden!B31 -> 2 | D77: =+Indata_Kalkylvärden!C31 -> 240 | E77: =+Indata_Kalkylvärden!D31 -> 0.65 | F77: =+Indata_Kalkylvärden!L31 -> 21.56 | G77: =+Indata_Kalkylvärden!M31 -> 99.53 | H77: =+Indata_Kalkylvärden!N31 -> 0.08 | I77: =+Indata_Kalkylvärden!O31 -> 0.32 | J77: E
A78: Snabbtåg stambanor | B78: =+Indata_Kalkylvärden!A39 -> GHS-T250 | C78: =+Indata_Kalkylvärden!B39 -> 5 | D78: =+Indata_Kalkylvärden!C39 -> 240 | E78: =+Indata_Kalkylvärden!D39 -> 0.65 | F78: =+Indata_Kalkylvärden!L39 -> 21.56 | G78: =+Indata_Kalkylvärden!M39 -> 99.53 | H78: =+Indata_Kalkylvärden!N39 -> 0.08 | I78: =+Indata_Kalkylvärden!O39 -> 0.32 | J78: E
A79: Pendeltåg | B79: =+Indata_Kalkylvärden!A35 -> GPL-B160 | C79: =+Indata_Kalkylvärden!B35 -> 15 | D79: =+Indata_Kalkylvärden!C35 -> 215 | E79: =+Indata_Kalkylvärden!D35 -> 0.35 | F79: =+Indata_Kalkylvärden!L35 -> 13.95894535 | G79: =+Indata_Kalkylvärden!M35 -> 47.04801534 | H79: =+Indata_Kalkylvärden!N35 -> 0.0647746884 | I79: =+Indata_Kalkylvärden!O35 -> 0.107957814 | J79: E
A80: Nattåg | B80: =+Indata_Kalkylvärden!A34 -> GNT-B200 | C80: =+Indata_Kalkylvärden!B34 -> 16 | D80: =+Indata_Kalkylvärden!C34 -> 250 | E80: =+Indata_Kalkylvärden!D34 -> 0.5 | F80: =+Indata_Kalkylvärden!L34 -> 39.91200384 | G80: =+Indata_Kalkylvärden!M34 -> 111.3476894 | H80: =+Indata_Kalkylvärden!N34 -> 0.1295493768 | I80: =+Indata_Kalkylvärden!O34 -> 0.2806903164 | J80: E
A81: Bimodalt reg.tåg eldrift | B81: =+Indata_Kalkylvärden!A37 -> GRB-C160(el) | C81: =+Indata_Kalkylvärden!B37 -> 17 | D81: =+Indata_Kalkylvärden!C37 -> 150 | E81: =+Indata_Kalkylvärden!D37 -> 0.35 | F81: =+Indata_Kalkylvärden!L37 -> 12.80379674 | G81: =+Indata_Kalkylvärden!M37 -> 54.06527325 | H81: =+Indata_Kalkylvärden!N37 -> 0.0863662512 | I81: =+Indata_Kalkylvärden!O37 -> 0.1835282838 | J81: E
A82: Bimodalt reg.tåg dieseldrift | B82: =+Indata_Kalkylvärden!A38 -> GRB-C140(fbr | C82: =+Indata_Kalkylvärden!B38 -> 17 | D82: =+Indata_Kalkylvärden!C38 -> 150 | E82: =+Indata_Kalkylvärden!D38 -> 0.35 | F82: =+Indata_Kalkylvärden!L38 -> 20.32845638 | G82: =+Indata_Kalkylvärden!M38 -> 54.06527325 | H82: =+Indata_Kalkylvärden!N38 -> 0.0863662512 | I82: =+Indata_Kalkylvärden!O38 -> 0.1835282838 | J82: D
A83: Pendeltåg Stockholm | B83: =+Indata_Kalkylvärden!A36 -> GPLS-B160 | C83: =+Indata_Kalkylvärden!B36 -> 18 | D83: =+Indata_Kalkylvärden!C36 -> 375 | E83: =+Indata_Kalkylvärden!D36 -> 0.35 | F83: =+Indata_Kalkylvärden!L36 -> 22.57397891 | G83: =+Indata_Kalkylvärden!M36 -> 39.9875743 | H83: =+Indata_Kalkylvärden!N36 -> 0.053978907 | I83: =+Indata_Kalkylvärden!O36 -> 0.053978907 | J83: E
A84: Höghastighetståg | B84: =+Indata_Kalkylvärden!A30 -> GHS-B320 | C84: =+Indata_Kalkylvärden!B30 -> 3 | D84: =+Indata_Kalkylvärden!C30 -> 250 | E84: =+Indata_Kalkylvärden!D30 -> 0.65 | F84: =+Indata_Kalkylvärden!L30 -> 21.66 | G84: =+Indata_Kalkylvärden!M30 -> 108.56 | H84: =+Indata_Kalkylvärden!N30 -> 0.08 | I84: =+Indata_Kalkylvärden!O30 -> 0.31 | J84: E
A85: Snabba regionaltåg | B85: =+Indata_Kalkylvärden!A32 -> GIR-C250 | C85: =+Indata_Kalkylvärden!B32 -> 4 | D85: =+Indata_Kalkylvärden!C32 -> 220 | E85: =+Indata_Kalkylvärden!D32 -> 0.65 | F85: =+Indata_Kalkylvärden!L32 -> 19.14092042 | G85: =+Indata_Kalkylvärden!M32 -> 86.5389837 | H85: =+Indata_Kalkylvärden!N32 -> 0.0863662512 | I85: =+Indata_Kalkylvärden!O32 -> 0.2483029722 | J85: E

Sheet Kalkylsammanställning
F1: Känslighetsanalyser | G1: Välj: | H1: Instruktion
A2: Kalkylsammanställning, miljoner kronor | B2: ='Beskrivning av åtgärd'!B11 -> Totalt | C2: =+B2 -> Totalt | D2: =+C2 -> Totalt | F2: KA Volym | G2: 1 | H2: För att göra KA "trafiktillväxt", ändra från default 1 till 0,8 respektive 1,2 och klistra in värden från kalkylsammanställningstabell (kolumn A-D) in tabell nedan. | M2: Lista för val KA
B3: Prognosåret | C3: Öppningsår | D3: Nuvärde | F3: KA Gemensamt tidsvärde | G3: Nej | H3: För att göra KA "Gemensamt tidsvärde", ändra från default "nej" i listan till "ja" och klistra in värden från kalkylsammanställningstabell (kolumn A-D) in tabell nedan.
A4: Investeringskostnad | D4: =-Diskontering!C49 -> 0 | M4: 1 | N4: Nej
A5: Kostnader för underhåll | D5: =+Diskontering!C52+Diskontering!C53+Diskontering!C55+Diskontering!C57+Diskontering!C59 -> 0 | F5: Känslighetsanalyser (Fyll i enligt instruktion ovan, värden kopplade till SEB-IT flik) | M5: 1.2 | N5: Ja
A6: Kostnad för reinvestering | D6: =+Diskontering!C54+Diskontering!C56+Diskontering!C58+Diskontering!C60 -> 0 | G6: Övriga "utgifter" (mnkr) | H6: Summa nyttor (mnkr) | M6: 0.8
A7: Infrastruktur järnväg | B7: =+IF(B$2="Persontrafik",Kalkylsammanställning!B222,IF(B$2="Godstrafik",Kalkylsammanställning!E222,Kalkylsammanställning!H222)) -> 0 | C7: =+IF(C$2="Persontrafik",Kalkylsammanställning!C222,IF(C$2="Godstrafik",Kalkylsammanställning!F222,Kalkylsammanställning!I222)) -> 0 | D7: =+IF(D$2="Persontrafik",Kalkylsammanställning!D222,IF(D$2="Godstrafik",Kalkylsammanställning!G222,Kalkylsammanställning!J222)) -> 0 | G7: = summa av D5-D8 | H7: = D37
A8: Infrastruktur väg | B8: =+IF(B$2="Persontrafik",Kalkylsammanställning!B223,IF(B$2="Godstrafik",Kalkylsammanställning!E223,Kalkylsammanställning!H223)) -> 2.419050753e-15 | C8: =+IF(C$2="Persontrafik",Kalkylsammanställning!C223,IF(C$2="Godstrafik",Kalkylsammanställning!F223,Kalkylsammanställning!I223)) -> 1.784248817e-15 | D8: =+IF(D$2="Persontrafik",Kalkylsammanställning!D223,IF(D$2="Godstrafik",Kalkylsammanställning!G223,Kalkylsammanställning!J223)) -> 5.471710979e-14 | F8: Enhetligt tidsvärde på privata resor | G8: Beräknas i SEB-IT
A9: Effekter för persontrafikföretag | F9: Trafiktillväxt +20%
A10: Biljettintäkter | B10: =+IF(B$2="Persontrafik",Kalkylsammanställning!B198,IF(B$2="Godstrafik",Kalkylsammanställning!E198,Kalkylsammanställning!H198)) -> 0 | C10: =+IF(C$2="Persontrafik",Kalkylsammanställning!C198,IF(C$2="Godstrafik",Kalkylsammanställning!F198,Kalkylsammanställning!I198)) -> 0 | D10: =+IF(D$2="Persontrafik",Kalkylsammanställning!D198,IF(D$2="Godstrafik",Kalkylsammanställning!G198,Kalkylsammanställning!J198)) -> 0 | F10: Trafiktillväxt -20%
A11: Fordonskostnader kollektivtrafik | B11: =+IF(B$2="Persontrafik",Kalkylsammanställning!B199,IF(B$2="Godstrafik",Kalkylsammanställning!E199,Kalkylsammanställning!H199)) -> 0 | C11: =+IF(C$2="Persontrafik",Kalkylsammanställning!C199,IF(C$2="Godstrafik",Kalkylsammanställning!F199,Kalkylsammanställning!I199)) -> 0 | D11: =+IF(D$2="Persontrafik",Kalkylsammanställning!D199,IF(D$2="Godstrafik",Kalkylsammanställning!G199,Kalkylsammanställning!J199)) -> 0
A12: Omkostnader | B12: =+IF(B$2="Persontrafik",Kalkylsammanställning!B200,IF(B$2="Godstrafik",Kalkylsammanställning!E200,Kalkylsammanställning!H200)) -> 0 | C12: =+IF(C$2="Persontrafik",Kalkylsammanställning!C200,IF(C$2="Godstrafik",Kalkylsammanställning!F200,Kalkylsammanställning!I200)) -> 0 | D12: =+IF(D$2="Persontrafik",Kalkylsammanställning!D200,IF(D$2="Godstrafik",Kalkylsammanställning!G200,Kalkylsammanställning!J200)) -> 0
A13: Moms på biljettintäkter | B13: =+IF(B$2="Persontrafik",Kalkylsammanställning!B201,IF(B$2="Godstrafik",Kalkylsammanställning!E201,Kalkylsammanställning!H201)) -> 0 | C13: =+IF(C$2="Persontrafik",Kalkylsammanställning!C201,IF(C$2="Godstrafik",Kalkylsammanställning!F201,Kalkylsammanställning!I201)) -> 0 | D13: =+IF(D$2="Persontrafik",Kalkylsammanställning!D201,IF(D$2="Godstrafik",Kalkylsammanställning!G201,Kalkylsammanställning!J201)) -> 0
A14: Banavgifter | B14: =+IF(B$2="Persontrafik",Kalkylsammanställning!B202,IF(B$2="Godstrafik",Kalkylsammanställning!E202,Kalkylsammanställning!H202)) -> 0 | C14: =+IF(C$2="Persontrafik",Kalkylsammanställning!C202,IF(C$2="Godstrafik",Kalkylsammanställning!F202,Kalkylsammanställning!I202)) -> 0 | D14: =+IF(D$2="Persontrafik",Kalkylsammanställning!D202,IF(D$2="Godstrafik",Kalkylsammanställning!G202,Kalkylsammanställning!J202)) -> 0
A15: Budgeteffekter
A16: Drivmedelsskatt och moms | B16: =+IF(B$2="Persontrafik",Kalkylsammanställning!B204,IF(B$2="Godstrafik",Kalkylsammanställning!E204,Kalkylsammanställning!H204)) -> -1.72729569e-15 | C16: =+IF(C$2="Persontrafik",Kalkylsammanställning!C204,IF(C$2="Godstrafik",Kalkylsammanställning!F204,Kalkylsammanställning!I204)) -> -1.749958562e-15 | D16: =+IF(D$2="Persontrafik",Kalkylsammanställning!D204,IF(D$2="Godstrafik",Kalkylsammanställning!G204,Kalkylsammanställning!J204)) -> -4.151341192e-14
A17: Moms på biljettintäkter | B17: =+IF(B$2="Persontrafik",Kalkylsammanställning!B205,IF(B$2="Godstrafik",Kalkylsammanställning!E205,Kalkylsammanställning!H205)) -> 0 | C17: =+IF(C$2="Persontrafik",Kalkylsammanställning!C205,IF(C$2="Godstrafik",Kalkylsammanställning!F205,Kalkylsammanställning!I205)) -> 0 | D17: =+IF(D$2="Persontrafik",Kalkylsammanställning!D205,IF(D$2="Godstrafik",Kalkylsammanställning!G205,Kalkylsammanställning!J205)) -> 0
A18: Banavgifter | B18: =+IF(B$2="Persontrafik",Kalkylsammanställning!B206,IF(B$2="Godstrafik",Kalkylsammanställning!E206,Kalkylsammanställning!H206)) -> 0 | C18: =+IF(C$2="Persontrafik",Kalkylsammanställning!C206,IF(C$2="Godstrafik",Kalkylsammanställning!F206,Kalkylsammanställning!I206)) -> 0 | D18: =+IF(D$2="Persontrafik",Kalkylsammanställning!D206,IF(D$2="Godstrafik",Kalkylsammanställning!G206,Kalkylsammanställning!J206)) -> 0
A19: Skattefinansieringskostnad
A20: Skattefinansieringskostnad | D20: =+(D4+D5+D6+Diskontering!D126+Diskontering!D128)*(INDATABLAD!D6-1) -> 1.094342196e-14
A21: Effekter för resenärer
A22: Reskostnader | B22: =+IF(B$2="Persontrafik",Kalkylsammanställning!B208,IF(B$2="Godstrafik",Kalkylsammanställning!E208,Kalkylsammanställning!H208)) -> 0 | C22: =+IF(C$2="Persontrafik",Kalkylsammanställning!C208,IF(C$2="Godstrafik",Kalkylsammanställning!F208,Kalkylsammanställning!I208)) -> 0 | D22: =+IF(D$2="Persontrafik",Kalkylsammanställning!D208,IF(D$2="Godstrafik",Kalkylsammanställning!G208,Kalkylsammanställning!J208)) -> 0
A23: Åktid | B23: =+IF(B$2="Persontrafik",Kalkylsammanställning!B209,IF(B$2="Godstrafik",Kalkylsammanställning!E209,Kalkylsammanställning!H209)) -> 0 | C23: =+IF(C$2="Persontrafik",Kalkylsammanställning!C209,IF(C$2="Godstrafik",Kalkylsammanställning!F209,Kalkylsammanställning!I209)) -> 0 | D23: =+IF(D$2="Persontrafik",Kalkylsammanställning!D209,IF(D$2="Godstrafik",Kalkylsammanställning!G209,Kalkylsammanställning!J209)) -> 0
A24: Turintervall | B24: =+IF(B$2="Persontrafik",Kalkylsammanställning!B210,IF(B$2="Godstrafik",Kalkylsammanställning!E210,Kalkylsammanställning!H210)) -> 0 | C24: =+IF(C$2="Persontrafik",Kalkylsammanställning!C210,IF(C$2="Godstrafik",Kalkylsammanställning!F210,Kalkylsammanställning!I210)) -> 0 | D24: =+IF(D$2="Persontrafik",Kalkylsammanställning!D210,IF(D$2="Godstrafik",Kalkylsammanställning!G210,Kalkylsammanställning!J210)) -> 0
A25: Förseningstid | B25: =+IF(B$2="Persontrafik",Kalkylsammanställning!B211,IF(B$2="Godstrafik",Kalkylsammanställning!E211,Kalkylsammanställning!H211)) -> 0 | C25: =+IF(C$2="Persontrafik",Kalkylsammanställning!C211,IF(C$2="Godstrafik",Kalkylsammanställning!F211,Kalkylsammanställning!I211)) -> 0 | D25: =+IF(D$2="Persontrafik",Kalkylsammanställning!D211,IF(D$2="Godstrafik",Kalkylsammanställning!G211,Kalkylsammanställning!J211)) -> 0
A26: Effekter för godskunder
A27: Transportkostnader | B27: =+IF('Beskrivning av åtgärd'!$B$10="JA",Kalkylsammanställning!E213,IF(B$2="Persontrafik",Kalkylsammanställning!B213,IF(B$2="Godstrafik",Kalkylsammanställning!E213,Kalkylsammanställning!H213))) -> 1.375806295e-14 | C27: =+IF('Beskrivning av åtgärd'!$B$10="JA",Kalkylsammanställning!F213,IF(C$2="Persontrafik",Kalkylsammanställning!C213,IF(C$2="Godstrafik",Kalkylsammanställning!F213,Kalkylsammanställning!I213))) -> 1.02048617e-14 | D27: =+IF('Beskrivning av åtgärd'!$B$10="JA",Kalkylsammanställning!G213,IF(D$2="Persontrafik",Kalkylsammanställning!D213,IF(D$2="Godstrafik",Kalkylsammanställning!G213,Kalkylsammanställning!J213))) -> 3.137343491e-13
A28: Transporttid | B28: =+IF('Beskrivning av åtgärd'!$B$10="JA",Kalkylsammanställning!E214,IF(B$2="Persontrafik",Kalkylsammanställning!B214,IF(B$2="Godstrafik",Kalkylsammanställning!E214,Kalkylsammanställning!H214))) -> 2.577564367e-16 | C28: =+IF('Beskrivning av åtgärd'!$B$10="JA",Kalkylsammanställning!F214,IF(C$2="Persontrafik",Kalkylsammanställning!C214,IF(C$2="Godstrafik",Kalkylsammanställning!F214,Kalkylsammanställning!I214))) -> 2.253157109e-16 | D28: =+IF('Beskrivning av åtgärd'!$B$10="JA",Kalkylsammanställning!G214,IF(D$2="Persontrafik",Kalkylsammanställning!D214,IF(D$2="Godstrafik",Kalkylsammanställning!G214,Kalkylsammanställning!J214))) -> 6.05012708e-15
A29: Förseningstid | B29: =+IF('Beskrivning av åtgärd'!$B$10="JA",Kalkylsammanställning!E215,IF(B$2="Persontrafik",Kalkylsammanställning!B215,IF(B$2="Godstrafik",Kalkylsammanställning!E215,Kalkylsammanställning!H215))) -> 0 | C29: =+IF('Beskrivning av åtgärd'!$B$10="JA",Kalkylsammanställning!F215,IF(C$2="Persontrafik",Kalkylsammanställning!C215,IF(C$2="Godstrafik",Kalkylsammanställning!F215,Kalkylsammanställning!I215))) -> 0 | D29: =+IF('Beskrivning av åtgärd'!$B$10="JA",Kalkylsammanställning!G215,IF(D$2="Persontrafik",Kalkylsammanställning!D215,IF(D$2="Godstrafik",Kalkylsammanställning!G215,Kalkylsammanställning!J215))) -> 0
A30: Externa effekter
A31: Luftföroreningar-PM avgas | B31: =+IF(B$2="Persontrafik",Kalkylsammanställning!B217,IF(B$2="Godstrafik",Kalkylsammanställning!E217,Kalkylsammanställning!H217)) -> 3.953529091e-17 | C31: =+IF(C$2="Persontrafik",Kalkylsammanställning!C217,IF(C$2="Godstrafik",Kalkylsammanställning!F217,Kalkylsammanställning!I217)) -> 1.882584262e-16 | D31: =+IF(D$2="Persontrafik",Kalkylsammanställning!D217,IF(D$2="Godstrafik",Kalkylsammanställning!G217,Kalkylsammanställning!J217)) -> 1.141551293e-15
A32: Luftföroreningar-NOx | B32: =+IF(B$2="Persontrafik",Kalkylsammanställning!B218,IF(B$2="Godstrafik",Kalkylsammanställning!E218,Kalkylsammanställning!H218)) -> 3.707085855e-17 | C32: =+IF(C$2="Persontrafik",Kalkylsammanställning!C218,IF(C$2="Godstrafik",Kalkylsammanställning!F218,Kalkylsammanställning!I218)) -> 9.424702596e-17 | D32: =+IF(D$2="Persontrafik",Kalkylsammanställning!D218,IF(D$2="Godstrafik",Kalkylsammanställning!G218,Kalkylsammanställning!J218)) -> 7.441340152e-16
A33: Luftföroreningar-PM slitage | B33: =+IF(B$2="Persontrafik",Kalkylsammanställning!B219,IF(B$2="Godstrafik",Kalkylsammanställning!E219,Kalkylsammanställning!H219)) -> 2.619014701e-15 | C33: =+IF(C$2="Persontrafik",Kalkylsammanställning!C219,IF(C$2="Godstrafik",Kalkylsammanställning!F219,Kalkylsammanställning!I219)) -> 1.950731391e-15 | D33: =+IF(D$2="Persontrafik",Kalkylsammanställning!D219,IF(D$2="Godstrafik",Kalkylsammanställning!G219,Kalkylsammanställning!J219)) -> 6.538859483e-14
A34: Luftföroreningar-NH3 | B34: =+IF(B$2="Persontrafik",Kalkylsammanställning!B220,IF(B$2="Godstrafik",Kalkylsammanställning!E220,Kalkylsammanställning!H220)) -> 0 | C34: =+IF(C$2="Persontrafik",Kalkylsammanställning!C220,IF(C$2="Godstrafik",Kalkylsammanställning!F220,Kalkylsammanställning!I220)) -> 0 | D34: =+IF(D$2="Persontrafik",Kalkylsammanställning!D220,IF(D$2="Godstrafik",Kalkylsammanställning!G220,Kalkylsammanställning!J220)) -> 0
A35: Trafikolyckor | B35: =+IF(B$2="Persontrafik",Kalkylsammanställning!B221,IF(B$2="Godstrafik",Kalkylsammanställning!E221,Kalkylsammanställning!H221)) -> 2.709442139e-15 | C35: =+IF(C$2="Persontrafik",Kalkylsammanställning!C221,IF(C$2="Godstrafik",Kalkylsammanställning!F221,Kalkylsammanställning!I221)) -> 2.018084828e-15 | D35: =+IF(D$2="Persontrafik",Kalkylsammanställning!D221,IF(D$2="Godstrafik",Kalkylsammanställning!G221,Kalkylsammanställning!J221)) -> 6.764628475e-14
A36: Buller | B36: =+IF(B$2="Persontrafik",Kalkylsammanställning!B224,IF(B$2="Godstrafik",Kalkylsammanställning!E224,Kalkylsammanställning!H224)) -> 6.797722356e-16 | C36: =+IF(C$2="Persontrafik",Kalkylsammanställning!C224,IF(C$2="Godstrafik",Kalkylsammanställning!F224,Kalkylsammanställning!I224)) -> 1.272976146e-15 | D36: =+IF(D$2="Persontrafik",Kalkylsammanställning!D224,IF(D$2="Godstrafik",Kalkylsammanställning!G224,Kalkylsammanställning!J224)) -> 1.96399779e-14
A37: SUMMA effekter | B37: =+SUM(B7:B36) -> 2.079240967e-14 | C37: =+SUM(C7:C36) -> 1.598876548e-14 | D37: =+SUM(D10:D36) -> 4.43775029e-13
A38: Nettoresultat | D38: =+D37+(D4+D5+D6+D7+D8) -> 4.984921388e-13
A39: Nettonuvärdeskvot | D39: =+IF(D4=0,"-",D38/(-D4-D5-D6-D7-D8)) -> -
A40: NUK | D40: =+IF(D4=0,"-",D37/(-D4-D5-D6-D7-D8)) -> -
A41: CO2 MSEK | B41: =+IF('Beskrivning av åtgärd'!$B11="Persontrafik",Kalkylsammanställning!B227,IF('Beskrivning av åtgärd'!$B11="godstrafik",Kalkylsammanställning!E227,Kalkylsammanställning!H227)) -> 2.739714265e-15 | C41: =+IF('Beskrivning av åtgärd'!$B11="Persontrafik",Kalkylsammanställning!C227,IF('Beskrivning av åtgärd'!$B11="godstrafik",Kalkylsammanställning!F227,Kalkylsammanställning!I227)) -> 6.866346931e-15 | D41: =+IF('Beskrivning av åtgärd'!$B11="Persontrafik",Kalkylsammanställning!D227,IF('Beskrivning av åtgärd'!$B11="godstrafik",Kalkylsammanställning!G227,Kalkylsammanställning!J227)) -> 6.951888106e-14
A42: Investeringskostnad | D42: =+D4 -> 0
A43: Drift, underhåll och reinvestering | D43: =+D5+D6+D7+D8 -> 5.471710979e-14
A44: Persontrafikföretag | D44: =+SUM(D10:D14) -> 0
A45: Budgeteffekter | D45: =+SUM(D16:D20) -> -3.056998996e-14
A46: Resenärer | D46: =+SUM(D22:D25) -> 0
A47: Godskunder | D47: =+SUM(D27:D29) -> 3.197844762e-13
A48: Externa effekter | D48: =+SUM(D31:D36) -> 1.545605428e-13
A49: SUMMA effekter | D49: =+SUM(D44:D48) -> 4.43775029e-13
A50: Nettoresultat | D50: =+D49+D42 -> 4.43775029e-13
A51: Nettonuvärdeskvot | D51: =+IF(D42=0,"-",D50/-D42) -> -
A52: Kalkylperiod, år | D52: =+'Beskrivning av åtgärd'!C56 -> 60
A55: Kalkylförutsättningar
A56: Kalkylränta | B56: =+Diskontering!B2 -> 0.035
A57: Moms biljettintäkter | B57: =+Diskontering!B3 -> 0.05660377358
A58: Byggstart | B58: =+Diskontering!B29 -> 2028
A59: Byggtid | B59: =+Diskontering!B28 -> 3
A60: Trafikstart | B60: =+Diskontering!B4 -> 2028
A61: Diskonteringsår | B61: =+Diskontering!B4 -> 2028
A62: Kalkylperiod, år | B62: =+Diskontering!B5 -> 60
... 68 more rows

Sheet 2. Samhällsekonomisk analys
A1: Samlad effektbedömning version 2024 | BN1: m | BO1: u | BQ1: Instruktioner | BT1: Kommentar Upprättaren | BU1: Kommentar Regional granskare | BV1: Kommentar Nationell granskare
AV2: Samlad Effektbedömning
A3: 2. Samhällsekonomisk analys
A5: Tabell 2.1 Allmänna kalkylförutsättningar för samhällsekonomisk kalkyl
A6: Prognos persontrafik - huvudanalys | AJ6: Basprognoser 2024-04-02
A7: Avvikelse från prognos persontrafik | AJ7: Upprättaren skriver in, värden: JA eller NEJ
A8: Prognos godstrafik - huvudanalys | AJ8: Basprognoser 2024-04-02
A9: Avvikelse från prognos godstrafik | AJ9: Upprättaren skriver in, värden: JA eller NEJ
A10: ASEK-version | AJ10: ASEK 8
A11: Avvikelse från ASEK | AJ11: Upprättaren skriver in, värden: JA eller NEJ
A12: Prisnivå för kalkylvärden | AJ12: 2019
A13: Kalkylränta % | AJ13: =INDATABLAD!D4 -> 3.5
A14: Prognosår 1 | AJ14: 2045
A15: Diskonteringsår | AJ15: 2028
A16: Öppningsår | AJ16: =AJ15+AJ17 -> 2031
A17: Utförandetid/byggtid, antal år (projektspecifik) | AJ17: ='Beskrivning av åtgärd'!C55 -> 3
A18: Kalkylperiod från startår för effekter | AJ18: ='Beskrivning av åtgärd'!C56 -> 60
A19: Kalkylverktyg - samhällsekonomi | AJ19: Bansek 2024.2
A20: Datum för samhällsekonomisk kalkyl | AJ20: 2024-06-14
A21: Trafiktillväxttal persontrafik på järnväg period t o m 2045 | AJ21: =Diskontering!B14 -> 0.0149 | BC21: Namn och tillväxttal hämtas för de rader som har tillväxttal. Samkalk har 6 som default. Övriga har 4.
A22: Trafiktillväxttal persontrafik på järnväg period 2045-2065 | AJ22: =Diskontering!B15 -> 0.014
A23: Trafiktillväxttal godstrafik på järnväg period t o m 2045 | AJ23: =Diskontering!B17 -> 0.009654342314
A24: Trafiktillväxttal godstrafik på järnväg period 2045-2065 | AJ24: =Diskontering!B18 -> 0.0054
A25: Trafiktillväxttal | AJ25: Ej angett
A26: Trafiktillväxttal | AJ26: Ej angett
A27: Trafiktillväxttal | AJ27: Ej angett
A28: Trafiktillväxttal | AJ28: Ej angett
A29: Trafiktillväxttal | AJ29: Ej angett
A30: Trafiktillväxttal | AJ30: Ej angett
A31: Trafiktillväxttal | AJ31: Ej angett
A32: Trafiktillväxttal | AJ32: Ej angett
A33: Trafiktillväxttal | AJ33: Ej angett
A34: Trafiktillväxttal | AJ34: Ej angett
A35: Trafiktillväxttal | AJ35: Ej angett
A36: Trafiktillväxttal | AJ36: Ej angett
A37: Trafiktillväxttal | AJ37: Ej angett
A38: Trafiktillväxttal | AJ38: Ej angett
A40: Kommentar
BQ41: Avvikelser från gällande förutsättningar beskrivs här
A44: Tabell 2.2 Nyckeltal samhällsekonomi
AS45: Omräknad investeringskostnad (mnkr) | BB45: Netto-nuvärde (mnkr) | BH45: NNK | BM45: Övriga "utgifter" (mnkr) | BN45: Summa nyttor (mnkr)
A52: Enhetligt tidsvärde på privata resor | BB52: - | BH52: - | BN52: =Kalkylsammanställning!H8 -> 0 | BQ52: Länk behövs
A53: Trafiktillväxt +20% | BB53: - | BH53: - | BM53: =Kalkylsammanställning!G9 -> 0 | BN53: =Kalkylsammanställning!H9 -> 0 | BQ53: Länk behövs
A54: Trafiktillväxt -20% | BB54: - | BH54: - | BM54: =Kalkylsammanställning!G10 -> 0 | BN54: =Kalkylsammanställning!H10 -> 0 | BQ54: Länk behövs
A55: Ej angett | BB55: - | BH55: -
A56: Ej angett | BB56: - | BH56: -
A59: Kommentar
A60: test2
A62: Samhällsekonomisk analys
... 64 more rows

Sheet Beskrivning av åtgärd
A1: Beskrivning av åtgärd
A2: Förutsättningar
A3: Resandeprognos | B3: BAS 2024-04-01
A4: Prognosår resandeprognos | B4: 2045
A5: Godsprognos | B5: BAS 2024-04-01
A6: Prognosår godsprognos | B6: 2045
A7: Öppningsår | B7: =+C54+C55 -> 2031
A8: Diskonteringsår | B8: 2028
A10: Separat Bansek Gods? | B10: Nej
A11: Val av effektredovisning | B11: Totalt
A13: Objektnamn:
A14: Datum för samhällsekonomisk kalkyl: | C14: ange datum åååå-mm-dd
A16: INNEHÅLL
A17: 1. Beskriv aktuell åtgärd och effekter i kalkylen
A18: 2. Korrigering av prognosindata
A19: 3. Byggtid och kalkylperiod
A20: 4. Kalkylspecifika tillväxttal
A21: 5. Om åtgärden innebär förändringar i kapacitetsberäkningens linjedelar
A22: 6. Om åtgärden innebär andra förändringar i kapacitetsberäkningen:
A23: 7. Om effekterna beräknas utanför modellen - med tidtabellsanalys/simulering
A24: 8. Åtgärd som påverkar drivmedelstyp, exempelvis elektrifiering
A25: 9. Förändrade banavgifter
A26: 10. Andel gjutjärnsbromsar
A32: 1. Beskriv aktuell åtgärd och effekter i kalkylen
A33: Allmän beskrivning av åtgärden
A35: Beräkningsbara effekter | C35: Beskriv kortfattat om åtgärden innebär en förändring,
A36: Gångtider
A37: Avstånd
A38: Turtäthet/antal tåg
A39: Kapacitetsutnyttjande
A40: Ändring drivmedel/byte av tågtyp
A41: Banavgifter
A42: Kostnader för DoU (ange beräkningsmetod)
A43: Bromsar godståg (anges under punkt 10 nedan)
A46: 2. Korrigering av prognosindata
A47: Har korrigering av personprognosindata genomförts?
A48: Har korrigering av godsprognosindata genomförts?
A49: I så fall; ange sträckor och omräkningsfaktor (infoga rader vid behov)
A53: 3. Byggtid och kalkylperiod
A54: Byggstart | C54: 2028
A55: Byggtid | C55: 3
A56: Kalkylperiod, år | C56: 60
A59: 4. Kalkylspecifika tillväxttal | C59: Kalkylspecifik | D59: standard | H59: Trafiktillväxt KA
A60: Trafiktillväxt 1 godstrafik | B60: Basår-prognosår 1 | C60: =+IF(Kalkylsammanställning!G$2=1,"",'Beskrivning av åtgärd'!H60) ->  | D60: =+INDATABLAD!D20 -> 0.009654342314 | E60: per år | G60: =+(1+D60)^(2045-2019) -> 1.283780141 | H60: =+((G60*Kalkylsammanställning!G2))^(1/(2045-2019))-1 -> 0.009654342314
A61: Trafiktillväxt 2 godstrafik | B61: Proggnosår 1-prognosår 2 | C61: =+D61 -> 0.0054 | D61: =+INDATABLAD!D21 -> 0.0054 | E61: per år
A62: Trafiktillväxt 1 persontrafik | B62: Basår-prognosår 1 | C62: =+IF(Kalkylsammanställning!G$2=1,"",'Beskrivning av åtgärd'!H62) ->  | D62: =+INDATABLAD!D17 -> 0.0149 | E62: per år | G62: =+(1+D62)^(2045-2019) -> 1.468941719 | H62: =+((G62*Kalkylsammanställning!G$2))^(1/(2045-2019))-1 -> 0.0149
... 36 more rows

Sheet Länkar
K1: Ange gångtidsdifferenser (per riktning) | AK1: Tåg/dygn | AL1: JA | AM1: JA | AN1: JA | AO1: UA | AP1: UA | AQ1: UA | AX1: Plankorsningsberäkningar
A2: Från nod | B2: Till nod | C2: Länk | D2: Från station | E2: Till station | F2: Bandel | G2: Stråknamn | H2: Stråknr | I2: Linjedel JA | J2: Linjedel UA | K2: IR-tåg (1) | L2: Snabbtåg (2) | M2: Snabbtåg stambanor (5) | N2: Pendel/Reg-tåg (15) | O2: Nattåg (16) | P2: Dieselmotor-vagn (17) | Q2: Pendeltåg storstäder (18) | R2: HH-tåg (3) | S2: Snabba reg.tåg (4) | T2: Prognoskorr.-faktor | U2: EL JA | V2: EL UA | W2: Fyrspår JA | X2: Fyrspår UA | Y2: Avstånd km persontåg JA | Z2: Avstånd km persontåg UA | AB2: Stråknamn | AD2: Bandel | AF2: Bandel Länkar TTA | AG2: Diff bandel? | AI2: - | AJ2: EMME-länk | AL2: S | AM2: Ö | AN2: L | AO2: S | AP2: Ö | AQ2: L | AX2: tkm per år | AY2: Längd linjedel | AZ2: Fordonskm, godståg, JA | BA2: Fordonskm, persontåg, JA | BB2: Fordonskm, totalt, JA | BC2: Fordonskm, godståg, UA | BD2: Fordonskm, persontåg, UA | BE2: Fordonskm, totalt, UA | BF2: Fordonskm JA | BG2: Fordonskm UA
A3: 1140 | B3: 1501 | C3: =CONCATENATE(A3,B3) -> 11401501 | D3: Hölö | E3: Vagnhärad | F3: 421 | G3: Södra stambanan | H3: 2 | I3: L4800 | J3: =+I3 -> L4800 | T3: =+Kalkylsammanställning!G$2 -> 1 | U3: Ja | V3: =+U3 -> Ja | W3: =IFERROR(+VLOOKUP(I3,Länkar_TTA!I:J,2,FALSE),0) -> 0 | X3: =+W3 -> 0 | Y3: =+IFERROR(VLOOKUP(C3,LinjeLänk_Data!F:G,2,FALSE),"-") -> 9.231829643 | Z3: =+Y3 -> 9.231829643 | AB3: =+G3 -> Södra stambanan | AD3: =+F3 -> 421 | AF3: =+VLOOKUP(C3,Länkar_TTA!M:O,2,FALSE) -> 421 | AG3: =+AD3-AF3 -> 0 | AI3: - | AJ3: =+CONCATENATE(D3,AI3,E3) -> Hölö-Vagnhärad | AL3: =+SUMIF('Linjelänk JA_KAP'!$H:$H,$C3,'Linjelänk JA_KAP'!CY:CY) -> 0 | AM3: =+SUMIF('Linjelänk JA_KAP'!$H:$H,$C3,'Linjelänk JA_KAP'!CZ:CZ) -> 1 | AN3: =+SUMIF('Linjelänk JA_KAP'!$H:$H,$C3,'Linjelänk JA_KAP'!DA:DA) -> 0 | AO3: =+SUMIF('Linjelänk UA_KAP'!$H:$H,$C3,'Linjelänk UA_KAP'!CY:CY) -> 0 | AP3: =+SUMIF('Linjelänk UA_KAP'!$H:$H,$C3,'Linjelänk UA_KAP'!CZ:CZ) -> 1 | AQ3: =+SUMIF('Linjelänk UA_KAP'!$H:$H,$C3,'Linjelänk UA_KAP'!DA:DA) -> 0 | AS3: =+VLOOKUP($AJ3,Länkar_TTA!$P:$S,2,FALSE) -> 0 | AT3: =+VLOOKUP($AJ3,Länkar_TTA!$P:$S,3,FALSE) -> 1 | AU3: =+VLOOKUP($AJ3,Länkar_TTA!$P:$S,4,FALSE) -> 0 | AX3: =+Y3*(AL3+AM3+AN3)*320 -> 2954.185486 | AY3: =VLOOKUP(I3,Bangods_linjedel!B:F,5,FALSE) -> 46.91 | AZ3: =VLOOKUP(I3,'Kap.ber JA'!DK:DN,2,FALSE)*AY3 -> 82467.78 | BA3: =VLOOKUP(I3,'Kap.ber JA'!$DK:$DN,3,FALSE)*AY3 -> 30022.4 | BB3: =VLOOKUP(I3,'Kap.ber JA'!$DK:$DN,4,FALSE)*AY3 -> 112490.18 | BC3: =VLOOKUP(J3,'Kap.ber UA'!$DJ:$DM,2,FALSE)*AY3 -> 82467.78 | BD3: =VLOOKUP(J3,'Kap.ber UA'!$DJ:$DM,3,FALSE)*AY3 -> 30022.4 | BE3: =VLOOKUP(J3,'Kap.ber UA'!$DJ:$DM,4,FALSE)*AY3 -> 112490.18 | BF3: =IF('Beskrivning av åtgärd'!$B$11="Persontrafik",BA3,IF('Beskrivning av åtgärd'!$B$11="Godstrafik",AZ3,BB3)) -> 112490.18 | BG3: =IF('Beskrivning av åtgärd'!$B$11="Persontrafik",BD3,IF('Beskrivning av åtgärd'!$B$11="Godstrafik",BC3,BE3)) -> 112490.18
A4: 1140 | B4: 681131 | C4: =CONCATENATE(A4,B4) -> 1140681131 | D4: Hölö | E4: Järna | F4: 421 | G4: Södra stambanan | H4: 2 | I4: L4800 | J4: L4800 | T4: =+Kalkylsammanställning!G$2 -> 1 | U4: Ja | V4: Ja | W4: =IFERROR(+VLOOKUP(I4,Länkar_TTA!I:J,2,FALSE),0) -> 0 | X4: 0 | Y4: =+IFERROR(VLOOKUP(C4,LinjeLänk_Data!F:G,2,FALSE),"-") -> 7.778460026 | Z4: 7.778460026 | AB4: Södra stambanan | AD4: =+F4 -> 421 | AF4: =+VLOOKUP(C4,Länkar_TTA!M:O,2,FALSE) -> 421 | AG4: 0 | AI4: - | AJ4: Hölö-Järna | AL4: =+SUMIF('Linjelänk JA_KAP'!$H:$H,$C4,'Linjelänk JA_KAP'!CY:CY) -> 0 | AM4: =+SUMIF('Linjelänk JA_KAP'!$H:$H,$C4,'Linjelänk JA_KAP'!CZ:CZ) -> 1 | AN4: =+SUMIF('Linjelänk JA_KAP'!$H:$H,$C4,'Linjelänk JA_KAP'!DA:DA) -> 0 | AO4: =+SUMIF('Linjelänk UA_KAP'!$H:$H,$C4,'Linjelänk UA_KAP'!CY:CY) -> 0 | AP4: =+SUMIF('Linjelänk UA_KAP'!$H:$H,$C4,'Linjelänk UA_KAP'!CZ:CZ) -> 1 | AQ4: =+SUMIF('Linjelänk UA_KAP'!$H:$H,$C4,'Linjelänk UA_KAP'!DA:DA) -> 0 | AS4: =+VLOOKUP($AJ4,Länkar_TTA!$P:$S,2,FALSE) -> 0 | AT4: =+VLOOKUP($AJ4,Länkar_TTA!$P:$S,3,FALSE) -> 1 | AU4: =+VLOOKUP($AJ4,Länkar_TTA!$P:$S,4,FALSE) -> 0 | AX4: 2489.107208 | AY4: =VLOOKUP(I4,Bangods_linjedel!B:F,5,FALSE) -> 46.91 | AZ4: =VLOOKUP(I4,'Kap.ber JA'!DK:DN,2,FALSE)*AY4 -> 82467.78 | BA4: =VLOOKUP(I4,'Kap.ber JA'!$DK:$DN,3,FALSE)*AY4 -> 30022.4 | BB4: =VLOOKUP(I4,'Kap.ber JA'!$DK:$DN,4,FALSE)*AY4 -> 112490.18 | BC4: =VLOOKUP(J4,'Kap.ber UA'!$DJ:$DM,2,FALSE)*AY4 -> 82467.78 | BD4: =VLOOKUP(J4,'Kap.ber UA'!$DJ:$DM,3,FALSE)*AY4 -> 30022.4 | BE4: =VLOOKUP(J4,'Kap.ber UA'!$DJ:$DM,4,FALSE)*AY4 -> 112490.18 | BF4: =IF('Beskrivning av åtgärd'!$B$11="Persontrafik",BA4,IF('Beskrivning av åtgärd'!$B$11="Godstrafik",AZ4,BB4)) -> 112490.18 | BG4: =IF('Beskrivning av åtgärd'!$B$11="Persontrafik",BD4,IF('Beskrivning av åtgärd'!$B$11="Godstrafik",BC4,BE4)) -> 112490.18
A5: 1141 | B5: 3801 | C5: 11413801 | D5: Hässleholm kp NS | E5: Lund C | F5: 4830 | G5: Södra stambanan | H5: 2 | I5: L4830 | J5: L4830 | T5: =+Kalkylsammanställning!G$2 -> 1 | U5: Ja | V5: Ja | W5: =IFERROR(+VLOOKUP(I5,Länkar_TTA!I:J,2,FALSE),0) -> 0 | X5: 0 | Y5: =+IFERROR(VLOOKUP(C5,LinjeLänk_Data!F:G,2,FALSE),"-") -> 56.36470032 | Z5: 56.36470032 | AB5: Södra stambanan | AD5: 4830 | AF5: =+VLOOKUP(C5,Länkar_TTA!M:O,2,FALSE) -> 0 | AG5: 4830 | AI5: - | AJ5: Hässleholm kp NS-Lund C | AL5: =+SUMIF('Linjelänk JA_KAP'!$H:$H,$C5,'Linjelänk JA_KAP'!CY:CY) -> 23 | AM5: =+SUMIF('Linjelänk JA_KAP'!$H:$H,$C5,'Linjelänk JA_KAP'!CZ:CZ) -> 39 | AN5: =+SUMIF('Linjelänk JA_KAP'!$H:$H,$C5,'Linjelänk JA_KAP'!DA:DA) -> 0 | AO5: =+SUMIF('Linjelänk UA_KAP'!$H:$H,$C5,'Linjelänk UA_KAP'!CY:CY) -> 23 | AP5: =+SUMIF('Linjelänk UA_KAP'!$H:$H,$C5,'Linjelänk UA_KAP'!CZ:CZ) -> 39 | AQ5: =+SUMIF('Linjelänk UA_KAP'!$H:$H,$C5,'Linjelänk UA_KAP'!DA:DA) -> 0 | AS5: =+VLOOKUP($AJ5,Länkar_TTA!$P:$S,2,FALSE) -> 23 | AT5: =+VLOOKUP($AJ5,Länkar_TTA!$P:$S,3,FALSE) -> 39 | AU5: =+VLOOKUP($AJ5,Länkar_TTA!$P:$S,4,FALSE) -> 0 | AX5: 1118275.654 | AY5: =VLOOKUP(I5,Bangods_linjedel!B:F,5,FALSE) -> 56.36 | AZ5: =VLOOKUP(I5,'Kap.ber JA'!DK:DN,2,FALSE)*AY5 -> 0 | BA5: =VLOOKUP(I5,'Kap.ber JA'!$DK:$DN,3,FALSE)*AY5 -> 2236364.8 | BB5: =VLOOKUP(I5,'Kap.ber JA'!$DK:$DN,4,FALSE)*AY5 -> 2236364.8 | BC5: =VLOOKUP(J5,'Kap.ber UA'!$DJ:$DM,2,FALSE)*AY5 -> 0 | BD5: =VLOOKUP(J5,'Kap.ber UA'!$DJ:$DM,3,FALSE)*AY5 -> 2236364.8 | BE5: =VLOOKUP(J5,'Kap.ber UA'!$DJ:$DM,4,FALSE)*AY5 -> 2236364.8 | BF5: =IF('Beskrivning av åtgärd'!$B$11="Persontrafik",BA5,IF('Beskrivning av åtgärd'!$B$11="Godstrafik",AZ5,BB5)) -> 2236364.8 | BG5: =IF('Beskrivning av åtgärd'!$B$11="Persontrafik",BD5,IF('Beskrivning av åtgärd'!$B$11="Godstrafik",BC5,BE5)) -> 2236364.8
A6: 1141 | B6: 9909 | C6: 11419909 | D6: Hässleholm kp NS | E6: Hässleholm kp SSB | F6: 4830 | G6: Södra stambanan | H6: 2 | I6: L4832 | J6: L4832 | T6: =+Kalkylsammanställning!G$2 -> 1 | U6: Ja | V6: Ja | W6: =IFERROR(+VLOOKUP(I6,Länkar_TTA!I:J,2,FALSE),0) -> 0 | X6: 0 | Y6: =+IFERROR(VLOOKUP(C6,LinjeLänk_Data!F:G,2,FALSE),"-") -> 2.700000048 | Z6: 2.700000048 | AB6: Södra stambanan | AD6: 4830 | AF6: =+VLOOKUP(C6,Länkar_TTA!M:O,2,FALSE) -> 0 | AG6: 4830 | AI6: - | AJ6: Hässleholm kp NS-Hässleholm kp SSB | AL6: =+SUMIF('Linjelänk JA_KAP'!$H:$H,$C6,'Linjelänk JA_KAP'!CY:CY) -> 23 | AM6: =+SUMIF('Linjelänk JA_KAP'!$H:$H,$C6,'Linjelänk JA_KAP'!CZ:CZ) -> 39 | AN6: =+SUMIF('Linjelänk JA_KAP'!$H:$H,$C6,'Linjelänk JA_KAP'!DA:DA) -> 0 | AO6: =+SUMIF('Linjelänk UA_KAP'!$H:$H,$C6,'Linjelänk UA_KAP'!CY:CY) -> 23 | AP6: =+SUMIF('Linjelänk UA_KAP'!$H:$H,$C6,'Linjelänk UA_KAP'!CZ:CZ) -> 39 | AQ6: =+SUMIF('Linjelänk UA_KAP'!$H:$H,$C6,'Linjelänk UA_KAP'!DA:DA) -> 0 | AS6: =+VLOOKUP($AJ6,Länkar_TTA!$P:$S,2,FALSE) -> 23 | AT6: =+VLOOKUP($AJ6,Länkar_TTA!$P:$S,3,FALSE) -> 39 | AU6: =+VLOOKUP($AJ6,Länkar_TTA!$P:$S,4,FALSE) -> 0 | AX6: 53568.00095 | AY6: =VLOOKUP(I6,Bangods_linjedel!B:F,5,FALSE) -> 2.7 | AZ6: =VLOOKUP(I6,'Kap.ber JA'!DK:DN,2,FALSE)*AY6 -> 0 | BA6: =VLOOKUP(I6,'Kap.ber JA'!$DK:$DN,3,FALSE)*AY6 -> 107136 | BB6: =VLOOKUP(I6,'Kap.ber JA'!$DK:$DN,4,FALSE)*AY6 -> 107136 | BC6: =VLOOKUP(J6,'Kap.ber UA'!$DJ:$DM,2,FALSE)*AY6 -> 0 | BD6: =VLOOKUP(J6,'Kap.ber UA'!$DJ:$DM,3,FALSE)*AY6 -> 107136 | BE6: =VLOOKUP(J6,'Kap.ber UA'!$DJ:$DM,4,FALSE)*AY6 -> 107136 | BF6: =IF('Beskrivning av åtgärd'!$B$11="Persontrafik",BA6,IF('Beskrivning av åtgärd'!$B$11="Godstrafik",AZ6,BB6)) -> 107136 | BG6: =IF('Beskrivning av åtgärd'!$B$11="Persontrafik",BD6,IF('Beskrivning av åtgärd'!$B$11="Godstrafik",BC6,BE6)) -> 107136
A7: 1142 | B7: 1806 | C7: 11421806 | D7: Sjögestad södra | E7: Mantorp | F7: 505 | G7: Södra stambanan | H7: 2 | I7: L4804 | J7: L4804 | T7: =+Kalkylsammanställning!G$2 -> 1 | U7: Ja | V7: Ja | W7: =IFERROR(+VLOOKUP(I7,Länkar_TTA!I:J,2,FALSE),0) -> 0 | X7: 0 | Y7: =+IFERROR(VLOOKUP(C7,LinjeLänk_Data!F:G,2,FALSE),"-") -> 3.75703001 | Z7: 3.75703001 | AB7: Södra stambanan | AD7: 505 | AF7: =+VLOOKUP(C7,Länkar_TTA!M:O,2,FALSE) -> 505 | AG7: 0 | AI7: - | AJ7: Sjögestad södra-Mantorp | AL7: =+SUMIF('Linjelänk JA_KAP'!$H:$H,$C7,'Linjelänk JA_KAP'!CY:CY) -> 24 | AM7: =+SUMIF('Linjelänk JA_KAP'!$H:$H,$C7,'Linjelänk JA_KAP'!CZ:CZ) -> 35 | AN7: =+SUMIF('Linjelänk JA_KAP'!$H:$H,$C7,'Linjelänk JA_KAP'!DA:DA) -> 52 | AO7: =+SUMIF('Linjelänk UA_KAP'!$H:$H,$C7,'Linjelänk UA_KAP'!CY:CY) -> 24 | AP7: =+SUMIF('Linjelänk UA_KAP'!$H:$H,$C7,'Linjelänk UA_KAP'!CZ:CZ) -> 35 | AQ7: =+SUMIF('Linjelänk UA_KAP'!$H:$H,$C7,'Linjelänk UA_KAP'!DA:DA) -> 52 | AS7: =+VLOOKUP($AJ7,Länkar_TTA!$P:$S,2,FALSE) -> 24 | AT7: =+VLOOKUP($AJ7,Länkar_TTA!$P:$S,3,FALSE) -> 35 | AU7: =+VLOOKUP($AJ7,Länkar_TTA!$P:$S,4,FALSE) -> 52 | AX7: 133449.706 | AY7: =VLOOKUP(I7,Bangods_linjedel!B:F,5,FALSE) -> 31.92 | AZ7: =VLOOKUP(I7,'Kap.ber JA'!DK:DN,2,FALSE)*AY7 -> 161866.32 | BA7: =VLOOKUP(I7,'Kap.ber JA'!$DK:$DN,3,FALSE)*AY7 -> 2267596.8 | BB7: =VLOOKUP(I7,'Kap.ber JA'!$DK:$DN,4,FALSE)*AY7 -> 2429463.12 | BC7: =VLOOKUP(J7,'Kap.ber UA'!$DJ:$DM,2,FALSE)*AY7 -> 161866.32 | BD7: =VLOOKUP(J7,'Kap.ber UA'!$DJ:$DM,3,FALSE)*AY7 -> 2267596.8 | BE7: =VLOOKUP(J7,'Kap.ber UA'!$DJ:$DM,4,FALSE)*AY7 -> 2429463.12 | BF7: =IF('Beskrivning av åtgärd'!$B$11="Persontrafik",BA7,IF('Beskrivning av åtgärd'!$B$11="Godstrafik",AZ7,BB7)) -> 2429463.12 | BG7: =IF('Beskrivning av åtgärd'!$B$11="Persontrafik",BD7,IF('Beskrivning av åtgärd'!$B$11="Godstrafik",BC7,BE7)) -> 2429463.12
A8: 1142 | B8: 1906 | C8: 11421906 | D8: Sjögestad södra | E8: Vikingstad | F8: 505 | G8: Södra stambanan | H8: 2 | I8: L4804 | J8: L4804 | T8: =+Kalkylsammanställning!G$2 -> 1 | U8: Ja | V8: Ja | W8: =IFERROR(+VLOOKUP(I8,Länkar_TTA!I:J,2,FALSE),0) -> 0 | X8: 0 | Y8: =+IFERROR(VLOOKUP(C8,LinjeLänk_Data!F:G,2,FALSE),"-") -> 5.612969875 | Z8: 5.612969875 | AB8: Södra stambanan | AD8: 505 | AF8: =+VLOOKUP(C8,Länkar_TTA!M:O,2,FALSE) -> 505 | AG8: 0 | AI8: - | AJ8: Sjögestad södra-Vikingstad | AL8: =+SUMIF('Linjelänk JA_KAP'!$H:$H,$C8,'Linjelänk JA_KAP'!CY:CY) -> 24 | AM8: =+SUMIF('Linjelänk JA_KAP'!$H:$H,$C8,'Linjelänk JA_KAP'!CZ:CZ) -> 35 | AN8: =+SUMIF('Linjelänk JA_KAP'!$H:$H,$C8,'Linjelänk JA_KAP'!DA:DA) -> 52 | AO8: =+SUMIF('Linjelänk UA_KAP'!$H:$H,$C8,'Linjelänk UA_KAP'!CY:CY) -> 24 | AP8: =+SUMIF('Linjelänk UA_KAP'!$H:$H,$C8,'Linjelänk UA_KAP'!CZ:CZ) -> 35 | AQ8: =+SUMIF('Linjelänk UA_KAP'!$H:$H,$C8,'Linjelänk UA_KAP'!DA:DA) -> 52 | AS8: =+VLOOKUP($AJ8,Länkar_TTA!$P:$S,2,FALSE) -> 24 | AT8: =+VLOOKUP($AJ8,Länkar_TTA!$P:$S,3,FALSE) -> 35 | AU8: =+VLOOKUP($AJ8,Länkar_TTA!$P:$S,4,FALSE) -> 52 | AX8: 199372.69 | AY8: =VLOOKUP(I8,Bangods_linjedel!B:F,5,FALSE) -> 31.92 | AZ8: =VLOOKUP(I8,'Kap.ber JA'!DK:DN,2,FALSE)*AY8 -> 161866.32 | BA8: =VLOOKUP(I8,'Kap.ber JA'!$DK:$DN,3,FALSE)*AY8 -> 2267596.8 | BB8: =VLOOKUP(I8,'Kap.ber JA'!$DK:$DN,4,FALSE)*AY8 -> 2429463.12 | BC8: =VLOOKUP(J8,'Kap.ber UA'!$DJ:$DM,2,FALSE)*AY8 -> 161866.32 | BD8: =VLOOKUP(J8,'Kap.ber UA'!$DJ:$DM,3,FALSE)*AY8 -> 2267596.8 | BE8: =VLOOKUP(J8,'Kap.ber UA'!$DJ:$DM,4,FALSE)*AY8 -> 2429463.12 | BF8: =IF('Beskrivning av åtgärd'!$B$11="Persontrafik",BA8,IF('Beskrivning av åtgärd'!$B$11="Godstrafik",AZ8,BB8)) -> 2429463.12 | BG8: =IF('Beskrivning av åtgärd'!$B$11="Persontrafik",BD8,IF('Beskrivning av åtgärd'!$B$11="Godstrafik",BC8,BE8)) -> 2429463.12
A9: 1300 | B9: 1305 | C9: 13001305 | D9: Enköping | E9: Grillby | F9: 444 | G9: Mälarbanan | H9: 16 | I9: L2704 | J9: L2704 | T9: =+Kalkylsammanställning!G$2 -> 1 | U9: Ja | V9: Ja | W9: =IFERROR(+VLOOKUP(I9,Länkar_TTA!I:J,2,FALSE),0) -> 0 | X9: 0 | Y9: =+IFERROR(VLOOKUP(C9,LinjeLänk_Data!F:G,2,FALSE),"-") -> 8.380000114 | Z9: 8.380000114 | AB9: Mälarbanan | AD9: 444 | AF9: =+VLOOKUP(C9,Länkar_TTA!M:O,2,FALSE) -> 444 | AG9: 0 | AI9: - | AJ9: Enköping-Grillby | AL9: =+SUMIF('Linjelänk JA_KAP'!$H:$H,$C9,'Linjelänk JA_KAP'!CY:CY) -> 0 | AM9: =+SUMIF('Linjelänk JA_KAP'!$H:$H,$C9,'Linjelänk JA_KAP'!CZ:CZ) -> 54 | AN9: =+SUMIF('Linjelänk JA_KAP'!$H:$H,$C9,'Linjelänk JA_KAP'!DA:DA) -> 0 | AO9: =+SUMIF('Linjelänk UA_KAP'!$H:$H,$C9,'Linjelänk UA_KAP'!CY:CY) -> 0 | AP9: =+SUMIF('Linjelänk UA_KAP'!$H:$H,$C9,'Linjelänk UA_KAP'!CZ:CZ) -> 54 | AQ9: =+SUMIF('Linjelänk UA_KAP'!$H:$H,$C9,'Linjelänk UA_KAP'!DA:DA) -> 0 | AS9: =+VLOOKUP($AJ9,Länkar_TTA!$P:$S,2,FALSE) -> 0 | AT9: =+VLOOKUP($AJ9,Länkar_TTA!$P:$S,3,FALSE) -> 54 | AU9: =+VLOOKUP($AJ9,Länkar_TTA!$P:$S,4,FALSE) -> 0 | AX9: 144806.402 | AY9: =VLOOKUP(I9,Bangods_linjedel!B:F,5,FALSE) -> 56.56 | AZ9: =VLOOKUP(I9,'Kap.ber JA'!DK:DN,2,FALSE)*AY9 -> 83821.92 | BA9: =VLOOKUP(I9,'Kap.ber JA'!$DK:$DN,3,FALSE)*AY9 -> 1954713.6 | BB9: =VLOOKUP(I9,'Kap.ber JA'!$DK:$DN,4,FALSE)*AY9 -> 2038535.52 | BC9: =VLOOKUP(J9,'Kap.ber UA'!$DJ:$DM,2,FALSE)*AY9 -> 83821.92 | BD9: =VLOOKUP(J9,'Kap.ber UA'!$DJ:$DM,3,FALSE)*AY9 -> 1954713.6 | BE9: =VLOOKUP(J9,'Kap.ber UA'!$DJ:$DM,4,FALSE)*AY9 -> 2038535.52 | BF9: =IF('Beskrivning av åtgärd'!$B$11="Persontrafik",BA9,IF('Beskrivning av åtgärd'!$B$11="Godstrafik",AZ9,BB9)) -> 2038535.52 | BG9: =IF('Beskrivning av åtgärd'!$B$11="Persontrafik",BD9,IF('Beskrivning av åtgärd'!$B$11="Godstrafik",BC9,BE9)) -> 2038535.52
A10: 1300 | B10: 5804 | C10: 13005804 | D10: Enköping | E10: Västerås Norra | F10: 444 | G10: Mälarbanan | H10: 16 | I10: L2704 | J10: L2704 | T10: =+Kalkylsammanställning!G$2 -> 1 | U10: Ja | V10: Ja | W10: =IFERROR(+VLOOKUP(I10,Länkar_TTA!I:J,2,FALSE),0) -> 0 | X10: 0 | Y10: =+IFERROR(VLOOKUP(C10,LinjeLänk_Data!F:G,2,FALSE),"-") -> 29.69000053 | Z10: 29.69000053 | AB10: Mälarbanan | AD10: 444 | AF10: =+VLOOKUP(C10,Länkar_TTA!M:O,2,FALSE) -> 444 | AG10: 0 | AI10: - | AJ10: Enköping-Västerås Norra | AL10: =+SUMIF('Linjelänk JA_KAP'!$H:$H,$C10,'Linjelänk JA_KAP'!CY:CY) -> 0 | AM10: =+SUMIF('Linjelänk JA_KAP'!$H:$H,$C10,'Linjelänk JA_KAP'!CZ:CZ) -> 54 | AN10: =+SUMIF('Linjelänk JA_KAP'!$H:$H,$C10,'Linjelänk JA_KAP'!DA:DA) -> 0 | AO10: =+SUMIF('Linjelänk UA_KAP'!$H:$H,$C10,'Linjelänk UA_KAP'!CY:CY) -> 0 | AP10: =+SUMIF('Linjelänk UA_KAP'!$H:$H,$C10,'Linjelänk UA_KAP'!CZ:CZ) -> 54 | AQ10: =+SUMIF('Linjelänk UA_KAP'!$H:$H,$C10,'Linjelänk UA_KAP'!DA:DA) -> 0 | AS10: =+VLOOKUP($AJ10,Länkar_TTA!$P:$S,2,FALSE) -> 0 | AT10: =+VLOOKUP($AJ10,Länkar_TTA!$P:$S,3,FALSE) -> 54 | AU10: =+VLOOKUP($AJ10,Länkar_TTA!$P:$S,4,FALSE) -> 0 | AX10: 513043.2092 | AY10: =VLOOKUP(I10,Bangods_linjedel!B:F,5,FALSE) -> 56.56 | AZ10: =VLOOKUP(I10,'Kap.ber JA'!DK:DN,2,FALSE)*AY10 -> 83821.92 | BA10: =VLOOKUP(I10,'Kap.ber JA'!$DK:$DN,3,FALSE)*AY10 -> 1954713.6 | BB10: =VLOOKUP(I10,'Kap.ber JA'!$DK:$DN,4,FALSE)*AY10 -> 2038535.52 | BC10: =VLOOKUP(J10,'Kap.ber UA'!$DJ:$DM,2,FALSE)*AY10 -> 83821.92 | BD10: =VLOOKUP(J10,'Kap.ber UA'!$DJ:$DM,3,FALSE)*AY10 -> 1954713.6 | BE10: =VLOOKUP(J10,'Kap.ber UA'!$DJ:$DM,4,FALSE)*AY10 -> 2038535.52 | BF10: =IF('Beskrivning av åtgärd'!$B$11="Persontrafik",BA10,IF('Beskrivning av åtgärd'!$B$11="Godstrafik",AZ10,BB10)) -> 2038535.52 | BG10: =IF('Beskrivning av åtgärd'!$B$11="Persontrafik",BD10,IF('Beskrivning av åtgärd'!$B$11="Godstrafik",BC10,BE10)) -> 2038535.52
A11: 1301 | B11: 1305 | C11: 13011305 | D11: Bålsta | E11: Grillby | F11: 444 | G11: Mälarbanan | H11: 16 | I11: L2704 | J11: L2704 | T11: =+Kalkylsammanställning!G$2 -> 1 | U11: Ja | V11: Ja | W11: =IFERROR(+VLOOKUP(I11,Länkar_TTA!I:J,2,FALSE),0) -> 0 | X11: 0 | Y11: =+IFERROR(VLOOKUP(C11,LinjeLänk_Data!F:G,2,FALSE),"-") -> 18.48999977 | Z11: 18.48999977 | AB11: Mälarbanan | AD11: 444 | AF11: =+VLOOKUP(C11,Länkar_TTA!M:O,2,FALSE) -> 444 | AG11: 0 | AI11: - | AJ11: Bålsta-Grillby | AL11: =+SUMIF('Linjelänk JA_KAP'!$H:$H,$C11,'Linjelänk JA_KAP'!CY:CY) -> 0 | AM11: =+SUMIF('Linjelänk JA_KAP'!$H:$H,$C11,'Linjelänk JA_KAP'!CZ:CZ) -> 54 | AN11: =+SUMIF('Linjelänk JA_KAP'!$H:$H,$C11,'Linjelänk JA_KAP'!DA:DA) -> 0 | AO11: =+SUMIF('Linjelänk UA_KAP'!$H:$H,$C11,'Linjelänk UA_KAP'!CY:CY) -> 0 | AP11: =+SUMIF('Linjelänk UA_KAP'!$H:$H,$C11,'Linjelänk UA_KAP'!CZ:CZ) -> 54 | AQ11: =+SUMIF('Linjelänk UA_KAP'!$H:$H,$C11,'Linjelänk UA_KAP'!DA:DA) -> 0 | AS11: =+VLOOKUP($AJ11,Länkar_TTA!$P:$S,2,FALSE) -> 0 | AT11: =+VLOOKUP($AJ11,Länkar_TTA!$P:$S,3,FALSE) -> 54 | AU11: =+VLOOKUP($AJ11,Länkar_TTA!$P:$S,4,FALSE) -> 0 | AX11: 319507.196 | AY11: =VLOOKUP(I11,Bangods_linjedel!B:F,5,FALSE) -> 56.56 | AZ11: =VLOOKUP(I11,'Kap.ber JA'!DK:DN,2,FALSE)*AY11 -> 83821.92 | BA11: =VLOOKUP(I11,'Kap.ber JA'!$DK:$DN,3,FALSE)*AY11 -> 1954713.6 | BB11: =VLOOKUP(I11,'Kap.ber JA'!$DK:$DN,4,FALSE)*AY11 -> 2038535.52 | BC11: =VLOOKUP(J11,'Kap.ber UA'!$DJ:$DM,2,FALSE)*AY11 -> 83821.92 | BD11: =VLOOKUP(J11,'Kap.ber UA'!$DJ:$DM,3,FALSE)*AY11 -> 1954713.6 | BE11: =VLOOKUP(J11,'Kap.ber UA'!$DJ:$DM,4,FALSE)*AY11 -> 2038535.52 | BF11: =IF('Beskrivning av åtgärd'!$B$11="Persontrafik",BA11,IF('Beskrivning av åtgärd'!$B$11="Godstrafik",AZ11,BB11)) -> 2038535.52 | BG11: =IF('Beskrivning av åtgärd'!$B$11="Persontrafik",BD11,IF('Beskrivning av åtgärd'!$B$11="Godstrafik",BC11,BE11)) -> 2038535.52
A12: 1301 | B12: 639071 | C12: 1301639071 | D12: Bålsta | E12: Bro | F12: 444 | G12: Mälarbanan | H12: 16 | I12: L2703 | J12: L2703 | T12: =+Kalkylsammanställning!G$2 -> 1 | U12: Ja | V12: Ja | W12: =IFERROR(+VLOOKUP(I12,Länkar_TTA!I:J,2,FALSE),0) -> 0 | X12: 0 | Y12: =+IFERROR(VLOOKUP(C12,LinjeLänk_Data!F:G,2,FALSE),"-") -> 8.869999886 | Z12: 8.869999886 | AB12: Mälarbanan | AD12: 444 | AF12: =+VLOOKUP(C12,Länkar_TTA!M:O,2,FALSE) -> 444 | AG12: 0 | AI12: - | AJ12: Bålsta-Bro | AL12: =+SUMIF('Linjelänk JA_KAP'!$H:$H,$C12,'Linjelänk JA_KAP'!CY:CY) -> 0 | AM12: =+SUMIF('Linjelänk JA_KAP'!$H:$H,$C12,'Linjelänk JA_KAP'!CZ:CZ) -> 54 | AN12: =+SUMIF('Linjelänk JA_KAP'!$H:$H,$C12,'Linjelänk JA_KAP'!DA:DA) -> 44 | AO12: =+SUMIF('Linjelänk UA_KAP'!$H:$H,$C12,'Linjelänk UA_KAP'!CY:CY) -> 0 | AP12: =+SUMIF('Linjelänk UA_KAP'!$H:$H,$C12,'Linjelänk UA_KAP'!CZ:CZ) -> 54 | AQ12: =+SUMIF('Linjelänk UA_KAP'!$H:$H,$C12,'Linjelänk UA_KAP'!DA:DA) -> 44 | AS12: =+VLOOKUP($AJ12,Länkar_TTA!$P:$S,2,FALSE) -> 0 | AT12: =+VLOOKUP($AJ12,Länkar_TTA!$P:$S,3,FALSE) -> 54 | AU12: =+VLOOKUP($AJ12,Länkar_TTA!$P:$S,4,FALSE) -> 44 | AX12: 278163.1964 | AY12: =VLOOKUP(I12,Bangods_linjedel!B:F,5,FALSE) -> 17.2 | AZ12: =VLOOKUP(I12,'Kap.ber JA'!DK:DN,2,FALSE)*AY12 -> 1616.8 | BA12: =VLOOKUP(I12,'Kap.ber JA'!$DK:$DN,3,FALSE)*AY12 -> 1078784 | BB12: =VLOOKUP(I12,'Kap.ber JA'!$DK:$DN,4,FALSE)*AY12 -> 1080400.8 | BC12: =VLOOKUP(J12,'Kap.ber UA'!$DJ:$DM,2,FALSE)*AY12 -> 1616.8 | BD12: =VLOOKUP(J12,'Kap.ber UA'!$DJ:$DM,3,FALSE)*AY12 -> 1078784 | BE12: =VLOOKUP(J12,'Kap.ber UA'!$DJ:$DM,4,FALSE)*AY12 -> 1080400.8 | BF12: =IF('Beskrivning av åtgärd'!$B$11="Persontrafik",BA12,IF('Beskrivning av åtgärd'!$B$11="Godstrafik",AZ12,BB12)) -> 1080400.8 | BG12: =IF('Beskrivning av åtgärd'!$B$11="Persontrafik",BD12,IF('Beskrivning av åtgärd'!$B$11="Godstrafik",BC12,BE12)) -> 1080400.8
A13: 1305 | B13: 1300 | C13: 13051300 | D13: Grillby | E13: Enköping | F13: 444 | G13: Mälarbanan | H13: 16 | I13: L2704 | J13: L2704 | T13: =+Kalkylsammanställning!G$2 -> 1 | U13: Ja | V13: Ja | W13: =IFERROR(+VLOOKUP(I13,Länkar_TTA!I:J,2,FALSE),0) -> 0 | X13: 0 | Y13: =+IFERROR(VLOOKUP(C13,LinjeLänk_Data!F:G,2,FALSE),"-") -> 8.380000114 | Z13: 8.380000114 | AB13: Mälarbanan | AD13: 444 | AF13: =+VLOOKUP(C13,Länkar_TTA!M:O,2,FALSE) -> 444 | AG13: 0 | AI13: - | AJ13: Grillby-Enköping | AL13: =+SUMIF('Linjelänk JA_KAP'!$H:$H,$C13,'Linjelänk JA_KAP'!CY:CY) -> 0 | AM13: =+SUMIF('Linjelänk JA_KAP'!$H:$H,$C13,'Linjelänk JA_KAP'!CZ:CZ) -> 54 | AN13: =+SUMIF('Linjelänk JA_KAP'!$H:$H,$C13,'Linjelänk JA_KAP'!DA:DA) -> 0 | AO13: =+SUMIF('Linjelänk UA_KAP'!$H:$H,$C13,'Linjelänk UA_KAP'!CY:CY) -> 0 | AP13: =+SUMIF('Linjelänk UA_KAP'!$H:$H,$C13,'Linjelänk UA_KAP'!CZ:CZ) -> 54 | AQ13: =+SUMIF('Linjelänk UA_KAP'!$H:$H,$C13,'Linjelänk UA_KAP'!DA:DA) -> 0 | AS13: =+VLOOKUP($AJ13,Länkar_TTA!$P:$S,2,FALSE) -> 0 | AT13: =+VLOOKUP($AJ13,Länkar_TTA!$P:$S,3,FALSE) -> 54 | AU13: =+VLOOKUP($AJ13,Länkar_TTA!$P:$S,4,FALSE) -> 0 | AX13: 144806.402 | AY13: =VLOOKUP(I13,Bangods_linjedel!B:F,5,FALSE) -> 56.56 | AZ13: =VLOOKUP(I13,'Kap.ber JA'!DK:DN,2,FALSE)*AY13 -> 83821.92 | BA13: =VLOOKUP(I13,'Kap.ber JA'!$DK:$DN,3,FALSE)*AY13 -> 1954713.6 | BB13: =VLOOKUP(I13,'Kap.ber JA'!$DK:$DN,4,FALSE)*AY13 -> 2038535.52 | BC13: =VLOOKUP(J13,'Kap.ber UA'!$DJ:$DM,2,FALSE)*AY13 -> 83821.92 | BD13: =VLOOKUP(J13,'Kap.ber UA'!$DJ:$DM,3,FALSE)*AY13 -> 1954713.6 | BE13: =VLOOKUP(J13,'Kap.ber UA'!$DJ:$DM,4,FALSE)*AY13 -> 2038535.52 | BF13: =IF('Beskrivning av åtgärd'!$B$11="Persontrafik",BA13,IF('Beskrivning av åtgärd'!$B$11="Godstrafik",AZ13,BB13)) -> 2038535.52 | BG13: =IF('Beskrivning av åtgärd'!$B$11="Persontrafik",BD13,IF('Beskrivning av åtgärd'!$B$11="Godstrafik",BC13,BE13)) -> 2038535.52
A14: 1305 | B14: 1301 | C14: 13051301 | D14: Grillby | E14: Bålsta | F14: 444 | G14: Mälarbanan | H14: 16 | I14: L2704 | J14: L2704 | T14: =+Kalkylsammanställning!G$2 -> 1 | U14: Ja | V14: Ja | W14: =IFERROR(+VLOOKUP(I14,Länkar_TTA!I:J,2,FALSE),0) -> 0 | X14: 0 | Y14: =+IFERROR(VLOOKUP(C14,LinjeLänk_Data!F:G,2,FALSE),"-") -> 18.48999977 | Z14: 18.48999977 | AB14: Mälarbanan | AD14: 444 | AF14: =+VLOOKUP(C14,Länkar_TTA!M:O,2,FALSE) -> 444 | AG14: 0 | AI14: - | AJ14: Grillby-Bålsta | AL14: =+SUMIF('Linjelänk JA_KAP'!$H:$H,$C14,'Linjelänk JA_KAP'!CY:CY) -> 0 | AM14: =+SUMIF('Linjelänk JA_KAP'!$H:$H,$C14,'Linjelänk JA_KAP'!CZ:CZ) -> 54 | AN14: =+SUMIF('Linjelänk JA_KAP'!$H:$H,$C14,'Linjelänk JA_KAP'!DA:DA) -> 0 | AO14: =+SUMIF('Linjelänk UA_KAP'!$H:$H,$C14,'Linjelänk UA_KAP'!CY:CY) -> 0 | AP14: =+SUMIF('Linjelänk UA_KAP'!$H:$H,$C14,'Linjelänk UA_KAP'!CZ:CZ) -> 54 | AQ14: =+SUMIF('Linjelänk UA_KAP'!$H:$H,$C14,'Linjelänk UA_KAP'!DA:DA) -> 0 | AS14: =+VLOOKUP($AJ14,Länkar_TTA!$P:$S,2,FALSE) -> 0 | AT14: =+VLOOKUP($AJ14,Länkar_TTA!$P:$S,3,FALSE) -> 54 | AU14: =+VLOOKUP($AJ14,Länkar_TTA!$P:$S,4,FALSE) -> 0 | AX14: 319507.196 | AY14: =VLOOKUP(I14,Bangods_linjedel!B:F,5,FALSE) -> 56.56 | AZ14: =VLOOKUP(I14,'Kap.ber JA'!DK:DN,2,FALSE)*AY14 -> 83821.92 | BA14: =VLOOKUP(I14,'Kap.ber JA'!$DK:$DN,3,FALSE)*AY14 -> 1954713.6 | BB14: =VLOOKUP(I14,'Kap.ber JA'!$DK:$DN,4,FALSE)*AY14 -> 2038535.52 | BC14: =VLOOKUP(J14,'Kap.ber UA'!$DJ:$DM,2,FALSE)*AY14 -> 83821.92 | BD14: =VLOOKUP(J14,'Kap.ber UA'!$DJ:$DM,3,FALSE)*AY14 -> 1954713.6 | BE14: =VLOOKUP(J14,'Kap.ber UA'!$DJ:$DM,4,FALSE)*AY14 -> 2038535.52 | BF14: =IF('Beskrivning av åtgärd'!$B$11="Persontrafik",BA14,IF('Beskrivning av åtgärd'!$B$11="Godstrafik",AZ14,BB14)) -> 2038535.52 | BG14: =IF('Beskrivning av åtgärd'!$B$11="Persontrafik",BD14,IF('Beskrivning av åtgärd'!$B$11="Godstrafik",BC14,BE14)) -> 2038535.52
A15: 1400 | B15: 1402 | C15: 14001402 | D15: Uppsala Central | E15: Uppsala norra utfarten | F15: 434 | G15: Ostkustbanan | H15: 5 | I15: L1412 | J15: L1412 | T15: =+Kalkylsammanställning!G$2 -> 1 | U15: Ja | V15: Ja | W15: =IFERROR(+VLOOKUP(I15,Länkar_TTA!I:J,2,FALSE),0) -> 0 | X15: 0 | Y15: =+IFERROR(VLOOKUP(C15,LinjeLänk_Data!F:G,2,FALSE),"-") -> 0.9512490034 | Z15: 0.9512490034 | AB15: Ostkustbanan | AD15: 434 | AF15: =+VLOOKUP(C15,Länkar_TTA!M:O,2,FALSE) -> 434 | AG15: 0 | AI15: - | AJ15: Uppsala Central-Uppsala norra utfarten | AL15: =+SUMIF('Linjelänk JA_KAP'!$H:$H,$C15,'Linjelänk JA_KAP'!CY:CY) -> 17 | AM15: =+SUMIF('Linjelänk JA_KAP'!$H:$H,$C15,'Linjelänk JA_KAP'!CZ:CZ) -> 59 | AN15: =+SUMIF('Linjelänk JA_KAP'!$H:$H,$C15,'Linjelänk JA_KAP'!DA:DA) -> 36 | AO15: =+SUMIF('Linjelänk UA_KAP'!$H:$H,$C15,'Linjelänk UA_KAP'!CY:CY) -> 17 | AP15: =+SUMIF('Linjelänk UA_KAP'!$H:$H,$C15,'Linjelänk UA_KAP'!CZ:CZ) -> 59 | AQ15: =+SUMIF('Linjelänk UA_KAP'!$H:$H,$C15,'Linjelänk UA_KAP'!DA:DA) -> 36 | AS15: =+VLOOKUP($AJ15,Länkar_TTA!$P:$S,2,FALSE) -> 17 | AT15: =+VLOOKUP($AJ15,Länkar_TTA!$P:$S,3,FALSE) -> 59 | AU15: =+VLOOKUP($AJ15,Länkar_TTA!$P:$S,4,FALSE) -> 36 | AX15: 34092.76428 | AY15: =VLOOKUP(I15,Bangods_linjedel!B:F,5,FALSE) -> 0.95 | AZ15: =VLOOKUP(I15,'Kap.ber JA'!DK:DN,2,FALSE)*AY15 -> 107.35 | BA15: =VLOOKUP(I15,'Kap.ber JA'!$DK:$DN,3,FALSE)*AY15 -> 68096 | BB15: =VLOOKUP(I15,'Kap.ber JA'!$DK:$DN,4,FALSE)*AY15 -> 68203.35 | BC15: =VLOOKUP(J15,'Kap.ber UA'!$DJ:$DM,2,FALSE)*AY15 -> 107.35 | BD15: =VLOOKUP(J15,'Kap.ber UA'!$DJ:$DM,3,FALSE)*AY15 -> 68096 | BE15: =VLOOKUP(J15,'Kap.ber UA'!$DJ:$DM,4,FALSE)*AY15 -> 68203.35 | BF15: =IF('Beskrivning av åtgärd'!$B$11="Persontrafik",BA15,IF('Beskrivning av åtgärd'!$B$11="Godstrafik",AZ15,BB15)) -> 68203.35 | BG15: =IF('Beskrivning av åtgärd'!$B$11="Persontrafik",BD15,IF('Beskrivning av åtgärd'!$B$11="Godstrafik",BC15,BE15)) -> 68203.35
A16: 1400 | B16: 1408 | C16: 14001408 | D16: Uppsala Central | E16: Säby | F16: 430 | G16: Ostkustbanan | H16: 5 | I16: L1420 | J16: L1420 | T16: =+Kalkylsammanställning!G$2 -> 1 | U16: Ja | V16: Ja | W16: =IFERROR(+VLOOKUP(I16,Länkar_TTA!I:J,2,FALSE),0) -> fyrspår | X16: fyrspår | Y16: =+IFERROR(VLOOKUP(C16,LinjeLänk_Data!F:G,2,FALSE),"-") -> 4.422910213 | Z16: 4.422910213 | AB16: Ostkustbanan | AD16: 430 | AF16: =+VLOOKUP(C16,Länkar_TTA!M:O,2,FALSE) -> 430 | AG16: 0 | AI16: - | AJ16: Uppsala Central-Säby | AL16: =+SUMIF('Linjelänk JA_KAP'!$H:$H,$C16,'Linjelänk JA_KAP'!CY:CY) -> 17 | AM16: =+SUMIF('Linjelänk JA_KAP'!$H:$H,$C16,'Linjelänk JA_KAP'!CZ:CZ) -> 119 | AN16: =+SUMIF('Linjelänk JA_KAP'!$H:$H,$C16,'Linjelänk JA_KAP'!DA:DA) -> 76 | AO16: =+SUMIF('Linjelänk UA_KAP'!$H:$H,$C16,'Linjelänk UA_KAP'!CY:CY) -> 17 | AP16: =+SUMIF('Linjelänk UA_KAP'!$H:$H,$C16,'Linjelänk UA_KAP'!CZ:CZ) -> 119 | AQ16: =+SUMIF('Linjelänk UA_KAP'!$H:$H,$C16,'Linjelänk UA_KAP'!DA:DA) -> 76 | AS16: =+VLOOKUP($AJ16,Länkar_TTA!$P:$S,2,FALSE) -> 17 | AT16: =+VLOOKUP($AJ16,Länkar_TTA!$P:$S,3,FALSE) -> 119 | AU16: =+VLOOKUP($AJ16,Länkar_TTA!$P:$S,4,FALSE) -> 76 | AX16: 300050.2289 | AY16: =VLOOKUP(I16,Bangods_linjedel!B:F,5,FALSE) -> 20.79 | AZ16: =VLOOKUP(I16,'Kap.ber JA'!DK:DN,2,FALSE)*AY16 -> 39395.41065 | BA16: =VLOOKUP(I16,'Kap.ber JA'!$DK:$DN,3,FALSE)*AY16 -> 1330560 | BB16: =VLOOKUP(I16,'Kap.ber JA'!$DK:$DN,4,FALSE)*AY16 -> 1369955.411 | BC16: =VLOOKUP(J16,'Kap.ber UA'!$DJ:$DM,2,FALSE)*AY16 -> 39395.41065 | BD16: =VLOOKUP(J16,'Kap.ber UA'!$DJ:$DM,3,FALSE)*AY16 -> 1330560 | BE16: =VLOOKUP(J16,'Kap.ber UA'!$DJ:$DM,4,FALSE)*AY16 -> 1369955.411 | BF16: =IF('Beskrivning av åtgärd'!$B$11="Persontrafik",BA16,IF('Beskrivning av åtgärd'!$B$11="Godstrafik",AZ16,BB16)) -> 1369955.411 | BG16: =IF('Beskrivning av åtgärd'!$B$11="Persontrafik",BD16,IF('Beskrivning av åtgärd'!$B$11="Godstrafik",BC16,BE16)) -> 1369955.411
A17: 1401 | B17: 1409 | C17: 14011409 | D17: Knivsta | E17: Alsike | F17: 430 | G17: Ostkustbanan | H17: 5 | I17: L1420 | J17: L1420 | T17: =+Kalkylsammanställning!G$2 -> 1 | U17: Ja | V17: Ja | W17: =IFERROR(+VLOOKUP(I17,Länkar_TTA!I:J,2,FALSE),0) -> fyrspår | X17: fyrspår | Y17: =+IFERROR(VLOOKUP(C17,LinjeLänk_Data!F:G,2,FALSE),"-") -> 4.196800232 | Z17: 4.196800232 | AB17: Ostkustbanan | AD17: 430 | AF17: =+VLOOKUP(C17,Länkar_TTA!M:O,2,FALSE) -> 430 | AG17: 0 | AI17: - | AJ17: Knivsta-Alsike | AL17: =+SUMIF('Linjelänk JA_KAP'!$H:$H,$C17,'Linjelänk JA_KAP'!CY:CY) -> 17 | AM17: =+SUMIF('Linjelänk JA_KAP'!$H:$H,$C17,'Linjelänk JA_KAP'!CZ:CZ) -> 119 | AN17: =+SUMIF('Linjelänk JA_KAP'!$H:$H,$C17,'Linjelänk JA_KAP'!DA:DA) -> 76 | AO17: =+SUMIF('Linjelänk UA_KAP'!$H:$H,$C17,'Linjelänk UA_KAP'!CY:CY) -> 17 | AP17: =+SUMIF('Linjelänk UA_KAP'!$H:$H,$C17,'Linjelänk UA_KAP'!CZ:CZ) -> 119 | AQ17: =+SUMIF('Linjelänk UA_KAP'!$H:$H,$C17,'Linjelänk UA_KAP'!DA:DA) -> 76 | AS17: =+VLOOKUP($AJ17,Länkar_TTA!$P:$S,2,FALSE) -> 17 | AT17: =+VLOOKUP($AJ17,Länkar_TTA!$P:$S,3,FALSE) -> 119 | AU17: =+VLOOKUP($AJ17,Länkar_TTA!$P:$S,4,FALSE) -> 76 | AX17: 284710.9277 | AY17: =VLOOKUP(I17,Bangods_linjedel!B:F,5,FALSE) -> 20.79 | AZ17: =VLOOKUP(I17,'Kap.ber JA'!DK:DN,2,FALSE)*AY17 -> 39395.41065 | BA17: =VLOOKUP(I17,'Kap.ber JA'!$DK:$DN,3,FALSE)*AY17 -> 1330560 | BB17: =VLOOKUP(I17,'Kap.ber JA'!$DK:$DN,4,FALSE)*AY17 -> 1369955.411 | BC17: =VLOOKUP(J17,'Kap.ber UA'!$DJ:$DM,2,FALSE)*AY17 -> 39395.41065 | BD17: =VLOOKUP(J17,'Kap.ber UA'!$DJ:$DM,3,FALSE)*AY17 -> 1330560 | BE17: =VLOOKUP(J17,'Kap.ber UA'!$DJ:$DM,4,FALSE)*AY17 -> 1369955.411 | BF17: =IF('Beskrivning av åtgärd'!$B$11="Persontrafik",BA17,IF('Beskrivning av åtgärd'!$B$11="Godstrafik",AZ17,BB17)) -> 1369955.411 | BG17: =IF('Beskrivning av åtgärd'!$B$11="Persontrafik",BD17,IF('Beskrivning av åtgärd'!$B$11="Godstrafik",BC17,BE17)) -> 1369955.411
A18: 1401 | B18: 9372 | C18: 14019372 | D18: Knivsta | E18: Myrbacken | F18: 430 | G18: Ostkustbanan | H18: 5 | I18: L1420 | J18: L1420 | T18: =+Kalkylsammanställning!G$2 -> 1 | U18: Ja | V18: Ja | W18: =IFERROR(+VLOOKUP(I18,Länkar_TTA!I:J,2,FALSE),0) -> fyrspår | X18: fyrspår | Y18: =+IFERROR(VLOOKUP(C18,LinjeLänk_Data!F:G,2,FALSE),"-") -> 3.700000048 | Z18: 3.700000048 | AB18: Ostkustbanan | AD18: 430 | AF18: =+VLOOKUP(C18,Länkar_TTA!M:O,2,FALSE) -> 430 | AG18: 0 | AI18: - | AJ18: Knivsta-Myrbacken | AL18: =+SUMIF('Linjelänk JA_KAP'!$H:$H,$C18,'Linjelänk JA_KAP'!CY:CY) -> 17 | AM18: =+SUMIF('Linjelänk JA_KAP'!$H:$H,$C18,'Linjelänk JA_KAP'!CZ:CZ) -> 119 | AN18: =+SUMIF('Linjelänk JA_KAP'!$H:$H,$C18,'Linjelänk JA_KAP'!DA:DA) -> 76 | AO18: =+SUMIF('Linjelänk UA_KAP'!$H:$H,$C18,'Linjelänk UA_KAP'!CY:CY) -> 17 | AP18: =+SUMIF('Linjelänk UA_KAP'!$H:$H,$C18,'Linjelänk UA_KAP'!CZ:CZ) -> 119 | AQ18: =+SUMIF('Linjelänk UA_KAP'!$H:$H,$C18,'Linjelänk UA_KAP'!DA:DA) -> 76 | AS18: =+VLOOKUP($AJ18,Länkar_TTA!$P:$S,2,FALSE) -> 17 | AT18: =+VLOOKUP($AJ18,Länkar_TTA!$P:$S,3,FALSE) -> 119 | AU18: =+VLOOKUP($AJ18,Länkar_TTA!$P:$S,4,FALSE) -> 76 | AX18: 251008.0032 | AY18: =VLOOKUP(I18,Bangods_linjedel!B:F,5,FALSE) -> 20.79 | AZ18: =VLOOKUP(I18,'Kap.ber JA'!DK:DN,2,FALSE)*AY18 -> 39395.41065 | BA18: =VLOOKUP(I18,'Kap.ber JA'!$DK:$DN,3,FALSE)*AY18 -> 1330560 | BB18: =VLOOKUP(I18,'Kap.ber JA'!$DK:$DN,4,FALSE)*AY18 -> 1369955.411 | BC18: =VLOOKUP(J18,'Kap.ber UA'!$DJ:$DM,2,FALSE)*AY18 -> 39395.41065 | BD18: =VLOOKUP(J18,'Kap.ber UA'!$DJ:$DM,3,FALSE)*AY18 -> 1330560 | BE18: =VLOOKUP(J18,'Kap.ber UA'!$DJ:$DM,4,FALSE)*AY18 -> 1369955.411 | BF18: =IF('Beskrivning av åtgärd'!$B$11="Persontrafik",BA18,IF('Beskrivning av åtgärd'!$B$11="Godstrafik",AZ18,BB18)) -> 1369955.411 | BG18: =IF('Beskrivning av åtgärd'!$B$11="Persontrafik",BD18,IF('Beskrivning av åtgärd'!$B$11="Godstrafik",BC18,BE18)) -> 1369955.411
A19: 1402 | B19: 1400 | C19: 14021400 | D19: Uppsala norra utfarten | E19: Uppsala Central | F19: 434 | G19: Ostkustbanan | H19: 5 | I19: L1412 | J19: L1412 | T19: =+Kalkylsammanställning!G$2 -> 1 | U19: Ja | V19: Ja | W19: =IFERROR(+VLOOKUP(I19,Länkar_TTA!I:J,2,FALSE),0) -> 0 | X19: 0 | Y19: =+IFERROR(VLOOKUP(C19,LinjeLänk_Data!F:G,2,FALSE),"-") -> 0.9512490034 | Z19: 0.9512490034 | AB19: Ostkustbanan | AD19: 434 | AF19: =+VLOOKUP(C19,Länkar_TTA!M:O,2,FALSE) -> 434 | AG19: 0 | AI19: - | AJ19: Uppsala norra utfarten-Uppsala Central | AL19: =+SUMIF('Linjelänk JA_KAP'!$H:$H,$C19,'Linjelänk JA_KAP'!CY:CY) -> 17 | AM19: =+SUMIF('Linjelänk JA_KAP'!$H:$H,$C19,'Linjelänk JA_KAP'!CZ:CZ) -> 59 | AN19: =+SUMIF('Linjelänk JA_KAP'!$H:$H,$C19,'Linjelänk JA_KAP'!DA:DA) -> 36 | AO19: =+SUMIF('Linjelänk UA_KAP'!$H:$H,$C19,'Linjelänk UA_KAP'!CY:CY) -> 17 | AP19: =+SUMIF('Linjelänk UA_KAP'!$H:$H,$C19,'Linjelänk UA_KAP'!CZ:CZ) -> 59 | AQ19: =+SUMIF('Linjelänk UA_KAP'!$H:$H,$C19,'Linjelänk UA_KAP'!DA:DA) -> 36 | AS19: =+VLOOKUP($AJ19,Länkar_TTA!$P:$S,2,FALSE) -> 17 | AT19: =+VLOOKUP($AJ19,Länkar_TTA!$P:$S,3,FALSE) -> 59 | AU19: =+VLOOKUP($AJ19,Länkar_TTA!$P:$S,4,FALSE) -> 36 | AX19: 34092.76428 | AY19: =VLOOKUP(I19,Bangods_linjedel!B:F,5,FALSE) -> 0.95 | AZ19: =VLOOKUP(I19,'Kap.ber JA'!DK:DN,2,FALSE)*AY19 -> 107.35 | BA19: =VLOOKUP(I19,'Kap.ber JA'!$DK:$DN,3,FALSE)*AY19 -> 68096 | BB19: =VLOOKUP(I19,'Kap.ber JA'!$DK:$DN,4,FALSE)*AY19 -> 68203.35 | BC19: =VLOOKUP(J19,'Kap.ber UA'!$DJ:$DM,2,FALSE)*AY19 -> 107.35 | BD19: =VLOOKUP(J19,'Kap.ber UA'!$DJ:$DM,3,FALSE)*AY19 -> 68096 | BE19: =VLOOKUP(J19,'Kap.ber UA'!$DJ:$DM,4,FALSE)*AY19 -> 68203.35 | BF19: =IF('Beskrivning av åtgärd'!$B$11="Persontrafik",BA19,IF('Beskrivning av åtgärd'!$B$11="Godstrafik",AZ19,BB19)) -> 68203.35 | BG19: =IF('Beskrivning av åtgärd'!$B$11="Persontrafik",BD19,IF('Beskrivning av åtgärd'!$B$11="Godstrafik",BC19,BE19)) -> 68203.35
A20: 1402 | B20: 1406 | C20: 14021406 | D20: Uppsala norra utfarten | E20: Uppsala Norra | F20: 431 | G20: Dalabanan | H20: 6 | I20: L2000 | J20: L2000 | T20: =+Kalkylsammanställning!G$2 -> 1 | U20: Ja | V20: Ja | W20: =IFERROR(+VLOOKUP(I20,Länkar_TTA!I:J,2,FALSE),0) -> 0 | X20: 0 | Y20: =+IFERROR(VLOOKUP(C20,LinjeLänk_Data!F:G,2,FALSE),"-") -> 1.435119987 | Z20: 1.435119987 | AB20: Dalabanan | AD20: 431 | AF20: =+VLOOKUP(C20,Länkar_TTA!M:O,2,FALSE) -> 431 | AG20: 0 | AI20: - | AJ20: Uppsala norra utfarten-Uppsala Norra | AL20: =+SUMIF('Linjelänk JA_KAP'!$H:$H,$C20,'Linjelänk JA_KAP'!CY:CY) -> 0 | AM20: =+SUMIF('Linjelänk JA_KAP'!$H:$H,$C20,'Linjelänk JA_KAP'!CZ:CZ) -> 36 | AN20: =+SUMIF('Linjelänk JA_KAP'!$H:$H,$C20,'Linjelänk JA_KAP'!DA:DA) -> 0 | AO20: =+SUMIF('Linjelänk UA_KAP'!$H:$H,$C20,'Linjelänk UA_KAP'!CY:CY) -> 0 | AP20: =+SUMIF('Linjelänk UA_KAP'!$H:$H,$C20,'Linjelänk UA_KAP'!CZ:CZ) -> 36 | AQ20: =+SUMIF('Linjelänk UA_KAP'!$H:$H,$C20,'Linjelänk UA_KAP'!DA:DA) -> 0 | AS20: =+VLOOKUP($AJ20,Länkar_TTA!$P:$S,2,FALSE) -> 0 | AT20: =+VLOOKUP($AJ20,Länkar_TTA!$P:$S,3,FALSE) -> 36 | AU20: =+VLOOKUP($AJ20,Länkar_TTA!$P:$S,4,FALSE) -> 0 | AX20: 16532.58224 | AY20: =VLOOKUP(I20,Bangods_linjedel!B:F,5,FALSE) -> 61.35 | AZ20: =VLOOKUP(I20,'Kap.ber JA'!DK:DN,2,FALSE)*AY20 -> 6932.55 | BA20: =VLOOKUP(I20,'Kap.ber JA'!$DK:$DN,3,FALSE)*AY20 -> 1413504 | BB20: =VLOOKUP(I20,'Kap.ber JA'!$DK:$DN,4,FALSE)*AY20 -> 1420436.55 | BC20: =VLOOKUP(J20,'Kap.ber UA'!$DJ:$DM,2,FALSE)*AY20 -> 6932.55 | BD20: =VLOOKUP(J20,'Kap.ber UA'!$DJ:$DM,3,FALSE)*AY20 -> 1413504 | BE20: =VLOOKUP(J20,'Kap.ber UA'!$DJ:$DM,4,FALSE)*AY20 -> 1420436.55 | BF20: =IF('Beskrivning av åtgärd'!$B$11="Persontrafik",BA20,IF('Beskrivning av åtgärd'!$B$11="Godstrafik",AZ20,BB20)) -> 1420436.55 | BG20: =IF('Beskrivning av åtgärd'!$B$11="Persontrafik",BD20,IF('Beskrivning av åtgärd'!$B$11="Godstrafik",BC20,BE20)) -> 1420436.55
A21: 1402 | B21: 9331 | C21: 14029331 | D21: Uppsala norra utfarten | E21: Löten | F21: 434 | G21: Ostkustbanan | H21: 5 | I21: L1413 | J21: L1413 | T21: =+Kalkylsammanställning!G$2 -> 1 | U21: Ja | V21: Ja | W21: =IFERROR(+VLOOKUP(I21,Länkar_TTA!I:J,2,FALSE),0) -> 0 | X21: 0 | Y21: =+IFERROR(VLOOKUP(C21,LinjeLänk_Data!F:G,2,FALSE),"-") -> 1.518169999 | Z21: 1.518169999 | AB21: Ostkustbanan | AD21: 434 | AF21: =+VLOOKUP(C21,Länkar_TTA!M:O,2,FALSE) -> 434 | AG21: 0 | AI21: - | AJ21: Uppsala norra utfarten-Löten | AL21: =+SUMIF('Linjelänk JA_KAP'!$H:$H,$C21,'Linjelänk JA_KAP'!CY:CY) -> 17 | AM21: =+SUMIF('Linjelänk JA_KAP'!$H:$H,$C21,'Linjelänk JA_KAP'!CZ:CZ) -> 23 | AN21: =+SUMIF('Linjelänk JA_KAP'!$H:$H,$C21,'Linjelänk JA_KAP'!DA:DA) -> 36 | AO21: =+SUMIF('Linjelänk UA_KAP'!$H:$H,$C21,'Linjelänk UA_KAP'!CY:CY) -> 17 | AP21: =+SUMIF('Linjelänk UA_KAP'!$H:$H,$C21,'Linjelänk UA_KAP'!CZ:CZ) -> 23 | AQ21: =+SUMIF('Linjelänk UA_KAP'!$H:$H,$C21,'Linjelänk UA_KAP'!DA:DA) -> 36 | AS21: =+VLOOKUP($AJ21,Länkar_TTA!$P:$S,2,FALSE) -> 17 | AT21: =+VLOOKUP($AJ21,Länkar_TTA!$P:$S,3,FALSE) -> 23 | AU21: =+VLOOKUP($AJ21,Länkar_TTA!$P:$S,4,FALSE) -> 36 | AX21: 36921.89438 | AY21: =VLOOKUP(I21,Bangods_linjedel!B:F,5,FALSE) -> 60.01 | AZ21: =VLOOKUP(I21,'Kap.ber JA'!DK:DN,2,FALSE)*AY21 -> 220656.77 | BA21: =VLOOKUP(I21,'Kap.ber JA'!$DK:$DN,3,FALSE)*AY21 -> 2918886.4 | BB21: =VLOOKUP(I21,'Kap.ber JA'!$DK:$DN,4,FALSE)*AY21 -> 3139543.17 | BC21: =VLOOKUP(J21,'Kap.ber UA'!$DJ:$DM,2,FALSE)*AY21 -> 220656.77 | BD21: =VLOOKUP(J21,'Kap.ber UA'!$DJ:$DM,3,FALSE)*AY21 -> 2918886.4 | BE21: =VLOOKUP(J21,'Kap.ber UA'!$DJ:$DM,4,FALSE)*AY21 -> 3139543.17 | BF21: =IF('Beskrivning av åtgärd'!$B$11="Persontrafik",BA21,IF('Beskrivning av åtgärd'!$B$11="Godstrafik",AZ21,BB21)) -> 3139543.17 | BG21: =IF('Beskrivning av åtgärd'!$B$11="Persontrafik",BD21,IF('Beskrivning av åtgärd'!$B$11="Godstrafik",BC21,BE21)) -> 3139543.17
A22: 1403 | B22: 1408 | C22: 14031408 | D22: Bergsbrunna | E22: Säby | F22: 430 | G22: Ostkustbanan | H22: 5 | I22: L1420 | J22: L1420 | T22: =+Kalkylsammanställning!G$2 -> 1 | U22: Ja | V22: Ja | W22: =IFERROR(+VLOOKUP(I22,Länkar_TTA!I:J,2,FALSE),0) -> fyrspår | X22: fyrspår | Y22: =+IFERROR(VLOOKUP(C22,LinjeLänk_Data!F:G,2,FALSE),"-") -> 1.277089953 | Z22: 1.277089953 | AB22: Ostkustbanan | AD22: 430 | AF22: =+VLOOKUP(C22,Länkar_TTA!M:O,2,FALSE) -> 430 | AG22: 0 | AI22: - | AJ22: Bergsbrunna-Säby | AL22: =+SUMIF('Linjelänk JA_KAP'!$H:$H,$C22,'Linjelänk JA_KAP'!CY:CY) -> 17 | AM22: =+SUMIF('Linjelänk JA_KAP'!$H:$H,$C22,'Linjelänk JA_KAP'!CZ:CZ) -> 119 | AN22: =+SUMIF('Linjelänk JA_KAP'!$H:$H,$C22,'Linjelänk JA_KAP'!DA:DA) -> 76 | AO22: =+SUMIF('Linjelänk UA_KAP'!$H:$H,$C22,'Linjelänk UA_KAP'!CY:CY) -> 17 | AP22: =+SUMIF('Linjelänk UA_KAP'!$H:$H,$C22,'Linjelänk UA_KAP'!CZ:CZ) -> 119 | AQ22: =+SUMIF('Linjelänk UA_KAP'!$H:$H,$C22,'Linjelänk UA_KAP'!DA:DA) -> 76 | AS22: =+VLOOKUP($AJ22,Länkar_TTA!$P:$S,2,FALSE) -> 17 | AT22: =+VLOOKUP($AJ22,Länkar_TTA!$P:$S,3,FALSE) -> 119 | AU22: =+VLOOKUP($AJ22,Länkar_TTA!$P:$S,4,FALSE) -> 76 | AX22: 86637.78244 | AY22: =VLOOKUP(I22,Bangods_linjedel!B:F,5,FALSE) -> 20.79 | AZ22: =VLOOKUP(I22,'Kap.ber JA'!DK:DN,2,FALSE)*AY22 -> 39395.41065 | BA22: =VLOOKUP(I22,'Kap.ber JA'!$DK:$DN,3,FALSE)*AY22 -> 1330560 | BB22: =VLOOKUP(I22,'Kap.ber JA'!$DK:$DN,4,FALSE)*AY22 -> 1369955.411 | BC22: =VLOOKUP(J22,'Kap.ber UA'!$DJ:$DM,2,FALSE)*AY22 -> 39395.41065 | BD22: =VLOOKUP(J22,'Kap.ber UA'!$DJ:$DM,3,FALSE)*AY22 -> 1330560 | BE22: =VLOOKUP(J22,'Kap.ber UA'!$DJ:$DM,4,FALSE)*AY22 -> 1369955.411 | BF22: =IF('Beskrivning av åtgärd'!$B$11="Persontrafik",BA22,IF('Beskrivning av åtgärd'!$B$11="Godstrafik",AZ22,BB22)) -> 1369955.411 | BG22: =IF('Beskrivning av åtgärd'!$B$11="Persontrafik",BD22,IF('Beskrivning av åtgärd'!$B$11="Godstrafik",BC22,BE22)) -> 1369955.411
A23: 1403 | B23: 1409 | C23: 14031409 | D23: Bergsbrunna | E23: Alsike | F23: 430 | G23: Ostkustbanan | H23: 5 | I23: L1420 | J23: L1420 | T23: =+Kalkylsammanställning!G$2 -> 1 | U23: Ja | V23: Ja | W23: =IFERROR(+VLOOKUP(I23,Länkar_TTA!I:J,2,FALSE),0) -> fyrspår | X23: fyrspår | Y23: =+IFERROR(VLOOKUP(C23,LinjeLänk_Data!F:G,2,FALSE),"-") -> 7.190000057 | Z23: 7.190000057 | AB23: Ostkustbanan | AD23: 430 | AF23: =+VLOOKUP(C23,Länkar_TTA!M:O,2,FALSE) -> 430 | AG23: 0 | AI23: - | AJ23: Bergsbrunna-Alsike | AL23: =+SUMIF('Linjelänk JA_KAP'!$H:$H,$C23,'Linjelänk JA_KAP'!CY:CY) -> 17 | AM23: =+SUMIF('Linjelänk JA_KAP'!$H:$H,$C23,'Linjelänk JA_KAP'!CZ:CZ) -> 119 | AN23: =+SUMIF('Linjelänk JA_KAP'!$H:$H,$C23,'Linjelänk JA_KAP'!DA:DA) -> 76 | AO23: =+SUMIF('Linjelänk UA_KAP'!$H:$H,$C23,'Linjelänk UA_KAP'!CY:CY) -> 17 | AP23: =+SUMIF('Linjelänk UA_KAP'!$H:$H,$C23,'Linjelänk UA_KAP'!CZ:CZ) -> 119 | AQ23: =+SUMIF('Linjelänk UA_KAP'!$H:$H,$C23,'Linjelänk UA_KAP'!DA:DA) -> 76 | AS23: =+VLOOKUP($AJ23,Länkar_TTA!$P:$S,2,FALSE) -> 17 | AT23: =+VLOOKUP($AJ23,Länkar_TTA!$P:$S,3,FALSE) -> 119 | AU23: =+VLOOKUP($AJ23,Länkar_TTA!$P:$S,4,FALSE) -> 76 | AX23: 487769.6039 | AY23: =VLOOKUP(I23,Bangods_linjedel!B:F,5,FALSE) -> 20.79 | AZ23: =VLOOKUP(I23,'Kap.ber JA'!DK:DN,2,FALSE)*AY23 -> 39395.41065 | BA23: =VLOOKUP(I23,'Kap.ber JA'!$DK:$DN,3,FALSE)*AY23 -> 1330560 | BB23: =VLOOKUP(I23,'Kap.ber JA'!$DK:$DN,4,FALSE)*AY23 -> 1369955.411 | BC23: =VLOOKUP(J23,'Kap.ber UA'!$DJ:$DM,2,FALSE)*AY23 -> 39395.41065 | BD23: =VLOOKUP(J23,'Kap.ber UA'!$DJ:$DM,3,FALSE)*AY23 -> 1330560 | BE23: =VLOOKUP(J23,'Kap.ber UA'!$DJ:$DM,4,FALSE)*AY23 -> 1369955.411 | BF23: =IF('Beskrivning av åtgärd'!$B$11="Persontrafik",BA23,IF('Beskrivning av åtgärd'!$B$11="Godstrafik",AZ23,BB23)) -> 1369955.411 | BG23: =IF('Beskrivning av åtgärd'!$B$11="Persontrafik",BD23,IF('Beskrivning av åtgärd'!$B$11="Godstrafik",BC23,BE23)) -> 1369955.411
A24: 1404 | B24: 1410 | C24: 14041410 | D24: Storvreta | E24: Vattholma | F24: 434 | G24: Ostkustbanan | H24: 5 | I24: L1413 | J24: L1413 | T24: =+Kalkylsammanställning!G$2 -> 1 | U24: Ja | V24: Ja | W24: =IFERROR(+VLOOKUP(I24,Länkar_TTA!I:J,2,FALSE),0) -> 0 | X24: 0 | Y24: =+IFERROR(VLOOKUP(C24,LinjeLänk_Data!F:G,2,FALSE),"-") -> 7.889999866 | Z24: 7.889999866 | AB24: Ostkustbanan | AD24: 434 | AF24: =+VLOOKUP(C24,Länkar_TTA!M:O,2,FALSE) -> 434 | AG24: 0 | AI24: - | AJ24: Storvreta-Vattholma | AL24: =+SUMIF('Linjelänk JA_KAP'!$H:$H,$C24,'Linjelänk JA_KAP'!CY:CY) -> 17 | AM24: =+SUMIF('Linjelänk JA_KAP'!$H:$H,$C24,'Linjelänk JA_KAP'!CZ:CZ) -> 23 | AN24: =+SUMIF('Linjelänk JA_KAP'!$H:$H,$C24,'Linjelänk JA_KAP'!DA:DA) -> 36 | AO24: =+SUMIF('Linjelänk UA_KAP'!$H:$H,$C24,'Linjelänk UA_KAP'!CY:CY) -> 17 | AP24: =+SUMIF('Linjelänk UA_KAP'!$H:$H,$C24,'Linjelänk UA_KAP'!CZ:CZ) -> 23 | AQ24: =+SUMIF('Linjelänk UA_KAP'!$H:$H,$C24,'Linjelänk UA_KAP'!DA:DA) -> 36 | AS24: =+VLOOKUP($AJ24,Länkar_TTA!$P:$S,2,FALSE) -> 17 | AT24: =+VLOOKUP($AJ24,Länkar_TTA!$P:$S,3,FALSE) -> 23 | AU24: =+VLOOKUP($AJ24,Länkar_TTA!$P:$S,4,FALSE) -> 36 | AX24: 191884.7968 | AY24: =VLOOKUP(I24,Bangods_linjedel!B:F,5,FALSE) -> 60.01 | AZ24: =VLOOKUP(I24,'Kap.ber JA'!DK:DN,2,FALSE)*AY24 -> 220656.77 | BA24: =VLOOKUP(I24,'Kap.ber JA'!$DK:$DN,3,FALSE)*AY24 -> 2918886.4 | BB24: =VLOOKUP(I24,'Kap.ber JA'!$DK:$DN,4,FALSE)*AY24 -> 3139543.17 | BC24: =VLOOKUP(J24,'Kap.ber UA'!$DJ:$DM,2,FALSE)*AY24 -> 220656.77 | BD24: =VLOOKUP(J24,'Kap.ber UA'!$DJ:$DM,3,FALSE)*AY24 -> 2918886.4 | BE24: =VLOOKUP(J24,'Kap.ber UA'!$DJ:$DM,4,FALSE)*AY24 -> 3139543.17 | BF24: =IF('Beskrivning av åtgärd'!$B$11="Persontrafik",BA24,IF('Beskrivning av åtgärd'!$B$11="Godstrafik",AZ24,BB24)) -> 3139543.17 | BG24: =IF('Beskrivning av åtgärd'!$B$11="Persontrafik",BD24,IF('Beskrivning av åtgärd'!$B$11="Godstrafik",BC24,BE24)) -> 3139543.17
A25: 1404 | B25: 9331 | C25: 14049331 | D25: Storvreta | E25: Löten | F25: 434 | G25: Ostkustbanan | H25: 5 | I25: L1413 | J25: L1413 | T25: =+Kalkylsammanställning!G$2 -> 1 | U25: Ja | V25: Ja | W25: =IFERROR(+VLOOKUP(I25,Länkar_TTA!I:J,2,FALSE),0) -> 0 | X25: 0 | Y25: =+IFERROR(VLOOKUP(C25,LinjeLänk_Data!F:G,2,FALSE),"-") -> 9.970000267 | Z25: 9.970000267 | AB25: Ostkustbanan | AD25: 434 | AF25: =+VLOOKUP(C25,Länkar_TTA!M:O,2,FALSE) -> 434 | AG25: 0 | AI25: - | AJ25: Storvreta-Löten | AL25: =+SUMIF('Linjelänk JA_KAP'!$H:$H,$C25,'Linjelänk JA_KAP'!CY:CY) -> 17 | AM25: =+SUMIF('Linjelänk JA_KAP'!$H:$H,$C25,'Linjelänk JA_KAP'!CZ:CZ) -> 23 | AN25: =+SUMIF('Linjelänk JA_KAP'!$H:$H,$C25,'Linjelänk JA_KAP'!DA:DA) -> 36 | AO25: =+SUMIF('Linjelänk UA_KAP'!$H:$H,$C25,'Linjelänk UA_KAP'!CY:CY) -> 17 | AP25: =+SUMIF('Linjelänk UA_KAP'!$H:$H,$C25,'Linjelänk UA_KAP'!CZ:CZ) -> 23 | AQ25: =+SUMIF('Linjelänk UA_KAP'!$H:$H,$C25,'Linjelänk UA_KAP'!DA:DA) -> 36 | AS25: =+VLOOKUP($AJ25,Länkar_TTA!$P:$S,2,FALSE) -> 17 | AT25: =+VLOOKUP($AJ25,Länkar_TTA!$P:$S,3,FALSE) -> 23 | AU25: =+VLOOKUP($AJ25,Länkar_TTA!$P:$S,4,FALSE) -> 36 | AX25: 242470.4065 | AY25: =VLOOKUP(I25,Bangods_linjedel!B:F,5,FALSE) -> 60.01 | AZ25: =VLOOKUP(I25,'Kap.ber JA'!DK:DN,2,FALSE)*AY25 -> 220656.77 | BA25: =VLOOKUP(I25,'Kap.ber JA'!$DK:$DN,3,FALSE)*AY25 -> 2918886.4 | BB25: =VLOOKUP(I25,'Kap.ber JA'!$DK:$DN,4,FALSE)*AY25 -> 3139543.17 | BC25: =VLOOKUP(J25,'Kap.ber UA'!$DJ:$DM,2,FALSE)*AY25 -> 220656.77 | BD25: =VLOOKUP(J25,'Kap.ber UA'!$DJ:$DM,3,FALSE)*AY25 -> 2918886.4 | BE25: =VLOOKUP(J25,'Kap.ber UA'!$DJ:$DM,4,FALSE)*AY25 -> 3139543.17 | BF25: =IF('Beskrivning av åtgärd'!$B$11="Persontrafik",BA25,IF('Beskrivning av åtgärd'!$B$11="Godstrafik",AZ25,BB25)) -> 3139543.17 | BG25: =IF('Beskrivning av åtgärd'!$B$11="Persontrafik",BD25,IF('Beskrivning av åtgärd'!$B$11="Godstrafik",BC25,BE25)) -> 3139543.17
A26: 1405 | B26: 1419 | C26: 14051419 | D26: Gimo | E26: Hargshamn | F26: 435 | G26: Hargshamnsbanan | H26: 55 | I26: L1600 | J26: L1600 | T26: =+Kalkylsammanställning!G$2 -> 1 | U26: Nej | V26: Nej | W26: =IFERROR(+VLOOKUP(I26,Länkar_TTA!I:J,2,FALSE),0) -> 0 | X26: 0 | Y26: =+IFERROR(VLOOKUP(C26,LinjeLänk_Data!F:G,2,FALSE),"-") -> - | Z26: - | AB26: Hargshamnsbanan | AD26: 435 | AF26: =+VLOOKUP(C26,Länkar_TTA!M:O,2,FALSE) -> 435 | AG26: 0 | AI26: - | AJ26: Gimo-Hargshamn | AL26: =+SUMIF('Linjelänk JA_KAP'!$H:$H,$C26,'Linjelänk JA_KAP'!CY:CY) -> 0 | AM26: =+SUMIF('Linjelänk JA_KAP'!$H:$H,$C26,'Linjelänk JA_KAP'!CZ:CZ) -> 0 | AN26: =+SUMIF('Linjelänk JA_KAP'!$H:$H,$C26,'Linjelänk JA_KAP'!DA:DA) -> 0 | AO26: =+SUMIF('Linjelänk UA_KAP'!$H:$H,$C26,'Linjelänk UA_KAP'!CY:CY) -> 0 | AP26: =+SUMIF('Linjelänk UA_KAP'!$H:$H,$C26,'Linjelänk UA_KAP'!CZ:CZ) -> 0 | AQ26: =+SUMIF('Linjelänk UA_KAP'!$H:$H,$C26,'Linjelänk UA_KAP'!DA:DA) -> 0 | AS26: =+VLOOKUP($AJ26,Länkar_TTA!$P:$S,2,FALSE) -> 0 | AT26: =+VLOOKUP($AJ26,Länkar_TTA!$P:$S,3,FALSE) -> 0 | AU26: =+VLOOKUP($AJ26,Länkar_TTA!$P:$S,4,FALSE) -> 0 | AY26: =VLOOKUP(I26,Bangods_linjedel!B:F,5,FALSE) -> 62.99 | AZ26: =VLOOKUP(I26,'Kap.ber JA'!DK:DN,2,FALSE)*AY26 -> 0 | BA26: =VLOOKUP(I26,'Kap.ber JA'!$DK:$DN,3,FALSE)*AY26 -> 0 | BB26: =VLOOKUP(I26,'Kap.ber JA'!$DK:$DN,4,FALSE)*AY26 -> 0 | BC26: =VLOOKUP(J26,'Kap.ber UA'!$DJ:$DM,2,FALSE)*AY26 -> 0 | BD26: =VLOOKUP(J26,'Kap.ber UA'!$DJ:$DM,3,FALSE)*AY26 -> 0 | BE26: =VLOOKUP(J26,'Kap.ber UA'!$DJ:$DM,4,FALSE)*AY26 -> 0 | BF26: =IF('Beskrivning av åtgärd'!$B$11="Persontrafik",BA26,IF('Beskrivning av åtgärd'!$B$11="Godstrafik",AZ26,BB26)) -> 0 | BG26: =IF('Beskrivning av åtgärd'!$B$11="Persontrafik",BD26,IF('Beskrivning av åtgärd'!$B$11="Godstrafik",BC26,BE26)) -> 0
A27: 1406 | B27: 1402 | C27: 14061402 | D27: Uppsala Norra | E27: Uppsala norra utfarten | F27: 431 | G27: Dalabanan | H27: 6 | I27: L2000 | J27: L2000 | T27: =+Kalkylsammanställning!G$2 -> 1 | U27: Ja | V27: Ja | W27: =IFERROR(+VLOOKUP(I27,Länkar_TTA!I:J,2,FALSE),0) -> 0 | X27: 0 | Y27: =+IFERROR(VLOOKUP(C27,LinjeLänk_Data!F:G,2,FALSE),"-") -> 1.435119987 | Z27: 1.435119987 | AB27: Dalabanan | AD27: 431 | AF27: =+VLOOKUP(C27,Länkar_TTA!M:O,2,FALSE) -> 431 | AG27: 0 | AI27: - | AJ27: Uppsala Norra-Uppsala norra utfarten | AL27: =+SUMIF('Linjelänk JA_KAP'!$H:$H,$C27,'Linjelänk JA_KAP'!CY:CY) -> 0 | AM27: =+SUMIF('Linjelänk JA_KAP'!$H:$H,$C27,'Linjelänk JA_KAP'!CZ:CZ) -> 36 | AN27: =+SUMIF('Linjelänk JA_KAP'!$H:$H,$C27,'Linjelänk JA_KAP'!DA:DA) -> 0 | AO27: =+SUMIF('Linjelänk UA_KAP'!$H:$H,$C27,'Linjelänk UA_KAP'!CY:CY) -> 0 | AP27: =+SUMIF('Linjelänk UA_KAP'!$H:$H,$C27,'Linjelänk UA_KAP'!CZ:CZ) -> 36 | AQ27: =+SUMIF('Linjelänk UA_KAP'!$H:$H,$C27,'Linjelänk UA_KAP'!DA:DA) -> 0 | AS27: =+VLOOKUP($AJ27,Länkar_TTA!$P:$S,2,FALSE) -> 0 | AT27: =+VLOOKUP($AJ27,Länkar_TTA!$P:$S,3,FALSE) -> 36 | AU27: =+VLOOKUP($AJ27,Länkar_TTA!$P:$S,4,FALSE) -> 0 | AX27: 16532.58224 | AY27: =VLOOKUP(I27,Bangods_linjedel!B:F,5,FALSE) -> 61.35 | AZ27: =VLOOKUP(I27,'Kap.ber JA'!DK:DN,2,FALSE)*AY27 -> 6932.55 | BA27: =VLOOKUP(I27,'Kap.ber JA'!$DK:$DN,3,FALSE)*AY27 -> 1413504 | BB27: =VLOOKUP(I27,'Kap.ber JA'!$DK:$DN,4,FALSE)*AY27 -> 1420436.55 | BC27: =VLOOKUP(J27,'Kap.ber UA'!$DJ:$DM,2,FALSE)*AY27 -> 6932.55 | BD27: =VLOOKUP(J27,'Kap.ber UA'!$DJ:$DM,3,FALSE)*AY27 -> 1413504 | BE27: =VLOOKUP(J27,'Kap.ber UA'!$DJ:$DM,4,FALSE)*AY27 -> 1420436.55 | BF27: =IF('Beskrivning av åtgärd'!$B$11="Persontrafik",BA27,IF('Beskrivning av åtgärd'!$B$11="Godstrafik",AZ27,BB27)) -> 1420436.55 | BG27: =IF('Beskrivning av åtgärd'!$B$11="Persontrafik",BD27,IF('Beskrivning av åtgärd'!$B$11="Godstrafik",BC27,BE27)) -> 1420436.55
A28: 1406 | B28: 1421 | C28: 14061421 | D28: Uppsala Norra | E28: Vänge | F28: 431 | G28: Dalabanan | H28: 6 | I28: L2000 | J28: L2000 | T28: =+Kalkylsammanställning!G$2 -> 1 | U28: Ja | V28: Ja | W28: =IFERROR(+VLOOKUP(I28,Länkar_TTA!I:J,2,FALSE),0) -> 0 | X28: 0 | Y28: =+IFERROR(VLOOKUP(C28,LinjeLänk_Data!F:G,2,FALSE),"-") -> 9.659999847 | Z28: 9.659999847 | AB28: Dalabanan | AD28: 431 | AF28: =+VLOOKUP(C28,Länkar_TTA!M:O,2,FALSE) -> 431 | AG28: 0 | AI28: - | AJ28: Uppsala Norra-Vänge | AL28: =+SUMIF('Linjelänk JA_KAP'!$H:$H,$C28,'Linjelänk JA_KAP'!CY:CY) -> 0 | AM28: =+SUMIF('Linjelänk JA_KAP'!$H:$H,$C28,'Linjelänk JA_KAP'!CZ:CZ) -> 36 | AN28: =+SUMIF('Linjelänk JA_KAP'!$H:$H,$C28,'Linjelänk JA_KAP'!DA:DA) -> 0 | AO28: =+SUMIF('Linjelänk UA_KAP'!$H:$H,$C28,'Linjelänk UA_KAP'!CY:CY) -> 0 | AP28: =+SUMIF('Linjelänk UA_KAP'!$H:$H,$C28,'Linjelänk UA_KAP'!CZ:CZ) -> 36 | AQ28: =+SUMIF('Linjelänk UA_KAP'!$H:$H,$C28,'Linjelänk UA_KAP'!DA:DA) -> 0 | AS28: =+VLOOKUP($AJ28,Länkar_TTA!$P:$S,2,FALSE) -> 0 | AT28: =+VLOOKUP($AJ28,Länkar_TTA!$P:$S,3,FALSE) -> 36 | AU28: =+VLOOKUP($AJ28,Länkar_TTA!$P:$S,4,FALSE) -> 0 | AX28: 111283.1982 | AY28: =VLOOKUP(I28,Bangods_linjedel!B:F,5,FALSE) -> 61.35 | AZ28: =VLOOKUP(I28,'Kap.ber JA'!DK:DN,2,FALSE)*AY28 -> 6932.55 | BA28: =VLOOKUP(I28,'Kap.ber JA'!$DK:$DN,3,FALSE)*AY28 -> 1413504 | BB28: =VLOOKUP(I28,'Kap.ber JA'!$DK:$DN,4,FALSE)*AY28 -> 1420436.55 | BC28: =VLOOKUP(J28,'Kap.ber UA'!$DJ:$DM,2,FALSE)*AY28 -> 6932.55 | BD28: =VLOOKUP(J28,'Kap.ber UA'!$DJ:$DM,3,FALSE)*AY28 -> 1413504 | BE28: =VLOOKUP(J28,'Kap.ber UA'!$DJ:$DM,4,FALSE)*AY28 -> 1420436.55 | BF28: =IF('Beskrivning av åtgärd'!$B$11="Persontrafik",BA28,IF('Beskrivning av åtgärd'!$B$11="Godstrafik",AZ28,BB28)) -> 1420436.55 | BG28: =IF('Beskrivning av åtgärd'!$B$11="Persontrafik",BD28,IF('Beskrivning av åtgärd'!$B$11="Godstrafik",BC28,BE28)) -> 1420436.55
A29: 1407 | B29: 1418 | C29: 14071418 | D29: Brunna | E29: Järlåsa | F29: 431 | G29: Dalabanan | H29: 6 | I29: L2000 | J29: L2000 | T29: =+Kalkylsammanställning!G$2 -> 1 | U29: Ja | V29: Ja | W29: =IFERROR(+VLOOKUP(I29,Länkar_TTA!I:J,2,FALSE),0) -> 0 | X29: 0 | Y29: =+IFERROR(VLOOKUP(C29,LinjeLänk_Data!F:G,2,FALSE),"-") -> 13.18000031 | Z29: 13.18000031 | AB29: Dalabanan | AD29: 431 | AF29: =+VLOOKUP(C29,Länkar_TTA!M:O,2,FALSE) -> 431 | AG29: 0 | AI29: - | AJ29: Brunna-Järlåsa | AL29: =+SUMIF('Linjelänk JA_KAP'!$H:$H,$C29,'Linjelänk JA_KAP'!CY:CY) -> 0 | AM29: =+SUMIF('Linjelänk JA_KAP'!$H:$H,$C29,'Linjelänk JA_KAP'!CZ:CZ) -> 36 | AN29: =+SUMIF('Linjelänk JA_KAP'!$H:$H,$C29,'Linjelänk JA_KAP'!DA:DA) -> 0 | AO29: =+SUMIF('Linjelänk UA_KAP'!$H:$H,$C29,'Linjelänk UA_KAP'!CY:CY) -> 0 | AP29: =+SUMIF('Linjelänk UA_KAP'!$H:$H,$C29,'Linjelänk UA_KAP'!CZ:CZ) -> 36 | AQ29: =+SUMIF('Linjelänk UA_KAP'!$H:$H,$C29,'Linjelänk UA_KAP'!DA:DA) -> 0 | AS29: =+VLOOKUP($AJ29,Länkar_TTA!$P:$S,2,FALSE) -> 0 | AT29: =+VLOOKUP($AJ29,Länkar_TTA!$P:$S,3,FALSE) -> 36 | AU29: =+VLOOKUP($AJ29,Länkar_TTA!$P:$S,4,FALSE) -> 0 | AX29: 151833.6035 | AY29: =VLOOKUP(I29,Bangods_linjedel!B:F,5,FALSE) -> 61.35 | AZ29: =VLOOKUP(I29,'Kap.ber JA'!DK:DN,2,FALSE)*AY29 -> 6932.55 | BA29: =VLOOKUP(I29,'Kap.ber JA'!$DK:$DN,3,FALSE)*AY29 -> 1413504 | BB29: =VLOOKUP(I29,'Kap.ber JA'!$DK:$DN,4,FALSE)*AY29 -> 1420436.55 | BC29: =VLOOKUP(J29,'Kap.ber UA'!$DJ:$DM,2,FALSE)*AY29 -> 6932.55 | BD29: =VLOOKUP(J29,'Kap.ber UA'!$DJ:$DM,3,FALSE)*AY29 -> 1413504 | BE29: =VLOOKUP(J29,'Kap.ber UA'!$DJ:$DM,4,FALSE)*AY29 -> 1420436.55 | BF29: =IF('Beskrivning av åtgärd'!$B$11="Persontrafik",BA29,IF('Beskrivning av åtgärd'!$B$11="Godstrafik",AZ29,BB29)) -> 1420436.55 | BG29: =IF('Beskrivning av åtgärd'!$B$11="Persontrafik",BD29,IF('Beskrivning av åtgärd'!$B$11="Godstrafik",BC29,BE29)) -> 1420436.55
A30: 1407 | B30: 1421 | C30: 14071421 | D30: Brunna | E30: Vänge | F30: 431 | G30: Dalabanan | H30: 6 | I30: L2000 | J30: L2000 | T30: =+Kalkylsammanställning!G$2 -> 1 | U30: Ja | V30: Ja | W30: =IFERROR(+VLOOKUP(I30,Länkar_TTA!I:J,2,FALSE),0) -> 0 | X30: 0 | Y30: =+IFERROR(VLOOKUP(C30,LinjeLänk_Data!F:G,2,FALSE),"-") -> 0.8500000238 | Z30: 0.8500000238 | AB30: Dalabanan | AD30: 431 | AF30: =+VLOOKUP(C30,Länkar_TTA!M:O,2,FALSE) -> 431 | AG30: 0 | AI30: - | AJ30: Brunna-Vänge | AL30: =+SUMIF('Linjelänk JA_KAP'!$H:$H,$C30,'Linjelänk JA_KAP'!CY:CY) -> 0 | AM30: =+SUMIF('Linjelänk JA_KAP'!$H:$H,$C30,'Linjelänk JA_KAP'!CZ:CZ) -> 36 | AN30: =+SUMIF('Linjelänk JA_KAP'!$H:$H,$C30,'Linjelänk JA_KAP'!DA:DA) -> 0 | AO30: =+SUMIF('Linjelänk UA_KAP'!$H:$H,$C30,'Linjelänk UA_KAP'!CY:CY) -> 0 | AP30: =+SUMIF('Linjelänk UA_KAP'!$H:$H,$C30,'Linjelänk UA_KAP'!CZ:CZ) -> 36 | AQ30: =+SUMIF('Linjelänk UA_KAP'!$H:$H,$C30,'Linjelänk UA_KAP'!DA:DA) -> 0 | AS30: =+VLOOKUP($AJ30,Länkar_TTA!$P:$S,2,FALSE) -> 0 | AT30: =+VLOOKUP($AJ30,Länkar_TTA!$P:$S,3,FALSE) -> 36 | AU30: =+VLOOKUP($AJ30,Länkar_TTA!$P:$S,4,FALSE) -> 0 | AX30: 9792.000275 | AY30: =VLOOKUP(I30,Bangods_linjedel!B:F,5,FALSE) -> 61.35 | AZ30: =VLOOKUP(I30,'Kap.ber JA'!DK:DN,2,FALSE)*AY30 -> 6932.55 | BA30: =VLOOKUP(I30,'Kap.ber JA'!$DK:$DN,3,FALSE)*AY30 -> 1413504 | BB30: =VLOOKUP(I30,'Kap.ber JA'!$DK:$DN,4,FALSE)*AY30 -> 1420436.55 | BC30: =VLOOKUP(J30,'Kap.ber UA'!$DJ:$DM,2,FALSE)*AY30 -> 6932.55 | BD30: =VLOOKUP(J30,'Kap.ber UA'!$DJ:$DM,3,FALSE)*AY30 -> 1413504 | BE30: =VLOOKUP(J30,'Kap.ber UA'!$DJ:$DM,4,FALSE)*AY30 -> 1420436.55 | BF30: =IF('Beskrivning av åtgärd'!$B$11="Persontrafik",BA30,IF('Beskrivning av åtgärd'!$B$11="Godstrafik",AZ30,BB30)) -> 1420436.55 | BG30: =IF('Beskrivning av åtgärd'!$B$11="Persontrafik",BD30,IF('Beskrivning av åtgärd'!$B$11="Godstrafik",BC30,BE30)) -> 1420436.55
A31: 1408 | B31: 1400 | C31: 14081400 | D31: Säby | E31: Uppsala Central | F31: 430 | G31: Ostkustbanan | H31: 5 | I31: L1420 | J31: L1420 | T31: =+Kalkylsammanställning!G$2 -> 1 | U31: Ja | V31: Ja | W31: =IFERROR(+VLOOKUP(I31,Länkar_TTA!I:J,2,FALSE),0) -> fyrspår | X31: fyrspår | Y31: =+IFERROR(VLOOKUP(C31,LinjeLänk_Data!F:G,2,FALSE),"-") -> 4.422910213 | Z31: 4.422910213 | AB31: Ostkustbanan | AD31: 430 | AF31: =+VLOOKUP(C31,Länkar_TTA!M:O,2,FALSE) -> 430 | AG31: 0 | AI31: - | AJ31: Säby-Uppsala Central | AL31: =+SUMIF('Linjelänk JA_KAP'!$H:$H,$C31,'Linjelänk JA_KAP'!CY:CY) -> 17 | AM31: =+SUMIF('Linjelänk JA_KAP'!$H:$H,$C31,'Linjelänk JA_KAP'!CZ:CZ) -> 119 | AN31: =+SUMIF('Linjelänk JA_KAP'!$H:$H,$C31,'Linjelänk JA_KAP'!DA:DA) -> 76 | AO31: =+SUMIF('Linjelänk UA_KAP'!$H:$H,$C31,'Linjelänk UA_KAP'!CY:CY) -> 17 | AP31: =+SUMIF('Linjelänk UA_KAP'!$H:$H,$C31,'Linjelänk UA_KAP'!CZ:CZ) -> 119 | AQ31: =+SUMIF('Linjelänk UA_KAP'!$H:$H,$C31,'Linjelänk UA_KAP'!DA:DA) -> 76 | AS31: =+VLOOKUP($AJ31,Länkar_TTA!$P:$S,2,FALSE) -> 17 | AT31: =+VLOOKUP($AJ31,Länkar_TTA!$P:$S,3,FALSE) -> 119 | AU31: =+VLOOKUP($AJ31,Länkar_TTA!$P:$S,4,FALSE) -> 76 | AX31: 300050.2289 | AY31: =VLOOKUP(I31,Bangods_linjedel!B:F,5,FALSE) -> 20.79 | AZ31: =VLOOKUP(I31,'Kap.ber JA'!DK:DN,2,FALSE)*AY31 -> 39395.41065 | BA31: =VLOOKUP(I31,'Kap.ber JA'!$DK:$DN,3,FALSE)*AY31 -> 1330560 | BB31: =VLOOKUP(I31,'Kap.ber JA'!$DK:$DN,4,FALSE)*AY31 -> 1369955.411 | BC31: =VLOOKUP(J31,'Kap.ber UA'!$DJ:$DM,2,FALSE)*AY31 -> 39395.41065 | BD31: =VLOOKUP(J31,'Kap.ber UA'!$DJ:$DM,3,FALSE)*AY31 -> 1330560 | BE31: =VLOOKUP(J31,'Kap.ber UA'!$DJ:$DM,4,FALSE)*AY31 -> 1369955.411 | BF31: =IF('Beskrivning av åtgärd'!$B$11="Persontrafik",BA31,IF('Beskrivning av åtgärd'!$B$11="Godstrafik",AZ31,BB31)) -> 1369955.411 | BG31: =IF('Beskrivning av åtgärd'!$B$11="Persontrafik",BD31,IF('Beskrivning av åtgärd'!$B$11="Godstrafik",BC31,BE31)) -> 1369955.411
A32: 1408 | B32: 1403 | C32: 14081403 | D32: Säby | E32: Bergsbrunna | F32: 430 | G32: Ostkustbanan | H32: 5 | I32: L1420 | J32: L1420 | T32: =+Kalkylsammanställning!G$2 -> 1 | U32: Ja | V32: Ja | W32: =IFERROR(+VLOOKUP(I32,Länkar_TTA!I:J,2,FALSE),0) -> fyrspår | X32: fyrspår | Y32: =+IFERROR(VLOOKUP(C32,LinjeLänk_Data!F:G,2,FALSE),"-") -> 1.277089953 | Z32: 1.277089953 | AB32: Ostkustbanan | AD32: 430 | AF32: =+VLOOKUP(C32,Länkar_TTA!M:O,2,FALSE) -> 430 | AG32: 0 | AI32: - | AJ32: Säby-Bergsbrunna | AL32: =+SUMIF('Linjelänk JA_KAP'!$H:$H,$C32,'Linjelänk JA_KAP'!CY:CY) -> 17 | AM32: =+SUMIF('Linjelänk JA_KAP'!$H:$H,$C32,'Linjelänk JA_KAP'!CZ:CZ) -> 119 | AN32: =+SUMIF('Linjelänk JA_KAP'!$H:$H,$C32,'Linjelänk JA_KAP'!DA:DA) -> 76 | AO32: =+SUMIF('Linjelänk UA_KAP'!$H:$H,$C32,'Linjelänk UA_KAP'!CY:CY) -> 17 | AP32: =+SUMIF('Linjelänk UA_KAP'!$H:$H,$C32,'Linjelänk UA_KAP'!CZ:CZ) -> 119 | AQ32: =+SUMIF('Linjelänk UA_KAP'!$H:$H,$C32,'Linjelänk UA_KAP'!DA:DA) -> 76 | AS32: =+VLOOKUP($AJ32,Länkar_TTA!$P:$S,2,FALSE) -> 17 | AT32: =+VLOOKUP($AJ32,Länkar_TTA!$P:$S,3,FALSE) -> 119 | AU32: =+VLOOKUP($AJ32,Länkar_TTA!$P:$S,4,FALSE) -> 76 | AX32: 86637.78244 | AY32: =VLOOKUP(I32,Bangods_linjedel!B:F,5,FALSE) -> 20.79 | AZ32: =VLOOKUP(I32,'Kap.ber JA'!DK:DN,2,FALSE)*AY32 -> 39395.41065 | BA32: =VLOOKUP(I32,'Kap.ber JA'!$DK:$DN,3,FALSE)*AY32 -> 1330560 | BB32: =VLOOKUP(I32,'Kap.ber JA'!$DK:$DN,4,FALSE)*AY32 -> 1369955.411 | BC32: =VLOOKUP(J32,'Kap.ber UA'!$DJ:$DM,2,FALSE)*AY32 -> 39395.41065 | BD32: =VLOOKUP(J32,'Kap.ber UA'!$DJ:$DM,3,FALSE)*AY32 -> 1330560 | BE32: =VLOOKUP(J32,'Kap.ber UA'!$DJ:$DM,4,FALSE)*AY32 -> 1369955.411 | BF32: =IF('Beskrivning av åtgärd'!$B$11="Persontrafik",BA32,IF('Beskrivning av åtgärd'!$B$11="Godstrafik",AZ32,BB32)) -> 1369955.411 | BG32: =IF('Beskrivning av åtgärd'!$B$11="Persontrafik",BD32,IF('Beskrivning av åtgärd'!$B$11="Godstrafik",BC32,BE32)) -> 1369955.411
A33: 1409 | B33: 1401 | C33: 14091401 | D33: Alsike | E33: Knivsta | F33: 430 | G33: Ostkustbanan | H33: 5 | I33: L1420 | J33: L1420 | T33: =+Kalkylsammanställning!G$2 -> 1 | U33: Ja | V33: Ja | W33: =IFERROR(+VLOOKUP(I33,Länkar_TTA!I:J,2,FALSE),0) -> fyrspår | X33: fyrspår | Y33: =+IFERROR(VLOOKUP(C33,LinjeLänk_Data!F:G,2,FALSE),"-") -> 4.196800232 | Z33: 4.196800232 | AB33: Ostkustbanan | AD33: 430 | AF33: =+VLOOKUP(C33,Länkar_TTA!M:O,2,FALSE) -> 430 | AG33: 0 | AI33: - | AJ33: Alsike-Knivsta | AL33: =+SUMIF('Linjelänk JA_KAP'!$H:$H,$C33,'Linjelänk JA_KAP'!CY:CY) -> 17 | AM33: =+SUMIF('Linjelänk JA_KAP'!$H:$H,$C33,'Linjelänk JA_KAP'!CZ:CZ) -> 119 | AN33: =+SUMIF('Linjelänk JA_KAP'!$H:$H,$C33,'Linjelänk JA_KAP'!DA:DA) -> 76 | AO33: =+SUMIF('Linjelänk UA_KAP'!$H:$H,$C33,'Linjelänk UA_KAP'!CY:CY) -> 17 | AP33: =+SUMIF('Linjelänk UA_KAP'!$H:$H,$C33,'Linjelänk UA_KAP'!CZ:CZ) -> 119 | AQ33: =+SUMIF('Linjelänk UA_KAP'!$H:$H,$C33,'Linjelänk UA_KAP'!DA:DA) -> 76 | AS33: =+VLOOKUP($AJ33,Länkar_TTA!$P:$S,2,FALSE) -> 17 | AT33: =+VLOOKUP($AJ33,Länkar_TTA!$P:$S,3,FALSE) -> 119 | AU33: =+VLOOKUP($AJ33,Länkar_TTA!$P:$S,4,FALSE) -> 76 | AX33: 284710.9277 | AY33: =VLOOKUP(I33,Bangods_linjedel!B:F,5,FALSE) -> 20.79 | AZ33: =VLOOKUP(I33,'Kap.ber JA'!DK:DN,2,FALSE)*AY33 -> 39395.41065 | BA33: =VLOOKUP(I33,'Kap.ber JA'!$DK:$DN,3,FALSE)*AY33 -> 1330560 | BB33: =VLOOKUP(I33,'Kap.ber JA'!$DK:$DN,4,FALSE)*AY33 -> 1369955.411 | BC33: =VLOOKUP(J33,'Kap.ber UA'!$DJ:$DM,2,FALSE)*AY33 -> 39395.41065 | BD33: =VLOOKUP(J33,'Kap.ber UA'!$DJ:$DM,3,FALSE)*AY33 -> 1330560 | BE33: =VLOOKUP(J33,'Kap.ber UA'!$DJ:$DM,4,FALSE)*AY33 -> 1369955.411 | BF33: =IF('Beskrivning av åtgärd'!$B$11="Persontrafik",BA33,IF('Beskrivning av åtgärd'!$B$11="Godstrafik",AZ33,BB33)) -> 1369955.411 | BG33: =IF('Beskrivning av åtgärd'!$B$11="Persontrafik",BD33,IF('Beskrivning av åtgärd'!$B$11="Godstrafik",BC33,BE33)) -> 1369955.411
A34: 1409 | B34: 1403 | C34: 14091403 | D34: Alsike | E34: Bergsbrunna | F34: 430 | G34: Ostkustbanan | H34: 5 | I34: L1420 | J34: L1420 | T34: =+Kalkylsammanställning!G$2 -> 1 | U34: Ja | V34: Ja | W34: =IFERROR(+VLOOKUP(I34,Länkar_TTA!I:J,2,FALSE),0) -> fyrspår | X34: fyrspår | Y34: =+IFERROR(VLOOKUP(C34,LinjeLänk_Data!F:G,2,FALSE),"-") -> 7.190000057 | Z34: 7.190000057 | AB34: Ostkustbanan | AD34: 430 | AF34: =+VLOOKUP(C34,Länkar_TTA!M:O,2,FALSE) -> 430 | AG34: 0 | AI34: - | AJ34: Alsike-Bergsbrunna | AL34: =+SUMIF('Linjelänk JA_KAP'!$H:$H,$C34,'Linjelänk JA_KAP'!CY:CY) -> 17 | AM34: =+SUMIF('Linjelänk JA_KAP'!$H:$H,$C34,'Linjelänk JA_KAP'!CZ:CZ) -> 119 | AN34: =+SUMIF('Linjelänk JA_KAP'!$H:$H,$C34,'Linjelänk JA_KAP'!DA:DA) -> 76 | AO34: =+SUMIF('Linjelänk UA_KAP'!$H:$H,$C34,'Linjelänk UA_KAP'!CY:CY) -> 17 | AP34: =+SUMIF('Linjelänk UA_KAP'!$H:$H,$C34,'Linjelänk UA_KAP'!CZ:CZ) -> 119 | AQ34: =+SUMIF('Linjelänk UA_KAP'!$H:$H,$C34,'Linjelänk UA_KAP'!DA:DA) -> 76 | AS34: =+VLOOKUP($AJ34,Länkar_TTA!$P:$S,2,FALSE) -> 17 | AT34: =+VLOOKUP($AJ34,Länkar_TTA!$P:$S,3,FALSE) -> 119 | AU34: =+VLOOKUP($AJ34,Länkar_TTA!$P:$S,4,FALSE) -> 76 | AX34: 487769.6039 | AY34: =VLOOKUP(I34,Bangods_linjedel!B:F,5,FALSE) -> 20.79 | AZ34: =VLOOKUP(I34,'Kap.ber JA'!DK:DN,2,FALSE)*AY34 -> 39395.41065 | BA34: =VLOOKUP(I34,'Kap.ber JA'!$DK:$DN,3,FALSE)*AY34 -> 1330560 | BB34: =VLOOKUP(I34,'Kap.ber JA'!$DK:$DN,4,FALSE)*AY34 -> 1369955.411 | BC34: =VLOOKUP(J34,'Kap.ber UA'!$DJ:$DM,2,FALSE)*AY34 -> 39395.41065 | BD34: =VLOOKUP(J34,'Kap.ber UA'!$DJ:$DM,3,FALSE)*AY34 -> 1330560 | BE34: =VLOOKUP(J34,'Kap.ber UA'!$DJ:$DM,4,FALSE)*AY34 -> 1369955.411 | BF34: =IF('Beskrivning av åtgärd'!$B$11="Persontrafik",BA34,IF('Beskrivning av åtgärd'!$B$11="Godstrafik",AZ34,BB34)) -> 1369955.411 | BG34: =IF('Beskrivning av åtgärd'!$B$11="Persontrafik",BD34,IF('Beskrivning av åtgärd'!$B$11="Godstrafik",BC34,BE34)) -> 1369955.411
A35: 1410 | B35: 1404 | C35: 14101404 | D35: Vattholma | E35: Storvreta | F35: 434 | G35: Ostkustbanan | H35: 5 | I35: L1413 | J35: L1413 | T35: =+Kalkylsammanställning!G$2 -> 1 | U35: Ja | V35: Ja | W35: =IFERROR(+VLOOKUP(I35,Länkar_TTA!I:J,2,FALSE),0) -> 0 | X35: 0 | Y35: =+IFERROR(VLOOKUP(C35,LinjeLänk_Data!F:G,2,FALSE),"-") -> 7.889999866 | Z35: 7.889999866 | AB35: Ostkustbanan | AD35: 434 | AF35: =+VLOOKUP(C35,Länkar_TTA!M:O,2,FALSE) -> 434 | AG35: 0 | AI35: - | AJ35: Vattholma-Storvreta | AL35: =+SUMIF('Linjelänk JA_KAP'!$H:$H,$C35,'Linjelänk JA_KAP'!CY:CY) -> 17 | AM35: =+SUMIF('Linjelänk JA_KAP'!$H:$H,$C35,'Linjelänk JA_KAP'!CZ:CZ) -> 23 | AN35: =+SUMIF('Linjelänk JA_KAP'!$H:$H,$C35,'Linjelänk JA_KAP'!DA:DA) -> 36 | AO35: =+SUMIF('Linjelänk UA_KAP'!$H:$H,$C35,'Linjelänk UA_KAP'!CY:CY) -> 17 | AP35: =+SUMIF('Linjelänk UA_KAP'!$H:$H,$C35,'Linjelänk UA_KAP'!CZ:CZ) -> 23 | AQ35: =+SUMIF('Linjelänk UA_KAP'!$H:$H,$C35,'Linjelänk UA_KAP'!DA:DA) -> 36 | AS35: =+VLOOKUP($AJ35,Länkar_TTA!$P:$S,2,FALSE) -> 17 | AT35: =+VLOOKUP($AJ35,Länkar_TTA!$P:$S,3,FALSE) -> 23 | AU35: =+VLOOKUP($AJ35,Länkar_TTA!$P:$S,4,FALSE) -> 36 | AX35: 191884.7968 | AY35: =VLOOKUP(I35,Bangods_linjedel!B:F,5,FALSE) -> 60.01 | AZ35: =VLOOKUP(I35,'Kap.ber JA'!DK:DN,2,FALSE)*AY35 -> 220656.77 | BA35: =VLOOKUP(I35,'Kap.ber JA'!$DK:$DN,3,FALSE)*AY35 -> 2918886.4 | BB35: =VLOOKUP(I35,'Kap.ber JA'!$DK:$DN,4,FALSE)*AY35 -> 3139543.17 | BC35: =VLOOKUP(J35,'Kap.ber UA'!$DJ:$DM,2,FALSE)*AY35 -> 220656.77 | BD35: =VLOOKUP(J35,'Kap.ber UA'!$DJ:$DM,3,FALSE)*AY35 -> 2918886.4 | BE35: =VLOOKUP(J35,'Kap.ber UA'!$DJ:$DM,4,FALSE)*AY35 -> 3139543.17 | BF35: =IF('Beskrivning av åtgärd'!$B$11="Persontrafik",BA35,IF('Beskrivning av åtgärd'!$B$11="Godstrafik",AZ35,BB35)) -> 3139543.17 | BG35: =IF('Beskrivning av åtgärd'!$B$11="Persontrafik",BD35,IF('Beskrivning av åtgärd'!$B$11="Godstrafik",BC35,BE35)) -> 3139543.17
A36: 1410 | B36: 1415 | C36: 14101415 | D36: Vattholma | E36: Skyttorp | F36: 434 | G36: Ostkustbanan | H36: 5 | I36: L1413 | J36: L1413 | T36: =+Kalkylsammanställning!G$2 -> 1 | U36: Ja | V36: Ja | W36: =IFERROR(+VLOOKUP(I36,Länkar_TTA!I:J,2,FALSE),0) -> 0 | X36: 0 | Y36: =+IFERROR(VLOOKUP(C36,LinjeLänk_Data!F:G,2,FALSE),"-") -> 6.139999866 | Z36: 6.139999866 | AB36: Ostkustbanan | AD36: 434 | AF36: =+VLOOKUP(C36,Länkar_TTA!M:O,2,FALSE) -> 434 | AG36: 0 | AI36: - | AJ36: Vattholma-Skyttorp | AL36: =+SUMIF('Linjelänk JA_KAP'!$H:$H,$C36,'Linjelänk JA_KAP'!CY:CY) -> 17 | AM36: =+SUMIF('Linjelänk JA_KAP'!$H:$H,$C36,'Linjelänk JA_KAP'!CZ:CZ) -> 23 | AN36: =+SUMIF('Linjelänk JA_KAP'!$H:$H,$C36,'Linjelänk JA_KAP'!DA:DA) -> 36 | AO36: =+SUMIF('Linjelänk UA_KAP'!$H:$H,$C36,'Linjelänk UA_KAP'!CY:CY) -> 17 | AP36: =+SUMIF('Linjelänk UA_KAP'!$H:$H,$C36,'Linjelänk UA_KAP'!CZ:CZ) -> 23 | AQ36: =+SUMIF('Linjelänk UA_KAP'!$H:$H,$C36,'Linjelänk UA_KAP'!DA:DA) -> 36 | AS36: =+VLOOKUP($AJ36,Länkar_TTA!$P:$S,2,FALSE) -> 17 | AT36: =+VLOOKUP($AJ36,Länkar_TTA!$P:$S,3,FALSE) -> 23 | AU36: =+VLOOKUP($AJ36,Länkar_TTA!$P:$S,4,FALSE) -> 36 | AX36: 149324.7968 | AY36: =VLOOKUP(I36,Bangods_linjedel!B:F,5,FALSE) -> 60.01 | AZ36: =VLOOKUP(I36,'Kap.ber JA'!DK:DN,2,FALSE)*AY36 -> 220656.77 | BA36: =VLOOKUP(I36,'Kap.ber JA'!$DK:$DN,3,FALSE)*AY36 -> 2918886.4 | BB36: =VLOOKUP(I36,'Kap.ber JA'!$DK:$DN,4,FALSE)*AY36 -> 3139543.17 | BC36: =VLOOKUP(J36,'Kap.ber UA'!$DJ:$DM,2,FALSE)*AY36 -> 220656.77 | BD36: =VLOOKUP(J36,'Kap.ber UA'!$DJ:$DM,3,FALSE)*AY36 -> 2918886.4 | BE36: =VLOOKUP(J36,'Kap.ber UA'!$DJ:$DM,4,FALSE)*AY36 -> 3139543.17 | BF36: =IF('Beskrivning av åtgärd'!$B$11="Persontrafik",BA36,IF('Beskrivning av åtgärd'!$B$11="Godstrafik",AZ36,BB36)) -> 3139543.17 | BG36: =IF('Beskrivning av åtgärd'!$B$11="Persontrafik",BD36,IF('Beskrivning av åtgärd'!$B$11="Godstrafik",BC36,BE36)) -> 3139543.17
A37: 1415 | B37: 1410 | C37: 14151410 | D37: Skyttorp | E37: Vattholma | F37: 434 | G37: Ostkustbanan | H37: 5 | I37: L1413 | J37: L1413 | T37: =+Kalkylsammanställning!G$2 -> 1 | U37: Ja | V37: Ja | W37: =IFERROR(+VLOOKUP(I37,Länkar_TTA!I:J,2,FALSE),0) -> 0 | X37: 0 | Y37: =+IFERROR(VLOOKUP(C37,LinjeLänk_Data!F:G,2,FALSE),"-") -> 6.139999866 | Z37: 6.139999866 | AB37: Ostkustbanan | AD37: 434 | AF37: =+VLOOKUP(C37,Länkar_TTA!M:O,2,FALSE) -> 434 | AG37: 0 | AI37: - | AJ37: Skyttorp-Vattholma | AL37: =+SUMIF('Linjelänk JA_KAP'!$H:$H,$C37,'Linjelänk JA_KAP'!CY:CY) -> 17 | AM37: =+SUMIF('Linjelänk JA_KAP'!$H:$H,$C37,'Linjelänk JA_KAP'!CZ:CZ) -> 23 | AN37: =+SUMIF('Linjelänk JA_KAP'!$H:$H,$C37,'Linjelänk JA_KAP'!DA:DA) -> 36 | AO37: =+SUMIF('Linjelänk UA_KAP'!$H:$H,$C37,'Linjelänk UA_KAP'!CY:CY) -> 17 | AP37: =+SUMIF('Linjelänk UA_KAP'!$H:$H,$C37,'Linjelänk UA_KAP'!CZ:CZ) -> 23 | AQ37: =+SUMIF('Linjelänk UA_KAP'!$H:$H,$C37,'Linjelänk UA_KAP'!DA:DA) -> 36 | AS37: =+VLOOKUP($AJ37,Länkar_TTA!$P:$S,2,FALSE) -> 17 | AT37: =+VLOOKUP($AJ37,Länkar_TTA!$P:$S,3,FALSE) -> 23 | AU37: =+VLOOKUP($AJ37,Länkar_TTA!$P:$S,4,FALSE) -> 36 | AX37: 149324.7968 | AY37: =VLOOKUP(I37,Bangods_linjedel!B:F,5,FALSE) -> 60.01 | AZ37: =VLOOKUP(I37,'Kap.ber JA'!DK:DN,2,FALSE)*AY37 -> 220656.77 | BA37: =VLOOKUP(I37,'Kap.ber JA'!$DK:$DN,3,FALSE)*AY37 -> 2918886.4 | BB37: =VLOOKUP(I37,'Kap.ber JA'!$DK:$DN,4,FALSE)*AY37 -> 3139543.17 | BC37: =VLOOKUP(J37,'Kap.ber UA'!$DJ:$DM,2,FALSE)*AY37 -> 220656.77 | BD37: =VLOOKUP(J37,'Kap.ber UA'!$DJ:$DM,3,FALSE)*AY37 -> 2918886.4 | BE37: =VLOOKUP(J37,'Kap.ber UA'!$DJ:$DM,4,FALSE)*AY37 -> 3139543.17 | BF37: =IF('Beskrivning av åtgärd'!$B$11="Persontrafik",BA37,IF('Beskrivning av åtgärd'!$B$11="Godstrafik",AZ37,BB37)) -> 3139543.17 | BG37: =IF('Beskrivning av åtgärd'!$B$11="Persontrafik",BD37,IF('Beskrivning av åtgärd'!$B$11="Godstrafik",BC37,BE37)) -> 3139543.17
A38: 1415 | B38: 6610 | C38: 14156610 | D38: Skyttorp | E38: Örbyhus | F38: 434 | G38: Ostkustbanan | H38: 5 | I38: L1413 | J38: L1413 | T38: =+Kalkylsammanställning!G$2 -> 1 | U38: Ja | V38: Ja | W38: =IFERROR(+VLOOKUP(I38,Länkar_TTA!I:J,2,FALSE),0) -> 0 | X38: 0 | Y38: =+IFERROR(VLOOKUP(C38,LinjeLänk_Data!F:G,2,FALSE),"-") -> 17.22999954 | Z38: 17.22999954 | AB38: Ostkustbanan | AD38: 434 | AF38: =+VLOOKUP(C38,Länkar_TTA!M:O,2,FALSE) -> 434 | AG38: 0 | AI38: - | AJ38: Skyttorp-Örbyhus | AL38: =+SUMIF('Linjelänk JA_KAP'!$H:$H,$C38,'Linjelänk JA_KAP'!CY:CY) -> 17 | AM38: =+SUMIF('Linjelänk JA_KAP'!$H:$H,$C38,'Linjelänk JA_KAP'!CZ:CZ) -> 23 | AN38: =+SUMIF('Linjelänk JA_KAP'!$H:$H,$C38,'Linjelänk JA_KAP'!DA:DA) -> 36 | AO38: =+SUMIF('Linjelänk UA_KAP'!$H:$H,$C38,'Linjelänk UA_KAP'!CY:CY) -> 17 | AP38: =+SUMIF('Linjelänk UA_KAP'!$H:$H,$C38,'Linjelänk UA_KAP'!CZ:CZ) -> 23 | AQ38: =+SUMIF('Linjelänk UA_KAP'!$H:$H,$C38,'Linjelänk UA_KAP'!DA:DA) -> 36 | AS38: =+VLOOKUP($AJ38,Länkar_TTA!$P:$S,2,FALSE) -> 17 | AT38: =+VLOOKUP($AJ38,Länkar_TTA!$P:$S,3,FALSE) -> 23 | AU38: =+VLOOKUP($AJ38,Länkar_TTA!$P:$S,4,FALSE) -> 36 | AX38: 419033.5889 | AY38: =VLOOKUP(I38,Bangods_linjedel!B:F,5,FALSE) -> 60.01 | AZ38: =VLOOKUP(I38,'Kap.ber JA'!DK:DN,2,FALSE)*AY38 -> 220656.77 | BA38: =VLOOKUP(I38,'Kap.ber JA'!$DK:$DN,3,FALSE)*AY38 -> 2918886.4 | BB38: =VLOOKUP(I38,'Kap.ber JA'!$DK:$DN,4,FALSE)*AY38 -> 3139543.17 | BC38: =VLOOKUP(J38,'Kap.ber UA'!$DJ:$DM,2,FALSE)*AY38 -> 220656.77 | BD38: =VLOOKUP(J38,'Kap.ber UA'!$DJ:$DM,3,FALSE)*AY38 -> 2918886.4 | BE38: =VLOOKUP(J38,'Kap.ber UA'!$DJ:$DM,4,FALSE)*AY38 -> 3139543.17 | BF38: =IF('Beskrivning av åtgärd'!$B$11="Persontrafik",BA38,IF('Beskrivning av åtgärd'!$B$11="Godstrafik",AZ38,BB38)) -> 3139543.17 | BG38: =IF('Beskrivning av åtgärd'!$B$11="Persontrafik",BD38,IF('Beskrivning av åtgärd'!$B$11="Godstrafik",BC38,BE38)) -> 3139543.17
A39: 1418 | B39: 1407 | C39: 14181407 | D39: Järlåsa | E39: Brunna | F39: 431 | G39: Dalabanan | H39: 6 | I39: L2000 | J39: L2000 | T39: =+Kalkylsammanställning!G$2 -> 1 | U39: Ja | V39: Ja | W39: =IFERROR(+VLOOKUP(I39,Länkar_TTA!I:J,2,FALSE),0) -> 0 | X39: 0 | Y39: =+IFERROR(VLOOKUP(C39,LinjeLänk_Data!F:G,2,FALSE),"-") -> 13.18000031 | Z39: 13.18000031 | AB39: Dalabanan | AD39: 431 | AF39: =+VLOOKUP(C39,Länkar_TTA!M:O,2,FALSE) -> 431 | AG39: 0 | AI39: - | AJ39: Järlåsa-Brunna | AL39: =+SUMIF('Linjelänk JA_KAP'!$H:$H,$C39,'Linjelänk JA_KAP'!CY:CY) -> 0 | AM39: =+SUMIF('Linjelänk JA_KAP'!$H:$H,$C39,'Linjelänk JA_KAP'!CZ:CZ) -> 36 | AN39: =+SUMIF('Linjelänk JA_KAP'!$H:$H,$C39,'Linjelänk JA_KAP'!DA:DA) -> 0 | AO39: =+SUMIF('Linjelänk UA_KAP'!$H:$H,$C39,'Linjelänk UA_KAP'!CY:CY) -> 0 | AP39: =+SUMIF('Linjelänk UA_KAP'!$H:$H,$C39,'Linjelänk UA_KAP'!CZ:CZ) -> 36 | AQ39: =+SUMIF('Linjelänk UA_KAP'!$H:$H,$C39,'Linjelänk UA_KAP'!DA:DA) -> 0 | AS39: =+VLOOKUP($AJ39,Länkar_TTA!$P:$S,2,FALSE) -> 0 | AT39: =+VLOOKUP($AJ39,Länkar_TTA!$P:$S,3,FALSE) -> 36 | AU39: =+VLOOKUP($AJ39,Länkar_TTA!$P:$S,4,FALSE) -> 0 | AX39: 151833.6035 | AY39: =VLOOKUP(I39,Bangods_linjedel!B:F,5,FALSE) -> 61.35 | AZ39: =VLOOKUP(I39,'Kap.ber JA'!DK:DN,2,FALSE)*AY39 -> 6932.55 | BA39: =VLOOKUP(I39,'Kap.ber JA'!$DK:$DN,3,FALSE)*AY39 -> 1413504 | BB39: =VLOOKUP(I39,'Kap.ber JA'!$DK:$DN,4,FALSE)*AY39 -> 1420436.55 | BC39: =VLOOKUP(J39,'Kap.ber UA'!$DJ:$DM,2,FALSE)*AY39 -> 6932.55 | BD39: =VLOOKUP(J39,'Kap.ber UA'!$DJ:$DM,3,FALSE)*AY39 -> 1413504 | BE39: =VLOOKUP(J39,'Kap.ber UA'!$DJ:$DM,4,FALSE)*AY39 -> 1420436.55 | BF39: =IF('Beskrivning av åtgärd'!$B$11="Persontrafik",BA39,IF('Beskrivning av åtgärd'!$B$11="Godstrafik",AZ39,BB39)) -> 1420436.55 | BG39: =IF('Beskrivning av åtgärd'!$B$11="Persontrafik",BD39,IF('Beskrivning av åtgärd'!$B$11="Godstrafik",BC39,BE39)) -> 1420436.55
A40: 1418 | B40: 6103 | C40: 14186103 | D40: Järlåsa | E40: Morgongåva | F40: 431 | G40: Dalabanan | H40: 6 | I40: L2000 | J40: L2000 | T40: =+Kalkylsammanställning!G$2 -> 1 | U40: Ja | V40: Ja | W40: =IFERROR(+VLOOKUP(I40,Länkar_TTA!I:J,2,FALSE),0) -> 0 | X40: 0 | Y40: =+IFERROR(VLOOKUP(C40,LinjeLänk_Data!F:G,2,FALSE),"-") -> 14.78999996 | Z40: 14.78999996 | AB40: Dalabanan | AD40: 431 | AF40: =+VLOOKUP(C40,Länkar_TTA!M:O,2,FALSE) -> 431 | AG40: 0 | AI40: - | AJ40: Järlåsa-Morgongåva | AL40: =+SUMIF('Linjelänk JA_KAP'!$H:$H,$C40,'Linjelänk JA_KAP'!CY:CY) -> 0 | AM40: =+SUMIF('Linjelänk JA_KAP'!$H:$H,$C40,'Linjelänk JA_KAP'!CZ:CZ) -> 36 | AN40: =+SUMIF('Linjelänk JA_KAP'!$H:$H,$C40,'Linjelänk JA_KAP'!DA:DA) -> 0 | AO40: =+SUMIF('Linjelänk UA_KAP'!$H:$H,$C40,'Linjelänk UA_KAP'!CY:CY) -> 0 | AP40: =+SUMIF('Linjelänk UA_KAP'!$H:$H,$C40,'Linjelänk UA_KAP'!CZ:CZ) -> 36 | AQ40: =+SUMIF('Linjelänk UA_KAP'!$H:$H,$C40,'Linjelänk UA_KAP'!DA:DA) -> 0 | AS40: =+VLOOKUP($AJ40,Länkar_TTA!$P:$S,2,FALSE) -> 0 | AT40: =+VLOOKUP($AJ40,Länkar_TTA!$P:$S,3,FALSE) -> 36 | AU40: =+VLOOKUP($AJ40,Länkar_TTA!$P:$S,4,FALSE) -> 0 | AX40: 170380.7996 | AY40: =VLOOKUP(I40,Bangods_linjedel!B:F,5,FALSE) -> 61.35 | AZ40: =VLOOKUP(I40,'Kap.ber JA'!DK:DN,2,FALSE)*AY40 -> 6932.55 | BA40: =VLOOKUP(I40,'Kap.ber JA'!$DK:$DN,3,FALSE)*AY40 -> 1413504 | BB40: =VLOOKUP(I40,'Kap.ber JA'!$DK:$DN,4,FALSE)*AY40 -> 1420436.55 | BC40: =VLOOKUP(J40,'Kap.ber UA'!$DJ:$DM,2,FALSE)*AY40 -> 6932.55 | BD40: =VLOOKUP(J40,'Kap.ber UA'!$DJ:$DM,3,FALSE)*AY40 -> 1413504 | BE40: =VLOOKUP(J40,'Kap.ber UA'!$DJ:$DM,4,FALSE)*AY40 -> 1420436.55 | BF40: =IF('Beskrivning av åtgärd'!$B$11="Persontrafik",BA40,IF('Beskrivning av åtgärd'!$B$11="Godstrafik",AZ40,BB40)) -> 1420436.55 | BG40: =IF('Beskrivning av åtgärd'!$B$11="Persontrafik",BD40,IF('Beskrivning av åtgärd'!$B$11="Godstrafik",BC40,BE40)) -> 1420436.55
A41: 1419 | B41: 1201 | C41: 14191201 | D41: Hargshamn | E41: Hallstavik | F41: 435 | G41: Hargshamnsbanan | H41: 55 | I41: L1600 | J41: L1600 | T41: =+Kalkylsammanställning!G$2 -> 1 | U41: Nej | V41: Nej | W41: =IFERROR(+VLOOKUP(I41,Länkar_TTA!I:J,2,FALSE),0) -> 0 | X41: 0 | Y41: =+IFERROR(VLOOKUP(C41,LinjeLänk_Data!F:G,2,FALSE),"-") -> - | Z41: - | AB41: Hargshamnsbanan | AD41: 435 | AF41: =+VLOOKUP(C41,Länkar_TTA!M:O,2,FALSE) -> 435 | AG41: 0 | AI41: - | AJ41: Hargshamn-Hallstavik | AL41: =+SUMIF('Linjelänk JA_KAP'!$H:$H,$C41,'Linjelänk JA_KAP'!CY:CY) -> 0 | AM41: =+SUMIF('Linjelänk JA_KAP'!$H:$H,$C41,'Linjelänk JA_KAP'!CZ:CZ) -> 0 | AN41: =+SUMIF('Linjelänk JA_KAP'!$H:$H,$C41,'Linjelänk JA_KAP'!DA:DA) -> 0 | AO41: =+SUMIF('Linjelänk UA_KAP'!$H:$H,$C41,'Linjelänk UA_KAP'!CY:CY) -> 0 | AP41: =+SUMIF('Linjelänk UA_KAP'!$H:$H,$C41,'Linjelänk UA_KAP'!CZ:CZ) -> 0 | AQ41: =+SUMIF('Linjelänk UA_KAP'!$H:$H,$C41,'Linjelänk UA_KAP'!DA:DA) -> 0 | AS41: =+VLOOKUP($AJ41,Länkar_TTA!$P:$S,2,FALSE) -> 0 | AT41: =+VLOOKUP($AJ41,Länkar_TTA!$P:$S,3,FALSE) -> 0 | AU41: =+VLOOKUP($AJ41,Länkar_TTA!$P:$S,4,FALSE) -> 0 | AY41: =VLOOKUP(I41,Bangods_linjedel!B:F,5,FALSE) -> 62.99 | AZ41: =VLOOKUP(I41,'Kap.ber JA'!DK:DN,2,FALSE)*AY41 -> 0 | BA41: =VLOOKUP(I41,'Kap.ber JA'!$DK:$DN,3,FALSE)*AY41 -> 0 | BB41: =VLOOKUP(I41,'Kap.ber JA'!$DK:$DN,4,FALSE)*AY41 -> 0 | BC41: =VLOOKUP(J41,'Kap.ber UA'!$DJ:$DM,2,FALSE)*AY41 -> 0 | BD41: =VLOOKUP(J41,'Kap.ber UA'!$DJ:$DM,3,FALSE)*AY41 -> 0 | BE41: =VLOOKUP(J41,'Kap.ber UA'!$DJ:$DM,4,FALSE)*AY41 -> 0 | BF41: =IF('Beskrivning av åtgärd'!$B$11="Persontrafik",BA41,IF('Beskrivning av åtgärd'!$B$11="Godstrafik",AZ41,BB41)) -> 0 | BG41: =IF('Beskrivning av åtgärd'!$B$11="Persontrafik",BD41,IF('Beskrivning av åtgärd'!$B$11="Godstrafik",BC41,BE41)) -> 0
A42: 1421 | B42: 1406 | C42: 14211406 | D42: Vänge | E42: Uppsala Norra | F42: 431 | G42: Dalabanan | H42: 6 | I42: L2000 | J42: L2000 | T42: =+Kalkylsammanställning!G$2 -> 1 | U42: Ja | V42: Ja | W42: =IFERROR(+VLOOKUP(I42,Länkar_TTA!I:J,2,FALSE),0) -> 0 | X42: 0 | Y42: =+IFERROR(VLOOKUP(C42,LinjeLänk_Data!F:G,2,FALSE),"-") -> 9.659999847 | Z42: 9.659999847 | AB42: Dalabanan | AD42: 431 | AF42: =+VLOOKUP(C42,Länkar_TTA!M:O,2,FALSE) -> 431 | AG42: 0 | AI42: - | AJ42: Vänge-Uppsala Norra | AL42: =+SUMIF('Linjelänk JA_KAP'!$H:$H,$C42,'Linjelänk JA_KAP'!CY:CY) -> 0 | AM42: =+SUMIF('Linjelänk JA_KAP'!$H:$H,$C42,'Linjelänk JA_KAP'!CZ:CZ) -> 36 | AN42: =+SUMIF('Linjelänk JA_KAP'!$H:$H,$C42,'Linjelänk JA_KAP'!DA:DA) -> 0 | AO42: =+SUMIF('Linjelänk UA_KAP'!$H:$H,$C42,'Linjelänk UA_KAP'!CY:CY) -> 0 | AP42: =+SUMIF('Linjelänk UA_KAP'!$H:$H,$C42,'Linjelänk UA_KAP'!CZ:CZ) -> 36 | AQ42: =+SUMIF('Linjelänk UA_KAP'!$H:$H,$C42,'Linjelänk UA_KAP'!DA:DA) -> 0 | AS42: =+VLOOKUP($AJ42,Länkar_TTA!$P:$S,2,FALSE) -> 0 | AT42: =+VLOOKUP($AJ42,Länkar_TTA!$P:$S,3,FALSE) -> 36 | AU42: =+VLOOKUP($AJ42,Länkar_TTA!$P:$S,4,FALSE) -> 0 | AX42: 111283.1982 | AY42: =VLOOKUP(I42,Bangods_linjedel!B:F,5,FALSE) -> 61.35 | AZ42: =VLOOKUP(I42,'Kap.ber JA'!DK:DN,2,FALSE)*AY42 -> 6932.55 | BA42: =VLOOKUP(I42,'Kap.ber JA'!$DK:$DN,3,FALSE)*AY42 -> 1413504 | BB42: =VLOOKUP(I42,'Kap.ber JA'!$DK:$DN,4,FALSE)*AY42 -> 1420436.55 | BC42: =VLOOKUP(J42,'Kap.ber UA'!$DJ:$DM,2,FALSE)*AY42 -> 6932.55 | BD42: =VLOOKUP(J42,'Kap.ber UA'!$DJ:$DM,3,FALSE)*AY42 -> 1413504 | BE42: =VLOOKUP(J42,'Kap.ber UA'!$DJ:$DM,4,FALSE)*AY42 -> 1420436.55 | BF42: =IF('Beskrivning av åtgärd'!$B$11="Persontrafik",BA42,IF('Beskrivning av åtgärd'!$B$11="Godstrafik",AZ42,BB42)) -> 1420436.55 | BG42: =IF('Beskrivning av åtgärd'!$B$11="Persontrafik",BD42,IF('Beskrivning av åtgärd'!$B$11="Godstrafik",BC42,BE42)) -> 1420436.55
A43: 1421 | B43: 1407 | C43: 14211407 | D43: Vänge | E43: Brunna | F43: 431 | G43: Dalabanan | H43: 6 | I43: L2000 | J43: L2000 | T43: =+Kalkylsammanställning!G$2 -> 1 | U43: Ja | V43: Ja | W43: =IFERROR(+VLOOKUP(I43,Länkar_TTA!I:J,2,FALSE),0) -> 0 | X43: 0 | Y43: =+IFERROR(VLOOKUP(C43,LinjeLänk_Data!F:G,2,FALSE),"-") -> 0.8500000238 | Z43: 0.8500000238 | AB43: Dalabanan | AD43: 431 | AF43: =+VLOOKUP(C43,Länkar_TTA!M:O,2,FALSE) -> 431 | AG43: 0 | AI43: - | AJ43: Vänge-Brunna | AL43: =+SUMIF('Linjelänk JA_KAP'!$H:$H,$C43,'Linjelänk JA_KAP'!CY:CY) -> 0 | AM43: =+SUMIF('Linjelänk JA_KAP'!$H:$H,$C43,'Linjelänk JA_KAP'!CZ:CZ) -> 36 | AN43: =+SUMIF('Linjelänk JA_KAP'!$H:$H,$C43,'Linjelänk JA_KAP'!DA:DA) -> 0 | AO43: =+SUMIF('Linjelänk UA_KAP'!$H:$H,$C43,'Linjelänk UA_KAP'!CY:CY) -> 0 | AP43: =+SUMIF('Linjelänk UA_KAP'!$H:$H,$C43,'Linjelänk UA_KAP'!CZ:CZ) -> 36 | AQ43: =+SUMIF('Linjelänk UA_KAP'!$H:$H,$C43,'Linjelänk UA_KAP'!DA:DA) -> 0 | AS43: =+VLOOKUP($AJ43,Länkar_TTA!$P:$S,2,FALSE) -> 0 | AT43: =+VLOOKUP($AJ43,Länkar_TTA!$P:$S,3,FALSE) -> 36 | AU43: =+VLOOKUP($AJ43,Länkar_TTA!$P:$S,4,FALSE) -> 0 | AX43: 9792.000275 | AY43: =VLOOKUP(I43,Bangods_linjedel!B:F,5,FALSE) -> 61.35 | AZ43: =VLOOKUP(I43,'Kap.ber JA'!DK:DN,2,FALSE)*AY43 -> 6932.55 | BA43: =VLOOKUP(I43,'Kap.ber JA'!$DK:$DN,3,FALSE)*AY43 -> 1413504 | BB43: =VLOOKUP(I43,'Kap.ber JA'!$DK:$DN,4,FALSE)*AY43 -> 1420436.55 | BC43: =VLOOKUP(J43,'Kap.ber UA'!$DJ:$DM,2,FALSE)*AY43 -> 6932.55 | BD43: =VLOOKUP(J43,'Kap.ber UA'!$DJ:$DM,3,FALSE)*AY43 -> 1413504 | BE43: =VLOOKUP(J43,'Kap.ber UA'!$DJ:$DM,4,FALSE)*AY43 -> 1420436.55 | BF43: =IF('Beskrivning av åtgärd'!$B$11="Persontrafik",BA43,IF('Beskrivning av åtgärd'!$B$11="Godstrafik",AZ43,BB43)) -> 1420436.55 | BG43: =IF('Beskrivning av åtgärd'!$B$11="Persontrafik",BD43,IF('Beskrivning av åtgärd'!$B$11="Godstrafik",BC43,BE43)) -> 1420436.55
A44: 1422 | B44: 1405 | C44: 14221405 | D44: Dannemora | E44: Gimo | F44: 435 | G44: Hargshamnsbanan | H44: 55 | I44: L1600 | J44: L1600 | T44: =+Kalkylsammanställning!G$2 -> 1 | U44: Nej | V44: Nej | W44: =IFERROR(+VLOOKUP(I44,Länkar_TTA!I:J,2,FALSE),0) -> 0 | X44: 0 | Y44: =+IFERROR(VLOOKUP(C44,LinjeLänk_Data!F:G,2,FALSE),"-") -> - | Z44: - | AB44: Hargshamnsbanan | AD44: 435 | AF44: =+VLOOKUP(C44,Länkar_TTA!M:O,2,FALSE) -> 435 | AG44: 0 | AI44: - | AJ44: Dannemora-Gimo | AL44: =+SUMIF('Linjelänk JA_KAP'!$H:$H,$C44,'Linjelänk JA_KAP'!CY:CY) -> 0 | AM44: =+SUMIF('Linjelänk JA_KAP'!$H:$H,$C44,'Linjelänk JA_KAP'!CZ:CZ) -> 0 | AN44: =+SUMIF('Linjelänk JA_KAP'!$H:$H,$C44,'Linjelänk JA_KAP'!DA:DA) -> 0 | AO44: =+SUMIF('Linjelänk UA_KAP'!$H:$H,$C44,'Linjelänk UA_KAP'!CY:CY) -> 0 | AP44: =+SUMIF('Linjelänk UA_KAP'!$H:$H,$C44,'Linjelänk UA_KAP'!CZ:CZ) -> 0 | AQ44: =+SUMIF('Linjelänk UA_KAP'!$H:$H,$C44,'Linjelänk UA_KAP'!DA:DA) -> 0 | AS44: =+VLOOKUP($AJ44,Länkar_TTA!$P:$S,2,FALSE) -> 0 | AT44: =+VLOOKUP($AJ44,Länkar_TTA!$P:$S,3,FALSE) -> 0 | AU44: =+VLOOKUP($AJ44,Länkar_TTA!$P:$S,4,FALSE) -> 0 | AY44: =VLOOKUP(I44,Bangods_linjedel!B:F,5,FALSE) -> 62.99 | AZ44: =VLOOKUP(I44,'Kap.ber JA'!DK:DN,2,FALSE)*AY44 -> 0 | BA44: =VLOOKUP(I44,'Kap.ber JA'!$DK:$DN,3,FALSE)*AY44 -> 0 | BB44: =VLOOKUP(I44,'Kap.ber JA'!$DK:$DN,4,FALSE)*AY44 -> 0 | BC44: =VLOOKUP(J44,'Kap.ber UA'!$DJ:$DM,2,FALSE)*AY44 -> 0 | BD44: =VLOOKUP(J44,'Kap.ber UA'!$DJ:$DM,3,FALSE)*AY44 -> 0 | BE44: =VLOOKUP(J44,'Kap.ber UA'!$DJ:$DM,4,FALSE)*AY44 -> 0 | BF44: =IF('Beskrivning av åtgärd'!$B$11="Persontrafik",BA44,IF('Beskrivning av åtgärd'!$B$11="Godstrafik",AZ44,BB44)) -> 0 | BG44: =IF('Beskrivning av åtgärd'!$B$11="Persontrafik",BD44,IF('Beskrivning av åtgärd'!$B$11="Godstrafik",BC44,BE44)) -> 0
A45: 1500 | B45: 1506 | C45: 15001506 | D45: Nyköpings Central | E45: Nyköping kp västra | F45: 492 | G45: (Sala)-Oxelösund | H45: 18 | I45: L2203 | J45: L2203 | T45: =+Kalkylsammanställning!G$2 -> 1 | U45: Ja | V45: Ja | W45: =IFERROR(+VLOOKUP(I45,Länkar_TTA!I:J,2,FALSE),0) -> 0 | X45: 0 | Y45: =+IFERROR(VLOOKUP(C45,LinjeLänk_Data!F:G,2,FALSE),"-") -> - | Z45: - | AB45: (Sala)-Oxelösund | AD45: 492 | AF45: =+VLOOKUP(C45,Länkar_TTA!M:O,2,FALSE) -> 492 | AG45: 0 | AI45: - | AJ45: Nyköpings Central-Nyköping kp västra | AL45: =+SUMIF('Linjelänk JA_KAP'!$H:$H,$C45,'Linjelänk JA_KAP'!CY:CY) -> 0 | AM45: =+SUMIF('Linjelänk JA_KAP'!$H:$H,$C45,'Linjelänk JA_KAP'!CZ:CZ) -> 0 | AN45: =+SUMIF('Linjelänk JA_KAP'!$H:$H,$C45,'Linjelänk JA_KAP'!DA:DA) -> 0 | AO45: =+SUMIF('Linjelänk UA_KAP'!$H:$H,$C45,'Linjelänk UA_KAP'!CY:CY) -> 0 | AP45: =+SUMIF('Linjelänk UA_KAP'!$H:$H,$C45,'Linjelänk UA_KAP'!CZ:CZ) -> 0 | AQ45: =+SUMIF('Linjelänk UA_KAP'!$H:$H,$C45,'Linjelänk UA_KAP'!DA:DA) -> 0 | AS45: =+VLOOKUP($AJ45,Länkar_TTA!$P:$S,2,FALSE) -> 0 | AT45: =+VLOOKUP($AJ45,Länkar_TTA!$P:$S,3,FALSE) -> 0 | AU45: =+VLOOKUP($AJ45,Länkar_TTA!$P:$S,4,FALSE) -> 0 | AY45: =VLOOKUP(I45,Bangods_linjedel!B:F,5,FALSE) -> 58.92 | AZ45: =VLOOKUP(I45,'Kap.ber JA'!DK:DN,2,FALSE)*AY45 -> 109591.2 | BA45: =VLOOKUP(I45,'Kap.ber JA'!$DK:$DN,3,FALSE)*AY45 -> 0 | BB45: =VLOOKUP(I45,'Kap.ber JA'!$DK:$DN,4,FALSE)*AY45 -> 109591.2 | BC45: =VLOOKUP(J45,'Kap.ber UA'!$DJ:$DM,2,FALSE)*AY45 -> 109591.2 | BD45: =VLOOKUP(J45,'Kap.ber UA'!$DJ:$DM,3,FALSE)*AY45 -> 0 | BE45: =VLOOKUP(J45,'Kap.ber UA'!$DJ:$DM,4,FALSE)*AY45 -> 109591.2 | BF45: =IF('Beskrivning av åtgärd'!$B$11="Persontrafik",BA45,IF('Beskrivning av åtgärd'!$B$11="Godstrafik",AZ45,BB45)) -> 109591.2 | BG45: =IF('Beskrivning av åtgärd'!$B$11="Persontrafik",BD45,IF('Beskrivning av åtgärd'!$B$11="Godstrafik",BC45,BE45)) -> 109591.2
A46: 1500 | B46: 1508 | C46: 15001508 | D46: Nyköpings Central | E46: Skavsta Flygplats Bibana | F46: 4704 | G46: Ostlänken | H46: 36 | I46: L4704 | J46: L4704 | T46: =+Kalkylsammanställning!G$2 -> 1 | U46: Ja | V46: Ja | W46: =IFERROR(+VLOOKUP(I46,Länkar_TTA!I:J,2,FALSE),0) -> 0 | X46: 0 | Y46: =+IFERROR(VLOOKUP(C46,LinjeLänk_Data!F:G,2,FALSE),"-") -> 7 | Z46: 7 | AB46: Ostlänken | AD46: 4704 | AF46: =+VLOOKUP(C46,Länkar_TTA!M:O,2,FALSE) -> 0 | AG46: 4704 | AI46: - | AJ46: Nyköpings Central-Skavsta Flygplats Bibana | AL46: =+SUMIF('Linjelänk JA_KAP'!$H:$H,$C46,'Linjelänk JA_KAP'!CY:CY) -> 0 | AM46: =+SUMIF('Linjelänk JA_KAP'!$H:$H,$C46,'Linjelänk JA_KAP'!CZ:CZ) -> 32 | AN46: =+SUMIF('Linjelänk JA_KAP'!$H:$H,$C46,'Linjelänk JA_KAP'!DA:DA) -> 0 | AO46: =+SUMIF('Linjelänk UA_KAP'!$H:$H,$C46,'Linjelänk UA_KAP'!CY:CY) -> 0 | AP46: =+SUMIF('Linjelänk UA_KAP'!$H:$H,$C46,'Linjelänk UA_KAP'!CZ:CZ) -> 32 | AQ46: =+SUMIF('Linjelänk UA_KAP'!$H:$H,$C46,'Linjelänk UA_KAP'!DA:DA) -> 0 | AS46: =+VLOOKUP($AJ46,Länkar_TTA!$P:$S,2,FALSE) -> 0 | AT46: =+VLOOKUP($AJ46,Länkar_TTA!$P:$S,3,FALSE) -> 32 | AU46: =+VLOOKUP($AJ46,Länkar_TTA!$P:$S,4,FALSE) -> 0 | AX46: 71680 | AY46: =VLOOKUP(I46,Bangods_linjedel!B:F,5,FALSE) -> 7 | AZ46: =VLOOKUP(I46,'Kap.ber JA'!DK:DN,2,FALSE)*AY46 -> 0 | BA46: =VLOOKUP(I46,'Kap.ber JA'!$DK:$DN,3,FALSE)*AY46 -> 143360 | BB46: =VLOOKUP(I46,'Kap.ber JA'!$DK:$DN,4,FALSE)*AY46 -> 143360 | BC46: =VLOOKUP(J46,'Kap.ber UA'!$DJ:$DM,2,FALSE)*AY46 -> 0 | BD46: =VLOOKUP(J46,'Kap.ber UA'!$DJ:$DM,3,FALSE)*AY46 -> 143360 | BE46: =VLOOKUP(J46,'Kap.ber UA'!$DJ:$DM,4,FALSE)*AY46 -> 143360 | BF46: =IF('Beskrivning av åtgärd'!$B$11="Persontrafik",BA46,IF('Beskrivning av åtgärd'!$B$11="Godstrafik",AZ46,BB46)) -> 143360 | BG46: =IF('Beskrivning av åtgärd'!$B$11="Persontrafik",BD46,IF('Beskrivning av åtgärd'!$B$11="Godstrafik",BC46,BE46)) -> 143360
A47: 1500 | B47: 1518 | C47: 15001518 | D47: Nyköpings Central | E47: Sjösa | F47: 421 | G47: Södra stambanan | H47: 2 | I47: L4703 | J47: L4703 | T47: =+Kalkylsammanställning!G$2 -> 1 | U47: Ja | V47: Ja | W47: =IFERROR(+VLOOKUP(I47,Länkar_TTA!I:J,2,FALSE),0) -> 0 | X47: 0 | Y47: =+IFERROR(VLOOKUP(C47,LinjeLänk_Data!F:G,2,FALSE),"-") -> 8.164839745 | Z47: 8.164839745 | AB47: Södra stambanan | AD47: 421 | AF47: =+VLOOKUP(C47,Länkar_TTA!M:O,2,FALSE) -> 421 | AG47: 0 | AI47: - | AJ47: Nyköpings Central-Sjösa | AL47: =+SUMIF('Linjelänk JA_KAP'!$H:$H,$C47,'Linjelänk JA_KAP'!CY:CY) -> 0 | AM47: =+SUMIF('Linjelänk JA_KAP'!$H:$H,$C47,'Linjelänk JA_KAP'!CZ:CZ) -> 33 | AN47: =+SUMIF('Linjelänk JA_KAP'!$H:$H,$C47,'Linjelänk JA_KAP'!DA:DA) -> 0 | AO47: =+SUMIF('Linjelänk UA_KAP'!$H:$H,$C47,'Linjelänk UA_KAP'!CY:CY) -> 0 | AP47: =+SUMIF('Linjelänk UA_KAP'!$H:$H,$C47,'Linjelänk UA_KAP'!CZ:CZ) -> 33 | AQ47: =+SUMIF('Linjelänk UA_KAP'!$H:$H,$C47,'Linjelänk UA_KAP'!DA:DA) -> 0 | AS47: =+VLOOKUP($AJ47,Länkar_TTA!$P:$S,2,FALSE) -> 0 | AT47: =+VLOOKUP($AJ47,Länkar_TTA!$P:$S,3,FALSE) -> 33 | AU47: =+VLOOKUP($AJ47,Länkar_TTA!$P:$S,4,FALSE) -> 0 | AX47: 86220.7077 | AY47: =VLOOKUP(I47,Bangods_linjedel!B:F,5,FALSE) -> 8.16 | AZ47: =VLOOKUP(I47,'Kap.ber JA'!DK:DN,2,FALSE)*AY47 -> 14345.28 | BA47: =VLOOKUP(I47,'Kap.ber JA'!$DK:$DN,3,FALSE)*AY47 -> 172339.2 | BB47: =VLOOKUP(I47,'Kap.ber JA'!$DK:$DN,4,FALSE)*AY47 -> 186684.48 | BC47: =VLOOKUP(J47,'Kap.ber UA'!$DJ:$DM,2,FALSE)*AY47 -> 14345.28 | BD47: =VLOOKUP(J47,'Kap.ber UA'!$DJ:$DM,3,FALSE)*AY47 -> 172339.2 | BE47: =VLOOKUP(J47,'Kap.ber UA'!$DJ:$DM,4,FALSE)*AY47 -> 186684.48 | BF47: =IF('Beskrivning av åtgärd'!$B$11="Persontrafik",BA47,IF('Beskrivning av åtgärd'!$B$11="Godstrafik",AZ47,BB47)) -> 186684.48 | BG47: =IF('Beskrivning av åtgärd'!$B$11="Persontrafik",BD47,IF('Beskrivning av åtgärd'!$B$11="Godstrafik",BC47,BE47)) -> 186684.48
A48: 1500 | B48: 9101 | C48: 15009101 | D48: Nyköpings Central | E48: Enstaberga | F48: 421 | G48: Södra stambanan | H48: 2 | I48: L4815 | J48: L4815 | T48: =+Kalkylsammanställning!G$2 -> 1 | U48: Ja | V48: Ja | W48: =IFERROR(+VLOOKUP(I48,Länkar_TTA!I:J,2,FALSE),0) -> 0 | X48: 0 | Y48: =+IFERROR(VLOOKUP(C48,LinjeLänk_Data!F:G,2,FALSE),"-") -> 8.885979652 | Z48: 8.885979652 | AB48: Södra stambanan | AD48: 421 | AF48: =+VLOOKUP(C48,Länkar_TTA!M:O,2,FALSE) -> 421 | AG48: 0 | AI48: - | AJ48: Nyköpings Central-Enstaberga | AL48: =+SUMIF('Linjelänk JA_KAP'!$H:$H,$C48,'Linjelänk JA_KAP'!CY:CY) -> 0 | AM48: =+SUMIF('Linjelänk JA_KAP'!$H:$H,$C48,'Linjelänk JA_KAP'!CZ:CZ) -> 17 | AN48: =+SUMIF('Linjelänk JA_KAP'!$H:$H,$C48,'Linjelänk JA_KAP'!DA:DA) -> 0 | AO48: =+SUMIF('Linjelänk UA_KAP'!$H:$H,$C48,'Linjelänk UA_KAP'!CY:CY) -> 0 | AP48: =+SUMIF('Linjelänk UA_KAP'!$H:$H,$C48,'Linjelänk UA_KAP'!CZ:CZ) -> 17 | AQ48: =+SUMIF('Linjelänk UA_KAP'!$H:$H,$C48,'Linjelänk UA_KAP'!DA:DA) -> 0 | AS48: =+VLOOKUP($AJ48,Länkar_TTA!$P:$S,2,FALSE) -> 0 | AT48: =+VLOOKUP($AJ48,Länkar_TTA!$P:$S,3,FALSE) -> 17 | AU48: =+VLOOKUP($AJ48,Länkar_TTA!$P:$S,4,FALSE) -> 0 | AX48: 48339.72931 | AY48: =VLOOKUP(I48,Bangods_linjedel!B:F,5,FALSE) -> 52.02 | AZ48: =VLOOKUP(I48,'Kap.ber JA'!DK:DN,2,FALSE)*AY48 -> 128957.58 | BA48: =VLOOKUP(I48,'Kap.ber JA'!$DK:$DN,3,FALSE)*AY48 -> 565977.6 | BB48: =VLOOKUP(I48,'Kap.ber JA'!$DK:$DN,4,FALSE)*AY48 -> 694935.18 | BC48: =VLOOKUP(J48,'Kap.ber UA'!$DJ:$DM,2,FALSE)*AY48 -> 128957.58 | BD48: =VLOOKUP(J48,'Kap.ber UA'!$DJ:$DM,3,FALSE)*AY48 -> 565977.6 | BE48: =VLOOKUP(J48,'Kap.ber UA'!$DJ:$DM,4,FALSE)*AY48 -> 694935.18 | BF48: =IF('Beskrivning av åtgärd'!$B$11="Persontrafik",BA48,IF('Beskrivning av åtgärd'!$B$11="Godstrafik",AZ48,BB48)) -> 694935.18 | BG48: =IF('Beskrivning av åtgärd'!$B$11="Persontrafik",BD48,IF('Beskrivning av åtgärd'!$B$11="Godstrafik",BC48,BE48)) -> 694935.18
A49: 1500 | B49: 9386 | C49: 15009386 | D49: Nyköpings Central | E49: Nyköping Södra | F49: 492 | G49: (Sala)-Oxelösund | H49: 18 | I49: L2203 | J49: L2203 | T49: =+Kalkylsammanställning!G$2 -> 1 | U49: Ja | V49: Ja | W49: =IFERROR(+VLOOKUP(I49,Länkar_TTA!I:J,2,FALSE),0) -> 0 | X49: 0 | Y49: =+IFERROR(VLOOKUP(C49,LinjeLänk_Data!F:G,2,FALSE),"-") -> - | Z49: - | AB49: (Sala)-Oxelösund | AD49: 492 | AF49: =+VLOOKUP(C49,Länkar_TTA!M:O,2,FALSE) -> 492 | AG49: 0 | AI49: - | AJ49: Nyköpings Central-Nyköping Södra | AL49: =+SUMIF('Linjelänk JA_KAP'!$H:$H,$C49,'Linjelänk JA_KAP'!CY:CY) -> 0 | AM49: =+SUMIF('Linjelänk JA_KAP'!$H:$H,$C49,'Linjelänk JA_KAP'!CZ:CZ) -> 0 | AN49: =+SUMIF('Linjelänk JA_KAP'!$H:$H,$C49,'Linjelänk JA_KAP'!DA:DA) -> 0 | AO49: =+SUMIF('Linjelänk UA_KAP'!$H:$H,$C49,'Linjelänk UA_KAP'!CY:CY) -> 0 | AP49: =+SUMIF('Linjelänk UA_KAP'!$H:$H,$C49,'Linjelänk UA_KAP'!CZ:CZ) -> 0 | AQ49: =+SUMIF('Linjelänk UA_KAP'!$H:$H,$C49,'Linjelänk UA_KAP'!DA:DA) -> 0 | AS49: =+VLOOKUP($AJ49,Länkar_TTA!$P:$S,2,FALSE) -> 0 | AT49: =+VLOOKUP($AJ49,Länkar_TTA!$P:$S,3,FALSE) -> 0 | AU49: =+VLOOKUP($AJ49,Länkar_TTA!$P:$S,4,FALSE) -> 0 | AY49: =VLOOKUP(I49,Bangods_linjedel!B:F,5,FALSE) -> 58.92 | AZ49: =VLOOKUP(I49,'Kap.ber JA'!DK:DN,2,FALSE)*AY49 -> 109591.2 | BA49: =VLOOKUP(I49,'Kap.ber JA'!$DK:$DN,3,FALSE)*AY49 -> 0 | BB49: =VLOOKUP(I49,'Kap.ber JA'!$DK:$DN,4,FALSE)*AY49 -> 109591.2 | BC49: =VLOOKUP(J49,'Kap.ber UA'!$DJ:$DM,2,FALSE)*AY49 -> 109591.2 | BD49: =VLOOKUP(J49,'Kap.ber UA'!$DJ:$DM,3,FALSE)*AY49 -> 0 | BE49: =VLOOKUP(J49,'Kap.ber UA'!$DJ:$DM,4,FALSE)*AY49 -> 109591.2 | BF49: =IF('Beskrivning av åtgärd'!$B$11="Persontrafik",BA49,IF('Beskrivning av åtgärd'!$B$11="Godstrafik",AZ49,BB49)) -> 109591.2 | BG49: =IF('Beskrivning av åtgärd'!$B$11="Persontrafik",BD49,IF('Beskrivning av åtgärd'!$B$11="Godstrafik",BC49,BE49)) -> 109591.2
A50: 1501 | B50: 1140 | C50: 15011140 | D50: Vagnhärad | E50: Hölö | F50: 421 | G50: Södra stambanan | H50: 2 | I50: L4800 | J50: L4800 | T50: =+Kalkylsammanställning!G$2 -> 1 | U50: Ja | V50: Ja | W50: =IFERROR(+VLOOKUP(I50,Länkar_TTA!I:J,2,FALSE),0) -> 0 | X50: 0 | Y50: =+IFERROR(VLOOKUP(C50,LinjeLänk_Data!F:G,2,FALSE),"-") -> 9.231829643 | Z50: 9.231829643 | AB50: Södra stambanan | AD50: 421 | AF50: =+VLOOKUP(C50,Länkar_TTA!M:O,2,FALSE) -> 421 | AG50: 0 | AI50: - | AJ50: Vagnhärad-Hölö | AL50: =+SUMIF('Linjelänk JA_KAP'!$H:$H,$C50,'Linjelänk JA_KAP'!CY:CY) -> 0 | AM50: =+SUMIF('Linjelänk JA_KAP'!$H:$H,$C50,'Linjelänk JA_KAP'!CZ:CZ) -> 1 | AN50: =+SUMIF('Linjelänk JA_KAP'!$H:$H,$C50,'Linjelänk JA_KAP'!DA:DA) -> 0 | AO50: =+SUMIF('Linjelänk UA_KAP'!$H:$H,$C50,'Linjelänk UA_KAP'!CY:CY) -> 0 | AP50: =+SUMIF('Linjelänk UA_KAP'!$H:$H,$C50,'Linjelänk UA_KAP'!CZ:CZ) -> 1 | AQ50: =+SUMIF('Linjelänk UA_KAP'!$H:$H,$C50,'Linjelänk UA_KAP'!DA:DA) -> 0 | AS50: =+VLOOKUP($AJ50,Länkar_TTA!$P:$S,2,FALSE) -> 0 | AT50: =+VLOOKUP($AJ50,Länkar_TTA!$P:$S,3,FALSE) -> 1 | AU50: =+VLOOKUP($AJ50,Länkar_TTA!$P:$S,4,FALSE) -> 0 | AX50: 2954.185486 | AY50: =VLOOKUP(I50,Bangods_linjedel!B:F,5,FALSE) -> 46.91 | AZ50: =VLOOKUP(I50,'Kap.ber JA'!DK:DN,2,FALSE)*AY50 -> 82467.78 | BA50: =VLOOKUP(I50,'Kap.ber JA'!$DK:$DN,3,FALSE)*AY50 -> 30022.4 | BB50: =VLOOKUP(I50,'Kap.ber JA'!$DK:$DN,4,FALSE)*AY50 -> 112490.18 | BC50: =VLOOKUP(J50,'Kap.ber UA'!$DJ:$DM,2,FALSE)*AY50 -> 82467.78 | BD50: =VLOOKUP(J50,'Kap.ber UA'!$DJ:$DM,3,FALSE)*AY50 -> 30022.4 | BE50: =VLOOKUP(J50,'Kap.ber UA'!$DJ:$DM,4,FALSE)*AY50 -> 112490.18 | BF50: =IF('Beskrivning av åtgärd'!$B$11="Persontrafik",BA50,IF('Beskrivning av åtgärd'!$B$11="Godstrafik",AZ50,BB50)) -> 112490.18 | BG50: =IF('Beskrivning av åtgärd'!$B$11="Persontrafik",BD50,IF('Beskrivning av åtgärd'!$B$11="Godstrafik",BC50,BE50)) -> 112490.18
A51: 1501 | B51: 9322 | C51: 15019322 | D51: Vagnhärad | E51: Lästringe | F51: 421 | G51: Södra stambanan | H51: 2 | I51: L4800 | J51: L4800 | T51: =+Kalkylsammanställning!G$2 -> 1 | U51: Ja | V51: Ja | W51: =IFERROR(+VLOOKUP(I51,Länkar_TTA!I:J,2,FALSE),0) -> 0 | X51: 0 | Y51: =+IFERROR(VLOOKUP(C51,LinjeLänk_Data!F:G,2,FALSE),"-") -> 12.52289963 | Z51: 12.52289963 | AB51: Södra stambanan | AD51: 421 | AF51: =+VLOOKUP(C51,Länkar_TTA!M:O,2,FALSE) -> 421 | AG51: 0 | AI51: - | AJ51: Vagnhärad-Lästringe | AL51: =+SUMIF('Linjelänk JA_KAP'!$H:$H,$C51,'Linjelänk JA_KAP'!CY:CY) -> 0 | AM51: =+SUMIF('Linjelänk JA_KAP'!$H:$H,$C51,'Linjelänk JA_KAP'!CZ:CZ) -> 1 | AN51: =+SUMIF('Linjelänk JA_KAP'!$H:$H,$C51,'Linjelänk JA_KAP'!DA:DA) -> 0 | AO51: =+SUMIF('Linjelänk UA_KAP'!$H:$H,$C51,'Linjelänk UA_KAP'!CY:CY) -> 0 | AP51: =+SUMIF('Linjelänk UA_KAP'!$H:$H,$C51,'Linjelänk UA_KAP'!CZ:CZ) -> 1 | AQ51: =+SUMIF('Linjelänk UA_KAP'!$H:$H,$C51,'Linjelänk UA_KAP'!DA:DA) -> 0 | AS51: =+VLOOKUP($AJ51,Länkar_TTA!$P:$S,2,FALSE) -> 0 | AT51: =+VLOOKUP($AJ51,Länkar_TTA!$P:$S,3,FALSE) -> 1 | AU51: =+VLOOKUP($AJ51,Länkar_TTA!$P:$S,4,FALSE) -> 0 | AX51: 4007.327881 | AY51: =VLOOKUP(I51,Bangods_linjedel!B:F,5,FALSE) -> 46.91 | AZ51: =VLOOKUP(I51,'Kap.ber JA'!DK:DN,2,FALSE)*AY51 -> 82467.78 | BA51: =VLOOKUP(I51,'Kap.ber JA'!$DK:$DN,3,FALSE)*AY51 -> 30022.4 | BB51: =VLOOKUP(I51,'Kap.ber JA'!$DK:$DN,4,FALSE)*AY51 -> 112490.18 | BC51: =VLOOKUP(J51,'Kap.ber UA'!$DJ:$DM,2,FALSE)*AY51 -> 82467.78 | BD51: =VLOOKUP(J51,'Kap.ber UA'!$DJ:$DM,3,FALSE)*AY51 -> 30022.4 | BE51: =VLOOKUP(J51,'Kap.ber UA'!$DJ:$DM,4,FALSE)*AY51 -> 112490.18 | BF51: =IF('Beskrivning av åtgärd'!$B$11="Persontrafik",BA51,IF('Beskrivning av åtgärd'!$B$11="Godstrafik",AZ51,BB51)) -> 112490.18 | BG51: =IF('Beskrivning av åtgärd'!$B$11="Persontrafik",BD51,IF('Beskrivning av åtgärd'!$B$11="Godstrafik",BC51,BE51)) -> 112490.18
A52: 1502 | B52: 9271 | C52: 15029271 | D52: Gnesta | E52: Kolke | F52: 414 | G52: Västra stambanan | H52: 1 | I52: L2912 | J52: L2912 | T52: =+Kalkylsammanställning!G$2 -> 1 | U52: Ja | V52: Ja | W52: =IFERROR(+VLOOKUP(I52,Länkar_TTA!I:J,2,FALSE),0) -> 0 | X52: 0 | Y52: =+IFERROR(VLOOKUP(C52,LinjeLänk_Data!F:G,2,FALSE),"-") -> 5.889999866 | Z52: 5.889999866 | AB52: Västra stambanan | AD52: 414 | AF52: =+VLOOKUP(C52,Länkar_TTA!M:O,2,FALSE) -> 414 | AG52: 0 | AI52: - | AJ52: Gnesta-Kolke | AL52: =+SUMIF('Linjelänk JA_KAP'!$H:$H,$C52,'Linjelänk JA_KAP'!CY:CY) -> 43 | AM52: =+SUMIF('Linjelänk JA_KAP'!$H:$H,$C52,'Linjelänk JA_KAP'!CZ:CZ) -> 28 | AN52: =+SUMIF('Linjelänk JA_KAP'!$H:$H,$C52,'Linjelänk JA_KAP'!DA:DA) -> 0 | AO52: =+SUMIF('Linjelänk UA_KAP'!$H:$H,$C52,'Linjelänk UA_KAP'!CY:CY) -> 43 | AP52: =+SUMIF('Linjelänk UA_KAP'!$H:$H,$C52,'Linjelänk UA_KAP'!CZ:CZ) -> 28 | AQ52: =+SUMIF('Linjelänk UA_KAP'!$H:$H,$C52,'Linjelänk UA_KAP'!DA:DA) -> 0 | AS52: =+VLOOKUP($AJ52,Länkar_TTA!$P:$S,2,FALSE) -> 43 | AT52: =+VLOOKUP($AJ52,Länkar_TTA!$P:$S,3,FALSE) -> 28 | AU52: =+VLOOKUP($AJ52,Länkar_TTA!$P:$S,4,FALSE) -> 0 | AX52: 133820.797 | AY52: =VLOOKUP(I52,Bangods_linjedel!B:F,5,FALSE) -> 45.03 | AZ52: =VLOOKUP(I52,'Kap.ber JA'!DK:DN,2,FALSE)*AY52 -> 252438.18 | BA52: =VLOOKUP(I52,'Kap.ber JA'!$DK:$DN,3,FALSE)*AY52 -> 2046163.2 | BB52: =VLOOKUP(I52,'Kap.ber JA'!$DK:$DN,4,FALSE)*AY52 -> 2298601.38 | BC52: =VLOOKUP(J52,'Kap.ber UA'!$DJ:$DM,2,FALSE)*AY52 -> 252438.18 | BD52: =VLOOKUP(J52,'Kap.ber UA'!$DJ:$DM,3,FALSE)*AY52 -> 2046163.2 | BE52: =VLOOKUP(J52,'Kap.ber UA'!$DJ:$DM,4,FALSE)*AY52 -> 2298601.38 | BF52: =IF('Beskrivning av åtgärd'!$B$11="Persontrafik",BA52,IF('Beskrivning av åtgärd'!$B$11="Godstrafik",AZ52,BB52)) -> 2298601.38 | BG52: =IF('Beskrivning av åtgärd'!$B$11="Persontrafik",BD52,IF('Beskrivning av åtgärd'!$B$11="Godstrafik",BC52,BE52)) -> 2298601.38
A53: 1502 | B53: 681121 | C53: 1502681121 | D53: Gnesta | E53: Mölnbo | F53: 414 | G53: Västra stambanan | H53: 1 | I53: L2911 | J53: L2911 | T53: =+Kalkylsammanställning!G$2 -> 1 | U53: Ja | V53: Ja | W53: =IFERROR(+VLOOKUP(I53,Länkar_TTA!I:J,2,FALSE),0) -> 0 | X53: 0 | Y53: =+IFERROR(VLOOKUP(C53,LinjeLänk_Data!F:G,2,FALSE),"-") -> 6.650000095 | Z53: 6.650000095 | AB53: Västra stambanan | AD53: 414 | AF53: =+VLOOKUP(C53,Länkar_TTA!M:O,2,FALSE) -> 414 | AG53: 0 | AI53: - | AJ53: Gnesta-Mölnbo | AL53: =+SUMIF('Linjelänk JA_KAP'!$H:$H,$C53,'Linjelänk JA_KAP'!CY:CY) -> 43 | AM53: =+SUMIF('Linjelänk JA_KAP'!$H:$H,$C53,'Linjelänk JA_KAP'!CZ:CZ) -> 28 | AN53: =+SUMIF('Linjelänk JA_KAP'!$H:$H,$C53,'Linjelänk JA_KAP'!DA:DA) -> 25 | AO53: =+SUMIF('Linjelänk UA_KAP'!$H:$H,$C53,'Linjelänk UA_KAP'!CY:CY) -> 43 | AP53: =+SUMIF('Linjelänk UA_KAP'!$H:$H,$C53,'Linjelänk UA_KAP'!CZ:CZ) -> 28 | AQ53: =+SUMIF('Linjelänk UA_KAP'!$H:$H,$C53,'Linjelänk UA_KAP'!DA:DA) -> 25 | AS53: =+VLOOKUP($AJ53,Länkar_TTA!$P:$S,2,FALSE) -> 43 | AT53: =+VLOOKUP($AJ53,Länkar_TTA!$P:$S,3,FALSE) -> 28 | AU53: =+VLOOKUP($AJ53,Länkar_TTA!$P:$S,4,FALSE) -> 25 | AX53: 204288.0029 | AY53: =VLOOKUP(I53,Bangods_linjedel!B:F,5,FALSE) -> 17.37 | AZ53: =VLOOKUP(I53,'Kap.ber JA'!DK:DN,2,FALSE)*AY53 -> 97376.22 | BA53: =VLOOKUP(I53,'Kap.ber JA'!$DK:$DN,3,FALSE)*AY53 -> 1067212.8 | BB53: =VLOOKUP(I53,'Kap.ber JA'!$DK:$DN,4,FALSE)*AY53 -> 1164589.02 | BC53: =VLOOKUP(J53,'Kap.ber UA'!$DJ:$DM,2,FALSE)*AY53 -> 97376.22 | BD53: =VLOOKUP(J53,'Kap.ber UA'!$DJ:$DM,3,FALSE)*AY53 -> 1067212.8 | BE53: =VLOOKUP(J53,'Kap.ber UA'!$DJ:$DM,4,FALSE)*AY53 -> 1164589.02 | BF53: =IF('Beskrivning av åtgärd'!$B$11="Persontrafik",BA53,IF('Beskrivning av åtgärd'!$B$11="Godstrafik",AZ53,BB53)) -> 1164589.02 | BG53: =IF('Beskrivning av åtgärd'!$B$11="Persontrafik",BD53,IF('Beskrivning av åtgärd'!$B$11="Godstrafik",BC53,BE53)) -> 1164589.02
A54: 1504 | B54: 1515 | C54: 15041515 | D54: Vagnhärad kp ostlanken | E54: Nyköping kp östra | F54: 4700 | G54: Ostlänken | H54: 36 | I54: L4700 | J54: L4700 | T54: =+Kalkylsammanställning!G$2 -> 1 | U54: Ja | V54: Ja | W54: =IFERROR(+VLOOKUP(I54,Länkar_TTA!I:J,2,FALSE),0) -> 0 | X54: 0 | Y54: =+IFERROR(VLOOKUP(C54,LinjeLänk_Data!F:G,2,FALSE),"-") -> 30.1019001 | Z54: 30.1019001 | AB54: Ostlänken | AD54: 4700 | AF54: =+VLOOKUP(C54,Länkar_TTA!M:O,2,FALSE) -> 0 | AG54: 4700 | AI54: - | AJ54: Vagnhärad kp ostlanken-Nyköping kp östra | AL54: =+SUMIF('Linjelänk JA_KAP'!$H:$H,$C54,'Linjelänk JA_KAP'!CY:CY) -> 24 | AM54: =+SUMIF('Linjelänk JA_KAP'!$H:$H,$C54,'Linjelänk JA_KAP'!CZ:CZ) -> 52 | AN54: =+SUMIF('Linjelänk JA_KAP'!$H:$H,$C54,'Linjelänk JA_KAP'!DA:DA) -> 0 | AO54: =+SUMIF('Linjelänk UA_KAP'!$H:$H,$C54,'Linjelänk UA_KAP'!CY:CY) -> 24 | AP54: =+SUMIF('Linjelänk UA_KAP'!$H:$H,$C54,'Linjelänk UA_KAP'!CZ:CZ) -> 52 | AQ54: =+SUMIF('Linjelänk UA_KAP'!$H:$H,$C54,'Linjelänk UA_KAP'!DA:DA) -> 0 | AS54: =+VLOOKUP($AJ54,Länkar_TTA!$P:$S,2,FALSE) -> 24 | AT54: =+VLOOKUP($AJ54,Länkar_TTA!$P:$S,3,FALSE) -> 52 | AU54: =+VLOOKUP($AJ54,Länkar_TTA!$P:$S,4,FALSE) -> 0 | AX54: 732078.2104 | AY54: =VLOOKUP(I54,Bangods_linjedel!B:F,5,FALSE) -> 47.16 | AZ54: =VLOOKUP(I54,'Kap.ber JA'!DK:DN,2,FALSE)*AY54 -> 0 | BA54: =VLOOKUP(I54,'Kap.ber JA'!$DK:$DN,3,FALSE)*AY54 -> 2293862.4 | BB54: =VLOOKUP(I54,'Kap.ber JA'!$DK:$DN,4,FALSE)*AY54 -> 2293862.4 | BC54: =VLOOKUP(J54,'Kap.ber UA'!$DJ:$DM,2,FALSE)*AY54 -> 0 | BD54: =VLOOKUP(J54,'Kap.ber UA'!$DJ:$DM,3,FALSE)*AY54 -> 2293862.4 | BE54: =VLOOKUP(J54,'Kap.ber UA'!$DJ:$DM,4,FALSE)*AY54 -> 2293862.4 | BF54: =IF('Beskrivning av åtgärd'!$B$11="Persontrafik",BA54,IF('Beskrivning av åtgärd'!$B$11="Godstrafik",AZ54,BB54)) -> 2293862.4 | BG54: =IF('Beskrivning av åtgärd'!$B$11="Persontrafik",BD54,IF('Beskrivning av åtgärd'!$B$11="Godstrafik",BC54,BE54)) -> 2293862.4
A55: 1504 | B55: 681131 | C55: 1504681131 | D55: Vagnhärad kp ostlanken | E55: Järna | F55: 4700 | G55: Ostlänken | H55: 36 | I55: L4700 | J55: L4700 | T55: =+Kalkylsammanställning!G$2 -> 1 | U55: Ja | V55: Ja | W55: =IFERROR(+VLOOKUP(I55,Länkar_TTA!I:J,2,FALSE),0) -> 0 | X55: 0 | Y55: =+IFERROR(VLOOKUP(C55,LinjeLänk_Data!F:G,2,FALSE),"-") -> 17.05789948 | Z55: 17.05789948 | AB55: Ostlänken | AD55: 4700 | AF55: =+VLOOKUP(C55,Länkar_TTA!M:O,2,FALSE) -> 0 | AG55: 4700 | AI55: - | AJ55: Vagnhärad kp ostlanken-Järna | AL55: =+SUMIF('Linjelänk JA_KAP'!$H:$H,$C55,'Linjelänk JA_KAP'!CY:CY) -> 24 | AM55: =+SUMIF('Linjelänk JA_KAP'!$H:$H,$C55,'Linjelänk JA_KAP'!CZ:CZ) -> 52 | AN55: =+SUMIF('Linjelänk JA_KAP'!$H:$H,$C55,'Linjelänk JA_KAP'!DA:DA) -> 0 | AO55: =+SUMIF('Linjelänk UA_KAP'!$H:$H,$C55,'Linjelänk UA_KAP'!CY:CY) -> 24 | AP55: =+SUMIF('Linjelänk UA_KAP'!$H:$H,$C55,'Linjelänk UA_KAP'!CZ:CZ) -> 52 | AQ55: =+SUMIF('Linjelänk UA_KAP'!$H:$H,$C55,'Linjelänk UA_KAP'!DA:DA) -> 0 | AS55: =+VLOOKUP($AJ55,Länkar_TTA!$P:$S,2,FALSE) -> 24 | AT55: =+VLOOKUP($AJ55,Länkar_TTA!$P:$S,3,FALSE) -> 52 | AU55: =+VLOOKUP($AJ55,Länkar_TTA!$P:$S,4,FALSE) -> 0 | AX55: 414848.1152 | AY55: =VLOOKUP(I55,Bangods_linjedel!B:F,5,FALSE) -> 47.16 | AZ55: =VLOOKUP(I55,'Kap.ber JA'!DK:DN,2,FALSE)*AY55 -> 0 | BA55: =VLOOKUP(I55,'Kap.ber JA'!$DK:$DN,3,FALSE)*AY55 -> 2293862.4 | BB55: =VLOOKUP(I55,'Kap.ber JA'!$DK:$DN,4,FALSE)*AY55 -> 2293862.4 | BC55: =VLOOKUP(J55,'Kap.ber UA'!$DJ:$DM,2,FALSE)*AY55 -> 0 | BD55: =VLOOKUP(J55,'Kap.ber UA'!$DJ:$DM,3,FALSE)*AY55 -> 2293862.4 | BE55: =VLOOKUP(J55,'Kap.ber UA'!$DJ:$DM,4,FALSE)*AY55 -> 2293862.4 | BF55: =IF('Beskrivning av åtgärd'!$B$11="Persontrafik",BA55,IF('Beskrivning av åtgärd'!$B$11="Godstrafik",AZ55,BB55)) -> 2293862.4 | BG55: =IF('Beskrivning av åtgärd'!$B$11="Persontrafik",BD55,IF('Beskrivning av åtgärd'!$B$11="Godstrafik",BC55,BE55)) -> 2293862.4
A56: 1505 | B56: 9386 | C56: 15059386 | D56: Oxelösund | E56: Nyköping Södra | F56: 492 | G56: (Sala)-Oxelösund | H56: 18 | I56: L2203 | J56: L2203 | T56: =+Kalkylsammanställning!G$2 -> 1 | U56: Ja | V56: Ja | W56: =IFERROR(+VLOOKUP(I56,Länkar_TTA!I:J,2,FALSE),0) -> 0 | X56: 0 | Y56: =+IFERROR(VLOOKUP(C56,LinjeLänk_Data!F:G,2,FALSE),"-") -> - | Z56: - | AB56: (Sala)-Oxelösund | AD56: 492 | AF56: =+VLOOKUP(C56,Länkar_TTA!M:O,2,FALSE) -> 492 | AG56: 0 | AI56: - | AJ56: Oxelösund-Nyköping Södra | AL56: =+SUMIF('Linjelänk JA_KAP'!$H:$H,$C56,'Linjelänk JA_KAP'!CY:CY) -> 0 | AM56: =+SUMIF('Linjelänk JA_KAP'!$H:$H,$C56,'Linjelänk JA_KAP'!CZ:CZ) -> 0 | AN56: =+SUMIF('Linjelänk JA_KAP'!$H:$H,$C56,'Linjelänk JA_KAP'!DA:DA) -> 0 | AO56: =+SUMIF('Linjelänk UA_KAP'!$H:$H,$C56,'Linjelänk UA_KAP'!CY:CY) -> 0 | AP56: =+SUMIF('Linjelänk UA_KAP'!$H:$H,$C56,'Linjelänk UA_KAP'!CZ:CZ) -> 0 | AQ56: =+SUMIF('Linjelänk UA_KAP'!$H:$H,$C56,'Linjelänk UA_KAP'!DA:DA) -> 0 | AS56: =+VLOOKUP($AJ56,Länkar_TTA!$P:$S,2,FALSE) -> 0 | AT56: =+VLOOKUP($AJ56,Länkar_TTA!$P:$S,3,FALSE) -> 0 | AU56: =+VLOOKUP($AJ56,Länkar_TTA!$P:$S,4,FALSE) -> 0 | AY56: =VLOOKUP(I56,Bangods_linjedel!B:F,5,FALSE) -> 58.92 | AZ56: =VLOOKUP(I56,'Kap.ber JA'!DK:DN,2,FALSE)*AY56 -> 109591.2 | BA56: =VLOOKUP(I56,'Kap.ber JA'!$DK:$DN,3,FALSE)*AY56 -> 0 | BB56: =VLOOKUP(I56,'Kap.ber JA'!$DK:$DN,4,FALSE)*AY56 -> 109591.2 | BC56: =VLOOKUP(J56,'Kap.ber UA'!$DJ:$DM,2,FALSE)*AY56 -> 109591.2 | BD56: =VLOOKUP(J56,'Kap.ber UA'!$DJ:$DM,3,FALSE)*AY56 -> 0 | BE56: =VLOOKUP(J56,'Kap.ber UA'!$DJ:$DM,4,FALSE)*AY56 -> 109591.2 | BF56: =IF('Beskrivning av åtgärd'!$B$11="Persontrafik",BA56,IF('Beskrivning av åtgärd'!$B$11="Godstrafik",AZ56,BB56)) -> 109591.2 | BG56: =IF('Beskrivning av åtgärd'!$B$11="Persontrafik",BD56,IF('Beskrivning av åtgärd'!$B$11="Godstrafik",BC56,BE56)) -> 109591.2
A57: 1506 | B57: 1500 | C57: 15061500 | D57: Nyköping kp västra | E57: Nyköpings Central | F57: 492 | G57: (Sala)-Oxelösund | H57: 18 | I57: L2203 | J57: L2203 | T57: =+Kalkylsammanställning!G$2 -> 1 | U57: Ja | V57: Ja | W57: =IFERROR(+VLOOKUP(I57,Länkar_TTA!I:J,2,FALSE),0) -> 0 | X57: 0 | Y57: =+IFERROR(VLOOKUP(C57,LinjeLänk_Data!F:G,2,FALSE),"-") -> - | Z57: - | AB57: (Sala)-Oxelösund | AD57: 492 | AF57: =+VLOOKUP(C57,Länkar_TTA!M:O,2,FALSE) -> 492 | AG57: 0 | AI57: - | AJ57: Nyköping kp västra-Nyköpings Central | AL57: =+SUMIF('Linjelänk JA_KAP'!$H:$H,$C57,'Linjelänk JA_KAP'!CY:CY) -> 0 | AM57: =+SUMIF('Linjelänk JA_KAP'!$H:$H,$C57,'Linjelänk JA_KAP'!CZ:CZ) -> 0 | AN57: =+SUMIF('Linjelänk JA_KAP'!$H:$H,$C57,'Linjelänk JA_KAP'!DA:DA) -> 0 | AO57: =+SUMIF('Linjelänk UA_KAP'!$H:$H,$C57,'Linjelänk UA_KAP'!CY:CY) -> 0 | AP57: =+SUMIF('Linjelänk UA_KAP'!$H:$H,$C57,'Linjelänk UA_KAP'!CZ:CZ) -> 0 | AQ57: =+SUMIF('Linjelänk UA_KAP'!$H:$H,$C57,'Linjelänk UA_KAP'!DA:DA) -> 0 | AS57: =+VLOOKUP($AJ57,Länkar_TTA!$P:$S,2,FALSE) -> 0 | AT57: =+VLOOKUP($AJ57,Länkar_TTA!$P:$S,3,FALSE) -> 0 | AU57: =+VLOOKUP($AJ57,Länkar_TTA!$P:$S,4,FALSE) -> 0 | AY57: =VLOOKUP(I57,Bangods_linjedel!B:F,5,FALSE) -> 58.92 | AZ57: =VLOOKUP(I57,'Kap.ber JA'!DK:DN,2,FALSE)*AY57 -> 109591.2 | BA57: =VLOOKUP(I57,'Kap.ber JA'!$DK:$DN,3,FALSE)*AY57 -> 0 | BB57: =VLOOKUP(I57,'Kap.ber JA'!$DK:$DN,4,FALSE)*AY57 -> 109591.2 | BC57: =VLOOKUP(J57,'Kap.ber UA'!$DJ:$DM,2,FALSE)*AY57 -> 109591.2 | BD57: =VLOOKUP(J57,'Kap.ber UA'!$DJ:$DM,3,FALSE)*AY57 -> 0 | BE57: =VLOOKUP(J57,'Kap.ber UA'!$DJ:$DM,4,FALSE)*AY57 -> 109591.2 | BF57: =IF('Beskrivning av åtgärd'!$B$11="Persontrafik",BA57,IF('Beskrivning av åtgärd'!$B$11="Godstrafik",AZ57,BB57)) -> 109591.2 | BG57: =IF('Beskrivning av åtgärd'!$B$11="Persontrafik",BD57,IF('Beskrivning av åtgärd'!$B$11="Godstrafik",BC57,BE57)) -> 109591.2
A58: 1506 | B58: 1508 | C58: 15061508 | D58: Nyköping kp västra | E58: Skavsta Flygplats Bibana | F58: 4706 | G58: Ostlänken | H58: 36 | I58: L4706 | J58: L4706 | T58: =+Kalkylsammanställning!G$2 -> 1 | U58: Ja | V58: Ja | W58: =IFERROR(+VLOOKUP(I58,Länkar_TTA!I:J,2,FALSE),0) -> 0 | X58: 0 | Y58: =+IFERROR(VLOOKUP(C58,LinjeLänk_Data!F:G,2,FALSE),"-") -> 7.5 | Z58: 7.5 | AB58: Ostlänken | AD58: 4706 | AF58: =+VLOOKUP(C58,Länkar_TTA!M:O,2,FALSE) -> 0 | AG58: 4706 | AI58: - | AJ58: Nyköping kp västra-Skavsta Flygplats Bibana | AL58: =+SUMIF('Linjelänk JA_KAP'!$H:$H,$C58,'Linjelänk JA_KAP'!CY:CY) -> 0 | AM58: =+SUMIF('Linjelänk JA_KAP'!$H:$H,$C58,'Linjelänk JA_KAP'!CZ:CZ) -> 14 | AN58: =+SUMIF('Linjelänk JA_KAP'!$H:$H,$C58,'Linjelänk JA_KAP'!DA:DA) -> 0 | AO58: =+SUMIF('Linjelänk UA_KAP'!$H:$H,$C58,'Linjelänk UA_KAP'!CY:CY) -> 0 | AP58: =+SUMIF('Linjelänk UA_KAP'!$H:$H,$C58,'Linjelänk UA_KAP'!CZ:CZ) -> 14 | AQ58: =+SUMIF('Linjelänk UA_KAP'!$H:$H,$C58,'Linjelänk UA_KAP'!DA:DA) -> 0 | AS58: =+VLOOKUP($AJ58,Länkar_TTA!$P:$S,2,FALSE) -> 0 | AT58: =+VLOOKUP($AJ58,Länkar_TTA!$P:$S,3,FALSE) -> 14 | AU58: =+VLOOKUP($AJ58,Länkar_TTA!$P:$S,4,FALSE) -> 0 | AX58: 33600 | AY58: =VLOOKUP(I58,Bangods_linjedel!B:F,5,FALSE) -> 7.5 | AZ58: =VLOOKUP(I58,'Kap.ber JA'!DK:DN,2,FALSE)*AY58 -> 0 | BA58: =VLOOKUP(I58,'Kap.ber JA'!$DK:$DN,3,FALSE)*AY58 -> 67200 | BB58: =VLOOKUP(I58,'Kap.ber JA'!$DK:$DN,4,FALSE)*AY58 -> 67200 | BC58: =VLOOKUP(J58,'Kap.ber UA'!$DJ:$DM,2,FALSE)*AY58 -> 0 | BD58: =VLOOKUP(J58,'Kap.ber UA'!$DJ:$DM,3,FALSE)*AY58 -> 67200 | BE58: =VLOOKUP(J58,'Kap.ber UA'!$DJ:$DM,4,FALSE)*AY58 -> 67200 | BF58: =IF('Beskrivning av åtgärd'!$B$11="Persontrafik",BA58,IF('Beskrivning av åtgärd'!$B$11="Godstrafik",AZ58,BB58)) -> 67200 | BG58: =IF('Beskrivning av åtgärd'!$B$11="Persontrafik",BD58,IF('Beskrivning av åtgärd'!$B$11="Godstrafik",BC58,BE58)) -> 67200
A59: 1506 | B59: 1512 | C59: 15061512 | D59: Nyköping kp västra | E59: Vrena | F59: 492 | G59: (Sala)-Oxelösund | H59: 18 | I59: L2203 | J59: L2203 | T59: =+Kalkylsammanställning!G$2 -> 1 | U59: Ja | V59: Ja | W59: =IFERROR(+VLOOKUP(I59,Länkar_TTA!I:J,2,FALSE),0) -> 0 | X59: 0 | Y59: =+IFERROR(VLOOKUP(C59,LinjeLänk_Data!F:G,2,FALSE),"-") -> - | Z59: - | AB59: (Sala)-Oxelösund | AD59: 492 | AF59: =+VLOOKUP(C59,Länkar_TTA!M:O,2,FALSE) -> 492 | AG59: 0 | AI59: - | AJ59: Nyköping kp västra-Vrena | AL59: =+SUMIF('Linjelänk JA_KAP'!$H:$H,$C59,'Linjelänk JA_KAP'!CY:CY) -> 0 | AM59: =+SUMIF('Linjelänk JA_KAP'!$H:$H,$C59,'Linjelänk JA_KAP'!CZ:CZ) -> 0 | AN59: =+SUMIF('Linjelänk JA_KAP'!$H:$H,$C59,'Linjelänk JA_KAP'!DA:DA) -> 0 | AO59: =+SUMIF('Linjelänk UA_KAP'!$H:$H,$C59,'Linjelänk UA_KAP'!CY:CY) -> 0 | AP59: =+SUMIF('Linjelänk UA_KAP'!$H:$H,$C59,'Linjelänk UA_KAP'!CZ:CZ) -> 0 | AQ59: =+SUMIF('Linjelänk UA_KAP'!$H:$H,$C59,'Linjelänk UA_KAP'!DA:DA) -> 0 | AS59: =+VLOOKUP($AJ59,Länkar_TTA!$P:$S,2,FALSE) -> 0 | AT59: =+VLOOKUP($AJ59,Länkar_TTA!$P:$S,3,FALSE) -> 0 | AU59: =+VLOOKUP($AJ59,Länkar_TTA!$P:$S,4,FALSE) -> 0 | AY59: =VLOOKUP(I59,Bangods_linjedel!B:F,5,FALSE) -> 58.92 | AZ59: =VLOOKUP(I59,'Kap.ber JA'!DK:DN,2,FALSE)*AY59 -> 109591.2 | BA59: =VLOOKUP(I59,'Kap.ber JA'!$DK:$DN,3,FALSE)*AY59 -> 0 | BB59: =VLOOKUP(I59,'Kap.ber JA'!$DK:$DN,4,FALSE)*AY59 -> 109591.2 | BC59: =VLOOKUP(J59,'Kap.ber UA'!$DJ:$DM,2,FALSE)*AY59 -> 109591.2 | BD59: =VLOOKUP(J59,'Kap.ber UA'!$DJ:$DM,3,FALSE)*AY59 -> 0 | BE59: =VLOOKUP(J59,'Kap.ber UA'!$DJ:$DM,4,FALSE)*AY59 -> 109591.2 | BF59: =IF('Beskrivning av åtgärd'!$B$11="Persontrafik",BA59,IF('Beskrivning av åtgärd'!$B$11="Godstrafik",AZ59,BB59)) -> 109591.2 | BG59: =IF('Beskrivning av åtgärd'!$B$11="Persontrafik",BD59,IF('Beskrivning av åtgärd'!$B$11="Godstrafik",BC59,BE59)) -> 109591.2
A60: 1506 | B60: 1515 | C60: 15061515 | D60: Nyköping kp västra | E60: Nyköping kp östra | F60: 4701 | G60: Ostlänken | H60: 36 | I60: L4701 | J60: L4701 | T60: =+Kalkylsammanställning!G$2 -> 1 | U60: Ja | V60: Ja | W60: =IFERROR(+VLOOKUP(I60,Länkar_TTA!I:J,2,FALSE),0) -> 0 | X60: 0 | Y60: =+IFERROR(VLOOKUP(C60,LinjeLänk_Data!F:G,2,FALSE),"-") -> 12.57549953 | Z60: 12.57549953 | AB60: Ostlänken | AD60: 4701 | AF60: =+VLOOKUP(C60,Länkar_TTA!M:O,2,FALSE) -> 0 | AG60: 4701 | AI60: - | AJ60: Nyköping kp västra-Nyköping kp östra | AL60: =+SUMIF('Linjelänk JA_KAP'!$H:$H,$C60,'Linjelänk JA_KAP'!CY:CY) -> 24 | AM60: =+SUMIF('Linjelänk JA_KAP'!$H:$H,$C60,'Linjelänk JA_KAP'!CZ:CZ) -> 20 | AN60: =+SUMIF('Linjelänk JA_KAP'!$H:$H,$C60,'Linjelänk JA_KAP'!DA:DA) -> 0 | AO60: =+SUMIF('Linjelänk UA_KAP'!$H:$H,$C60,'Linjelänk UA_KAP'!CY:CY) -> 24 | AP60: =+SUMIF('Linjelänk UA_KAP'!$H:$H,$C60,'Linjelänk UA_KAP'!CZ:CZ) -> 20 | AQ60: =+SUMIF('Linjelänk UA_KAP'!$H:$H,$C60,'Linjelänk UA_KAP'!DA:DA) -> 0 | AS60: =+VLOOKUP($AJ60,Länkar_TTA!$P:$S,2,FALSE) -> 24 | AT60: =+VLOOKUP($AJ60,Länkar_TTA!$P:$S,3,FALSE) -> 20 | AU60: =+VLOOKUP($AJ60,Länkar_TTA!$P:$S,4,FALSE) -> 0 | AX60: 177063.0334 | AY60: =VLOOKUP(I60,Bangods_linjedel!B:F,5,FALSE) -> 12.58 | AZ60: =VLOOKUP(I60,'Kap.ber JA'!DK:DN,2,FALSE)*AY60 -> 0 | BA60: =VLOOKUP(I60,'Kap.ber JA'!$DK:$DN,3,FALSE)*AY60 -> 354252.8 | BB60: =VLOOKUP(I60,'Kap.ber JA'!$DK:$DN,4,FALSE)*AY60 -> 354252.8 | BC60: =VLOOKUP(J60,'Kap.ber UA'!$DJ:$DM,2,FALSE)*AY60 -> 0 | BD60: =VLOOKUP(J60,'Kap.ber UA'!$DJ:$DM,3,FALSE)*AY60 -> 354252.8 | BE60: =VLOOKUP(J60,'Kap.ber UA'!$DJ:$DM,4,FALSE)*AY60 -> 354252.8 | BF60: =IF('Beskrivning av åtgärd'!$B$11="Persontrafik",BA60,IF('Beskrivning av åtgärd'!$B$11="Godstrafik",AZ60,BB60)) -> 354252.8 | BG60: =IF('Beskrivning av åtgärd'!$B$11="Persontrafik",BD60,IF('Beskrivning av åtgärd'!$B$11="Godstrafik",BC60,BE60)) -> 354252.8
A61: 1506 | B61: 2000 | C61: 15062000 | D61: Nyköping kp västra | E61: Norrköpings Central | F61: 4705 | G61: Ostlänken | H61: 36 | I61: L4705 | J61: L4705 | T61: =+Kalkylsammanställning!G$2 -> 1 | U61: Ja | V61: Ja | W61: =IFERROR(+VLOOKUP(I61,Länkar_TTA!I:J,2,FALSE),0) -> 0 | X61: 0 | Y61: =+IFERROR(VLOOKUP(C61,LinjeLänk_Data!F:G,2,FALSE),"-") -> 46.68999863 | Z61: 46.68999863 | AB61: Ostlänken | AD61: 4705 | AF61: =+VLOOKUP(C61,Länkar_TTA!M:O,2,FALSE) -> 0 | AG61: 4705 | AI61: - | AJ61: Nyköping kp västra-Norrköpings Central | AL61: =+SUMIF('Linjelänk JA_KAP'!$H:$H,$C61,'Linjelänk JA_KAP'!CY:CY) -> 24 | AM61: =+SUMIF('Linjelänk JA_KAP'!$H:$H,$C61,'Linjelänk JA_KAP'!CZ:CZ) -> 34 | AN61: =+SUMIF('Linjelänk JA_KAP'!$H:$H,$C61,'Linjelänk JA_KAP'!DA:DA) -> 0 | AO61: =+SUMIF('Linjelänk UA_KAP'!$H:$H,$C61,'Linjelänk UA_KAP'!CY:CY) -> 24 | AP61: =+SUMIF('Linjelänk UA_KAP'!$H:$H,$C61,'Linjelänk UA_KAP'!CZ:CZ) -> 34 | AQ61: =+SUMIF('Linjelänk UA_KAP'!$H:$H,$C61,'Linjelänk UA_KAP'!DA:DA) -> 0 | AS61: =+VLOOKUP($AJ61,Länkar_TTA!$P:$S,2,FALSE) -> 24 | AT61: =+VLOOKUP($AJ61,Länkar_TTA!$P:$S,3,FALSE) -> 34 | AU61: =+VLOOKUP($AJ61,Länkar_TTA!$P:$S,4,FALSE) -> 0 | AX61: 866566.3745 | AY61: =VLOOKUP(I61,Bangods_linjedel!B:F,5,FALSE) -> 89.19 | AZ61: =VLOOKUP(I61,'Kap.ber JA'!DK:DN,2,FALSE)*AY61 -> 0 | BA61: =VLOOKUP(I61,'Kap.ber JA'!$DK:$DN,3,FALSE)*AY61 -> 3310732.8 | BB61: =VLOOKUP(I61,'Kap.ber JA'!$DK:$DN,4,FALSE)*AY61 -> 3310732.8 | BC61: =VLOOKUP(J61,'Kap.ber UA'!$DJ:$DM,2,FALSE)*AY61 -> 0 | BD61: =VLOOKUP(J61,'Kap.ber UA'!$DJ:$DM,3,FALSE)*AY61 -> 3310732.8 | BE61: =VLOOKUP(J61,'Kap.ber UA'!$DJ:$DM,4,FALSE)*AY61 -> 3310732.8 | BF61: =IF('Beskrivning av åtgärd'!$B$11="Persontrafik",BA61,IF('Beskrivning av åtgärd'!$B$11="Godstrafik",AZ61,BB61)) -> 3310732.8 | BG61: =IF('Beskrivning av åtgärd'!$B$11="Persontrafik",BD61,IF('Beskrivning av åtgärd'!$B$11="Godstrafik",BC61,BE61)) -> 3310732.8
A62: 1508 | B62: 1500 | C62: 15081500 | D62: Skavsta Flygplats Bibana | E62: Nyköpings Central | F62: 4704 | G62: Ostlänken | H62: 36 | I62: L4704 | J62: L4704 | T62: =+Kalkylsammanställning!G$2 -> 1 | U62: Ja | V62: Ja | W62: =IFERROR(+VLOOKUP(I62,Länkar_TTA!I:J,2,FALSE),0) -> 0 | X62: 0 | Y62: =+IFERROR(VLOOKUP(C62,LinjeLänk_Data!F:G,2,FALSE),"-") -> 7 | Z62: 7 | AB62: Ostlänken | AD62: 4704 | AF62: =+VLOOKUP(C62,Länkar_TTA!M:O,2,FALSE) -> 0 | AG62: 4704 | AI62: - | AJ62: Skavsta Flygplats Bibana-Nyköpings Central | AL62: =+SUMIF('Linjelänk JA_KAP'!$H:$H,$C62,'Linjelänk JA_KAP'!CY:CY) -> 0 | AM62: =+SUMIF('Linjelänk JA_KAP'!$H:$H,$C62,'Linjelänk JA_KAP'!CZ:CZ) -> 32 | AN62: =+SUMIF('Linjelänk JA_KAP'!$H:$H,$C62,'Linjelänk JA_KAP'!DA:DA) -> 0 | AO62: =+SUMIF('Linjelänk UA_KAP'!$H:$H,$C62,'Linjelänk UA_KAP'!CY:CY) -> 0 | AP62: =+SUMIF('Linjelänk UA_KAP'!$H:$H,$C62,'Linjelänk UA_KAP'!CZ:CZ) -> 32 | AQ62: =+SUMIF('Linjelänk UA_KAP'!$H:$H,$C62,'Linjelänk UA_KAP'!DA:DA) -> 0 | AS62: =+VLOOKUP($AJ62,Länkar_TTA!$P:$S,2,FALSE) -> 0 | AT62: =+VLOOKUP($AJ62,Länkar_TTA!$P:$S,3,FALSE) -> 32 | AU62: =+VLOOKUP($AJ62,Länkar_TTA!$P:$S,4,FALSE) -> 0 | AX62: 71680 | AY62: =VLOOKUP(I62,Bangods_linjedel!B:F,5,FALSE) -> 7 | AZ62: =VLOOKUP(I62,'Kap.ber JA'!DK:DN,2,FALSE)*AY62 -> 0 | BA62: =VLOOKUP(I62,'Kap.ber JA'!$DK:$DN,3,FALSE)*AY62 -> 143360 | BB62: =VLOOKUP(I62,'Kap.ber JA'!$DK:$DN,4,FALSE)*AY62 -> 143360 | BC62: =VLOOKUP(J62,'Kap.ber UA'!$DJ:$DM,2,FALSE)*AY62 -> 0 | BD62: =VLOOKUP(J62,'Kap.ber UA'!$DJ:$DM,3,FALSE)*AY62 -> 143360 | BE62: =VLOOKUP(J62,'Kap.ber UA'!$DJ:$DM,4,FALSE)*AY62 -> 143360 | BF62: =IF('Beskrivning av åtgärd'!$B$11="Persontrafik",BA62,IF('Beskrivning av åtgärd'!$B$11="Godstrafik",AZ62,BB62)) -> 143360 | BG62: =IF('Beskrivning av åtgärd'!$B$11="Persontrafik",BD62,IF('Beskrivning av åtgärd'!$B$11="Godstrafik",BC62,BE62)) -> 143360
... 77 more rows

Sheet Tidtabellsanalys Person
A1: Linjenr | B1: Tågtyp kalkyl | C1: Linjesträckning | D1: Från nod | E1: Till nod | F1: Nodnr | G1: Km | H1: Dubbelturer/dag | I1: Tåguppehåll = 1 | J1: DIFF Tidtabellstid minuter | K1: DIFF Förseningstid minuter | L1: Slutstation
A3: =+LinjeLänk_Data!A3 -> 10001 | B3: =+VLOOKUP($A3,LINJE_DATA!$A:$C,3,FALSE) -> 2 | C3: =+VLOOKUP($A3,LINJE_DATA!$A:$C,2,FALSE) -> Göteborg Central-Köpenhamn H | D3: =+'Linjelänk JA_KAP'!J4 -> Göteborg Central | E3: =IFERROR('Linjelänk JA_KAP'!K4,"") -> Gubbero | F3: =+LinjeLänk_Data!B3 -> 4300 | G3: =+LinjeLänk_Data!G3 -> 1.929999948 | H3: =+VLOOKUP($A3,LINJE_DATA!$A:$H,7,FALSE) -> 8 | I3: =+'Linjelänk JA_KAP'!AP4 -> 0 | L3: =IF(AND(I3=1,A3<>A5),"Slutstation","") -> 
A4: =+LinjeLänk_Data!A4 -> 10001 | B4: =+VLOOKUP($A4,LINJE_DATA!$A:$C,3,FALSE) -> 2 | C4: =+VLOOKUP($A4,LINJE_DATA!$A:$C,2,FALSE) -> Göteborg Central-Köpenhamn H | D4: =+'Linjelänk JA_KAP'!J5 -> Gubbero | E4: =IFERROR('Linjelänk JA_KAP'!K5,"") -> Liseberg | F4: =+LinjeLänk_Data!B4 -> 9155 | G4: =+LinjeLänk_Data!G4 -> 1.090000033 | H4: =+VLOOKUP($A4,LINJE_DATA!$A:$H,7,FALSE) -> 8 | I4: =+'Linjelänk JA_KAP'!AP5 -> 0
A5: =+LinjeLänk_Data!A5 -> 10001 | B5: =+VLOOKUP($A5,LINJE_DATA!$A:$C,3,FALSE) -> 2 | C5: =+VLOOKUP($A5,LINJE_DATA!$A:$C,2,FALSE) -> Göteborg Central-Köpenhamn H | D5: =+'Linjelänk JA_KAP'!J6 -> Liseberg | E5: =IFERROR('Linjelänk JA_KAP'!K6,"") -> Almedal | F5: =+LinjeLänk_Data!B5 -> 4385 | G5: =+LinjeLänk_Data!G5 -> 1.779999971 | H5: =+VLOOKUP($A5,LINJE_DATA!$A:$H,7,FALSE) -> 8 | I5: =+'Linjelänk JA_KAP'!AP6 -> 0
A6: =+LinjeLänk_Data!A6 -> 10001 | B6: =+VLOOKUP($A6,LINJE_DATA!$A:$C,3,FALSE) -> 2 | C6: =+VLOOKUP($A6,LINJE_DATA!$A:$C,2,FALSE) -> Göteborg Central-Köpenhamn H | D6: =+'Linjelänk JA_KAP'!J7 -> Almedal | E6: =IFERROR('Linjelänk JA_KAP'!K7,"") -> Mölndals Nedre | F6: =+LinjeLänk_Data!B6 -> 9008 | G6: =+LinjeLänk_Data!G6 -> 3.210000038 | H6: =+VLOOKUP($A6,LINJE_DATA!$A:$H,7,FALSE) -> 8 | I6: =+'Linjelänk JA_KAP'!AP7 -> 0
A7: =+LinjeLänk_Data!A7 -> 10001 | B7: =+VLOOKUP($A7,LINJE_DATA!$A:$C,3,FALSE) -> 2 | C7: =+VLOOKUP($A7,LINJE_DATA!$A:$C,2,FALSE) -> Göteborg Central-Köpenhamn H | D7: =+'Linjelänk JA_KAP'!J8 -> Mölndals Nedre | E7: =IFERROR('Linjelänk JA_KAP'!K8,"") -> Kållered | F7: =+LinjeLänk_Data!B7 -> 4386 | G7: =+LinjeLänk_Data!G7 -> 5.46999979 | H7: =+VLOOKUP($A7,LINJE_DATA!$A:$H,7,FALSE) -> 8 | I7: =+'Linjelänk JA_KAP'!AP8 -> 0
A8: =+LinjeLänk_Data!A8 -> 10001 | B8: =+VLOOKUP($A8,LINJE_DATA!$A:$C,3,FALSE) -> 2 | C8: =+VLOOKUP($A8,LINJE_DATA!$A:$C,2,FALSE) -> Göteborg Central-Köpenhamn H | D8: =+'Linjelänk JA_KAP'!J9 -> Kållered | E8: =IFERROR('Linjelänk JA_KAP'!K9,"") -> Lindome | F8: =+LinjeLänk_Data!B8 -> 4310 | G8: =+LinjeLänk_Data!G8 -> 4.269999981 | H8: =+VLOOKUP($A8,LINJE_DATA!$A:$H,7,FALSE) -> 8 | I8: =+'Linjelänk JA_KAP'!AP9 -> 0
A9: =+LinjeLänk_Data!A9 -> 10001 | B9: =+VLOOKUP($A9,LINJE_DATA!$A:$C,3,FALSE) -> 2 | C9: =+VLOOKUP($A9,LINJE_DATA!$A:$C,2,FALSE) -> Göteborg Central-Köpenhamn H | D9: =+'Linjelänk JA_KAP'!J10 -> Lindome | E9: =IFERROR('Linjelänk JA_KAP'!K10,"") -> Anneberg | F9: =+LinjeLänk_Data!B9 -> 4308 | G9: =+LinjeLänk_Data!G9 -> 4.420000076 | H9: =+VLOOKUP($A9,LINJE_DATA!$A:$H,7,FALSE) -> 8 | I9: =+'Linjelänk JA_KAP'!AP10 -> 0
A10: =+LinjeLänk_Data!A10 -> 10001 | B10: =+VLOOKUP($A10,LINJE_DATA!$A:$C,3,FALSE) -> 2 | C10: =+VLOOKUP($A10,LINJE_DATA!$A:$C,2,FALSE) -> Göteborg Central-Köpenhamn H | D10: =+'Linjelänk JA_KAP'!J11 -> Anneberg | E10: =IFERROR('Linjelänk JA_KAP'!K11,"") -> Ledsgård | F10: =+LinjeLänk_Data!B10 -> 4360 | G10: =+LinjeLänk_Data!G10 -> 1.549999952 | H10: =+VLOOKUP($A10,LINJE_DATA!$A:$H,7,FALSE) -> 8 | I10: =+'Linjelänk JA_KAP'!AP11 -> 0
A11: =+LinjeLänk_Data!A11 -> 10001 | B11: =+VLOOKUP($A11,LINJE_DATA!$A:$C,3,FALSE) -> 2 | C11: =+VLOOKUP($A11,LINJE_DATA!$A:$C,2,FALSE) -> Göteborg Central-Köpenhamn H | D11: =+'Linjelänk JA_KAP'!J12 -> Ledsgård | E11: =IFERROR('Linjelänk JA_KAP'!K12,"") -> Kungsbacka Hede | F11: =+LinjeLänk_Data!B11 -> 9304 | G11: =+LinjeLänk_Data!G11 -> 1.470000029 | H11: =+VLOOKUP($A11,LINJE_DATA!$A:$H,7,FALSE) -> 8 | I11: =+'Linjelänk JA_KAP'!AP12 -> 0
A12: =+LinjeLänk_Data!A12 -> 10001 | B12: =+VLOOKUP($A12,LINJE_DATA!$A:$C,3,FALSE) -> 2 | C12: =+VLOOKUP($A12,LINJE_DATA!$A:$C,2,FALSE) -> Göteborg Central-Köpenhamn H | D12: =+'Linjelänk JA_KAP'!J13 -> Kungsbacka Hede | E12: =IFERROR('Linjelänk JA_KAP'!K13,"") -> Kungsbacka | F12: =+LinjeLänk_Data!B12 -> 4387 | G12: =+LinjeLänk_Data!G12 -> 2.549999952 | H12: =+VLOOKUP($A12,LINJE_DATA!$A:$H,7,FALSE) -> 8 | I12: =+'Linjelänk JA_KAP'!AP13 -> 0
A13: =+LinjeLänk_Data!A13 -> 10001 | B13: =+VLOOKUP($A13,LINJE_DATA!$A:$C,3,FALSE) -> 2 | C13: =+VLOOKUP($A13,LINJE_DATA!$A:$C,2,FALSE) -> Göteborg Central-Köpenhamn H | D13: =+'Linjelänk JA_KAP'!J14 -> Kungsbacka | E13: =IFERROR('Linjelänk JA_KAP'!K14,"") -> Lekarekulle | F13: =+LinjeLänk_Data!B13 -> 4304 | G13: =+LinjeLänk_Data!G13 -> 12.67000008 | H13: =+VLOOKUP($A13,LINJE_DATA!$A:$H,7,FALSE) -> 8 | I13: =+'Linjelänk JA_KAP'!AP14 -> 0
A14: =+LinjeLänk_Data!A14 -> 10001 | B14: =+VLOOKUP($A14,LINJE_DATA!$A:$C,3,FALSE) -> 2 | C14: =+VLOOKUP($A14,LINJE_DATA!$A:$C,2,FALSE) -> Göteborg Central-Köpenhamn H | D14: =+'Linjelänk JA_KAP'!J15 -> Lekarekulle | E14: =IFERROR('Linjelänk JA_KAP'!K15,"") -> Åsa | F14: =+LinjeLänk_Data!B14 -> 9300 | G14: =+LinjeLänk_Data!G14 -> 4.440000057 | H14: =+VLOOKUP($A14,LINJE_DATA!$A:$H,7,FALSE) -> 8 | I14: =+'Linjelänk JA_KAP'!AP15 -> 0
A15: =+LinjeLänk_Data!A15 -> 10001 | B15: =+VLOOKUP($A15,LINJE_DATA!$A:$C,3,FALSE) -> 2 | C15: =+VLOOKUP($A15,LINJE_DATA!$A:$C,2,FALSE) -> Göteborg Central-Köpenhamn H | D15: =+'Linjelänk JA_KAP'!J16 -> Åsa | E15: =IFERROR('Linjelänk JA_KAP'!K16,"") -> Frillesås | F15: =+LinjeLänk_Data!B15 -> 4341 | G15: =+LinjeLänk_Data!G15 -> 5.659999847 | H15: =+VLOOKUP($A15,LINJE_DATA!$A:$H,7,FALSE) -> 8 | I15: =+'Linjelänk JA_KAP'!AP16 -> 0
A16: =+LinjeLänk_Data!A16 -> 10001 | B16: =+VLOOKUP($A16,LINJE_DATA!$A:$C,3,FALSE) -> 2 | C16: =+VLOOKUP($A16,LINJE_DATA!$A:$C,2,FALSE) -> Göteborg Central-Köpenhamn H | D16: =+'Linjelänk JA_KAP'!J17 -> Frillesås | E16: =IFERROR('Linjelänk JA_KAP'!K17,"") -> Väröbacka | F16: =+LinjeLänk_Data!B16 -> 4342 | G16: =+LinjeLänk_Data!G16 -> 7.409999847 | H16: =+VLOOKUP($A16,LINJE_DATA!$A:$H,7,FALSE) -> 8 | I16: =+'Linjelänk JA_KAP'!AP17 -> 0
A17: =+LinjeLänk_Data!A17 -> 10001 | B17: =+VLOOKUP($A17,LINJE_DATA!$A:$C,3,FALSE) -> 2 | C17: =+VLOOKUP($A17,LINJE_DATA!$A:$C,2,FALSE) -> Göteborg Central-Köpenhamn H | D17: =+'Linjelänk JA_KAP'!J18 -> Väröbacka | E17: =IFERROR('Linjelänk JA_KAP'!K18,"") -> Värö | F17: =+LinjeLänk_Data!B17 -> 4336 | G17: =+LinjeLänk_Data!G17 -> 2 | H17: =+VLOOKUP($A17,LINJE_DATA!$A:$H,7,FALSE) -> 8 | I17: =+'Linjelänk JA_KAP'!AP18 -> 0
A18: =+LinjeLänk_Data!A18 -> 10001 | B18: =+VLOOKUP($A18,LINJE_DATA!$A:$C,3,FALSE) -> 2 | C18: =+VLOOKUP($A18,LINJE_DATA!$A:$C,2,FALSE) -> Göteborg Central-Köpenhamn H | D18: =+'Linjelänk JA_KAP'!J19 -> Värö | E18: =IFERROR('Linjelänk JA_KAP'!K19,"") -> Varberg | F18: =+LinjeLänk_Data!B18 -> 9572 | G18: =+LinjeLänk_Data!G18 -> 15.43999958 | H18: =+VLOOKUP($A18,LINJE_DATA!$A:$H,7,FALSE) -> 8 | I18: =+'Linjelänk JA_KAP'!AP19 -> 0
A19: =+LinjeLänk_Data!A19 -> 10001 | B19: =+VLOOKUP($A19,LINJE_DATA!$A:$C,3,FALSE) -> 2 | C19: =+VLOOKUP($A19,LINJE_DATA!$A:$C,2,FALSE) -> Göteborg Central-Köpenhamn H | D19: =+'Linjelänk JA_KAP'!J20 -> Varberg | E19: =IFERROR('Linjelänk JA_KAP'!K20,"") -> Hamra | F19: =+LinjeLänk_Data!B19 -> 4200 | G19: =+LinjeLänk_Data!G19 -> 6.769999981 | H19: =+VLOOKUP($A19,LINJE_DATA!$A:$H,7,FALSE) -> 8 | I19: =+'Linjelänk JA_KAP'!AP20 -> 0
A20: =+LinjeLänk_Data!A20 -> 10001 | B20: =+VLOOKUP($A20,LINJE_DATA!$A:$C,3,FALSE) -> 2 | C20: =+VLOOKUP($A20,LINJE_DATA!$A:$C,2,FALSE) -> Göteborg Central-Köpenhamn H | D20: =+'Linjelänk JA_KAP'!J21 -> Hamra | E20: =IFERROR('Linjelänk JA_KAP'!K21,"") -> Tyllered | F20: =+LinjeLänk_Data!B20 -> 9179 | G20: =+LinjeLänk_Data!G20 -> 8.81000042 | H20: =+VLOOKUP($A20,LINJE_DATA!$A:$H,7,FALSE) -> 8 | I20: =+'Linjelänk JA_KAP'!AP21 -> 0
A21: =+LinjeLänk_Data!A21 -> 10001 | B21: =+VLOOKUP($A21,LINJE_DATA!$A:$C,3,FALSE) -> 2 | C21: =+VLOOKUP($A21,LINJE_DATA!$A:$C,2,FALSE) -> Göteborg Central-Köpenhamn H | D21: =+'Linjelänk JA_KAP'!J22 -> Tyllered | E21: =IFERROR('Linjelänk JA_KAP'!K22,"") -> Torebo | F21: =+LinjeLänk_Data!B21 -> 9538 | G21: =+LinjeLänk_Data!G21 -> 8.529999733 | H21: =+VLOOKUP($A21,LINJE_DATA!$A:$H,7,FALSE) -> 8 | I21: =+'Linjelänk JA_KAP'!AP22 -> 0
A22: =+LinjeLänk_Data!A22 -> 10001 | B22: =+VLOOKUP($A22,LINJE_DATA!$A:$C,3,FALSE) -> 2 | C22: =+VLOOKUP($A22,LINJE_DATA!$A:$C,2,FALSE) -> Göteborg Central-Köpenhamn H | D22: =+'Linjelänk JA_KAP'!J23 -> Torebo | E22: =IFERROR('Linjelänk JA_KAP'!K23,"") -> Falkenberg Personstation | F22: =+LinjeLänk_Data!B22 -> 9521 | G22: =+LinjeLänk_Data!G22 -> 5.010000229 | H22: =+VLOOKUP($A22,LINJE_DATA!$A:$H,7,FALSE) -> 8 | I22: =+'Linjelänk JA_KAP'!AP23 -> 0
A23: =+LinjeLänk_Data!A23 -> 10001 | B23: =+VLOOKUP($A23,LINJE_DATA!$A:$C,3,FALSE) -> 2 | C23: =+VLOOKUP($A23,LINJE_DATA!$A:$C,2,FALSE) -> Göteborg Central-Köpenhamn H | D23: =+'Linjelänk JA_KAP'!J24 -> Falkenberg Personstation | E23: =IFERROR('Linjelänk JA_KAP'!K24,"") -> Heberg | F23: =+LinjeLänk_Data!B23 -> 4201 | G23: =+LinjeLänk_Data!G23 -> 10.38000011 | H23: =+VLOOKUP($A23,LINJE_DATA!$A:$H,7,FALSE) -> 8 | I23: =+'Linjelänk JA_KAP'!AP24 -> 0
A24: =+LinjeLänk_Data!A24 -> 10001 | B24: =+VLOOKUP($A24,LINJE_DATA!$A:$C,3,FALSE) -> 2 | C24: =+VLOOKUP($A24,LINJE_DATA!$A:$C,2,FALSE) -> Göteborg Central-Köpenhamn H | D24: =+'Linjelänk JA_KAP'!J25 -> Heberg | E24: =IFERROR('Linjelänk JA_KAP'!K25,"") -> Brännarp | F24: =+LinjeLänk_Data!B24 -> 4220 | G24: =+LinjeLänk_Data!G24 -> 11.53999996 | H24: =+VLOOKUP($A24,LINJE_DATA!$A:$H,7,FALSE) -> 8 | I24: =+'Linjelänk JA_KAP'!AP25 -> 0
A25: =+LinjeLänk_Data!A25 -> 10001 | B25: =+VLOOKUP($A25,LINJE_DATA!$A:$C,3,FALSE) -> 2 | C25: =+VLOOKUP($A25,LINJE_DATA!$A:$C,2,FALSE) -> Göteborg Central-Köpenhamn H | D25: =+'Linjelänk JA_KAP'!J26 -> Brännarp | E25: =IFERROR('Linjelänk JA_KAP'!K26,"") -> Biskopstorp | F25: =+LinjeLänk_Data!B25 -> 9048 | G25: =+LinjeLänk_Data!G25 -> 10.36999989 | H25: =+VLOOKUP($A25,LINJE_DATA!$A:$H,7,FALSE) -> 8 | I25: =+'Linjelänk JA_KAP'!AP26 -> 0
A26: =+LinjeLänk_Data!A26 -> 10001 | B26: =+VLOOKUP($A26,LINJE_DATA!$A:$C,3,FALSE) -> 2 | C26: =+VLOOKUP($A26,LINJE_DATA!$A:$C,2,FALSE) -> Göteborg Central-Köpenhamn H | D26: =+'Linjelänk JA_KAP'!J27 -> Biskopstorp | E26: =IFERROR('Linjelänk JA_KAP'!K27,"") -> Furet | F26: =+LinjeLänk_Data!B26 -> 9062 | G26: =+LinjeLänk_Data!G26 -> 7.909999847 | H26: =+VLOOKUP($A26,LINJE_DATA!$A:$H,7,FALSE) -> 8 | I26: =+'Linjelänk JA_KAP'!AP27 -> 0
A27: =+LinjeLänk_Data!A27 -> 10001 | B27: =+VLOOKUP($A27,LINJE_DATA!$A:$C,3,FALSE) -> 2 | C27: =+VLOOKUP($A27,LINJE_DATA!$A:$C,2,FALSE) -> Göteborg Central-Köpenhamn H | D27: =+'Linjelänk JA_KAP'!J28 -> Furet | E27: =IFERROR('Linjelänk JA_KAP'!K28,"") -> Halmstads Central | F27: =+LinjeLänk_Data!B27 -> 9129 | G27: =+LinjeLänk_Data!G27 -> 2.309999943 | H27: =+VLOOKUP($A27,LINJE_DATA!$A:$H,7,FALSE) -> 8 | I27: =+'Linjelänk JA_KAP'!AP28 -> 1
A28: =+LinjeLänk_Data!A28 -> 10001 | B28: =+VLOOKUP($A28,LINJE_DATA!$A:$C,3,FALSE) -> 2 | C28: =+VLOOKUP($A28,LINJE_DATA!$A:$C,2,FALSE) -> Göteborg Central-Köpenhamn H | D28: =+'Linjelänk JA_KAP'!J29 -> Halmstads Central | E28: =IFERROR('Linjelänk JA_KAP'!K29,"") -> Halmstads Rangerbangård | F28: =+LinjeLänk_Data!B28 -> 4100 | G28: =+LinjeLänk_Data!G28 -> 1.090000033 | H28: =+VLOOKUP($A28,LINJE_DATA!$A:$H,7,FALSE) -> 8 | I28: =+'Linjelänk JA_KAP'!AP29 -> 0
A29: =+LinjeLänk_Data!A29 -> 10001 | B29: =+VLOOKUP($A29,LINJE_DATA!$A:$C,3,FALSE) -> 2 | C29: =+VLOOKUP($A29,LINJE_DATA!$A:$C,2,FALSE) -> Göteborg Central-Köpenhamn H | D29: =+'Linjelänk JA_KAP'!J30 -> Halmstads Rangerbangård | E29: =IFERROR('Linjelänk JA_KAP'!K30,"") -> Kistinge | F29: =+LinjeLänk_Data!B29 -> 9183 | G29: =+LinjeLänk_Data!G29 -> 3.599999905 | H29: =+VLOOKUP($A29,LINJE_DATA!$A:$H,7,FALSE) -> 8 | I29: =+'Linjelänk JA_KAP'!AP30 -> 0
A30: =+LinjeLänk_Data!A30 -> 10001 | B30: =+VLOOKUP($A30,LINJE_DATA!$A:$C,3,FALSE) -> 2 | C30: =+VLOOKUP($A30,LINJE_DATA!$A:$C,2,FALSE) -> Göteborg Central-Köpenhamn H | D30: =+'Linjelänk JA_KAP'!J31 -> Kistinge | E30: =IFERROR('Linjelänk JA_KAP'!K31,"") -> Eldsberga | F30: =+LinjeLänk_Data!B30 -> 9282 | G30: =+LinjeLänk_Data!G30 -> 7.409999847 | H30: =+VLOOKUP($A30,LINJE_DATA!$A:$H,7,FALSE) -> 8 | I30: =+'Linjelänk JA_KAP'!AP31 -> 0
A31: =+LinjeLänk_Data!A31 -> 10001 | B31: =+VLOOKUP($A31,LINJE_DATA!$A:$C,3,FALSE) -> 2 | C31: =+VLOOKUP($A31,LINJE_DATA!$A:$C,2,FALSE) -> Göteborg Central-Köpenhamn H | D31: =+'Linjelänk JA_KAP'!J32 -> Eldsberga | E31: =IFERROR('Linjelänk JA_KAP'!K32,"") -> Laholm Västra | F31: =+LinjeLänk_Data!B31 -> 9100 | G31: =+LinjeLänk_Data!G31 -> 10.27000046 | H31: =+VLOOKUP($A31,LINJE_DATA!$A:$H,7,FALSE) -> 8 | I31: =+'Linjelänk JA_KAP'!AP32 -> 0
A32: =+LinjeLänk_Data!A32 -> 10001 | B32: =+VLOOKUP($A32,LINJE_DATA!$A:$C,3,FALSE) -> 2 | C32: =+VLOOKUP($A32,LINJE_DATA!$A:$C,2,FALSE) -> Göteborg Central-Köpenhamn H | D32: =+'Linjelänk JA_KAP'!J33 -> Laholm Västra | E32: =IFERROR('Linjelänk JA_KAP'!K33,"") -> Båstad Norra | F32: =+LinjeLänk_Data!B32 -> 4101 | G32: =+LinjeLänk_Data!G32 -> 10.27000046 | H32: =+VLOOKUP($A32,LINJE_DATA!$A:$H,7,FALSE) -> 8 | I32: =+'Linjelänk JA_KAP'!AP33 -> 0
A33: =+LinjeLänk_Data!A33 -> 10001 | B33: =+VLOOKUP($A33,LINJE_DATA!$A:$C,3,FALSE) -> 2 | C33: =+VLOOKUP($A33,LINJE_DATA!$A:$C,2,FALSE) -> Göteborg Central-Köpenhamn H | D33: =+'Linjelänk JA_KAP'!J34 -> Båstad Norra | E33: =IFERROR('Linjelänk JA_KAP'!K34,"") -> Förslöv | F33: =+LinjeLänk_Data!B33 -> 3602 | G33: =+LinjeLänk_Data!G33 -> 10.64999962 | H33: =+VLOOKUP($A33,LINJE_DATA!$A:$H,7,FALSE) -> 8 | I33: =+'Linjelänk JA_KAP'!AP34 -> 0
A34: =+LinjeLänk_Data!A34 -> 10001 | B34: =+VLOOKUP($A34,LINJE_DATA!$A:$C,3,FALSE) -> 2 | C34: =+VLOOKUP($A34,LINJE_DATA!$A:$C,2,FALSE) -> Göteborg Central-Köpenhamn H | D34: =+'Linjelänk JA_KAP'!J35 -> Förslöv | E34: =IFERROR('Linjelänk JA_KAP'!K35,"") -> Vejbyslätt | F34: =+LinjeLänk_Data!B34 -> 3604 | G34: =+LinjeLänk_Data!G34 -> 4.5 | H34: =+VLOOKUP($A34,LINJE_DATA!$A:$H,7,FALSE) -> 8 | I34: =+'Linjelänk JA_KAP'!AP35 -> 0
A35: =+LinjeLänk_Data!A35 -> 10001 | B35: =+VLOOKUP($A35,LINJE_DATA!$A:$C,3,FALSE) -> 2 | C35: =+VLOOKUP($A35,LINJE_DATA!$A:$C,2,FALSE) -> Göteborg Central-Köpenhamn H | D35: =+'Linjelänk JA_KAP'!J36 -> Vejbyslätt | E35: =IFERROR('Linjelänk JA_KAP'!K36,"") -> Barkåkra | F35: =+LinjeLänk_Data!B35 -> 9549 | G35: =+LinjeLänk_Data!G35 -> 2.369999886 | H35: =+VLOOKUP($A35,LINJE_DATA!$A:$H,7,FALSE) -> 8 | I35: =+'Linjelänk JA_KAP'!AP36 -> 0
A36: =+LinjeLänk_Data!A36 -> 10001 | B36: =+VLOOKUP($A36,LINJE_DATA!$A:$C,3,FALSE) -> 2 | C36: =+VLOOKUP($A36,LINJE_DATA!$A:$C,2,FALSE) -> Göteborg Central-Köpenhamn H | D36: =+'Linjelänk JA_KAP'!J37 -> Barkåkra | E36: =IFERROR('Linjelänk JA_KAP'!K37,"") -> Ängelholm | F36: =+LinjeLänk_Data!B36 -> 3603 | G36: =+LinjeLänk_Data!G36 -> 5.789999962 | H36: =+VLOOKUP($A36,LINJE_DATA!$A:$H,7,FALSE) -> 8 | I36: =+'Linjelänk JA_KAP'!AP37 -> 0
A37: =+LinjeLänk_Data!A37 -> 10001 | B37: =+VLOOKUP($A37,LINJE_DATA!$A:$C,3,FALSE) -> 2 | C37: =+VLOOKUP($A37,LINJE_DATA!$A:$C,2,FALSE) -> Göteborg Central-Köpenhamn H | D37: =+'Linjelänk JA_KAP'!J38 -> Ängelholm | E37: =IFERROR('Linjelänk JA_KAP'!K38,"") -> Vegeholm | F37: =+LinjeLänk_Data!B37 -> 3600 | G37: =+LinjeLänk_Data!G37 -> 5.730000019 | H37: =+VLOOKUP($A37,LINJE_DATA!$A:$H,7,FALSE) -> 8 | I37: =+'Linjelänk JA_KAP'!AP38 -> 0
A38: =+LinjeLänk_Data!A38 -> 10001 | B38: =+VLOOKUP($A38,LINJE_DATA!$A:$C,3,FALSE) -> 2 | C38: =+VLOOKUP($A38,LINJE_DATA!$A:$C,2,FALSE) -> Göteborg Central-Köpenhamn H | D38: =+'Linjelänk JA_KAP'!J39 -> Vegeholm | E38: =IFERROR('Linjelänk JA_KAP'!K39,"") -> Kattarp | F38: =+LinjeLänk_Data!B38 -> 9551 | G38: =+LinjeLänk_Data!G38 -> 7.369999886 | H38: =+VLOOKUP($A38,LINJE_DATA!$A:$H,7,FALSE) -> 8 | I38: =+'Linjelänk JA_KAP'!AP39 -> 0
A39: =+LinjeLänk_Data!A39 -> 10001 | B39: =+VLOOKUP($A39,LINJE_DATA!$A:$C,3,FALSE) -> 2 | C39: =+VLOOKUP($A39,LINJE_DATA!$A:$C,2,FALSE) -> Göteborg Central-Köpenhamn H | D39: =+'Linjelänk JA_KAP'!J40 -> Kattarp | E39: =IFERROR('Linjelänk JA_KAP'!K40,"") -> Ödåkra | F39: =+LinjeLänk_Data!B39 -> 3732 | G39: =+LinjeLänk_Data!G39 -> 4.949999809 | H39: =+VLOOKUP($A39,LINJE_DATA!$A:$H,7,FALSE) -> 8 | I39: =+'Linjelänk JA_KAP'!AP40 -> 0
A40: =+LinjeLänk_Data!A40 -> 10001 | B40: =+VLOOKUP($A40,LINJE_DATA!$A:$C,3,FALSE) -> 2 | C40: =+VLOOKUP($A40,LINJE_DATA!$A:$C,2,FALSE) -> Göteborg Central-Köpenhamn H | D40: =+'Linjelänk JA_KAP'!J41 -> Ödåkra | E40: =IFERROR('Linjelänk JA_KAP'!K41,"") -> Maria | F40: =+LinjeLänk_Data!B40 -> 3709 | G40: =+LinjeLänk_Data!G40 -> 3.890000105 | H40: =+VLOOKUP($A40,LINJE_DATA!$A:$H,7,FALSE) -> 8 | I40: =+'Linjelänk JA_KAP'!AP41 -> 0
A41: =+LinjeLänk_Data!A41 -> 10001 | B41: =+VLOOKUP($A41,LINJE_DATA!$A:$C,3,FALSE) -> 2 | C41: =+VLOOKUP($A41,LINJE_DATA!$A:$C,2,FALSE) -> Göteborg Central-Köpenhamn H | D41: =+'Linjelänk JA_KAP'!J42 -> Maria | E41: =IFERROR('Linjelänk JA_KAP'!K42,"") -> Helsingborgs Central | F41: =+LinjeLänk_Data!B41 -> 3699 | G41: =+LinjeLänk_Data!G41 -> 4.889999866 | H41: =+VLOOKUP($A41,LINJE_DATA!$A:$H,7,FALSE) -> 8 | I41: =+'Linjelänk JA_KAP'!AP42 -> 1
A42: =+LinjeLänk_Data!A42 -> 10001 | B42: =+VLOOKUP($A42,LINJE_DATA!$A:$C,3,FALSE) -> 2 | C42: =+VLOOKUP($A42,LINJE_DATA!$A:$C,2,FALSE) -> Göteborg Central-Köpenhamn H | D42: =+'Linjelänk JA_KAP'!J43 -> Helsingborgs Central | E42: =IFERROR('Linjelänk JA_KAP'!K43,"") -> Helsingborgs Godsbangård | F42: =+LinjeLänk_Data!B42 -> 3700 | G42: =+LinjeLänk_Data!G42 -> 3 | H42: =+VLOOKUP($A42,LINJE_DATA!$A:$H,7,FALSE) -> 8 | I42: =+'Linjelänk JA_KAP'!AP43 -> 0
A43: =+LinjeLänk_Data!A43 -> 10001 | B43: =+VLOOKUP($A43,LINJE_DATA!$A:$C,3,FALSE) -> 2 | C43: =+VLOOKUP($A43,LINJE_DATA!$A:$C,2,FALSE) -> Göteborg Central-Köpenhamn H | D43: =+'Linjelänk JA_KAP'!J44 -> Helsingborgs Godsbangård | E43: =IFERROR('Linjelänk JA_KAP'!K44,"") -> 0 | F43: =+LinjeLänk_Data!B43 -> 3942 | G43: =+LinjeLänk_Data!G43 -> 2.395009995 | H43: =+VLOOKUP($A43,LINJE_DATA!$A:$H,7,FALSE) -> 8 | I43: =+'Linjelänk JA_KAP'!AP44 -> 0
A44: =+LinjeLänk_Data!A44 -> 10001 | B44: =+VLOOKUP($A44,LINJE_DATA!$A:$C,3,FALSE) -> 2 | C44: =+VLOOKUP($A44,LINJE_DATA!$A:$C,2,FALSE) -> Göteborg Central-Köpenhamn H | D44: =+'Linjelänk JA_KAP'!J45 -> 0 | E44: =IFERROR('Linjelänk JA_KAP'!K45,"") -> Rydebäck | F44: =+LinjeLänk_Data!B44 -> 9603 | G44: =+LinjeLänk_Data!G44 -> 4.972690105 | H44: =+VLOOKUP($A44,LINJE_DATA!$A:$H,7,FALSE) -> 8 | I44: =+'Linjelänk JA_KAP'!AP45 -> 0
A45: =+LinjeLänk_Data!A45 -> 10001 | B45: =+VLOOKUP($A45,LINJE_DATA!$A:$C,3,FALSE) -> 2 | C45: =+VLOOKUP($A45,LINJE_DATA!$A:$C,2,FALSE) -> Göteborg Central-Köpenhamn H | D45: =+'Linjelänk JA_KAP'!J46 -> Rydebäck | E45: =IFERROR('Linjelänk JA_KAP'!K46,"") -> Glumslöv | F45: =+LinjeLänk_Data!B45 -> 3706 | G45: =+LinjeLänk_Data!G45 -> 3.140000105 | H45: =+VLOOKUP($A45,LINJE_DATA!$A:$H,7,FALSE) -> 8 | I45: =+'Linjelänk JA_KAP'!AP46 -> 0
A46: =+LinjeLänk_Data!A46 -> 10001 | B46: =+VLOOKUP($A46,LINJE_DATA!$A:$C,3,FALSE) -> 2 | C46: =+VLOOKUP($A46,LINJE_DATA!$A:$C,2,FALSE) -> Göteborg Central-Köpenhamn H | D46: =+'Linjelänk JA_KAP'!J47 -> Glumslöv | E46: =IFERROR('Linjelänk JA_KAP'!K47,"") -> Landskrona Östra | F46: =+LinjeLänk_Data!B46 -> 3718 | G46: =+LinjeLänk_Data!G46 -> 7.840000153 | H46: =+VLOOKUP($A46,LINJE_DATA!$A:$H,7,FALSE) -> 8 | I46: =+'Linjelänk JA_KAP'!AP47 -> 0
A47: =+LinjeLänk_Data!A47 -> 10001 | B47: =+VLOOKUP($A47,LINJE_DATA!$A:$C,3,FALSE) -> 2 | C47: =+VLOOKUP($A47,LINJE_DATA!$A:$C,2,FALSE) -> Göteborg Central-Köpenhamn H | D47: =+'Linjelänk JA_KAP'!J48 -> Landskrona Östra | E47: =IFERROR('Linjelänk JA_KAP'!K48,"") -> Häljarp | F47: =+LinjeLänk_Data!B47 -> 3701 | G47: =+LinjeLänk_Data!G47 -> 4.260000229 | H47: =+VLOOKUP($A47,LINJE_DATA!$A:$H,7,FALSE) -> 8 | I47: =+'Linjelänk JA_KAP'!AP48 -> 0
A48: =+LinjeLänk_Data!A48 -> 10001 | B48: =+VLOOKUP($A48,LINJE_DATA!$A:$C,3,FALSE) -> 2 | C48: =+VLOOKUP($A48,LINJE_DATA!$A:$C,2,FALSE) -> Göteborg Central-Köpenhamn H | D48: =+'Linjelänk JA_KAP'!J49 -> Häljarp | E48: =IFERROR('Linjelänk JA_KAP'!K49,"") -> Dösjebro | F48: =+LinjeLänk_Data!B48 -> 3713 | G48: =+LinjeLänk_Data!G48 -> 8.909999847 | H48: =+VLOOKUP($A48,LINJE_DATA!$A:$H,7,FALSE) -> 8 | I48: =+'Linjelänk JA_KAP'!AP49 -> 0
A49: =+LinjeLänk_Data!A49 -> 10001 | B49: =+VLOOKUP($A49,LINJE_DATA!$A:$C,3,FALSE) -> 2 | C49: =+VLOOKUP($A49,LINJE_DATA!$A:$C,2,FALSE) -> Göteborg Central-Köpenhamn H | D49: =+'Linjelänk JA_KAP'!J50 -> Dösjebro | E49: =IFERROR('Linjelänk JA_KAP'!K50,"") -> Kävlinge | F49: =+LinjeLänk_Data!B49 -> 3831 | G49: =+LinjeLänk_Data!G49 -> 6.769999981 | H49: =+VLOOKUP($A49,LINJE_DATA!$A:$H,7,FALSE) -> 8 | I49: =+'Linjelänk JA_KAP'!AP50 -> 0
A50: =+LinjeLänk_Data!A50 -> 10001 | B50: =+VLOOKUP($A50,LINJE_DATA!$A:$C,3,FALSE) -> 2 | C50: =+VLOOKUP($A50,LINJE_DATA!$A:$C,2,FALSE) -> Göteborg Central-Köpenhamn H | D50: =+'Linjelänk JA_KAP'!J51 -> Kävlinge | E50: =IFERROR('Linjelänk JA_KAP'!K51,"") -> Gunnesbo | F50: =+LinjeLänk_Data!B50 -> 3810 | G50: =+LinjeLänk_Data!G50 -> 8.529999733 | H50: =+VLOOKUP($A50,LINJE_DATA!$A:$H,7,FALSE) -> 8 | I50: =+'Linjelänk JA_KAP'!AP51 -> 0
A51: =+LinjeLänk_Data!A51 -> 10001 | B51: =+VLOOKUP($A51,LINJE_DATA!$A:$C,3,FALSE) -> 2 | C51: =+VLOOKUP($A51,LINJE_DATA!$A:$C,2,FALSE) -> Göteborg Central-Köpenhamn H | D51: =+'Linjelänk JA_KAP'!J52 -> Gunnesbo | E51: =IFERROR('Linjelänk JA_KAP'!K52,"") -> Lund C | F51: =+LinjeLänk_Data!B51 -> 3865 | G51: =+LinjeLänk_Data!G51 -> 2.420000076 | H51: =+VLOOKUP($A51,LINJE_DATA!$A:$H,7,FALSE) -> 8 | I51: =+'Linjelänk JA_KAP'!AP52 -> 1
A52: =+LinjeLänk_Data!A52 -> 10001 | B52: =+VLOOKUP($A52,LINJE_DATA!$A:$C,3,FALSE) -> 2 | C52: =+VLOOKUP($A52,LINJE_DATA!$A:$C,2,FALSE) -> Göteborg Central-Köpenhamn H | D52: =+'Linjelänk JA_KAP'!J53 -> Lund C | E52: =IFERROR('Linjelänk JA_KAP'!K53,"") -> Klostergården | F52: =+LinjeLänk_Data!B52 -> 3801 | G52: =+LinjeLänk_Data!G52 -> 2.029999971 | H52: =+VLOOKUP($A52,LINJE_DATA!$A:$H,7,FALSE) -> 8 | I52: =+'Linjelänk JA_KAP'!AP53 -> 0
A53: =+LinjeLänk_Data!A53 -> 10001 | B53: =+VLOOKUP($A53,LINJE_DATA!$A:$C,3,FALSE) -> 2 | C53: =+VLOOKUP($A53,LINJE_DATA!$A:$C,2,FALSE) -> Göteborg Central-Köpenhamn H | D53: =+'Linjelänk JA_KAP'!J54 -> Klostergården | E53: =IFERROR('Linjelänk JA_KAP'!K54,"") -> Flackarp | F53: =+LinjeLänk_Data!B53 -> 3804 | G53: =+LinjeLänk_Data!G53 -> 1.039999962 | H53: =+VLOOKUP($A53,LINJE_DATA!$A:$H,7,FALSE) -> 8 | I53: =+'Linjelänk JA_KAP'!AP54 -> 0
A54: =+LinjeLänk_Data!A54 -> 10001 | B54: =+VLOOKUP($A54,LINJE_DATA!$A:$C,3,FALSE) -> 2 | C54: =+VLOOKUP($A54,LINJE_DATA!$A:$C,2,FALSE) -> Göteborg Central-Köpenhamn H | D54: =+'Linjelänk JA_KAP'!J55 -> Flackarp | E54: =IFERROR('Linjelänk JA_KAP'!K55,"") -> Hjärup | F54: =+LinjeLänk_Data!B54 -> 9120 | G54: =+LinjeLänk_Data!G54 -> 1.99000001 | H54: =+VLOOKUP($A54,LINJE_DATA!$A:$H,7,FALSE) -> 8 | I54: =+'Linjelänk JA_KAP'!AP55 -> 0
A55: =+LinjeLänk_Data!A55 -> 10001 | B55: =+VLOOKUP($A55,LINJE_DATA!$A:$C,3,FALSE) -> 2 | C55: =+VLOOKUP($A55,LINJE_DATA!$A:$C,2,FALSE) -> Göteborg Central-Köpenhamn H | D55: =+'Linjelänk JA_KAP'!J56 -> Hjärup | E55: =IFERROR('Linjelänk JA_KAP'!K56,"") -> Åkarps norra | F55: =+LinjeLänk_Data!B55 -> 3821 | G55: =+LinjeLänk_Data!G55 -> 2.029999971 | H55: =+VLOOKUP($A55,LINJE_DATA!$A:$H,7,FALSE) -> 8 | I55: =+'Linjelänk JA_KAP'!AP56 -> 0
A56: =+LinjeLänk_Data!A56 -> 10001 | B56: =+VLOOKUP($A56,LINJE_DATA!$A:$C,3,FALSE) -> 2 | C56: =+VLOOKUP($A56,LINJE_DATA!$A:$C,2,FALSE) -> Göteborg Central-Köpenhamn H | D56: =+'Linjelänk JA_KAP'!J57 -> Åkarps norra | E56: =IFERROR('Linjelänk JA_KAP'!K57,"") -> Åkarp | F56: =+LinjeLänk_Data!B56 -> 3812 | G56: =+LinjeLänk_Data!G56 -> 0.5199999809 | H56: =+VLOOKUP($A56,LINJE_DATA!$A:$H,7,FALSE) -> 8 | I56: =+'Linjelänk JA_KAP'!AP57 -> 0
A57: =+LinjeLänk_Data!A57 -> 10001 | B57: =+VLOOKUP($A57,LINJE_DATA!$A:$C,3,FALSE) -> 2 | C57: =+VLOOKUP($A57,LINJE_DATA!$A:$C,2,FALSE) -> Göteborg Central-Köpenhamn H | D57: =+'Linjelänk JA_KAP'!J58 -> Åkarp | E57: =IFERROR('Linjelänk JA_KAP'!K58,"") -> Burlöv | F57: =+LinjeLänk_Data!B57 -> 9588 | G57: =+LinjeLänk_Data!G57 -> 2.519999981 | H57: =+VLOOKUP($A57,LINJE_DATA!$A:$H,7,FALSE) -> 8 | I57: =+'Linjelänk JA_KAP'!AP58 -> 0
A58: =+LinjeLänk_Data!A58 -> 10001 | B58: =+VLOOKUP($A58,LINJE_DATA!$A:$C,3,FALSE) -> 2 | C58: =+VLOOKUP($A58,LINJE_DATA!$A:$C,2,FALSE) -> Göteborg Central-Köpenhamn H | D58: =+'Linjelänk JA_KAP'!J59 -> Burlöv | E58: =IFERROR('Linjelänk JA_KAP'!K59,"") -> Arlöv | F58: =+LinjeLänk_Data!B58 -> 3853 | G58: =+LinjeLänk_Data!G58 -> 1.100000024 | H58: =+VLOOKUP($A58,LINJE_DATA!$A:$H,7,FALSE) -> 8 | I58: =+'Linjelänk JA_KAP'!AP59 -> 0
A59: =+LinjeLänk_Data!A59 -> 10001 | B59: =+VLOOKUP($A59,LINJE_DATA!$A:$C,3,FALSE) -> 2 | C59: =+VLOOKUP($A59,LINJE_DATA!$A:$C,2,FALSE) -> Göteborg Central-Köpenhamn H | D59: =+'Linjelänk JA_KAP'!J60 -> Arlöv | E59: =IFERROR('Linjelänk JA_KAP'!K60,"") -> Malmö GBG persontåg mot Malmö C | F59: =+LinjeLänk_Data!B59 -> 3852 | G59: =+LinjeLänk_Data!G59 -> 2.450000048 | H59: =+VLOOKUP($A59,LINJE_DATA!$A:$H,7,FALSE) -> 8 | I59: =+'Linjelänk JA_KAP'!AP60 -> 0
A60: =+LinjeLänk_Data!A60 -> 10001 | B60: =+VLOOKUP($A60,LINJE_DATA!$A:$C,3,FALSE) -> 2 | C60: =+VLOOKUP($A60,LINJE_DATA!$A:$C,2,FALSE) -> Göteborg Central-Köpenhamn H | D60: =+'Linjelänk JA_KAP'!J61 -> Malmö GBG persontåg mot Malmö C | E60: =IFERROR('Linjelänk JA_KAP'!K61,"") -> Malmö central | F60: =+LinjeLänk_Data!B60 -> 3005 | G60: =+LinjeLänk_Data!G60 -> 3.025000095 | H60: =+VLOOKUP($A60,LINJE_DATA!$A:$H,7,FALSE) -> 8 | I60: =+'Linjelänk JA_KAP'!AP61 -> 1
A61: =+LinjeLänk_Data!A61 -> 10001 | B61: =+VLOOKUP($A61,LINJE_DATA!$A:$C,3,FALSE) -> 2 | C61: =+VLOOKUP($A61,LINJE_DATA!$A:$C,2,FALSE) -> Göteborg Central-Köpenhamn H | D61: =+'Linjelänk JA_KAP'!J62 -> Malmö central | E61: =IFERROR('Linjelänk JA_KAP'!K62,"") -> Triangeln | F61: =+LinjeLänk_Data!B61 -> 3800 | G61: =+LinjeLänk_Data!G61 -> 2.49000001 | H61: =+VLOOKUP($A61,LINJE_DATA!$A:$H,7,FALSE) -> 8 | I61: =+'Linjelänk JA_KAP'!AP62 -> 0
A62: =+LinjeLänk_Data!A62 -> 10001 | B62: =+VLOOKUP($A62,LINJE_DATA!$A:$C,3,FALSE) -> 2 | C62: =+VLOOKUP($A62,LINJE_DATA!$A:$C,2,FALSE) -> Göteborg Central-Köpenhamn H | D62: =+'Linjelänk JA_KAP'!J63 -> Triangeln | E62: =IFERROR('Linjelänk JA_KAP'!K63,"") -> Hyllie | F62: =+LinjeLänk_Data!B62 -> 9037 | G62: =+LinjeLänk_Data!G62 -> 3.859999895 | H62: =+VLOOKUP($A62,LINJE_DATA!$A:$H,7,FALSE) -> 8 | I62: =+'Linjelänk JA_KAP'!AP63 -> 0
... 77 more rows

Sheet Persontågslinjer
A1: Linjenr | B1: Linjesträckning | C1: Tågtyp kalkyl | D1: Tågtyp kapacitet | E1: Tågtyp Gångtid | F1: Turer JA | G1: Turer UA | H1: Ange diff turer | K1: Tågbyte UA: Tågtyp kalkyl UA | L1: Diff tågtid minuter t.o.r | M1: Diff förseningstid tåg | N1: Diff PÖ | O1: Diff KÖ
A2: =+LINJE_DATA!A3 -> 10001 | B2: =+LINJE_DATA!B3 -> Göteborg Central-Köpenhamn H | C2: =+LINJE_DATA!C3 -> 2 | D2: =+LINJE_DATA!D3 -> s | E2: =++IF(LINJE_DATA!E3="",0,LINJE_DATA!E3) -> X55 | F2: =+LINJE_DATA!G3 -> 8 | G2: =+F2+H2 -> 8 | L2: =+Persontåg!P5 -> 0 | M2: =+Persontåg!L5 -> 0 | N2: =+Persontåg!U5+Persontåg!V5 -> 0 | O2: =+Persontåg!W5+Persontåg!X5 -> 0
A3: =+LINJE_DATA!A4 -> 10001R | B3: =+LINJE_DATA!B4 -> Köpenhamn H-Göteborg Central | C3: =+LINJE_DATA!C4 -> 2 | D3: =+LINJE_DATA!D4 -> s | E3: =++IF(LINJE_DATA!E4="",0,LINJE_DATA!E4) -> X55 | F3: =+LINJE_DATA!G4 -> 8 | G3: =+F3+H3 -> 8 | L3: =+Persontåg!P6 -> 0 | M3: =+Persontåg!L6 -> 0 | N3: =+Persontåg!U6+Persontåg!V6 -> 0 | O3: =+Persontåg!W6+Persontåg!X6 -> 0
A4: =+LINJE_DATA!A5 -> 10002 | B4: =+LINJE_DATA!B5 -> Kornsjö gränsen-Göteborg Central | C4: =+LINJE_DATA!C5 -> 1 | D4: =+LINJE_DATA!D5 -> s | E4: =++IF(LINJE_DATA!E5="",0,LINJE_DATA!E5) -> BM73b | F4: =+LINJE_DATA!G5 -> 7 | G4: 7 | L4: =+Persontåg!P7 -> 0 | M4: =+Persontåg!L7 -> 0 | N4: =+Persontåg!U7+Persontåg!V7 -> 0 | O4: =+Persontåg!W7+Persontåg!X7 -> 0
A5: =+LINJE_DATA!A6 -> 10002R | B5: =+LINJE_DATA!B6 -> Göteborg Central-Kornsjö gränsen | C5: =+LINJE_DATA!C6 -> 1 | D5: =+LINJE_DATA!D6 -> s | E5: =++IF(LINJE_DATA!E6="",0,LINJE_DATA!E6) -> BM73b | F5: =+LINJE_DATA!G6 -> 7 | G5: 7 | L5: =+Persontåg!P8 -> 0 | M5: =+Persontåg!L8 -> 0 | N5: =+Persontåg!U8+Persontåg!V8 -> 0 | O5: =+Persontåg!W8+Persontåg!X8 -> 0
A6: =+LINJE_DATA!A7 -> 10003 | B6: =+LINJE_DATA!B7 -> Göteborg Central-Köpenhamn H | C6: =+LINJE_DATA!C7 -> 1 | D6: =+LINJE_DATA!D7 -> Ö | E6: =++IF(LINJE_DATA!E7="",0,LINJE_DATA!E7) -> X74 | F6: =+LINJE_DATA!G7 -> 34 | G6: 19 | L6: =+Persontåg!P9 -> 0 | M6: =+Persontåg!L9 -> 0 | N6: =+Persontåg!U9+Persontåg!V9 -> 0 | O6: =+Persontåg!W9+Persontåg!X9 -> 0
A7: =+LINJE_DATA!A8 -> 10003R | B7: =+LINJE_DATA!B8 -> Köpenhamn H-Göteborg Central | C7: =+LINJE_DATA!C8 -> 1 | D7: =+LINJE_DATA!D8 -> Ö | E7: =++IF(LINJE_DATA!E8="",0,LINJE_DATA!E8) -> X74 | F7: =+LINJE_DATA!G8 -> 34 | G7: 19 | L7: =+Persontåg!P10 -> 0 | M7: =+Persontåg!L10 -> 0 | N7: =+Persontåg!U10+Persontåg!V10 -> 0 | O7: =+Persontåg!W10+Persontåg!X10 -> 0
A8: =+LINJE_DATA!A9 -> 10004 | B8: =+LINJE_DATA!B9 -> Göteborg Central-Malmö central | C8: =+LINJE_DATA!C9 -> 2 | D8: =+LINJE_DATA!D9 -> s | E8: =++IF(LINJE_DATA!E9="",0,LINJE_DATA!E9) -> X55 | F8: =+LINJE_DATA!G9 -> 8 | G8: =+F8+H8 -> 8 | L8: =+Persontåg!P11 -> 0 | M8: =+Persontåg!L11 -> 0 | N8: =+Persontåg!U11+Persontåg!V11 -> 0 | O8: =+Persontåg!W11+Persontåg!X11 -> 0
A9: =+LINJE_DATA!A10 -> 10004R | B9: =+LINJE_DATA!B10 -> Malmö central-Göteborg Central | C9: =+LINJE_DATA!C10 -> 2 | D9: =+LINJE_DATA!D10 -> s | E9: =++IF(LINJE_DATA!E10="",0,LINJE_DATA!E10) -> X55 | F9: =+LINJE_DATA!G10 -> 8 | G9: 8 | L9: =+Persontåg!P12 -> 0 | M9: =+Persontåg!L12 -> 0 | N9: =+Persontåg!U12+Persontåg!V12 -> 0 | O9: =+Persontåg!W12+Persontåg!X12 -> 0
A10: =+LINJE_DATA!A11 -> 10401 | B10: =+LINJE_DATA!B11 -> Kristianstads Central-Ystad | C10: =+LINJE_DATA!C11 -> 15 | D10: =+LINJE_DATA!D11 -> L | E10: =++IF(LINJE_DATA!E11="",0,LINJE_DATA!E11) -> X61 | F10: =+LINJE_DATA!G11 -> 13 | G10: 13 | L10: =+Persontåg!P13 -> 0 | M10: =+Persontåg!L13 -> 0 | N10: =+Persontåg!U13+Persontåg!V13 -> 0 | O10: =+Persontåg!W13+Persontåg!X13 -> 0
A11: =+LINJE_DATA!A12 -> 10401R | B11: =+LINJE_DATA!B12 -> Ystad-Kristianstads Central | C11: =+LINJE_DATA!C12 -> 15 | D11: =+LINJE_DATA!D12 -> L | E11: =++IF(LINJE_DATA!E12="",0,LINJE_DATA!E12) -> X61 | F11: =+LINJE_DATA!G12 -> 13 | G11: 13 | L11: =+Persontåg!P14 -> 0 | M11: =+Persontåg!L14 -> 0 | N11: =+Persontåg!U14+Persontåg!V14 -> 0 | O11: =+Persontåg!W14+Persontåg!X14 -> 0
A12: =+LINJE_DATA!A13 -> 10402 | B12: =+LINJE_DATA!B13 -> Kristianstads Central-Simrishamn | C12: =+LINJE_DATA!C13 -> 15 | D12: =+LINJE_DATA!D13 -> L | E12: =++IF(LINJE_DATA!E13="",0,LINJE_DATA!E13) -> X61 | F12: =+LINJE_DATA!G13 -> 7 | G12: 7 | L12: =+Persontåg!P15 -> 0 | M12: =+Persontåg!L15 -> 0 | N12: =+Persontåg!U15+Persontåg!V15 -> 0 | O12: =+Persontåg!W15+Persontåg!X15 -> 0
A13: =+LINJE_DATA!A14 -> 10402R | B13: =+LINJE_DATA!B14 -> Simrishamn-Kristianstads Central | C13: =+LINJE_DATA!C14 -> 15 | D13: =+LINJE_DATA!D14 -> L | E13: =++IF(LINJE_DATA!E14="",0,LINJE_DATA!E14) -> X61 | F13: =+LINJE_DATA!G14 -> 7 | G13: 7 | L13: =+Persontåg!P16 -> 0 | M13: =+Persontåg!L16 -> 0 | N13: =+Persontåg!U16+Persontåg!V16 -> 0 | O13: =+Persontåg!W16+Persontåg!X16 -> 0
A14: =+LINJE_DATA!A15 -> 10403 | B14: =+LINJE_DATA!B15 -> Maria-Simrishamn | C14: =+LINJE_DATA!C15 -> 15 | D14: =+LINJE_DATA!D15 -> L | E14: =++IF(LINJE_DATA!E15="",0,LINJE_DATA!E15) -> X61 | F14: =+LINJE_DATA!G15 -> 19 | G14: 19 | L14: =+Persontåg!P17 -> 0 | M14: =+Persontåg!L17 -> 0 | N14: =+Persontåg!U17+Persontåg!V17 -> 0 | O14: =+Persontåg!W17+Persontåg!X17 -> 0
A15: =+LINJE_DATA!A16 -> 10403R | B15: =+LINJE_DATA!B16 -> Simrishamn-Maria | C15: =+LINJE_DATA!C16 -> 15 | D15: =+LINJE_DATA!D16 -> L | E15: =++IF(LINJE_DATA!E16="",0,LINJE_DATA!E16) -> X61 | F15: =+LINJE_DATA!G16 -> 19 | G15: 19 | L15: =+Persontåg!P18 -> 0 | M15: =+Persontåg!L18 -> 0 | N15: =+Persontåg!U18+Persontåg!V18 -> 0 | O15: =+Persontåg!W18+Persontåg!X18 -> 0
A16: =+LINJE_DATA!A17 -> 10404 | B16: =+LINJE_DATA!B17 -> Båstad Norra-Helsingborgs Central | C16: =+LINJE_DATA!C17 -> 15 | D16: =+LINJE_DATA!D17 -> L | E16: =++IF(LINJE_DATA!E17="",0,LINJE_DATA!E17) -> X61 | F16: =+LINJE_DATA!G17 -> 27 | G16: 27 | L16: =+Persontåg!P19 -> 0 | M16: =+Persontåg!L19 -> 0 | N16: =+Persontåg!U19+Persontåg!V19 -> 0 | O16: =+Persontåg!W19+Persontåg!X19 -> 0
A17: =+LINJE_DATA!A18 -> 10404R | B17: =+LINJE_DATA!B18 -> Helsingborgs Central-Båstad Norra | C17: =+LINJE_DATA!C18 -> 15 | D17: =+LINJE_DATA!D18 -> L | E17: =++IF(LINJE_DATA!E18="",0,LINJE_DATA!E18) -> X61 | F17: =+LINJE_DATA!G18 -> 27 | G17: 27 | L17: =+Persontåg!P20 -> 0 | M17: =+Persontåg!L20 -> 0 | N17: =+Persontåg!U20+Persontåg!V20 -> 0 | O17: =+Persontåg!W20+Persontåg!X20 -> 0
A18: =+LINJE_DATA!A19 -> 10405 | B18: =+LINJE_DATA!B19 -> Hässleholm-Malmö central | C18: =+LINJE_DATA!C19 -> 15 | D18: =+LINJE_DATA!D19 -> L | E18: =++IF(LINJE_DATA!E19="",0,LINJE_DATA!E19) -> X61 | F18: =+LINJE_DATA!G19 -> 16 | G18: 16 | L18: =+Persontåg!P21 -> 0 | M18: =+Persontåg!L21 -> 0 | N18: =+Persontåg!U21+Persontåg!V21 -> 0 | O18: =+Persontåg!W21+Persontåg!X21 -> 0
A19: =+LINJE_DATA!A20 -> 10405R | B19: =+LINJE_DATA!B20 -> Malmö central-Hässleholm | C19: =+LINJE_DATA!C20 -> 15 | D19: =+LINJE_DATA!D20 -> L | E19: =++IF(LINJE_DATA!E20="",0,LINJE_DATA!E20) -> X61 | F19: =+LINJE_DATA!G20 -> 16 | G19: 16 | L19: =+Persontåg!P22 -> 0 | M19: =+Persontåg!L22 -> 0 | N19: =+Persontåg!U22+Persontåg!V22 -> 0 | O19: =+Persontåg!W22+Persontåg!X22 -> 0
A20: =+LINJE_DATA!A21 -> 10406 | B20: =+LINJE_DATA!B21 -> Höör-Malmö central | C20: =+LINJE_DATA!C21 -> 15 | D20: =+LINJE_DATA!D21 -> Ö | E20: =++IF(LINJE_DATA!E21="",0,LINJE_DATA!E21) -> X61 | F20: =+LINJE_DATA!G21 -> 8 | G20: 8 | L20: =+Persontåg!P23 -> 0 | M20: =+Persontåg!L23 -> 0 | N20: =+Persontåg!U23+Persontåg!V23 -> 0 | O20: =+Persontåg!W23+Persontåg!X23 -> 0
A21: =+LINJE_DATA!A22 -> 10406R | B21: =+LINJE_DATA!B22 -> Malmö central-Höör | C21: =+LINJE_DATA!C22 -> 15 | D21: =+LINJE_DATA!D22 -> Ö | E21: =++IF(LINJE_DATA!E22="",0,LINJE_DATA!E22) -> X61 | F21: =+LINJE_DATA!G22 -> 8 | G21: 8 | L21: =+Persontåg!P24 -> 0 | M21: =+Persontåg!L24 -> 0 | N21: =+Persontåg!U24+Persontåg!V24 -> 0 | O21: =+Persontåg!W24+Persontåg!X24 -> 0
A22: =+LINJE_DATA!A23 -> 10501 | B22: =+LINJE_DATA!B23 -> Åstorp-Hyllie | C22: =+LINJE_DATA!C23 -> 15 | D22: =+LINJE_DATA!D23 -> L | E22: =++IF(LINJE_DATA!E23="",0,LINJE_DATA!E23) -> X61 | F22: =+LINJE_DATA!G23 -> 19 | G22: 19 | L22: =+Persontåg!P25 -> 0 | M22: =+Persontåg!L25 -> 0 | N22: =+Persontåg!U25+Persontåg!V25 -> 0 | O22: =+Persontåg!W25+Persontåg!X25 -> 0
A23: =+LINJE_DATA!A24 -> 10501R | B23: =+LINJE_DATA!B24 -> Hyllie-Åstorp | C23: =+LINJE_DATA!C24 -> 15 | D23: =+LINJE_DATA!D24 -> L | E23: =++IF(LINJE_DATA!E24="",0,LINJE_DATA!E24) -> X61 | F23: =+LINJE_DATA!G24 -> 19 | G23: 19 | L23: =+Persontåg!P26 -> 0 | M23: =+Persontåg!L26 -> 0 | N23: =+Persontåg!U26+Persontåg!V26 -> 0 | O23: =+Persontåg!W26+Persontåg!X26 -> 0
A24: =+LINJE_DATA!A25 -> 10502 | B24: =+LINJE_DATA!B25 -> Kävlinge-Malmö central övre | C24: =+LINJE_DATA!C25 -> 15 | D24: =+LINJE_DATA!D25 -> L | E24: =++IF(LINJE_DATA!E25="",0,LINJE_DATA!E25) -> X61 | F24: =+LINJE_DATA!G25 -> 38 | G24: 38 | L24: =+Persontåg!P27 -> 0 | M24: =+Persontåg!L27 -> 0 | N24: =+Persontåg!U27+Persontåg!V27 -> 0 | O24: =+Persontåg!W27+Persontåg!X27 -> 0
A25: =+LINJE_DATA!A26 -> 10502R | B25: =+LINJE_DATA!B26 -> Malmö central övre-Kävlinge | C25: =+LINJE_DATA!C26 -> 15 | D25: =+LINJE_DATA!D26 -> L | E25: =++IF(LINJE_DATA!E26="",0,LINJE_DATA!E26) -> X61 | F25: =+LINJE_DATA!G26 -> 38 | G25: 38 | L25: =+Persontåg!P28 -> 0 | M25: =+Persontåg!L28 -> 0 | N25: =+Persontåg!U28+Persontåg!V28 -> 0 | O25: =+Persontåg!W28+Persontåg!X28 -> 0
A26: =+LINJE_DATA!A27 -> 10601 | B26: =+LINJE_DATA!B27 -> Halmstads Central-Hässleholm | C26: =+LINJE_DATA!C27 -> 15 | D26: =+LINJE_DATA!D27 -> L | E26: =++IF(LINJE_DATA!E27="",0,LINJE_DATA!E27) -> X61 | F26: =+LINJE_DATA!G27 -> 18 | G26: 18 | L26: =+Persontåg!P29 -> 0 | M26: =+Persontåg!L29 -> 0 | N26: =+Persontåg!U29+Persontåg!V29 -> 0 | O26: =+Persontåg!W29+Persontåg!X29 -> 0
A27: =+LINJE_DATA!A28 -> 10601R | B27: =+LINJE_DATA!B28 -> Hässleholm-Halmstads Central | C27: =+LINJE_DATA!C28 -> 15 | D27: =+LINJE_DATA!D28 -> L | E27: =++IF(LINJE_DATA!E28="",0,LINJE_DATA!E28) -> X61 | F27: =+LINJE_DATA!G28 -> 18 | G27: 18 | L27: =+Persontåg!P30 -> 0 | M27: =+Persontåg!L30 -> 0 | N27: =+Persontåg!U30+Persontåg!V30 -> 0 | O27: =+Persontåg!W30+Persontåg!X30 -> 0
A28: =+LINJE_DATA!A29 -> 10701 | B28: =+LINJE_DATA!B29 -> Malmö central-Ystad | C28: =+LINJE_DATA!C29 -> 15 | D28: =+LINJE_DATA!D29 -> L | E28: =++IF(LINJE_DATA!E29="",0,LINJE_DATA!E29) -> X61 | F28: =+LINJE_DATA!G29 -> 4 | G28: 4 | L28: =+Persontåg!P31 -> 0 | M28: =+Persontåg!L31 -> 0 | N28: =+Persontåg!U31+Persontåg!V31 -> 0 | O28: =+Persontåg!W31+Persontåg!X31 -> 0
A29: =+LINJE_DATA!A30 -> 10701R | B29: =+LINJE_DATA!B30 -> Ystad-Malmö central | C29: =+LINJE_DATA!C30 -> 15 | D29: =+LINJE_DATA!D30 -> L | E29: =++IF(LINJE_DATA!E30="",0,LINJE_DATA!E30) -> X61 | F29: =+LINJE_DATA!G30 -> 4 | G29: 4 | L29: =+Persontåg!P32 -> 0 | M29: =+Persontåg!L32 -> 0 | N29: =+Persontåg!U32+Persontåg!V32 -> 0 | O29: =+Persontåg!W32+Persontåg!X32 -> 0
A30: =+LINJE_DATA!A31 -> 10801 | B30: =+LINJE_DATA!B31 -> Maria-Trelleborg | C30: =+LINJE_DATA!C31 -> 15 | D30: =+LINJE_DATA!D31 -> L | E30: =++IF(LINJE_DATA!E31="",0,LINJE_DATA!E31) -> X61 | F30: =+LINJE_DATA!G31 -> 38 | G30: 38 | L30: =+Persontåg!P33 -> 0 | M30: =+Persontåg!L33 -> 0 | N30: =+Persontåg!U33+Persontåg!V33 -> 0 | O30: =+Persontåg!W33+Persontåg!X33 -> 0
A31: =+LINJE_DATA!A32 -> 10801R | B31: =+LINJE_DATA!B32 -> Trelleborg-Maria | C31: =+LINJE_DATA!C32 -> 15 | D31: =+LINJE_DATA!D32 -> L | E31: =++IF(LINJE_DATA!E32="",0,LINJE_DATA!E32) -> X61 | F31: =+LINJE_DATA!G32 -> 38 | G31: 38 | L31: =+Persontåg!P34 -> 0 | M31: =+Persontåg!L34 -> 0 | N31: =+Persontåg!U34+Persontåg!V34 -> 0 | O31: =+Persontåg!W34+Persontåg!X34 -> 0
A32: =+LINJE_DATA!A33 -> 10803 | B32: =+LINJE_DATA!B33 -> Malmö central-Trelleborg | C32: =+LINJE_DATA!C33 -> 15 | D32: =+LINJE_DATA!D33 -> L | E32: =++IF(LINJE_DATA!E33="",0,LINJE_DATA!E33) -> X61 | F32: =+LINJE_DATA!G33 -> 8 | G32: 8 | L32: =+Persontåg!P35 -> 0 | M32: =+Persontåg!L35 -> 0 | N32: =+Persontåg!U35+Persontåg!V35 -> 0 | O32: =+Persontåg!W35+Persontåg!X35 -> 0
A33: =+LINJE_DATA!A34 -> 10803R | B33: =+LINJE_DATA!B34 -> Trelleborg-Malmö central | C33: =+LINJE_DATA!C34 -> 15 | D33: =+LINJE_DATA!D34 -> L | E33: =++IF(LINJE_DATA!E34="",0,LINJE_DATA!E34) -> X61 | F33: =+LINJE_DATA!G34 -> 8 | G33: 8 | L33: =+Persontåg!P36 -> 0 | M33: =+Persontåg!L36 -> 0 | N33: =+Persontåg!U36+Persontåg!V36 -> 0 | O33: =+Persontåg!W36+Persontåg!X36 -> 0
A34: =+LINJE_DATA!A35 -> 10901 | B34: =+LINJE_DATA!B35 -> Hässleholm-Maria | C34: =+LINJE_DATA!C35 -> 15 | D34: =+LINJE_DATA!D35 -> L | E34: =++IF(LINJE_DATA!E35="",0,LINJE_DATA!E35) -> X61 | F34: =+LINJE_DATA!G35 -> 19 | G34: 19 | L34: =+Persontåg!P37 -> 0 | M34: =+Persontåg!L37 -> 0 | N34: =+Persontåg!U37+Persontåg!V37 -> 0 | O34: =+Persontåg!W37+Persontåg!X37 -> 0
A35: =+LINJE_DATA!A36 -> 10901R | B35: =+LINJE_DATA!B36 -> Maria-Hässleholm | C35: =+LINJE_DATA!C36 -> 15 | D35: =+LINJE_DATA!D36 -> L | E35: =++IF(LINJE_DATA!E36="",0,LINJE_DATA!E36) -> X61 | F35: =+LINJE_DATA!G36 -> 19 | G35: 19 | L35: =+Persontåg!P38 -> 0 | M35: =+Persontåg!L38 -> 0 | N35: =+Persontåg!U38+Persontåg!V38 -> 0 | O35: =+Persontåg!W38+Persontåg!X38 -> 0
A36: =+LINJE_DATA!A37 -> 10902 | B36: =+LINJE_DATA!B37 -> Helsingborgs Central-Åstorp | C36: =+LINJE_DATA!C37 -> 15 | D36: =+LINJE_DATA!D37 -> L | E36: =++IF(LINJE_DATA!E37="",0,LINJE_DATA!E37) -> X61 | F36: =+LINJE_DATA!G37 -> 19 | G36: 19 | L36: =+Persontåg!P39 -> 0 | M36: =+Persontåg!L39 -> 0 | N36: =+Persontåg!U39+Persontåg!V39 -> 0 | O36: =+Persontåg!W39+Persontåg!X39 -> 0
A37: =+LINJE_DATA!A38 -> 10902R | B37: =+LINJE_DATA!B38 -> Åstorp-Helsingborgs Central | C37: =+LINJE_DATA!C38 -> 15 | D37: =+LINJE_DATA!D38 -> L | E37: =++IF(LINJE_DATA!E38="",0,LINJE_DATA!E38) -> X61 | F37: =+LINJE_DATA!G38 -> 19 | G37: 19 | L37: =+Persontåg!P40 -> 0 | M37: =+Persontåg!L40 -> 0 | N37: =+Persontåg!U40+Persontåg!V40 -> 0 | O37: =+Persontåg!W40+Persontåg!X40 -> 0
A38: =+LINJE_DATA!A39 -> 10903 | B38: =+LINJE_DATA!B39 -> Karlshamn-Kristianstads Central | C38: =+LINJE_DATA!C39 -> 15 | D38: =+LINJE_DATA!D39 -> L | E38: =++IF(LINJE_DATA!E39="",0,LINJE_DATA!E39) -> X61 | F38: =+LINJE_DATA!G39 -> 6 | G38: 6 | L38: =+Persontåg!P41 -> 0 | M38: =+Persontåg!L41 -> 0 | N38: =+Persontåg!U41+Persontåg!V41 -> 0 | O38: =+Persontåg!W41+Persontåg!X41 -> 0
A39: =+LINJE_DATA!A40 -> 10903R | B39: =+LINJE_DATA!B40 -> Kristianstads Central-Karlshamn | C39: =+LINJE_DATA!C40 -> 15 | D39: =+LINJE_DATA!D40 -> L | E39: =++IF(LINJE_DATA!E40="",0,LINJE_DATA!E40) -> X61 | F39: =+LINJE_DATA!G40 -> 6 | G39: 6 | L39: =+Persontåg!P42 -> 0 | M39: =+Persontåg!L42 -> 0 | N39: =+Persontåg!U42+Persontåg!V42 -> 0 | O39: =+Persontåg!W42+Persontåg!X42 -> 0
A40: =+LINJE_DATA!A41 -> 10904 | B40: =+LINJE_DATA!B41 -> Kristianstads Central-Helsingborgs Central | C40: =+LINJE_DATA!C41 -> 15 | D40: =+LINJE_DATA!D41 -> L | E40: =++IF(LINJE_DATA!E41="",0,LINJE_DATA!E41) -> X61 | F40: =+LINJE_DATA!G41 -> 19 | G40: 19 | L40: =+Persontåg!P43 -> 0 | M40: =+Persontåg!L43 -> 0 | N40: =+Persontåg!U43+Persontåg!V43 -> 0 | O40: =+Persontåg!W43+Persontåg!X43 -> 0
A41: =+LINJE_DATA!A42 -> 10904R | B41: =+LINJE_DATA!B42 -> Helsingborgs Central-Kristianstads Central | C41: =+LINJE_DATA!C42 -> 15 | D41: =+LINJE_DATA!D42 -> L | E41: =++IF(LINJE_DATA!E42="",0,LINJE_DATA!E42) -> X61 | F41: =+LINJE_DATA!G42 -> 19 | G41: 19 | L41: =+Persontåg!P44 -> 0 | M41: =+Persontåg!L44 -> 0 | N41: =+Persontåg!U44+Persontåg!V44 -> 0 | O41: =+Persontåg!W44+Persontåg!X44 -> 0
A42: =+LINJE_DATA!A43 -> 10905 | B42: =+LINJE_DATA!B43 -> Karlshamn-Älmhult | C42: =+LINJE_DATA!C43 -> 15 | D42: =+LINJE_DATA!D43 -> L | E42: =++IF(LINJE_DATA!E43="",0,LINJE_DATA!E43) -> X61 | F42: =+LINJE_DATA!G43 -> 12 | G42: 12 | L42: =+Persontåg!P45 -> 0 | M42: =+Persontåg!L45 -> 0 | N42: =+Persontåg!U45+Persontåg!V45 -> 0 | O42: =+Persontåg!W45+Persontåg!X45 -> 0
A43: =+LINJE_DATA!A44 -> 10905R | B43: =+LINJE_DATA!B44 -> Älmhult-Karlshamn | C43: =+LINJE_DATA!C44 -> 15 | D43: =+LINJE_DATA!D44 -> L | E43: =++IF(LINJE_DATA!E44="",0,LINJE_DATA!E44) -> X61 | F43: =+LINJE_DATA!G44 -> 12 | G43: 12 | L43: =+Persontåg!P46 -> 0 | M43: =+Persontåg!L46 -> 0 | N43: =+Persontåg!U46+Persontåg!V46 -> 0 | O43: =+Persontåg!W46+Persontåg!X46 -> 0
A44: =+LINJE_DATA!A45 -> 10906 | B44: =+LINJE_DATA!B45 -> Bromölla-Kristianstads Central | C44: =+LINJE_DATA!C45 -> 15 | D44: =+LINJE_DATA!D45 -> L | E44: =++IF(LINJE_DATA!E45="",0,LINJE_DATA!E45) -> X61 | F44: =+LINJE_DATA!G45 -> 6 | G44: 6 | L44: =+Persontåg!P47 -> 0 | M44: =+Persontåg!L47 -> 0 | N44: =+Persontåg!U47+Persontåg!V47 -> 0 | O44: =+Persontåg!W47+Persontåg!X47 -> 0
A45: =+LINJE_DATA!A46 -> 10906R | B45: =+LINJE_DATA!B46 -> Kristianstads Central-Bromölla | C45: =+LINJE_DATA!C46 -> 15 | D45: =+LINJE_DATA!D46 -> L | E45: =++IF(LINJE_DATA!E46="",0,LINJE_DATA!E46) -> X61 | F45: =+LINJE_DATA!G46 -> 6 | G45: 6 | L45: =+Persontåg!P48 -> 0 | M45: =+Persontåg!L48 -> 0 | N45: =+Persontåg!U48+Persontåg!V48 -> 0 | O45: =+Persontåg!W48+Persontåg!X48 -> 0
A46: =+LINJE_DATA!A47 -> 11001 | B46: =+LINJE_DATA!B47 -> Märsta-Södertälje Centrum | C46: =+LINJE_DATA!C47 -> 18 | D46: =+LINJE_DATA!D47 -> L | E46: =++IF(LINJE_DATA!E47="",0,LINJE_DATA!E47) -> X60 | F46: =+LINJE_DATA!G47 -> 76 | G46: 76 | L46: =+Persontåg!P49 -> 0 | M46: =+Persontåg!L49 -> 0 | N46: =+Persontåg!U49+Persontåg!V49 -> 0 | O46: =+Persontåg!W49+Persontåg!X49 -> 0
A47: =+LINJE_DATA!A48 -> 11001R | B47: =+LINJE_DATA!B48 -> Södertälje Centrum-Märsta | C47: =+LINJE_DATA!C48 -> 18 | D47: =+LINJE_DATA!D48 -> L | E47: =++IF(LINJE_DATA!E48="",0,LINJE_DATA!E48) -> X60 | F47: =+LINJE_DATA!G48 -> 76 | G47: 76 | L47: =+Persontåg!P50 -> 0 | M47: =+Persontåg!L50 -> 0 | N47: =+Persontåg!U50+Persontåg!V50 -> 0 | O47: =+Persontåg!W50+Persontåg!X50 -> 0
A48: =+LINJE_DATA!A49 -> 11002 | B48: =+LINJE_DATA!B49 -> Upplands Väsby-Tumba | C48: =+LINJE_DATA!C49 -> 18 | D48: =+LINJE_DATA!D49 -> L | E48: =++IF(LINJE_DATA!E49="",0,LINJE_DATA!E49) -> X60 | F48: =+LINJE_DATA!G49 -> 12 | G48: 12 | L48: =+Persontåg!P51 -> 0 | M48: =+Persontåg!L51 -> 0 | N48: =+Persontåg!U51+Persontåg!V51 -> 0 | O48: =+Persontåg!W51+Persontåg!X51 -> 0
A49: =+LINJE_DATA!A50 -> 11002R | B49: =+LINJE_DATA!B50 -> Tumba-Upplands Väsby | C49: =+LINJE_DATA!C50 -> 18 | D49: =+LINJE_DATA!D50 -> L | E49: =++IF(LINJE_DATA!E50="",0,LINJE_DATA!E50) -> X60 | F49: =+LINJE_DATA!G50 -> 12 | G49: 12 | L49: =+Persontåg!P52 -> 0 | M49: =+Persontåg!L52 -> 0 | N49: =+Persontåg!U52+Persontåg!V52 -> 0 | O49: =+Persontåg!W52+Persontåg!X52 -> 0
A50: =+LINJE_DATA!A51 -> 11003 | B50: =+LINJE_DATA!B51 -> Uppsala Central-Flemingsberg | C50: =+LINJE_DATA!C51 -> 18 | D50: =+LINJE_DATA!D51 -> L | E50: =++IF(LINJE_DATA!E51="",0,LINJE_DATA!E51) -> X60 | F50: =+LINJE_DATA!G51 -> 38 | G50: 38 | L50: =+Persontåg!P53 -> 0 | M50: =+Persontåg!L53 -> 0 | N50: =+Persontåg!U53+Persontåg!V53 -> 0 | O50: =+Persontåg!W53+Persontåg!X53 -> 0
A51: =+LINJE_DATA!A52 -> 11003R | B51: =+LINJE_DATA!B52 -> Flemingsberg-Uppsala Central | C51: =+LINJE_DATA!C52 -> 18 | D51: =+LINJE_DATA!D52 -> L | E51: =++IF(LINJE_DATA!E52="",0,LINJE_DATA!E52) -> X60 | F51: =+LINJE_DATA!G52 -> 38 | G51: 38 | L51: =+Persontåg!P54 -> 0 | M51: =+Persontåg!L54 -> 0 | N51: =+Persontåg!U54+Persontåg!V54 -> 0 | O51: =+Persontåg!W54+Persontåg!X54 -> 0
A52: =+LINJE_DATA!A53 -> 11004 | B52: =+LINJE_DATA!B53 -> Uppsala Central-Södertälje Centrum | C52: =+LINJE_DATA!C53 -> 18 | D52: =+LINJE_DATA!D53 -> L | E52: =++IF(LINJE_DATA!E53="",0,LINJE_DATA!E53) -> X60 | F52: =+LINJE_DATA!G53 -> 38 | G52: 38 | L52: =+Persontåg!P55 -> 0 | M52: =+Persontåg!L55 -> 0 | N52: =+Persontåg!U55+Persontåg!V55 -> 0 | O52: =+Persontåg!W55+Persontåg!X55 -> 0
A53: =+LINJE_DATA!A54 -> 11004R | B53: =+LINJE_DATA!B54 -> Södertälje Centrum-Uppsala Central | C53: =+LINJE_DATA!C54 -> 18 | D53: =+LINJE_DATA!D54 -> L | E53: =++IF(LINJE_DATA!E54="",0,LINJE_DATA!E54) -> X60 | F53: =+LINJE_DATA!G54 -> 38 | G53: 38 | L53: =+Persontåg!P56 -> 0 | M53: =+Persontåg!L56 -> 0 | N53: =+Persontåg!U56+Persontåg!V56 -> 0 | O53: =+Persontåg!W56+Persontåg!X56 -> 0
A54: =+LINJE_DATA!A55 -> 11101 | B54: =+LINJE_DATA!B55 -> Kungsängen-Västerhaninge | C54: =+LINJE_DATA!C55 -> 18 | D54: =+LINJE_DATA!D55 -> L | E54: =++IF(LINJE_DATA!E55="",0,LINJE_DATA!E55) -> X60 | F54: =+LINJE_DATA!G55 -> 38 | G54: 38 | L54: =+Persontåg!P57 -> 0 | M54: =+Persontåg!L57 -> 0 | N54: =+Persontåg!U57+Persontåg!V57 -> 0 | O54: =+Persontåg!W57+Persontåg!X57 -> 0
A55: =+LINJE_DATA!A56 -> 11101R | B55: =+LINJE_DATA!B56 -> Västerhaninge-Kungsängen | C55: =+LINJE_DATA!C56 -> 18 | D55: =+LINJE_DATA!D56 -> L | E55: =++IF(LINJE_DATA!E56="",0,LINJE_DATA!E56) -> X60 | F55: =+LINJE_DATA!G56 -> 38 | G55: 38 | L55: =+Persontåg!P58 -> 0 | M55: =+Persontåg!L58 -> 0 | N55: =+Persontåg!U58+Persontåg!V58 -> 0 | O55: =+Persontåg!W58+Persontåg!X58 -> 0
A56: =+LINJE_DATA!A57 -> 11102 | B56: =+LINJE_DATA!B57 -> Bålsta-Västerhaninge | C56: =+LINJE_DATA!C57 -> 18 | D56: =+LINJE_DATA!D57 -> L | E56: =++IF(LINJE_DATA!E57="",0,LINJE_DATA!E57) -> X60 | F56: =+LINJE_DATA!G57 -> 44 | G56: 44 | L56: =+Persontåg!P59 -> 0 | M56: =+Persontåg!L59 -> 0 | N56: =+Persontåg!U59+Persontåg!V59 -> 0 | O56: =+Persontåg!W59+Persontåg!X59 -> 0
A57: =+LINJE_DATA!A58 -> 11102R | B57: =+LINJE_DATA!B58 -> Västerhaninge-Bålsta | C57: =+LINJE_DATA!C58 -> 18 | D57: =+LINJE_DATA!D58 -> L | E57: =++IF(LINJE_DATA!E58="",0,LINJE_DATA!E58) -> X60 | F57: =+LINJE_DATA!G58 -> 44 | G57: 44 | L57: =+Persontåg!P60 -> 0 | M57: =+Persontåg!L60 -> 0 | N57: =+Persontåg!U60+Persontåg!V60 -> 0 | O57: =+Persontåg!W60+Persontåg!X60 -> 0
A58: =+LINJE_DATA!A59 -> 11103 | B58: =+LINJE_DATA!B59 -> Kallhäll-Nynäshamn | C58: =+LINJE_DATA!C59 -> 18 | D58: =+LINJE_DATA!D59 -> Ö | E58: =++IF(LINJE_DATA!E59="",0,LINJE_DATA!E59) -> X60 | F58: =+LINJE_DATA!G59 -> 38 | G58: 38 | L58: =+Persontåg!P61 -> 0 | M58: =+Persontåg!L61 -> 0 | N58: =+Persontåg!U61+Persontåg!V61 -> 0 | O58: =+Persontåg!W61+Persontåg!X61 -> 0
A59: =+LINJE_DATA!A60 -> 11103R | B59: =+LINJE_DATA!B60 -> Nynäshamn-Kallhäll | C59: =+LINJE_DATA!C60 -> 18 | D59: =+LINJE_DATA!D60 -> Ö | E59: =++IF(LINJE_DATA!E60="",0,LINJE_DATA!E60) -> X60 | F59: =+LINJE_DATA!G60 -> 38 | G59: 38 | L59: =+Persontåg!P62 -> 0 | M59: =+Persontåg!L62 -> 0 | N59: =+Persontåg!U62+Persontåg!V62 -> 0 | O59: =+Persontåg!W62+Persontåg!X62 -> 0
A60: =+LINJE_DATA!A61 -> 11104 | B60: =+LINJE_DATA!B61 -> Kallhäll-Tumba | C60: =+LINJE_DATA!C61 -> 18 | D60: =+LINJE_DATA!D61 -> L | E60: =++IF(LINJE_DATA!E61="",0,LINJE_DATA!E61) -> X60 | F60: =+LINJE_DATA!G61 -> 12 | G60: 12 | L60: =+Persontåg!P63 -> 0 | M60: =+Persontåg!L63 -> 0 | N60: =+Persontåg!U63+Persontåg!V63 -> 0 | O60: =+Persontåg!W63+Persontåg!X63 -> 0
A61: =+LINJE_DATA!A62 -> 11104R | B61: =+LINJE_DATA!B62 -> Tumba-Kallhäll | C61: =+LINJE_DATA!C62 -> 18 | D61: =+LINJE_DATA!D62 -> L | E61: =++IF(LINJE_DATA!E62="",0,LINJE_DATA!E62) -> X60 | F61: =+LINJE_DATA!G62 -> 12 | G61: 12 | L61: =+Persontåg!P64 -> 0 | M61: =+Persontåg!L64 -> 0 | N61: =+Persontåg!U64+Persontåg!V64 -> 0 | O61: =+Persontåg!W64+Persontåg!X64 -> 0
A62: =+LINJE_DATA!A63 -> 11105 | B62: =+LINJE_DATA!B63 -> Bro-Handen | C62: =+LINJE_DATA!C63 -> 18 | D62: =+LINJE_DATA!D63 -> L | E62: =++IF(LINJE_DATA!E63="",0,LINJE_DATA!E63) -> X60 | F62: =+LINJE_DATA!G63 -> 6 | G62: 6 | L62: =+Persontåg!P65 -> 0 | M62: =+Persontåg!L65 -> 0 | N62: =+Persontåg!U65+Persontåg!V65 -> 0 | O62: =+Persontåg!W65+Persontåg!X65 -> 0
... 77 more rows

Sheet Bangods_linjedel
H1: Ange | I1: Ange | J1: Ange | K1: Ange | L1: Ange | M1: Ange | P1: =+P139+Q139+T139 -> 8342 | U1: =+P1/321 -> 25.98753894 | AJ1: =+AA3/Z3 -> 5.966296284 | AX1: =+AT45*AY1-AU45 -> 0 | AY1: =+AU45/AT45 -> 0.1085271318 | BL1: FÖRE VOLYMFÖRÄNDRINGAR | CC1: Tillkommande/försvinnande volymer = KÖ | CJ1: före volymför | CU1: EFTER VOLYMFÖRÄNDRINGAR | DI1: före volymförändring | DS1: Beräknade genomsnitt per sträcka | DY1: Effekter | DZ1: Förändring MSEK, UA-JA (transportköpare KÖ) | EG1: Förändring Banavgifter Budgeteffekt | EM1: ENJA | ET1: ENJA | EU1: ENJA | EV1: ENJA | EW1: ENJA
A2: Stråk | B2: Linjedel | C2: Linjeindelning | E2: Dimesionerande sträcka | F2: Avstånd (km) | G2: Bandel | H2: Gångtidsförändring, min | I2: Avståndsförändring, km | J2: Förändrad förseningstid, minuter | K2: Förändring antal godståg/dygn | L2: Exogent beräknad förändrad tåglängd meter | M2: Externt beräknad kostnadsförändring, totalt kronor | N2: Tåg per år | O2: Volym per år | P2: Fjärrtåg | Q2: Lokaltåg | R2: Systemtåg | S2: Malmtåg | T2: Kombitåg | U2: Tåg/dygn JA | V2: Tåg/dygn UA | W2: Malm (tåg/dygn) | X2: Övriga (tåg/dygn) | Y2: Dieseldrift | Z2: Medelhastighet | AA2: Medeltrpsträcka, km | AB2: Drivmedelskostnad kr/tkm | AC2: Passage Öresund kr | AD2: Kr per minut lok+förare | AE2: Kr/minut vagnar | AF2: Kr/tågkm banavgift | AG2: TRPTID KR/TONH | AH2: FÖRS.TID KR/H | AI2: FOKO exkl BA hela trp | AJ2: BA hela trp | AK2: Totalkostnad (FOKO+BA)/trp | AL2: Elastictet | AM2: El JA | AN2: El UA | AO2: Bruttoton/nettoton | AP2: SPÅR JA | AQ2: SPÅR UA | AR2: KAPAC JA | AS2: KAPAC UA | AT2: a (JA) | AU2: b (JA) | AV2: a (UA) | AW2: b (UA) | AX2: g | AY2: Kap.tillägg JA | AZ2: tdt.tillägg JA | BA2: Kap.tillägg UA | BB2: tdt.tillägg UA | BC2: Kap.tillägg UA nya linjedelar | BD2: tdt.tillägg UA nya linjedelar | BE2: Diff gångtid minuter enkel | BF2: Diff avstånd km enkel | BG2: Total tidsdiff, minuter | BH2: Diff tåg/dygn | BI2: Förseningstid | BJ2: Byte EL-DIESEL | BL2: FÖRÄNDRAD FOKO KR INKL BA | BM2: FÖRÄNDRAD FOKO tid | BN2: FÖRÄNDRAD FOKO DRIVMEDEL | BO2: FÖRÄNDRAD BANAVG | BP2: TRPTID KR | BQ2: FÖRSEN. KR | BR2: Spår JA | BS2: Spår UA | BT2: Tågläge JA kr/tågkm | BU2: Tågläge UA, kr/tågkm | BV2: Trafikdagar Godståg | BW2: Trafikdagar Malmtåg | BY2: Förändring tkm | BZ2: Förändring ton | CA2: Tonkm | CB2: Bruttotonkm | CC2: FOKO tid | CD2: foko drivmedel | CE2: foko banavg | CF2: Transporttid | CG2: Försenings-tid | CI2: Liter diesel JA | CJ2: Liter diesel UA fv | CK2: Liter diesel UA ev | CM2: KWH JA | CN2: KWH UA FV | CO2: KWH UA EV | CP2: JA AVG Tågläge | CQ2: JA AVG Spår | CR2: JA EXT Infra | CT2: JA EXT buller | CU2: UA AVG Tågläge | CV2: UA AVG spår | CW2: UA EXT infra | CY2: UA Ext buller | CZ2: UA-JA BAVG TOT | DA2: UA-JA AVG Tågläge | DB2: UA-JA AVG spår | DC2: UA-JA EXT infra | DD2: UA-JA EXT olyckor | DE2: UA-JA Ext buller | DF2: BTK JA | DG2: BTK UA före volymdiff | DH2: BTK UA | DI2: UA AVG Tågläge | DJ2: UA AVG spår | DK2: UA-JA AVG FÖRE VOLDIFF | DL2: Ton medeltåg | DM2: Ton Bangods | DN2: Bangods/ASEK | DO2: Meter per ton | DP2: diff meter UA | DQ2: meter JA | DR2: meter UA | DS2: Medel-hastighet | DT2: Drivmedel kr/tkm | DU2: Banavgift kr/tkm | DV2: Fokor kr/tågminut | DW2: TRPTID KR/TONH | DX2: FÖRS.TID KR/H | DY2: Total tidsdiff, minuter | DZ2: Fordons-kostnad | EA2: Banavgift | EB2: Transport-tid | EC2: Försenings-tid | ED2: Extern kostnad INFRA | EE2: Extern kostnad OLYCKOR | EF2: Extern kostnad BULLER | EG2: Tågläge | EH2: Spår | EJ2: Genomsnittlig längd, meter JA | EK2: Genomsnittlig längd, meter UA | EL2: Kapacitetstidsvinst | ET2: trpkostnad kr/km | EU2: trpkostn kr/minut | EV2: trptid gods kr/h | EW2: förs,tid gods kr/h | EX2: tot foko ja | EY2: JA buller basår k-block prisnivå prognosår | EZ2: TKM JA | FB2: Banavgifter, kr/tkm JA | FG2: DIESEL | FJ2: ntkm JA | FK2: NTKM UA | FN2: TOT FOKO | FQ2: lokkostnad km | FR2: lokkostnad minut | FS2: tot lok
A3: =IFERROR(VLOOKUP(B3,' Fyrspår JA'!B:Z,25,FALSE),+VLOOKUP(B3,Länkar!I:AD,20,FALSE)) -> Malmbanan | B3: =+BANGODSINDATA!B2 -> L100 | C3: =+BANGODSINDATA!C2 -> Buddbyn-Murjek | E3: =+BANGODSINDATA!D2 -> Lakaträsk-Näsberg | F3: =+IFERROR(BANGODSINDATA!F2,FE3) -> 82.85 | G3: =IFERROR((+VLOOKUP(B3,Länkar!I:AD,22,FALSE)),VLOOKUP(B3,' Fyrspår JA'!B:Z,25,FALSE)) -> 118 | N3: =+IFERROR(BANGODSINDATA!G2,0) -> 8903 | O3: =+IF(BANGODSINDATA!H2=0,0,BANGODSINDATA!H2*Kalkylsammanställning!G$2) -> 14545585 | P3: =+IFERROR(BANGODSINDATA!I2,0) -> 1888 | Q3: =+IF(BANGODSINDATA!J2="-",0,BANGODSINDATA!J2) -> 0 | R3: =+IFERROR(BANGODSINDATA!K2,0) -> 1677 | S3: =+IFERROR(BANGODSINDATA!L2,0) -> 3543 | T3: =+IFERROR(BANGODSINDATA!M2,0) -> 1796 | U3: =+($S3/BW3)+(P3+Q3+R3+T3)/BV3 -> 31.56685714 | V3: =+IF(U3+Bangods_linjedel!K3<0,0,U3+Bangods_linjedel!K3) -> 31.56685714 | W3: =+S3/350 -> 10.12285714 | X3: =+V3-W3 -> 21.444 | Y3: =(IF(AM3="nej",100%,INDATABLAD!$D$268)) -> 0 | Z3: =+IF(N3=0,0,SUMPRODUCT(P3:T3,Indata_Kalkylvärden!D$104:H$104)/N3) -> 66.91901606 | AA3: =+IF(N3=0,0,SUMPRODUCT($P3:$T3,Indata_Kalkylvärden!$D$105:$H$105)/Bangods_linjedel!$N3) -> 399.2586769 | AB3: =IF(N3=0,0,(CM3*INDATABLAD!D$266+INDATABLAD!D$267*CI3)/(N3*F3)) -> 39.14699992 | AC3: =+IF(B3='Beskrivning av åtgärd'!$D$171,'Beskrivning av åtgärd'!$B$171*$N3,0) -> 0 | AD3: =+IF(N3=0,0,SUMPRODUCT(P3:T3,Indata_Kalkylvärden!D$117:H$117/Bangods_linjedel!N3)) -> 54.77516701 | AE3: =+IF(N3=0,0,SUMPRODUCT(P3:T3,Indata_Kalkylvärden!$D$116:$H$116)/N3)*DN3 -> 23.51150322 | AF3: =+IF(N3=0,0,BT3+BR3*DM3*AO3) -> 66.83014399 | AG3: =+Indata_Kalkylvärden!T$96 -> 1.53 | AH3: =+Indata_Kalkylvärden!T$97 -> 5.355 | AI3: =++IF(AA3=0,0,AA3*AB3+(AA3/Z3)*60*(AD3+AE3)) -> 43654.66757 | AJ3: =+AF3*AA3 -> 26682.51486 | AK3: =+AI3+AJ3+AF3*AA3 -> 97019.6973 | AL3: =+IF(N3=0,0,SUMPRODUCT($P3:$T3,Indata_Kalkylvärden!$D$118:$H$118)/$N3) -> -0.3931982478 | AM3: =+VLOOKUP($G3,Länkar!$F:$V,16,FALSE) -> Ja | AN3: =+VLOOKUP($G3,Länkar!$F:$V,17,FALSE) -> Ja | AO3: =+IF(N3=0,0,(SUMPRODUCT(P3:T3,Indata_Kalkylvärden!$D$110:$H$110)/N3)) -> 1.755379468 | AP3: =+IFERROR(IF(B3=0,0,VLOOKUP(B3,'Kap.ber JA'!$B:$AI,7,FALSE)),0) -> esp | AQ3: =+IFERROR(IF(B3=0,0,VLOOKUP(B3,'Kap.ber UA'!B:H,7,FALSE)),0) -> esp | AR3: =+IFERROR(IF(B3=0,0,VLOOKUP(B3,'Kap.ber JA'!$B:$AI,8,FALSE)),0) -> 0.7257279788 | AS3: =+IFERROR(IF(B3=0,0,VLOOKUP(B3,'Kap.ber UA'!$B:$AL,8,FALSE)),0) -> 0.7257279788 | AT3: =+IF($AP3="esp",INDATABLAD!$D$568,INDATABLAD!$D$566) -> 2.58 | AU3: =+IF($AP3="Esp",INDATABLAD!$D$569,INDATABLAD!$D$567) -> 0.28 | AV3: =+IF($AQ3="Esp",INDATABLAD!$D$568,INDATABLAD!$D$566) -> 2.58 | AW3: =+IF($AQ3="Esp",INDATABLAD!$D$569,INDATABLAD!$D$567) -> 0.28 | AX3: =+INDATABLAD!$D$565 -> 0.3 | AY3: =+IF((AR3*$AT3<$AU3),0,((AR3*$AT3-$AU3)*F3/10)) -> 13.19285327 | AZ3: =+AX3*F3/10 -> 2.4855 | BA3: =+IF(BC3>0,BC3,IF((AS3*$AV3<$AW3),0,((AS3*$AV3-$AW3)*(F3+BF3)/10))) -> 13.19285327 | BB3: =+IF(BD3>0,BD3,(F3+BF3)/10*AX3) -> 2.4855 | BC3: =SUMIF('Gods_nya linjedelar_UA'!$D$4:$D$18,Bangods_linjedel!B3,'Gods_nya linjedelar_UA'!$J$4:$J$18) -> 0 | BD3: =SUMIF('Gods_nya linjedelar_UA'!$D$4:$D$18,Bangods_linjedel!B3,'Gods_nya linjedelar_UA'!$K$4:$K$18) -> 0 | BE3: =+Bangods_linjedel!H3 -> 0 | BF3: =+Bangods_linjedel!I3 -> 0 | BG3: =(BA3-AY3)+(BB3-AZ3)+BE3 -> 4.440892099e-16 | BH3: =+Bangods_linjedel!K3 -> 0 | BI3: =+IF(Bangods_linjedel!J3=0,(BA3-AY3)*0.05,Bangods_linjedel!J3) -> 0 | BJ3: =+IF(AN3=AM3,0,AN3) -> 0 | BL3: =+BM3+BN3+BO3 -> 3.09524062e-10 | BM3: =+(($BG3+$BI3)*($AD3+AE3)*$N3)+Bangods_linjedel!M3 -> 3.09524062e-10 | BN3: =+(CJ3-CI3)*INDATABLAD!D$267+INDATABLAD!D$266*(CN3-CM3) -> 0 | BO3: =+DK3 -> 0 | BP3: =+((BG3/60*O3*AG3)) -> 1.647182024e-10 | BQ3: =+BI3/60*O3*AH3 -> 0 | BR3: =+IF(N3=0,0,('Beskrivning av åtgärd'!$C$165*(X3)+'Beskrivning av åtgärd'!$D$165*Bangods_linjedel!W3)/Bangods_linjedel!U3) -> 0.02165477451 | BS3: =+IF(O3=0,0,('Beskrivning av åtgärd'!$F$165*(X3)+'Beskrivning av åtgärd'!$G$165*Bangods_linjedel!W3)/Bangods_linjedel!U3) -> 0.02165477451 | BT3: =+IF(U3=0,0,('Beskrivning av åtgärd'!$C$166*(X3)+'Beskrivning av åtgärd'!$D$166*$W3)/$U3) -> 4.726154537 | BU3: =+IF(O3=0,0,('Beskrivning av åtgärd'!$F$166*(X3)+'Beskrivning av åtgärd'!$G$166*$W3)/$U3) -> 4.726154537 | BV3: 250 | BW3: 350 | BY3: =+IF(N3=0,0,N3*V3/U3*BF3) -> 0 | BZ3: =+IF(O3=0,0,(((BM3+BN3+BO3*'Beskrivning av åtgärd'!$C$176)/(AK3*N3))*AL3)*O3) -> -2.04946683e-12 | CA3: =+BZ3*AA3 -> -8.182674148e-10 | CB3: =+IF(AO3=0,0,AO3*CA3*V3/U3) -> -1.43636982e-09 | CC3: =-IF($O3=0,0,($BZ3/$O3*BM3)*0.5) -> 2.18059053e-29 | CD3: =-IF($O3=0,0,($BZ3/$O3*BN3)*0.5) -> 0 | CE3: =-IF($O3=0,0,($BZ3/$O3*BO3)*0.5) -> 0 | CF3: =+IF($O3=0,0,IF($BZ3<0,((BP3/$O3)*-$BZ3),((BP3/$O3)*$BZ3)))*0.5 -> 1.160436284e-29 | CG3: =+IF($O3=0,0,IF($BZ3<0,((BQ3/$O3)*-$BZ3),((BQ3/$O3)*$BZ3)))*0.5 -> 0 | CI3: =+(($N3*$F3*INDATABLAD!$D$254+Bangods_linjedel!$DF3*INDATABLAD!$D$255))*Y3 -> 0 | CJ3: =+IF($AN3="Nej",(($N3*($F3+$BF3)*INDATABLAD!$D$254+DG3*INDATABLAD!$D$255)),IF($BJ3="Ja",0,(($N3*($F3+$BF3)*INDATABLAD!$D$254+DG3*INDATABLAD!$D$255))*$Y3)) -> 0 | CK3: =+IF($AN3="Nej",(($N3*($F3+$BF3)*INDATABLAD!$D$254+DH3*INDATABLAD!$D$255)),IF($BJ3="ja",0,(($N3*($F3+$BF3)*INDATABLAD!$D$254+DH3*INDATABLAD!$D$255))*$Y3)) -> 0 | CL3: =+CI3-CJ3 -> 0 | CM3: =+DF3*INDATABLAD!$D$256*(1-$Y3) -> 41250510.83 | CN3: =+IF(AN3="Ja",DG3*INDATABLAD!$D$256,IF(AN3="Nej",0,DG3*INDATABLAD!$D$256*(1-Y3))) -> 41250510.83 | CO3: =+IF(DG3=0,0,CN3*DH3/DG3) -> 41250510.83 | CP3: =+$F3*$N3*BT3 -> 3486075.626 | CQ3: =+$DF3*BR3 -> 45808744.13 | CR3: =+DF3*(INDATABLAD!$D$248)+F3*N3*INDATABLAD!$D$249 -> 49294819.76 | CT3: =+IFERROR(VLOOKUP(G3,' Bandelsspec avg o ext'!$A:$T,17,FALSE)*$F3*$N3*DQ3/500,0) -> 42220.92424 | CU3: =+IF(V3=0,0,BU3*($F3+BF3)*$N3*(V3/U3)) -> 3486075.626 | CV3: =+DH3*BS3 -> 45808744.13 | CW3: =+IF(N3=0,0,DH3*(INDATABLAD!$D$248)+N3*(V3/U3)*(F3+BF3)*INDATABLAD!D$249) -> 49294819.76 | CY3: =+IFERROR(IF(V3=0,0,VLOOKUP(G3,' Bandelsspec avg o ext'!$A:$V,18,FALSE)*($F3+BF3)*$N3*(V3/U3)*(DR3/500)),0) -> 42220.92424 | CZ3: =+DA3+DB3 -> 0 | DA3: =+CU3-CP3 -> 0 | DB3: =+CV3-CQ3 -> 0 | DC3: =+CW3-CR3 -> 0 | DD3: =+CX3-CS3 -> 0 | DE3: =+CY3-CT3 -> 0 | DF3: =+O3*F3*AO3 -> 2115410812 | DG3: =+IF(U3=0,0,$O3*($F3+BF3)*V3/U3*$AO3) -> 2115410812 | DH3: =+DF3+CB3 -> 2115410812 | DI3: =+$F3*$N3*BU3 -> 3486075.626 | DJ3: =+$DF3*BS3 -> 45808744.13 | DK3: =+SUM(DI3:DJ3)-SUM(CP3:CQ3) -> 0 | DL3: =+IF(N3=0,0,SUMPRODUCT(P3:T3,Indata_Kalkylvärden!D$106:H$106)/N3) -> 1523.551324 | DM3: =+IF(N3=0,0,O3/N3) -> 1633.784679 | DN3: =+IF(N3=0,0,DM3/DL3) -> 1.0723529 | DO3: =+IF(N3=0,0,SUMPRODUCT(P3:T3,Indata_Kalkylvärden!D$109:H$109)/Bangods_linjedel!N3) -> 0.4654781197 | DP3: =+IF(N3=0,0,BZ3/N3*DO3) -> -1.071528661e-16 | DQ3: =+IF(N3=0,0,(SUMPRODUCT(P3:T3,Indata_Kalkylvärden!D$108:H$108)/Bangods_linjedel!N3)*DN3) -> 545.7554962 | DR3: =+IF(Bangods_linjedel!L3=0,DQ3+DP3,DQ3+DP3+Bangods_linjedel!L3) -> 545.7554962 | DS3: =+Bangods_linjedel!Z3 -> 66.91901606 | DT3: =+Bangods_linjedel!AB3 -> 39.14699992 | DU3: =+Bangods_linjedel!AF3 -> 66.83014399 | DV3: =+Bangods_linjedel!AD3+Bangods_linjedel!AE3 -> 78.28667023 | DW3: =+Bangods_linjedel!AG3 -> 1.53 | DX3: =+Bangods_linjedel!AH3 -> 5.355 | DY3: =+Bangods_linjedel!BG3 -> 4.440892099e-16 | DZ3: =+(Bangods_linjedel!BM3+Bangods_linjedel!CD3)/1000000 -> 3.09524062e-16 | EA3: =+(Bangods_linjedel!BO3+Bangods_linjedel!CE3)/1000000 -> 0 | EB3: =+(Bangods_linjedel!BP3+Bangods_linjedel!CF3)/1000000 -> 1.647182024e-16 | EC3: =+(Bangods_linjedel!BQ3+Bangods_linjedel!CG3)/1000000 -> 0 | ED3: =+Bangods_linjedel!DC3/1000000 -> 0 | EE3: =+Bangods_linjedel!DD3/1000000 -> 0 | EF3: =+Bangods_linjedel!DE3/1000000 -> 0 | EG3: =+Bangods_linjedel!DA3/1000000 -> 0 | EH3: =+Bangods_linjedel!DB3/1000000 -> 0 | EJ3: =+Bangods_linjedel!DQ3 -> 545.7554962 | EK3: =+Bangods_linjedel!DR3 -> 545.7554962 | EL3: =+Bangods_linjedel!BA3-Bangods_linjedel!AY3 -> 0 | EM3: =+B3 -> L100 | ET3: =+$N3*AB3 -> 348525.7403 | EU3: =+$N3*(AD3+AE3) -> 696986.225 | EV3: =+$O3*AG3 -> 22254745.05 | EW3: =+$O3*AH3 -> 77891607.68 | EX3: =+IF(Z3=0,0,(ET3*F3+EU3*F3/(Z3/60))) -> 80650155.37 | EY3: =+VLOOKUP(G3,' Bandelsspec avg o ext'!$A:$T,19,FALSE)*$F3*$N3 -> 99274.70475 | EZ3: =+F3*N3 -> 737613.55 | FB3: =+IF(N3=0,0,SUM(CP3:CQ3)/(F3*N3)) -> 66.83014399 | FE3: =+SUMIF(Länkar!I:I,Bangods_linjedel!B3,Länkar!Y:Y)/2 -> 82.84999943 | FG3: =+IF($N3=0,0,IF($G3="d",SUMPRODUCT($P3:$T3,Indata_Kalkylvärden!$I$139:$M$139))/$N3) -> 0 | FJ3: =+F3*O3 -> 1205101717 | FK3: =+FJ3+CA3 -> 1205101717 | FN3: =+ET3+EU3 -> 1045511.965 | FQ3: =+AB3*N3*F3 -> 28875357.58 | FR3: =+N3*F3/(Z3/60)*AD3 -> 36225492.63 | FS3: =+FQ3+FR3 -> 65100850.21
A4: =IFERROR(VLOOKUP(B4,' Fyrspår JA'!B:Z,25,FALSE),+VLOOKUP(B4,Länkar!I:AD,20,FALSE)) -> Malmbanan | B4: =+BANGODSINDATA!B3 -> L101 | C4: =+BANGODSINDATA!C3 -> Murjek-Gällivare | E4: =+BANGODSINDATA!D3 -> Koskivaara-Nattavaara | F4: =+IFERROR(BANGODSINDATA!F3,FE4) -> 81.24 | G4: =IFERROR((+VLOOKUP(B4,Länkar!I:AD,22,FALSE)),VLOOKUP(B4,' Fyrspår JA'!B:Z,25,FALSE)) -> 117 | N4: =+IFERROR(BANGODSINDATA!G3,0) -> 8584 | O4: =+IF(BANGODSINDATA!H3=0,0,BANGODSINDATA!H3*Kalkylsammanställning!G$2) -> 14313650 | P4: =+IFERROR(BANGODSINDATA!I3,0) -> 1888 | Q4: =+IF(BANGODSINDATA!J3="-",0,BANGODSINDATA!J3) -> 0 | R4: =+IFERROR(BANGODSINDATA!K3,0) -> 1358 | S4: =+IFERROR(BANGODSINDATA!L3,0) -> 3543 | T4: =+IFERROR(BANGODSINDATA!M3,0) -> 1796 | U4: =+($S4/BW4)+(P4+Q4+R4+T4)/BV4 -> 30.29085714 | V4: =+IF(U4+Bangods_linjedel!K4<0,0,U4+Bangods_linjedel!K4) -> 30.29085714 | W4: 10.12285714 | X4: =+V4-W4 -> 20.168 | Y4: =(IF(AM4="nej",100%,INDATABLAD!$D$268)) -> 0 | Z4: =+IF(N4=0,0,SUMPRODUCT(P4:T4,Indata_Kalkylvärden!D$104:H$104)/N4) -> 66.2470876 | AA4: =+IF(N4=0,0,SUMPRODUCT($P4:$T4,Indata_Kalkylvärden!$D$105:$H$105)/Bangods_linjedel!$N4) -> 395.5149115 | AB4: =IF(N4=0,0,(CM4*INDATABLAD!D$266+INDATABLAD!D$267*CI4)/(N4*F4)) -> 40.03761442 | AC4: =+IF(B4='Beskrivning av åtgärd'!$D$171,'Beskrivning av åtgärd'!$B$171*$N4,0) -> 0 | AD4: =+IF(N4=0,0,SUMPRODUCT(P4:T4,Indata_Kalkylvärden!D$117:H$117/Bangods_linjedel!N4)) -> 54.96961513 | AE4: =+IF(N4=0,0,SUMPRODUCT(P4:T4,Indata_Kalkylvärden!$D$116:$H$116)/N4)*DN4 -> 23.6555317 | AF4: 68.24304189 | AG4: =+Indata_Kalkylvärden!T$96 -> 1.53 | AH4: =+Indata_Kalkylvärden!T$97 -> 5.355 | AI4: =++IF(AA4=0,0,AA4*AB4+(AA4/Z4)*60*(AD4+AE4)) -> 44000.41098 | AJ4: =+AF4*AA4 -> 26991.14067 | AK4: 97982.69232 | AL4: =+IF(N4=0,0,SUMPRODUCT($P4:$T4,Indata_Kalkylvärden!$D$118:$H$118)/$N4) -> -0.4069816286 | AM4: =+VLOOKUP($G4,Länkar!$F:$V,16,FALSE) -> Ja | AN4: =+VLOOKUP($G4,Länkar!$F:$V,17,FALSE) -> Ja | AO4: =+IF(N4=0,0,(SUMPRODUCT(P4:T4,Indata_Kalkylvärden!$D$110:$H$110)/N4)) -> 1.759036523 | AP4: =+IFERROR(IF(B4=0,0,VLOOKUP(B4,'Kap.ber JA'!$B:$AI,7,FALSE)),0) -> esp | AQ4: =+IFERROR(IF(B4=0,0,VLOOKUP(B4,'Kap.ber UA'!B:H,7,FALSE)),0) -> esp | AR4: =+IFERROR(IF(B4=0,0,VLOOKUP(B4,'Kap.ber JA'!$B:$AI,8,FALSE)),0) -> 0.6156987407 | AS4: =+IFERROR(IF(B4=0,0,VLOOKUP(B4,'Kap.ber UA'!$B:$AL,8,FALSE)),0) -> 0.6156987407 | AT4: =+IF($AP4="esp",INDATABLAD!$D$568,INDATABLAD!$D$566) -> 2.58 | AU4: =+IF($AP4="Esp",INDATABLAD!$D$569,INDATABLAD!$D$567) -> 0.28 | AV4: =+IF($AQ4="Esp",INDATABLAD!$D$568,INDATABLAD!$D$566) -> 2.58 | AW4: =+IF($AQ4="Esp",INDATABLAD!$D$569,INDATABLAD!$D$567) -> 0.28 | AX4: =+INDATABLAD!$D$565 -> 0.3 | AY4: 10.63027635 | AZ4: 2.4372 | BA4: =+IF(BC4>0,BC4,IF((AS4*$AV4<$AW4),0,((AS4*$AV4-$AW4)*(F4+BF4)/10))) -> 10.63027635 | BB4: =+IF(BD4>0,BD4,(F4+BF4)/10*AX4) -> 2.4372 | BC4: =SUMIF('Gods_nya linjedelar_UA'!$D$4:$D$18,Bangods_linjedel!B4,'Gods_nya linjedelar_UA'!$J$4:$J$18) -> 0 | BD4: =SUMIF('Gods_nya linjedelar_UA'!$D$4:$D$18,Bangods_linjedel!B4,'Gods_nya linjedelar_UA'!$K$4:$K$18) -> 0 | BE4: =+Bangods_linjedel!H4 -> 0 | BF4: =+Bangods_linjedel!I4 -> 0 | BG4: =(BA4-AY4)+(BB4-AZ4)+BE4 -> -4.440892099e-16 | BH4: =+Bangods_linjedel!K4 -> 0 | BI4: =+IF(Bangods_linjedel!J4=0,(BA4-AY4)*0.05,Bangods_linjedel!J4) -> 0 | BJ4: =+IF(AN4=AM4,0,AN4) -> 0 | BL4: =+BM4+BN4+BO4 -> -1.073053675e-08 | BM4: =+(($BG4+$BI4)*($AD4+AE4)*$N4)+Bangods_linjedel!M4 -> -2.99723917e-10 | BN4: =+(CJ4-CI4)*INDATABLAD!D$267+INDATABLAD!D$266*(CN4-CM4) -> -1.043081284e-08 | BO4: =+DK4 -> 0 | BP4: -1.620917067e-10 | BQ4: 0 | BR4: =+IF(N4=0,0,('Beskrivning av åtgärd'!$C$165*(X4)+'Beskrivning av åtgärd'!$D$165*Bangods_linjedel!W4)/Bangods_linjedel!U4) -> 0.02165477451 | BS4: =+IF(O4=0,0,('Beskrivning av åtgärd'!$F$165*(X4)+'Beskrivning av åtgärd'!$G$165*Bangods_linjedel!W4)/Bangods_linjedel!U4) -> 0.02165477451 | BT4: =+IF(U4=0,0,('Beskrivning av åtgärd'!$C$166*(X4)+'Beskrivning av åtgärd'!$D$166*$W4)/$U4) -> 4.726154537 | BU4: =+IF(O4=0,0,('Beskrivning av åtgärd'!$F$166*(X4)+'Beskrivning av åtgärd'!$G$166*$W4)/$U4) -> 4.726154537 | BV4: 250 | BW4: 350 | BY4: =+IF(N4=0,0,N4*V4/U4*BF4) -> 0 | BZ4: =+IF(O4=0,0,(((BM4+BN4+BO4*'Beskrivning av åtgärd'!$C$176)/(AK4*N4))*AL4)*O4) -> 7.432031945e-11 | CA4: =+BZ4*AA4 -> 2.939479457e-08 | CB4: =+IF(AO4=0,0,AO4*CA4*V4/U4) -> 5.170651723e-08 | CC4: 7.781235833e-28 | CD4: 2.707979244e-26 | CE4: 0 | CF4: =+IF($O4=0,0,IF($BZ4<0,((BP4/$O4)*-$BZ4),((BP4/$O4)*$BZ4))) -> -8.416237245e-28 | CG4: =+IF($O4=0,0,IF($BZ4<0,((BQ4/$O4)*-$BZ4),((BQ4/$O4)*$BZ4)))*0.5 -> 0 | CI4: =+(($N4*$F4*INDATABLAD!$D$254+Bangods_linjedel!$DF4*INDATABLAD!$D$255))*Y4 -> 0 | CJ4: =+IF($AN4="Nej",(($N4*($F4+$BF4)*INDATABLAD!$D$254+DG4*INDATABLAD!$D$255)),IF($BJ4="Ja",0,(($N4*($F4+$BF4)*INDATABLAD!$D$254+DG4*INDATABLAD!$D$255))*$Y4)) -> 0 | CK4: =+IF($AN4="Nej",(($N4*($F4+$BF4)*INDATABLAD!$D$254+DH4*INDATABLAD!$D$255)),IF($BJ4="ja",0,(($N4*($F4+$BF4)*INDATABLAD!$D$254+DH4*INDATABLAD!$D$255))*$Y4)) -> 0 | CL4: =+CI4-CJ4 -> 0 | CM4: =+DF4*INDATABLAD!$D$256*(1-$Y4) -> 39886853.36 | CN4: =+IF(AN4="Ja",DG4*INDATABLAD!$D$256,IF(AN4="Nej",0,DG4*INDATABLAD!$D$256*(1-Y4))) -> 39886853.36 | CO4: 39886853.36 | CP4: =+F4*N4*BT4 -> 3295850.789 | CQ4: =+DF4*BR4 -> 44294400.79 | CR4: =+DF4*(INDATABLAD!$D$248)+F4*N4*INDATABLAD!$D$249 -> 47590251.58 | CT4: =+IFERROR(VLOOKUP(G4,' Bandelsspec avg o ext'!$A:$T,17,FALSE)*$F4*$N4*DQ4/500,0) -> 40444.85686 | CU4: 3295850.789 | CV4: =+DH4*BS4 -> 44294400.79 | CW4: =+IF(N4=0,0,DH4*(INDATABLAD!$D$248)+N4*(V4/U4)*(F4+BF4)*INDATABLAD!D$249) -> 47590251.58 | CY4: =+IFERROR(IF(V4=0,0,VLOOKUP(G4,' Bandelsspec avg o ext'!$A:$V,18,FALSE)*($F4+BF4)*$N4*(V4/U4)*(DR4/500)),0) -> 40444.85686 | CZ4: =+DA4+DB4 -> 0 | DA4: 0 | DB4: 0 | DC4: 0 | DD4: 0 | DE4: =+CY4-CT4 -> 0 | DF4: 2045479659 | DG4: 2045479659 | DH4: 2045479659 | DI4: 3295850.789 | DJ4: =+$DF4*BS4 -> 44294400.79 | DK4: =+SUM(DI4:DJ4)-SUM(CP4:CQ4) -> 0 | DL4: =+IF(N4=0,0,SUMPRODUCT(P4:T4,Indata_Kalkylvärden!D$106:H$106)/N4) -> 1557.020466 | DM4: 1667.480196 | DN4: 1.070943017 | DO4: =+IF(N4=0,0,SUMPRODUCT(P4:T4,Indata_Kalkylvärden!D$109:H$109)/Bangods_linjedel!N4) -> 0.4652618585 | DP4: =+IF(N4=0,0,BZ4/N4*DO4) -> 4.028239743e-15 | DQ4: =+IF(N4=0,0,(SUMPRODUCT(P4:T4,Indata_Kalkylvärden!D$108:H$108)/Bangods_linjedel!N4)*DN4) -> 552.9717531 | DR4: =+IF(Bangods_linjedel!L4=0,DQ4+DP4,DQ4+DP4+Bangods_linjedel!L4) -> 552.9717531 | DS4: =+Bangods_linjedel!Z4 -> 66.2470876 | DT4: =+Bangods_linjedel!AB4 -> 40.03761442 | DU4: =+Bangods_linjedel!AF4 -> 68.24304189 | DV4: =+Bangods_linjedel!AD4+Bangods_linjedel!AE4 -> 78.62514683 | DW4: =+Bangods_linjedel!AG4 -> 1.53 | DX4: =+Bangods_linjedel!AH4 -> 5.355 | DY4: =+Bangods_linjedel!BG4 -> -4.440892099e-16 | DZ4: =+(Bangods_linjedel!BM4+Bangods_linjedel!CD4)/1000000 -> -2.99723917e-16 | EA4: =+(Bangods_linjedel!BO4+Bangods_linjedel!CE4)/1000000 -> 0 | EB4: =+(Bangods_linjedel!BP4+Bangods_linjedel!CF4)/1000000 -> -1.620917067e-16 | EC4: =+(Bangods_linjedel!BQ4+Bangods_linjedel!CG4)/1000000 -> 0 | ED4: =+Bangods_linjedel!DC4/1000000 -> 0 | EE4: =+Bangods_linjedel!DD4/1000000 -> 0 | EF4: =+Bangods_linjedel!DE4/1000000 -> 0 | EG4: =+Bangods_linjedel!DA4/1000000 -> 0 | EH4: =+Bangods_linjedel!DB4/1000000 -> 0 | EJ4: =+Bangods_linjedel!DQ4 -> 552.9717531 | EK4: =+Bangods_linjedel!DR4 -> 552.9717531 | EL4: =+Bangods_linjedel!BA4-Bangods_linjedel!AY4 -> 0 | EM4: =+B4 -> L101 | ET4: =+$N4*AB4 -> 343682.8822 | EU4: =+$N4*(AD4+AE4) -> 674918.2604 | EV4: 21899884.5 | EW4: 76649595.75 | EX4: 77580664.48 | EY4: =+VLOOKUP(G4,' Bandelsspec avg o ext'!$A:$T,19,FALSE)*$F4*$N4 -> 93857.5777 | EZ4: 697364.16 | FB4: 68.24304189 | FE4: =+SUMIF(Länkar!I:I,Bangods_linjedel!B4,Länkar!Y:Y)/2 -> 81.23999953 | FG4: =+IF($N4=0,0,IF($G4="d",SUMPRODUCT($P4:$T4,Indata_Kalkylvärden!$I$139:$M$139))/$N4) -> 0 | FJ4: 1162840926 | FK4: 1162840926 | FN4: 1018601.143 | FQ4: 27920797.35 | FR4: =+IF(Z4=0,0,N4*F4/(Z4/60)*AD4) -> 34718965.8 | FS4: =+FQ4+FR4 -> 62639763.15
A5: =IFERROR(VLOOKUP(B5,' Fyrspår JA'!B:Z,25,FALSE),+VLOOKUP(B5,Länkar!I:AD,20,FALSE)) -> Malmbanan | B5: =+BANGODSINDATA!B4 -> L102 | C5: =+BANGODSINDATA!C4 -> Gällivare-Råtsi | E5: =+BANGODSINDATA!D4 -> Gällivare-Sikträsk | F5: =+IFERROR(BANGODSINDATA!F4,FE5) -> 92.34 | G5: =IFERROR((+VLOOKUP(B5,Länkar!I:AD,22,FALSE)),VLOOKUP(B5,' Fyrspår JA'!B:Z,25,FALSE)) -> 113 | N5: =+IFERROR(BANGODSINDATA!G4,0) -> 5896 | O5: =+IF(BANGODSINDATA!H4=0,0,BANGODSINDATA!H4*Kalkylsammanställning!G$2) -> 10229884 | P5: =+IFERROR(BANGODSINDATA!I4,0) -> 1851 | Q5: =+IF(BANGODSINDATA!J4="-",0,BANGODSINDATA!J4) -> 0 | R5: =+IFERROR(BANGODSINDATA!K4,0) -> 0 | S5: =+IFERROR(BANGODSINDATA!L4,0) -> 2250 | T5: =+IFERROR(BANGODSINDATA!M4,0) -> 1796 | U5: 21.01657143 | V5: =+IF(U5+Bangods_linjedel!K5<0,0,U5+Bangods_linjedel!K5) -> 21.01657143 | W5: 6.428571429 | X5: 14.588 | Y5: =(IF(AM5="nej",100%,INDATABLAD!$D$268)) -> 0 | Z5: =+IF(N5=0,0,SUMPRODUCT(P5:T5,Indata_Kalkylvärden!D$104:H$104)/N5) -> 66.56377205 | AA5: =+IF(N5=0,0,SUMPRODUCT($P5:$T5,Indata_Kalkylvärden!$D$105:$H$105)/Bangods_linjedel!$N5) -> 392.3677069 | AB5: =IF(N5=0,0,(CM5*INDATABLAD!D$266+INDATABLAD!D$267*CI5)/(N5*F5)) -> 42.94827416 | AC5: =+IF(B5='Beskrivning av åtgärd'!$D$171,'Beskrivning av åtgärd'!$B$171*$N5,0) -> 0 | AD5: =+IF(N5=0,0,SUMPRODUCT(P5:T5,Indata_Kalkylvärden!D$117:H$117/Bangods_linjedel!N5)) -> 48.96368547 | AE5: =+IF(N5=0,0,SUMPRODUCT(P5:T5,Indata_Kalkylvärden!$D$116:$H$116)/N5)*DN5 -> 25.87864271 | AF5: 72.86060089 | AG5: =+Indata_Kalkylvärden!T$96 -> 1.53 | AH5: =+Indata_Kalkylvärden!T$97 -> 5.355 | AI5: 43321.51157 | AJ5: 28588.14689 | AK5: 100497.8054 | AL5: =+IF(N5=0,0,SUMPRODUCT($P5:$T5,Indata_Kalkylvärden!$D$118:$H$118)/$N5) -> -0.5761995251 | AM5: =+VLOOKUP($G5,Länkar!$F:$V,16,FALSE) -> Ja | AN5: =+VLOOKUP($G5,Länkar!$F:$V,17,FALSE) -> Ja | AO5: =+IF(N5=0,0,(SUMPRODUCT(P5:T5,Indata_Kalkylvärden!$D$110:$H$110)/N5)) -> 1.813425971 | AP5: =+IFERROR(IF(B5=0,0,VLOOKUP(B5,'Kap.ber JA'!$B:$AI,7,FALSE)),0) -> esp | AQ5: =+IFERROR(IF(B5=0,0,VLOOKUP(B5,'Kap.ber UA'!B:H,7,FALSE)),0) -> esp | AR5: =+IFERROR(IF(B5=0,0,VLOOKUP(B5,'Kap.ber JA'!$B:$AI,8,FALSE)),0) -> 0.836491104 | AS5: =+IFERROR(IF(B5=0,0,VLOOKUP(B5,'Kap.ber UA'!$B:$AL,8,FALSE)),0) -> 0.836491104 | AT5: =+IF($AP5="esp",INDATABLAD!$D$568,INDATABLAD!$D$566) -> 2.58 | AU5: =+IF($AP5="Esp",INDATABLAD!$D$569,INDATABLAD!$D$567) -> 0.28 | AV5: =+IF($AQ5="Esp",INDATABLAD!$D$568,INDATABLAD!$D$566) -> 2.58 | AW5: =+IF($AQ5="Esp",INDATABLAD!$D$569,INDATABLAD!$D$567) -> 0.28 | AX5: =+INDATABLAD!$D$565 -> 0.3 | AY5: 17.34280984 | AZ5: 2.7702 | BA5: 17.34280984 | BB5: 2.7702 | BC5: =SUMIF('Gods_nya linjedelar_UA'!$D$4:$D$18,Bangods_linjedel!B5,'Gods_nya linjedelar_UA'!$J$4:$J$18) -> 0 | BD5: =SUMIF('Gods_nya linjedelar_UA'!$D$4:$D$18,Bangods_linjedel!B5,'Gods_nya linjedelar_UA'!$K$4:$K$18) -> 0 | BE5: =+Bangods_linjedel!H5 -> 0 | BF5: =+Bangods_linjedel!I5 -> 0 | BG5: 0 | BH5: =+Bangods_linjedel!K5 -> 0 | BI5: =+IF(Bangods_linjedel!J5=0,(BA5-AY5)*0.05,Bangods_linjedel!J5) -> 0 | BJ5: 0 | BL5: 0 | BM5: =+(($BG5+$BI5)*($AD5+AE5)*$N5)+Bangods_linjedel!M5 -> 0 | BN5: =+(CJ5-CI5)*INDATABLAD!D$267+INDATABLAD!D$266*(CN5-CM5) -> 0 | BO5: 0 | BP5: 0 | BQ5: 0 | BR5: =+IF(N5=0,0,('Beskrivning av åtgärd'!$C$165*(X5)+'Beskrivning av åtgärd'!$D$165*Bangods_linjedel!W5)/Bangods_linjedel!U5) -> 0.02165477451 | BS5: =+IF(O5=0,0,('Beskrivning av åtgärd'!$F$165*(X5)+'Beskrivning av åtgärd'!$G$165*Bangods_linjedel!W5)/Bangods_linjedel!U5) -> 0.02165477451 | BT5: =+IF(U5=0,0,('Beskrivning av åtgärd'!$C$166*(X5)+'Beskrivning av åtgärd'!$D$166*$W5)/$U5) -> 4.726154537 | BU5: =+IF(O5=0,0,('Beskrivning av åtgärd'!$F$166*(X5)+'Beskrivning av åtgärd'!$G$166*$W5)/$U5) -> 4.726154537 | BV5: 250 | BW5: 350 | BY5: =+IF(N5=0,0,N5*BF5) -> 0 | BZ5: =+IF(O5=0,0,(((BM5+BN5+BO5*'Beskrivning av åtgärd'!$C$176)/(AK5*N5))*AL5)*O5) -> 0 | CA5: 0 | CB5: =+IF(AO5=0,0,AO5*CA5*V5/U5) -> 0 | CC5: 0 | CD5: 0 | CE5: 0 | CF5: 0 | CG5: 0 | CI5: =+(($N5*$F5*INDATABLAD!$D$254+Bangods_linjedel!$DF5*INDATABLAD!$D$255))*Y5 -> 0 | CJ5: =+IF($AN5="Nej",(($N5*($F5+$BF5)*INDATABLAD!$D$254+DG5*INDATABLAD!$D$255)),IF($BJ5="Ja",0,(($N5*($F5+$BF5)*INDATABLAD!$D$254+DG5*INDATABLAD!$D$255))*$Y5)) -> 0 | CK5: =+IF($AN5="Nej",(($N5*($F5+$BF5)*INDATABLAD!$D$254+DH5*INDATABLAD!$D$255)),IF($BJ5="ja",0,(($N5*($F5+$BF5)*INDATABLAD!$D$254+DH5*INDATABLAD!$D$255))*$Y5)) -> 0 | CL5: 0 | CM5: =+DF5*INDATABLAD!$D$256*(1-$Y5) -> 33403734.4 | CN5: =+IF(AN5="Ja",DG5*INDATABLAD!$D$256,IF(AN5="Nej",0,DG5*INDATABLAD!$D$256*(1-Y5))) -> 33403734.4 | CO5: 33403734.4 | CP5: 2573091.696 | CQ5: 37094889.04 | CR5: =+DF5*(INDATABLAD!$D$248)+F5*N5*INDATABLAD!$D$249 -> 39667980.73 | CT5: =+IFERROR(VLOOKUP(G5,' Bandelsspec avg o ext'!$A:$T,17,FALSE)*$F5*$N5*DQ5/500,0) -> 79341.53556 | CU5: 2573091.696 | CV5: 37094889.04 | CW5: =+IF(N5=0,0,DH5*(INDATABLAD!$D$248)+N5*(V5/U5)*(F5+BF5)*INDATABLAD!D$249) -> 39667980.73 | CY5: =+IFERROR(IF(V5=0,0,VLOOKUP(G5,' Bandelsspec avg o ext'!$A:$V,18,FALSE)*($F5+BF5)*$N5*(V5/U5)*(DR5/500)),0) -> 79341.53556 | CZ5: 0 | DA5: 0 | DB5: 0 | DC5: 0 | DD5: 0 | DE5: 0 | DF5: 1713012020 | DG5: 1713012020 | DH5: 1713012020 | DI5: 2573091.696 | DJ5: 37094889.04 | DK5: 0 | DL5: =+IF(N5=0,0,SUMPRODUCT(P5:T5,Indata_Kalkylvärden!D$106:H$106)/N5) -> 1462.239412 | DM5: 1735.054953 | DN5: 1.186573784 | DO5: =+IF(N5=0,0,SUMPRODUCT(P5:T5,Indata_Kalkylvärden!D$109:H$109)/Bangods_linjedel!N5) -> 0.512825309 | DP5: 0 | DQ5: =+IF(N5=0,0,(SUMPRODUCT(P5:T5,Indata_Kalkylvärden!D$108:H$108)/Bangods_linjedel!N5)*DN5) -> 609.2756998 | DR5: =+IF(Bangods_linjedel!L5=0,DQ5+DP5,DQ5+DP5+Bangods_linjedel!L5) -> 609.2756998 | DS5: =+Bangods_linjedel!Z5 -> 66.56377205 | DT5: =+Bangods_linjedel!AB5 -> 42.94827416 | DU5: =+Bangods_linjedel!AF5 -> 72.86060089 | DV5: =+Bangods_linjedel!AD5+Bangods_linjedel!AE5 -> 74.84232818 | DW5: =+Bangods_linjedel!AG5 -> 1.53 | DX5: =+Bangods_linjedel!AH5 -> 5.355 | DY5: =+Bangods_linjedel!BG5 -> 0 | DZ5: =+(Bangods_linjedel!BM5+Bangods_linjedel!CD5)/1000000 -> 0 | EA5: =+(Bangods_linjedel!BO5+Bangods_linjedel!CE5)/1000000 -> 0 | EB5: =+(Bangods_linjedel!BP5+Bangods_linjedel!CF5)/1000000 -> 0 | EC5: =+(Bangods_linjedel!BQ5+Bangods_linjedel!CG5)/1000000 -> 0 | ED5: =+Bangods_linjedel!DC5/1000000 -> 0 | EE5: =+Bangods_linjedel!DD5/1000000 -> 0 | EF5: =+Bangods_linjedel!DE5/1000000 -> 0 | EG5: =+Bangods_linjedel!DA5/1000000 -> 0 | EH5: =+Bangods_linjedel!DB5/1000000 -> 0 | EJ5: =+Bangods_linjedel!DQ5 -> 609.2756998 | EK5: =+Bangods_linjedel!DR5 -> 609.2756998 | EL5: =+Bangods_linjedel!BA5-Bangods_linjedel!AY5 -> 0 | EM5: L102 | ET5: 253223.0245 | EU5: 441270.3669 | EV5: 15651722.52 | EW5: 54781028.82 | EX5: 60111517.29 | EY5: =+VLOOKUP(G5,' Bandelsspec avg o ext'!$A:$T,19,FALSE)*$F5*$N5 -> 167107.4186 | EZ5: 544436.64 | FB5: 72.86060089 | FE5: =+SUMIF(Länkar!I:I,Bangods_linjedel!B5,Länkar!Y:Y)/2 -> 92.33999991 | FG5: =+IF($N5=0,0,IF($G5="d",SUMPRODUCT($P5:$T5,Indata_Kalkylvärden!$I$139:$M$139))/$N5) -> 0 | FJ5: 944627488.6 | FK5: 944627488.6 | FN5: 694493.3914 | FQ5: 23382614.08 | FR5: 24028948.7 | FS5: 47411562.78
A6: =IFERROR(VLOOKUP(B6,' Fyrspår JA'!B:Z,25,FALSE),+VLOOKUP(B6,Länkar!I:AD,20,FALSE)) -> Malmbanan | B6: =+BANGODSINDATA!B5 -> L103 | C6: =+BANGODSINDATA!C5 -> Råtsi-Peuravaara | E6: =+BANGODSINDATA!D5 -> Peuravaara-Kirunavaara | F6: =+IFERROR(BANGODSINDATA!F5,FE6) -> 11.46 | G6: =IFERROR((+VLOOKUP(B6,Länkar!I:AD,22,FALSE)),VLOOKUP(B6,' Fyrspår JA'!B:Z,25,FALSE)) -> 113 | N6: =+IFERROR(BANGODSINDATA!G5,0) -> 9864 | O6: =+IF(BANGODSINDATA!H5=0,0,BANGODSINDATA!H5*Kalkylsammanställning!G$2) -> 22228660 | P6: =+IFERROR(BANGODSINDATA!I5,0) -> 1851 | Q6: =+IF(BANGODSINDATA!J5="-",0,BANGODSINDATA!J5) -> 0 | R6: =+IFERROR(BANGODSINDATA!K5,0) -> 1468 | S6: =+IFERROR(BANGODSINDATA!L5,0) -> 4749 | T6: =+IFERROR(BANGODSINDATA!M5,0) -> 1796 | U6: 34.02857143 | V6: =+IF(U6+Bangods_linjedel!K6<0,0,U6+Bangods_linjedel!K6) -> 34.02857143 | W6: 13.56857143 | X6: 20.46 | Y6: =(IF(AM6="nej",100%,INDATABLAD!$D$268)) -> 0 | Z6: =+IF(N6=0,0,SUMPRODUCT(P6:T6,Indata_Kalkylvärden!D$104:H$104)/N6) -> 63.83769262 | AA6: =+IF(N6=0,0,SUMPRODUCT($P6:$T6,Indata_Kalkylvärden!$D$105:$H$105)/Bangods_linjedel!$N6) -> 384.9452555 | AB6: =IF(N6=0,0,(CM6*INDATABLAD!D$266+INDATABLAD!D$267*CI6)/(N6*F6)) -> 53.49221516 | AC6: =+IF(B6='Beskrivning av åtgärd'!$D$171,'Beskrivning av åtgärd'!$B$171*$N6,0) -> 0 | AD6: =+IF(N6=0,0,SUMPRODUCT(P6:T6,Indata_Kalkylvärden!D$117:H$117/Bangods_linjedel!N6)) -> 58.98809558 | AE6: =+IF(N6=0,0,SUMPRODUCT(P6:T6,Indata_Kalkylvärden!$D$116:$H$116)/N6)*DN6 -> 29.75182792 | AF6: 89.58782908 | AG6: =+Indata_Kalkylvärden!T$96 -> 1.53 | AH6: =+Indata_Kalkylvärden!T$97 -> 5.355 | AI6: 52698.00979 | AJ6: 34486.40975 | AK6: 121670.8293 | AL6: =+IF(N6=0,0,SUMPRODUCT($P6:$T6,Indata_Kalkylvärden!$D$118:$H$118)/$N6) -> -0.3533796127 | AM6: =+VLOOKUP($G6,Länkar!$F:$V,16,FALSE) -> Ja | AN6: =+VLOOKUP($G6,Länkar!$F:$V,17,FALSE) -> Ja | AO6: =+IF(N6=0,0,(SUMPRODUCT(P6:T6,Indata_Kalkylvärden!$D$110:$H$110)/N6)) -> 1.738992512 | AP6: =+IFERROR(IF(B6=0,0,VLOOKUP(B6,'Kap.ber JA'!$B:$AI,7,FALSE)),0) -> esp | AQ6: =+IFERROR(IF(B6=0,0,VLOOKUP(B6,'Kap.ber UA'!B:H,7,FALSE)),0) -> esp | AR6: =+IFERROR(IF(B6=0,0,VLOOKUP(B6,'Kap.ber JA'!$B:$AI,8,FALSE)),0) -> 0.8314039683 | AS6: =+IFERROR(IF(B6=0,0,VLOOKUP(B6,'Kap.ber UA'!$B:$AL,8,FALSE)),0) -> 0.8314039683 | AT6: =+IF($AP6="esp",INDATABLAD!$D$568,INDATABLAD!$D$566) -> 2.58 | AU6: =+IF($AP6="Esp",INDATABLAD!$D$569,INDATABLAD!$D$567) -> 0.28 | AV6: =+IF($AQ6="Esp",INDATABLAD!$D$568,INDATABLAD!$D$566) -> 2.58 | AW6: =+IF($AQ6="Esp",INDATABLAD!$D$569,INDATABLAD!$D$567) -> 0.28 | AX6: =+INDATABLAD!$D$565 -> 0.3 | AY6: 2.137315485 | AZ6: 0.3438 | BA6: 2.137315485 | BB6: 0.3438 | BC6: =SUMIF('Gods_nya linjedelar_UA'!$D$4:$D$18,Bangods_linjedel!B6,'Gods_nya linjedelar_UA'!$J$4:$J$18) -> 0 | BD6: =SUMIF('Gods_nya linjedelar_UA'!$D$4:$D$18,Bangods_linjedel!B6,'Gods_nya linjedelar_UA'!$K$4:$K$18) -> 0 | BE6: =+Bangods_linjedel!H6 -> 0 | BF6: =+Bangods_linjedel!I6 -> 0 | BG6: 5.551115123e-17 | BH6: =+Bangods_linjedel!K6 -> 0 | BI6: =+IF(Bangods_linjedel!J6=0,(BA6-AY6)*0.05,Bangods_linjedel!J6) -> 0 | BJ6: 0 | BL6: -1.255260995e-09 | BM6: =+(($BG6+$BI6)*($AD6+AE6)*$N6)+Bangods_linjedel!M6 -> 4.859060961e-11 | BN6: =+(CJ6-CI6)*INDATABLAD!D$267+INDATABLAD!D$266*(CN6-CM6) -> -1.303851604e-09 | BO6: 0 | BP6: 3.146543193e-11 | BQ6: 0 | BR6: =+IF(N6=0,0,('Beskrivning av åtgärd'!$C$165*(X6)+'Beskrivning av åtgärd'!$D$165*Bangods_linjedel!W6)/Bangods_linjedel!U6) -> 0.02165477451 | BS6: =+IF(O6=0,0,('Beskrivning av åtgärd'!$F$165*(X6)+'Beskrivning av åtgärd'!$G$165*Bangods_linjedel!W6)/Bangods_linjedel!U6) -> 0.02165477451 | BT6: =+IF(U6=0,0,('Beskrivning av åtgärd'!$C$166*(X6)+'Beskrivning av åtgärd'!$D$166*$W6)/$U6) -> 4.726154537 | BU6: =+IF(O6=0,0,('Beskrivning av åtgärd'!$F$166*(X6)+'Beskrivning av åtgärd'!$G$166*$W6)/$U6) -> 4.726154537 | BV6: 250 | BW6: 350 | BY6: 0 | BZ6: =+IF(O6=0,0,(((BM6+BN6+BO6*'Beskrivning av åtgärd'!$C$176)/(AK6*N6))*AL6)*O6) -> 8.215788977e-12 | CA6: 3.162628987e-09 | CB6: 5.499788126e-09 | CC6: -8.979627987e-30 | CD6: 2.409540125e-28 | CE6: 0 | CF6: 1.162973156e-29 | CG6: 0 | CI6: =+(($N6*$F6*INDATABLAD!$D$254+Bangods_linjedel!$DF6*INDATABLAD!$D$255))*Y6 -> 0 | CJ6: =+IF($AN6="Nej",(($N6*($F6+$BF6)*INDATABLAD!$D$254+DG6*INDATABLAD!$D$255)),IF($BJ6="Ja",0,(($N6*($F6+$BF6)*INDATABLAD!$D$254+DG6*INDATABLAD!$D$255))*$Y6)) -> 0 | CK6: =+IF($AN6="Nej",(($N6*($F6+$BF6)*INDATABLAD!$D$254+DH6*INDATABLAD!$D$255)),IF($BJ6="ja",0,(($N6*($F6+$BF6)*INDATABLAD!$D$254+DH6*INDATABLAD!$D$255))*$Y6)) -> 0 | CL6: 0 | CM6: =+DF6*INDATABLAD!$D$256*(1-$Y6) -> 8638338.616 | CN6: =+IF(AN6="Ja",DG6*INDATABLAD!$D$256,IF(AN6="Nej",0,DG6*INDATABLAD!$D$256*(1-Y6))) -> 8638338.616 | CO6: 8638338.616 | CP6: 534251.3146 | CQ6: 9592885.892 | CR6: =+DF6*(INDATABLAD!$D$248)+F6*N6*INDATABLAD!$D$249 -> 10127137.21 | CT6: =+IFERROR(VLOOKUP(G6,' Bandelsspec avg o ext'!$A:$T,17,FALSE)*$F6*$N6*DQ6/500,0) -> 19162.19806 | CU6: 534251.3146 | CV6: 9592885.892 | CW6: =+IF(N6=0,0,DH6*(INDATABLAD!$D$248)+N6*(V6/U6)*(F6+BF6)*INDATABLAD!D$249) -> 10127137.21 | CY6: =+IFERROR(IF(V6=0,0,VLOOKUP(G6,' Bandelsspec avg o ext'!$A:$V,18,FALSE)*($F6+BF6)*$N6*(V6/U6)*(DR6/500)),0) -> 19162.19806 | CZ6: 0 | DA6: 0 | DB6: 0 | DC6: 0 | DD6: 0 | DE6: 0 | DF6: 442991723.9 | DG6: 442991723.9 | DH6: 442991723.9 | DI6: 534251.3146 | DJ6: 9592885.892 | DK6: 0 | DL6: =+IF(N6=0,0,SUMPRODUCT(P6:T6,Indata_Kalkylvärden!D$106:H$106)/N6) -> 1726.766077 | DM6: 2253.513788 | DN6: 1.305048679 | DO6: =+IF(N6=0,0,SUMPRODUCT(P6:T6,Indata_Kalkylvärden!D$109:H$109)/Bangods_linjedel!N6) -> 0.4361396359 | DP6: 3.63263505e-16 | DQ6: =+IF(N6=0,0,(SUMPRODUCT(P6:T6,Indata_Kalkylvärden!D$108:H$108)/Bangods_linjedel!N6)*DN6) -> 708.7094834 | DR6: =+IF(Bangods_linjedel!L6=0,DQ6+DP6,DQ6+DP6+Bangods_linjedel!L6) -> 708.7094834 | DS6: =+Bangods_linjedel!Z6 -> 63.83769262 | DT6: =+Bangods_linjedel!AB6 -> 53.49221516 | DU6: =+Bangods_linjedel!AF6 -> 89.58782908 | DV6: =+Bangods_linjedel!AD6+Bangods_linjedel!AE6 -> 88.7399235 | DW6: =+Bangods_linjedel!AG6 -> 1.53 | DX6: =+Bangods_linjedel!AH6 -> 5.355 | DY6: =+Bangods_linjedel!BG6 -> 5.551115123e-17 | DZ6: =+(Bangods_linjedel!BM6+Bangods_linjedel!CD6)/1000000 -> 4.859060961e-17 | EA6: =+(Bangods_linjedel!BO6+Bangods_linjedel!CE6)/1000000 -> 0 | EB6: =+(Bangods_linjedel!BP6+Bangods_linjedel!CF6)/1000000 -> 3.146543193e-17 | EC6: =+(Bangods_linjedel!BQ6+Bangods_linjedel!CG6)/1000000 -> 0 | ED6: =+Bangods_linjedel!DC6/1000000 -> 0 | EE6: =+Bangods_linjedel!DD6/1000000 -> 0 | EF6: =+Bangods_linjedel!DE6/1000000 -> 0 | EG6: =+Bangods_linjedel!DA6/1000000 -> 0 | EH6: =+Bangods_linjedel!DB6/1000000 -> 0 | EJ6: =+Bangods_linjedel!DQ6 -> 708.7094834 | EK6: =+Bangods_linjedel!DR6 -> 708.7094834 | EL6: =+Bangods_linjedel!BA6-Bangods_linjedel!AY6 -> 0 | EM6: L103 | ET6: 527647.2104 | EU6: 875330.6054 | EV6: 34009849.8 | EW6: 119034474.3 | EX6: 15475080.75 | EY6: =+VLOOKUP(G6,' Bandelsspec avg o ext'!$A:$T,19,FALSE)*$F6*$N6 -> 34696.53188 | EZ6: 113041.44 | FB6: 89.58782908 | FE6: =+SUMIF(Länkar!I:I,Bangods_linjedel!B6,Länkar!Y:Y)/2 -> 11.4599998 | FG6: =+IF($N6=0,0,IF($G6="d",SUMPRODUCT($P6:$T6,Indata_Kalkylvärden!$I$139:$M$139))/$N6) -> 0 | FJ6: 254740443.6 | FK6: 254740443.6 | FN6: 1402977.816 | FQ6: 6046837.031 | FR6: 6267237.108 | FS6: 12314074.14
A7: =IFERROR(VLOOKUP(B7,' Fyrspår JA'!B:Z,25,FALSE),+VLOOKUP(B7,Länkar!I:AD,20,FALSE)) -> Malmbanan | B7: =+BANGODSINDATA!B6 -> L104 | C7: =+BANGODSINDATA!C6 -> Peuravaara-Riksgränsen | E7: =+BANGODSINDATA!D6 -> Kopparåsen-Vassijaure | F7: =+IFERROR(BANGODSINDATA!F6,FE7) -> 126.24 | G7: =IFERROR((+VLOOKUP(B7,Länkar!I:AD,22,FALSE)),VLOOKUP(B7,' Fyrspår JA'!B:Z,25,FALSE)) -> 111 | N7: =+IFERROR(BANGODSINDATA!G6,0) -> 11443 | O7: =+IF(BANGODSINDATA!H6=0,0,BANGODSINDATA!H6*Kalkylsammanställning!G$2) -> 30626867 | P7: =+IFERROR(BANGODSINDATA!I6,0) -> 199 | Q7: =+IF(BANGODSINDATA!J6="-",0,BANGODSINDATA!J6) -> 0 | R7: =+IFERROR(BANGODSINDATA!K6,0) -> 1468 | S7: =+IFERROR(BANGODSINDATA!L6,0) -> 7980 | T7: =+IFERROR(BANGODSINDATA!M6,0) -> 1796 | U7: 36.652 | V7: =+IF(U7+Bangods_linjedel!K7<0,0,U7+Bangods_linjedel!K7) -> 36.652 | W7: 22.8 | X7: 13.852 | Y7: =(IF(AM7="nej",100%,INDATABLAD!$D$268)) -> 0 | Z7: =+IF(N7=0,0,SUMPRODUCT(P7:T7,Indata_Kalkylvärden!D$104:H$104)/N7) -> 57.62911824 | AA7: =+IF(N7=0,0,SUMPRODUCT($P7:$T7,Indata_Kalkylvärden!$D$105:$H$105)/Bangods_linjedel!$N7) -> 358.7870314 | AB7: =IF(N7=0,0,(CM7*INDATABLAD!D$266+INDATABLAD!D$267*CI7)/(N7*F7)) -> 61.01980902 | AC7: =+IF(B7='Beskrivning av åtgärd'!$D$171,'Beskrivning av åtgärd'!$B$171*$N7,0) -> 0 | AD7: =+IF(N7=0,0,SUMPRODUCT(P7:T7,Indata_Kalkylvärden!D$117:H$117/Bangods_linjedel!N7)) -> 68.60303573 | AE7: =+IF(N7=0,0,SUMPRODUCT(P7:T7,Indata_Kalkylvärden!$D$116:$H$116)/N7)*DN7 -> 29.42502902 | AF7: 101.5298326 | AG7: =+Indata_Kalkylvärden!T$96 -> 1.53 | AH7: =+Indata_Kalkylvärden!T$97 -> 5.355 | AI7: 58511.26968 | AJ7: 36427.58722 | AK7: 131366.4441 | AL7: =+IF(N7=0,0,SUMPRODUCT($P7:$T7,Indata_Kalkylvärden!$D$118:$H$118)/$N7) -> -0.1659975706 | AM7: =+VLOOKUP($G7,Länkar!$F:$V,16,FALSE) -> Ja | AN7: =+VLOOKUP($G7,Länkar!$F:$V,17,FALSE) -> Ja | AO7: =+IF(N7=0,0,(SUMPRODUCT(P7:T7,Indata_Kalkylvärden!$D$110:$H$110)/N7)) -> 1.670227069 | AP7: =+IFERROR(IF(B7=0,0,VLOOKUP(B7,'Kap.ber JA'!$B:$AI,7,FALSE)),0) -> esp | AQ7: =+IFERROR(IF(B7=0,0,VLOOKUP(B7,'Kap.ber UA'!B:H,7,FALSE)),0) -> esp | AR7: =+IFERROR(IF(B7=0,0,VLOOKUP(B7,'Kap.ber JA'!$B:$AI,8,FALSE)),0) -> 0.700875 | AS7: =+IFERROR(IF(B7=0,0,VLOOKUP(B7,'Kap.ber UA'!$B:$AL,8,FALSE)),0) -> 0.700875 | AT7: =+IF($AP7="esp",INDATABLAD!$D$568,INDATABLAD!$D$566) -> 2.58 | AU7: =+IF($AP7="Esp",INDATABLAD!$D$569,INDATABLAD!$D$567) -> 0.28 | AV7: =+IF($AQ7="Esp",INDATABLAD!$D$568,INDATABLAD!$D$566) -> 2.58 | AW7: =+IF($AQ7="Esp",INDATABLAD!$D$569,INDATABLAD!$D$567) -> 0.28 | AX7: =+INDATABLAD!$D$565 -> 0.3 | AY7: 19.29272268 | AZ7: 3.7872 | BA7: 19.29272268 | BB7: 3.7872 | BC7: =SUMIF('Gods_nya linjedelar_UA'!$D$4:$D$18,Bangods_linjedel!B7,'Gods_nya linjedelar_UA'!$J$4:$J$18) -> 0 | BD7: =SUMIF('Gods_nya linjedelar_UA'!$D$4:$D$18,Bangods_linjedel!B7,'Gods_nya linjedelar_UA'!$K$4:$K$18) -> 0 | BE7: =+Bangods_linjedel!H7 -> 0 | BF7: =+Bangods_linjedel!I7 -> 0 | BG7: -4.440892099e-16 | BH7: =+Bangods_linjedel!K7 -> 0 | BI7: =+IF(Bangods_linjedel!J7=0,(BA7-AY7)*0.05,Bangods_linjedel!J7) -> 0 | BJ7: 0 | BL7: -4.981504742e-10 | BM7: =+(($BG7+$BI7)*($AD7+AE7)*$N7)+Bangods_linjedel!M7 -> -4.981504742e-10 | BN7: =+(CJ7-CI7)*INDATABLAD!D$267+INDATABLAD!D$266*(CN7-CM7) -> 0 | BO7: 0 | BP7: -3.468270597e-10 | BQ7: 0 | BR7: =+IF(N7=0,0,('Beskrivning av åtgärd'!$C$165*(X7)+'Beskrivning av åtgärd'!$D$165*Bangods_linjedel!W7)/Bangods_linjedel!U7) -> 0.02165477451 | BS7: =+IF(O7=0,0,('Beskrivning av åtgärd'!$F$165*(X7)+'Beskrivning av åtgärd'!$G$165*Bangods_linjedel!W7)/Bangods_linjedel!U7) -> 0.02165477451 | BT7: =+IF(U7=0,0,('Beskrivning av åtgärd'!$C$166*(X7)+'Beskrivning av åtgärd'!$D$166*$W7)/$U7) -> 4.726154537 | BU7: =+IF(O7=0,0,('Beskrivning av åtgärd'!$F$166*(X7)+'Beskrivning av åtgärd'!$G$166*$W7)/$U7) -> 4.726154537 | BV7: 250 | BW7: 350 | BY7: 0 | BZ7: =+IF(O7=0,0,(((BM7+BN7+BO7*'Beskrivning av åtgärd'!$C$176)/(AK7*N7))*AL7)*O7) -> 1.684769572e-12 | CA7: 6.044734733e-10 | CB7: 1.009607958e-09 | CC7: 1.370151183e-29 | CD7: 0 | CE7: 0 | CF7: -1.907879369e-29 | CG7: 0 | CI7: =+(($N7*$F7*INDATABLAD!$D$254+Bangods_linjedel!$DF7*INDATABLAD!$D$255))*Y7 -> 0 | CJ7: =+IF($AN7="Nej",(($N7*($F7+$BF7)*INDATABLAD!$D$254+DG7*INDATABLAD!$D$255)),IF($BJ7="Ja",0,(($N7*($F7+$BF7)*INDATABLAD!$D$254+DG7*INDATABLAD!$D$255))*$Y7)) -> 0 | CK7: =+IF($AN7="Nej",(($N7*($F7+$BF7)*INDATABLAD!$D$254+DH7*INDATABLAD!$D$255)),IF($BJ7="ja",0,(($N7*($F7+$BF7)*INDATABLAD!$D$254+DH7*INDATABLAD!$D$255))*$Y7)) -> 0 | CL7: 0 | CM7: =+DF7*INDATABLAD!$D$256*(1-$Y7) -> 125924341.3 | CN7: =+IF(AN7="Ja",DG7*INDATABLAD!$D$256,IF(AN7="Nej",0,DG7*INDATABLAD!$D$256*(1-Y7))) -> 125924341.3 | CO7: 125924341.3 | CP7: 6827234.216 | CQ7: 139839139.3 | CR7: =+DF7*(INDATABLAD!$D$248)+F7*N7*INDATABLAD!$D$249 -> 146666373.5 | CT7: =+IFERROR(VLOOKUP(G7,' Bandelsspec avg o ext'!$A:$T,17,FALSE)*$F7*$N7*DQ7/500,0) -> 243768.5459 | CU7: 6827234.216 | CV7: 139839139.3 | CW7: =+IF(N7=0,0,DH7*(INDATABLAD!$D$248)+N7*(V7/U7)*(F7+BF7)*INDATABLAD!D$249) -> 146666373.5 | CY7: =+IFERROR(IF(V7=0,0,VLOOKUP(G7,' Bandelsspec avg o ext'!$A:$V,18,FALSE)*($F7+BF7)*$N7*(V7/U7)*(DR7/500)),0) -> 243768.5459 | CZ7: 0 | DA7: 0 | DB7: 0 | DC7: 0 | DD7: 0 | DE7: 0 | DF7: 6457658529 | DG7: 6457658529 | DH7: 6457658529 | DI7: 6827234.216 | DJ7: 139839139.3 | DK7: 0 | DL7: =+IF(N7=0,0,SUMPRODUCT(P7:T7,Indata_Kalkylvärden!D$106:H$106)/N7) -> 2260.781746 | DM7: 2676.471817 | DN7: 1.183870058 | DO7: =+IF(N7=0,0,SUMPRODUCT(P7:T7,Indata_Kalkylvärden!D$109:H$109)/Bangods_linjedel!N7) -> 0.3382225917 | DP7: 4.979700524e-17 | DQ7: =+IF(N7=0,0,(SUMPRODUCT(P7:T7,Indata_Kalkylvärden!D$108:H$108)/Bangods_linjedel!N7)*DN7) -> 738.4444261 | DR7: =+IF(Bangods_linjedel!L7=0,DQ7+DP7,DQ7+DP7+Bangods_linjedel!L7) -> 738.4444261 | DS7: =+Bangods_linjedel!Z7 -> 57.62911824 | DT7: =+Bangods_linjedel!AB7 -> 61.01980902 | DU7: =+Bangods_linjedel!AF7 -> 101.5298326 | DV7: =+Bangods_linjedel!AD7+Bangods_linjedel!AE7 -> 98.02806475 | DW7: =+Bangods_linjedel!AG7 -> 1.53 | DX7: =+Bangods_linjedel!AH7 -> 5.355 | DY7: =+Bangods_linjedel!BG7 -> -4.440892099e-16 | DZ7: =+(Bangods_linjedel!BM7+Bangods_linjedel!CD7)/1000000 -> -4.981504742e-16 | EA7: =+(Bangods_linjedel!BO7+Bangods_linjedel!CE7)/1000000 -> 0 | EB7: =+(Bangods_linjedel!BP7+Bangods_linjedel!CF7)/1000000 -> -3.468270597e-16 | EC7: =+(Bangods_linjedel!BQ7+Bangods_linjedel!CG7)/1000000 -> 0 | ED7: =+Bangods_linjedel!DC7/1000000 -> 0 | EE7: =+Bangods_linjedel!DD7/1000000 -> 0 | EF7: =+Bangods_linjedel!DE7/1000000 -> 0 | EG7: =+Bangods_linjedel!DA7/1000000 -> 0 | EH7: =+Bangods_linjedel!DB7/1000000 -> 0 | EJ7: =+Bangods_linjedel!DQ7 -> 738.4444261 | EK7: =+Bangods_linjedel!DR7 -> 738.4444261 | EL7: =+Bangods_linjedel!BA7-Bangods_linjedel!AY7 -> 0 | EM7: L104 | ET7: 698249.6746 | EU7: 1121735.145 | EV7: 46859106.51 | EW7: 164006872.8 | EX7: 235580679.1 | EY7: =+VLOOKUP(G7,' Bandelsspec avg o ext'!$A:$T,19,FALSE)*$F7*$N7 -> 423612.5678 | EZ7: 1444564.32 | FB7: 101.5298326 | FE7: =+SUMIF(Länkar!I:I,Bangods_linjedel!B7,Länkar!Y:Y)/2 -> 126.2420883 | FG7: =+IF($N7=0,0,IF($G7="d",SUMPRODUCT($P7:$T7,Indata_Kalkylvärden!$I$139:$M$139))/$N7) -> 0 | FJ7: 3866335690 | FK7: 3866335690 | FN7: 1819984.82 | FQ7: 88147038.92 | FR7: 103178567.4 | FS7: 191325606.3
A8: =IFERROR(VLOOKUP(B8,' Fyrspår JA'!B:Z,25,FALSE),+VLOOKUP(B8,Länkar!I:AD,20,FALSE)) -> Malmbanan | B8: =+BANGODSINDATA!B7 -> L105 | C8: =+BANGODSINDATA!C7 -> Råtsi-Svappavaara | E8: =+BANGODSINDATA!D7 -> Aptas-Mertainen | F8: =+IFERROR(BANGODSINDATA!F7,FE8) -> 39.16 | G8: =IFERROR((+VLOOKUP(B8,Länkar!I:AD,22,FALSE)),VLOOKUP(B8,' Fyrspår JA'!B:Z,25,FALSE)) -> 116 | N8: =+IFERROR(BANGODSINDATA!G7,0) -> 3968 | O8: =+IF(BANGODSINDATA!H7=0,0,BANGODSINDATA!H7*Kalkylsammanställning!G$2) -> 13583096 | P8: =+IFERROR(BANGODSINDATA!I7,0) -> 0 | Q8: =+IF(BANGODSINDATA!J7="-",0,BANGODSINDATA!J7) -> 0 | R8: =+IFERROR(BANGODSINDATA!K7,0) -> 1468 | S8: =+IFERROR(BANGODSINDATA!L7,0) -> 2499 | T8: =+IFERROR(BANGODSINDATA!M7,0) -> 0 | U8: 13.012 | V8: =+IF(U8+Bangods_linjedel!K8<0,0,U8+Bangods_linjedel!K8) -> 13.012 | W8: 7.14 | X8: 5.872 | Y8: =(IF(AM8="nej",100%,INDATABLAD!$D$268)) -> 0 | Z8: =+IF(N8=0,0,SUMPRODUCT(P8:T8,Indata_Kalkylvärden!D$104:H$104)/N8) -> 59.78704637 | AA8: =+IF(N8=0,0,SUMPRODUCT($P8:$T8,Indata_Kalkylvärden!$D$105:$H$105)/Bangods_linjedel!$N8) -> 373.9163306 | AB8: =IF(N8=0,0,(CM8*INDATABLAD!D$266+INDATABLAD!D$267*CI8)/(N8*F8)) -> 76.08848385 | AC8: =+IF(B8='Beskrivning av åtgärd'!$D$171,'Beskrivning av åtgärd'!$B$171*$N8,0) -> 0 | AD8: =+IF(N8=0,0,SUMPRODUCT(P8:T8,Indata_Kalkylvärden!D$117:H$117/Bangods_linjedel!N8)) -> 73.88323723 | AE8: =+IF(N8=0,0,SUMPRODUCT(P8:T8,Indata_Kalkylvärden!$D$116:$H$116)/N8)*DN8 -> 39.18463013 | AF8: 125.4352359 | AG8: =+Indata_Kalkylvärden!T$96 -> 1.53 | AH8: =+Indata_Kalkylvärden!T$97 -> 5.355 | AI8: 70879.23718 | AJ8: 46902.28314 | AK8: 164683.8035 | AL8: =+IF(N8=0,0,SUMPRODUCT($P8:$T8,Indata_Kalkylvärden!$D$118:$H$118)/$N8) -> -0.02229438004 | AM8: =+VLOOKUP($G8,Länkar!$F:$V,16,FALSE) -> Ja | AN8: =+VLOOKUP($G8,Länkar!$F:$V,17,FALSE) -> Ja | AO8: =+IF(N8=0,0,(SUMPRODUCT(P8:T8,Indata_Kalkylvärden!$D$110:$H$110)/N8)) -> 1.628392796 | AP8: =+IFERROR(IF(B8=0,0,VLOOKUP(B8,'Kap.ber JA'!$B:$AI,7,FALSE)),0) -> esp | AQ8: =+IFERROR(IF(B8=0,0,VLOOKUP(B8,'Kap.ber UA'!B:H,7,FALSE)),0) -> esp | AR8: =+IFERROR(IF(B8=0,0,VLOOKUP(B8,'Kap.ber JA'!$B:$AI,8,FALSE)),0) -> 0.311337037 | AS8: =+IFERROR(IF(B8=0,0,VLOOKUP(B8,'Kap.ber UA'!$B:$AL,8,FALSE)),0) -> 0.311337037 | AT8: =+IF($AP8="esp",INDATABLAD!$D$568,INDATABLAD!$D$566) -> 2.58 | AU8: =+IF($AP8="Esp",INDATABLAD!$D$569,INDATABLAD!$D$567) -> 0.28 | AV8: =+IF($AQ8="Esp",INDATABLAD!$D$568,INDATABLAD!$D$566) -> 2.58 | AW8: =+IF($AQ8="Esp",INDATABLAD!$D$569,INDATABLAD!$D$567) -> 0.28 | AX8: =+INDATABLAD!$D$565 -> 0.3 | AY8: 2.04904526 | AZ8: 1.1748 | BA8: 2.04904526 | BB8: 1.1748 | BC8: =SUMIF('Gods_nya linjedelar_UA'!$D$4:$D$18,Bangods_linjedel!B8,'Gods_nya linjedelar_UA'!$J$4:$J$18) -> 0 | BD8: =SUMIF('Gods_nya linjedelar_UA'!$D$4:$D$18,Bangods_linjedel!B8,'Gods_nya linjedelar_UA'!$K$4:$K$18) -> 0 | BE8: =+Bangods_linjedel!H8 -> 0 | BF8: =+Bangods_linjedel!I8 -> 0 | BG8: 0 | BH8: =+Bangods_linjedel!K8 -> 0 | BI8: =+IF(Bangods_linjedel!J8=0,(BA8-AY8)*0.05,Bangods_linjedel!J8) -> 0 | BJ8: 0 | BL8: 0 | BM8: =+(($BG8+$BI8)*($AD8+AE8)*$N8)+Bangods_linjedel!M8 -> 0 | BN8: =+(CJ8-CI8)*INDATABLAD!D$267+INDATABLAD!D$266*(CN8-CM8) -> 0 | BO8: 0 | BP8: 0 | BQ8: 0 | BR8: =+IF(N8=0,0,('Beskrivning av åtgärd'!$C$165*(X8)+'Beskrivning av åtgärd'!$D$165*Bangods_linjedel!W8)/Bangods_linjedel!U8) -> 0.02165477451 | BS8: =+IF(O8=0,0,('Beskrivning av åtgärd'!$F$165*(X8)+'Beskrivning av åtgärd'!$G$165*Bangods_linjedel!W8)/Bangods_linjedel!U8) -> 0.02165477451 | BT8: =+IF(U8=0,0,('Beskrivning av åtgärd'!$C$166*(X8)+'Beskrivning av åtgärd'!$D$166*$W8)/$U8) -> 4.726154537 | BU8: =+IF(O8=0,0,('Beskrivning av åtgärd'!$F$166*(X8)+'Beskrivning av åtgärd'!$G$166*$W8)/$U8) -> 4.726154537 | BV8: 250 | BW8: 350 | BY8: 0 | BZ8: =+IF(O8=0,0,(((BM8+BN8+BO8*'Beskrivning av åtgärd'!$C$176)/(AK8*N8))*AL8)*O8) -> 0 | CA8: 0 | CB8: 0 | CC8: 0 | CD8: 0 | CE8: 0 | CF8: 0 | CG8: 0 | CI8: =+(($N8*$F8*INDATABLAD!$D$254+Bangods_linjedel!$DF8*INDATABLAD!$D$255))*Y8 -> 0 | CJ8: =+IF($AN8="Nej",(($N8*($F8+$BF8)*INDATABLAD!$D$254+DG8*INDATABLAD!$D$255)),IF($BJ8="Ja",0,(($N8*($F8+$BF8)*INDATABLAD!$D$254+DG8*INDATABLAD!$D$255))*$Y8)) -> 0 | CK8: =+IF($AN8="Nej",(($N8*($F8+$BF8)*INDATABLAD!$D$254+DH8*INDATABLAD!$D$255)),IF($BJ8="ja",0,(($N8*($F8+$BF8)*INDATABLAD!$D$254+DH8*INDATABLAD!$D$255))*$Y8)) -> 0 | CL8: 0 | CM8: =+DF8*INDATABLAD!$D$256*(1-$Y8) -> 16890217.3 | CN8: =+IF(AN8="Ja",DG8*INDATABLAD!$D$256,IF(AN8="Nej",0,DG8*INDATABLAD!$D$256*(1-Y8))) -> 16890217.3 | CO8: 16890217.3 | CP8: 734382.408 | CQ8: 18756607.54 | CR8: =+DF8*(INDATABLAD!$D$248)+F8*N8*INDATABLAD!$D$249 -> 19490989.95 | CT8: =+IFERROR(VLOOKUP(G8,' Bandelsspec avg o ext'!$A:$T,17,FALSE)*$F8*$N8*DQ8/500,0) -> 0 | CU8: 734382.408 | CV8: 18756607.54 | CW8: =+IF(N8=0,0,DH8*(INDATABLAD!$D$248)+N8*(V8/U8)*(F8+BF8)*INDATABLAD!D$249) -> 19490989.95 | CY8: =+IFERROR(IF(V8=0,0,VLOOKUP(G8,' Bandelsspec avg o ext'!$A:$V,18,FALSE)*($F8+BF8)*$N8*(V8/U8)*(DR8/500)),0) -> 0 | CZ8: 0 | DA8: 0 | DB8: 0 | DC8: 0 | DD8: 0 | DE8: 0 | DF8: 866164989.6 | DG8: 866164989.6 | DH8: 866164989.6 | DI8: 734382.408 | DJ8: 18756607.54 | DK8: 0 | DL8: =+IF(N8=0,0,SUMPRODUCT(P8:T8,Indata_Kalkylvärden!D$106:H$106)/N8) -> 2119.822835 | DM8: 3423.159274 | DN8: 1.61483272 | DO8: =+IF(N8=0,0,SUMPRODUCT(P8:T8,Indata_Kalkylvärden!D$109:H$109)/Bangods_linjedel!N8) -> 0.3221933837 | DP8: 0 | DQ8: =+IF(N8=0,0,(SUMPRODUCT(P8:T8,Indata_Kalkylvärden!D$108:H$108)/Bangods_linjedel!N8)*DN8) -> 947.9080732 | DR8: =+IF(Bangods_linjedel!L8=0,DQ8+DP8,DQ8+DP8+Bangods_linjedel!L8) -> 947.9080732 | DS8: =+Bangods_linjedel!Z8 -> 59.78704637 | DT8: =+Bangods_linjedel!AB8 -> 76.08848385 | DU8: =+Bangods_linjedel!AF8 -> 125.4352359 | DV8: =+Bangods_linjedel!AD8+Bangods_linjedel!AE8 -> 113.0678674 | DW8: =+Bangods_linjedel!AG8 -> 1.53 | DX8: =+Bangods_linjedel!AH8 -> 5.355 | DY8: =+Bangods_linjedel!BG8 -> 0 | DZ8: =+(Bangods_linjedel!BM8+Bangods_linjedel!CD8)/1000000 -> 0 | EA8: =+(Bangods_linjedel!BO8+Bangods_linjedel!CE8)/1000000 -> 0 | EB8: =+(Bangods_linjedel!BP8+Bangods_linjedel!CF8)/1000000 -> 0 | EC8: =+(Bangods_linjedel!BQ8+Bangods_linjedel!CG8)/1000000 -> 0 | ED8: =+Bangods_linjedel!DC8/1000000 -> 0 | EE8: =+Bangods_linjedel!DD8/1000000 -> 0 | EF8: =+Bangods_linjedel!DE8/1000000 -> 0 | EG8: =+Bangods_linjedel!DA8/1000000 -> 0 | EH8: =+Bangods_linjedel!DB8/1000000 -> 0 | EJ8: =+Bangods_linjedel!DQ8 -> 947.9080732 | EK8: =+Bangods_linjedel!DR8 -> 947.9080732 | EL8: =+Bangods_linjedel!BA8-Bangods_linjedel!AY8 -> 0 | EM8: L105 | ET8: 301919.1039 | EU8: 448653.2977 | EV8: 20782136.88 | EW8: 72737479.08 | EX8: 29454994.66 | EY8: =+VLOOKUP(G8,' Bandelsspec avg o ext'!$A:$T,19,FALSE)*$F8*$N8 -> 0 | EZ8: 155386.88 | FB8: 125.4352359 | FE8: =+SUMIF(Länkar!I:I,Bangods_linjedel!B8,Länkar!Y:Y)/2 -> 0 | FG8: =+IF($N8=0,0,IF($G8="d",SUMPRODUCT($P8:$T8,Indata_Kalkylvärden!$I$139:$M$139))/$N8) -> 0 | FJ8: 531914039.4 | FK8: 531914039.4 | FN8: 750572.4016 | FQ8: 11823152.11 | FR8: 11521377.7 | FS8: 23344529.81
A9: =IFERROR(VLOOKUP(B9,' Fyrspår JA'!B:Z,25,FALSE),+VLOOKUP(B9,Länkar!I:AD,20,FALSE)) -> Malmbanan | B9: =+BANGODSINDATA!B8 -> L106 | C9: =+BANGODSINDATA!C8 -> Gällivare-Koskullskulle | E9: =+BANGODSINDATA!D8 -> Gällivare-Koskullskulle | F9: =+IFERROR(BANGODSINDATA!F8,FE9) -> 8.55 | G9: =IFERROR((+VLOOKUP(B9,Länkar!I:AD,22,FALSE)),VLOOKUP(B9,' Fyrspår JA'!B:Z,25,FALSE)) -> 114 | N9: =+IFERROR(BANGODSINDATA!G8,0) -> 6141 | O9: =+IF(BANGODSINDATA!H8=0,0,BANGODSINDATA!H8*Kalkylsammanställning!G$2) -> 16983477 | P9: =+IFERROR(BANGODSINDATA!I8,0) -> 1685 | Q9: =+IF(BANGODSINDATA!J8="-",0,BANGODSINDATA!J8) -> 0 | R9: =+IFERROR(BANGODSINDATA!K8,0) -> 0 | S9: =+IFERROR(BANGODSINDATA!L8,0) -> 4456 | T9: =+IFERROR(BANGODSINDATA!M8,0) -> 0 | U9: 19.47142857 | V9: =+IF(U9+Bangods_linjedel!K9<0,0,U9+Bangods_linjedel!K9) -> 19.47142857 | W9: 12.73142857 | X9: 6.74 | Y9: =(IF(AM9="nej",100%,INDATABLAD!$D$268)) -> 0 | Z9: =+IF(N9=0,0,SUMPRODUCT(P9:T9,Indata_Kalkylvärden!D$104:H$104)/N9) -> 51.85963198 | AA9: =+IF(N9=0,0,SUMPRODUCT($P9:$T9,Indata_Kalkylvärden!$D$105:$H$105)/Bangods_linjedel!$N9) -> 327.4385279 | AB9: =IF(N9=0,0,(CM9*INDATABLAD!D$266+INDATABLAD!D$267*CI9)/(N9*F9)) -> 64.54217955 | AC9: =+IF(B9='Beskrivning av åtgärd'!$D$171,'Beskrivning av åtgärd'!$B$171*$N9,0) -> 0 | AD9: =+IF(N9=0,0,SUMPRODUCT(P9:T9,Indata_Kalkylvärden!D$117:H$117/Bangods_linjedel!N9)) -> 77.60118785 | AE9: =+IF(N9=0,0,SUMPRODUCT(P9:T9,Indata_Kalkylvärden!$D$116:$H$116)/N9)*DN9 -> 30.70564312 | AF9: 107.1178282 | AG9: =+Indata_Kalkylvärden!T$96 -> 1.53 | AH9: =+Indata_Kalkylvärden!T$97 -> 5.355 | AI9: 62164.15657 | AJ9: 35074.50396 | AK9: 132313.1645 | AL9: =+IF(N9=0,0,SUMPRODUCT($P9:$T9,Indata_Kalkylvärden!$D$118:$H$118)/$N9) -> -0.2916091516 | AM9: =+VLOOKUP($G9,Länkar!$F:$V,16,FALSE) -> Ja | AN9: =+VLOOKUP($G9,Länkar!$F:$V,17,FALSE) -> Ja | AO9: =+IF(N9=0,0,(SUMPRODUCT(P9:T9,Indata_Kalkylvärden!$D$110:$H$110)/N9)) -> 1.709713992 | AP9: =+IFERROR(IF(B9=0,0,VLOOKUP(B9,'Kap.ber JA'!$B:$AI,7,FALSE)),0) -> esp | AQ9: =+IFERROR(IF(B9=0,0,VLOOKUP(B9,'Kap.ber UA'!B:H,7,FALSE)),0) -> esp | AR9: =+IFERROR(IF(B9=0,0,VLOOKUP(B9,'Kap.ber JA'!$B:$AI,8,FALSE)),0) -> 0.3689034392 | AS9: =+IFERROR(IF(B9=0,0,VLOOKUP(B9,'Kap.ber UA'!$B:$AL,8,FALSE)),0) -> 0.3689034392 | AT9: =+IF($AP9="esp",INDATABLAD!$D$568,INDATABLAD!$D$566) -> 2.58 | AU9: =+IF($AP9="Esp",INDATABLAD!$D$569,INDATABLAD!$D$567) -> 0.28 | AV9: =+IF($AQ9="Esp",INDATABLAD!$D$568,INDATABLAD!$D$566) -> 2.58 | AW9: =+IF($AQ9="Esp",INDATABLAD!$D$569,INDATABLAD!$D$567) -> 0.28 | AX9: =+INDATABLAD!$D$565 -> 0.3 | AY9: 0.5743640964 | AZ9: 0.2565 | BA9: 0.5743640964 | BB9: 0.2565 | BC9: =SUMIF('Gods_nya linjedelar_UA'!$D$4:$D$18,Bangods_linjedel!B9,'Gods_nya linjedelar_UA'!$J$4:$J$18) -> 0 | BD9: =SUMIF('Gods_nya linjedelar_UA'!$D$4:$D$18,Bangods_linjedel!B9,'Gods_nya linjedelar_UA'!$K$4:$K$18) -> 0 | BE9: =+Bangods_linjedel!H9 -> 0 | BF9: =+Bangods_linjedel!I9 -> 0 | BG9: 0 | BH9: =+Bangods_linjedel!K9 -> 0 | BI9: =+IF(Bangods_linjedel!J9=0,(BA9-AY9)*0.05,Bangods_linjedel!J9) -> 0 | BJ9: 0 | BL9: 0 | BM9: =+(($BG9+$BI9)*($AD9+AE9)*$N9)+Bangods_linjedel!M9 -> 0 | BN9: =+(CJ9-CI9)*INDATABLAD!D$267+INDATABLAD!D$266*(CN9-CM9) -> 0 | BO9: =+DK9 -> 0 | BP9: 0 | BQ9: 0 | BR9: =+IF(N9=0,0,('Beskrivning av åtgärd'!$C$165*(X9)+'Beskrivning av åtgärd'!$D$165*Bangods_linjedel!W9)/Bangods_linjedel!U9) -> 0.02165477451 | BS9: =+IF(O9=0,0,('Beskrivning av åtgärd'!$F$165*(X9)+'Beskrivning av åtgärd'!$G$165*Bangods_linjedel!W9)/Bangods_linjedel!U9) -> 0.02165477451 | BT9: =+IF(U9=0,0,('Beskrivning av åtgärd'!$C$166*(X9)+'Beskrivning av åtgärd'!$D$166*$W9)/$U9) -> 4.726154537 | BU9: =+IF(O9=0,0,('Beskrivning av åtgärd'!$F$166*(X9)+'Beskrivning av åtgärd'!$G$166*$W9)/$U9) -> 4.726154537 | BV9: 250 | BW9: 350 | BY9: 0 | BZ9: =+IF(O9=0,0,(((BM9+BN9+BO9*'Beskrivning av åtgärd'!$C$176)/(AK9*N9))*AL9)*O9) -> 0 | CA9: 0 | CB9: 0 | CC9: 0 | CD9: 0 | CE9: 0 | CF9: 0 | CG9: 0 | CI9: =+(($N9*$F9*INDATABLAD!$D$254+Bangods_linjedel!$DF9*INDATABLAD!$D$255))*Y9 -> 0 | CJ9: =+IF($AN9="Nej",(($N9*($F9+$BF9)*INDATABLAD!$D$254+DG9*INDATABLAD!$D$255)),IF($BJ9="Ja",0,(($N9*($F9+$BF9)*INDATABLAD!$D$254+DG9*INDATABLAD!$D$255))*$Y9)) -> 0 | CK9: =+IF($AN9="Nej",(($N9*($F9+$BF9)*INDATABLAD!$D$254+DH9*INDATABLAD!$D$255)),IF($BJ9="ja",0,(($N9*($F9+$BF9)*INDATABLAD!$D$254+DH9*INDATABLAD!$D$255))*$Y9)) -> 0 | CL9: 0 | CM9: =+DF9*INDATABLAD!$D$256*(1-$Y9) -> 4841175.194 | CN9: =+IF(AN9="Ja",DG9*INDATABLAD!$D$256,IF(AN9="Nej",0,DG9*INDATABLAD!$D$256*(1-Y9))) -> 4841175.194 | CO9: 4841175.194 | CP9: 248149.3434 | CQ9: 5376131.138 | CR9: =+DF9*(INDATABLAD!$D$248)+F9*N9*INDATABLAD!$D$249 -> 5624280.482 | CT9: =+IFERROR(VLOOKUP(G9,' Bandelsspec avg o ext'!$A:$T,17,FALSE)*$F9*$N9*DQ9/500,0) -> 175995.5776 | CU9: 248149.3434 | CV9: 5376131.138 | CW9: =+IF(N9=0,0,DH9*(INDATABLAD!$D$248)+N9*(V9/U9)*(F9+BF9)*INDATABLAD!D$249) -> 5624280.482 | CY9: =+IFERROR(IF(V9=0,0,VLOOKUP(G9,' Bandelsspec avg o ext'!$A:$V,18,FALSE)*($F9+BF9)*$N9*(V9/U9)*(DR9/500)),0) -> 175995.5776 | CZ9: 0 | DA9: 0 | DB9: 0 | DC9: 0 | DD9: 0 | DE9: 0 | DF9: 248265394.6 | DG9: 248265394.6 | DH9: 248265394.6 | DI9: 248149.3434 | DJ9: 5376131.138 | DK9: 0 | DL9: =+IF(N9=0,0,SUMPRODUCT(P9:T9,Indata_Kalkylvärden!D$106:H$106)/N9) -> 2318.968937 | DM9: 2765.588178 | DN9: 1.192593886 | DO9: =+IF(N9=0,0,SUMPRODUCT(P9:T9,Indata_Kalkylvärden!D$109:H$109)/Bangods_linjedel!N9) -> 0.3680135221 | DP9: 0 | DQ9: =+IF(N9=0,0,(SUMPRODUCT(P9:T9,Indata_Kalkylvärden!D$108:H$108)/Bangods_linjedel!N9)*DN9) -> 776.5498591 | DR9: =+IF(Bangods_linjedel!L9=0,DQ9+DP9,DQ9+DP9+Bangods_linjedel!L9) -> 776.5498591 | DS9: =+Bangods_linjedel!Z9 -> 51.85963198 | DT9: =+Bangods_linjedel!AB9 -> 64.54217955 | DU9: =+Bangods_linjedel!AF9 -> 107.1178282 | DV9: =+Bangods_linjedel!AD9+Bangods_linjedel!AE9 -> 108.306831 | DW9: =+Bangods_linjedel!AG9 -> 1.53 | DX9: =+Bangods_linjedel!AH9 -> 5.355 | DY9: =+Bangods_linjedel!BG9 -> 0 | DZ9: =+(Bangods_linjedel!BM9+Bangods_linjedel!CD9)/1000000 -> 0 | EA9: =+(Bangods_linjedel!BO9+Bangods_linjedel!CE9)/1000000 -> 0 | EB9: =+(Bangods_linjedel!BP9+Bangods_linjedel!CF9)/1000000 -> 0 | EC9: =+(Bangods_linjedel!BQ9+Bangods_linjedel!CG9)/1000000 -> 0 | ED9: =+Bangods_linjedel!DC9/1000000 -> 0 | EE9: =+Bangods_linjedel!DD9/1000000 -> 0 | EF9: =+Bangods_linjedel!DE9/1000000 -> 0 | EG9: =+Bangods_linjedel!DA9/1000000 -> 0 | EH9: =+Bangods_linjedel!DB9/1000000 -> 0 | EJ9: =+Bangods_linjedel!DQ9 -> 776.5498591 | EK9: =+Bangods_linjedel!DR9 -> 776.5498591 | EL9: =+Bangods_linjedel!BA9-Bangods_linjedel!AY9 -> 0 | EM9: L106 | ET9: 396353.5246 | EU9: 665112.249 | EV9: 25984719.81 | EW9: 90946519.34 | EX9: 9968170.978 | EY9: =+VLOOKUP(G9,' Bandelsspec avg o ext'!$A:$T,19,FALSE)*$F9*$N9 -> 290831.4684 | EZ9: 52505.55 | FB9: 107.1178282 | FE9: =+SUMIF(Länkar!I:I,Bangods_linjedel!B9,Länkar!Y:Y)/2 -> 0 | FG9: =+IF($N9=0,0,IF($G9="d",SUMPRODUCT($P9:$T9,Indata_Kalkylvärden!$I$139:$M$139))/$N9) -> 0 | FJ9: 145208728.4 | FK9: 145208728.4 | FN9: 1061465.774 | FQ9: 3388822.636 | FR9: 4714063.204 | FS9: 8102885.84
A10: =IFERROR(VLOOKUP(B10,' Fyrspår JA'!B:Z,25,FALSE),+VLOOKUP(B10,Länkar!I:AD,20,FALSE)) -> Malmbanan | B10: =+BANGODSINDATA!B9 -> L107 | C10: =+BANGODSINDATA!C9 -> Buddbyn-Boden Central | E10: =+BANGODSINDATA!D9 -> Boden Central-Buddbyn | F10: =+IFERROR(BANGODSINDATA!F9,FE10) -> 3.85 | G10: =IFERROR((+VLOOKUP(B10,Länkar!I:AD,22,FALSE)),VLOOKUP(B10,' Fyrspår JA'!B:Z,25,FALSE)) -> 120 | N10: =+IFERROR(BANGODSINDATA!G9,0) -> 9606 | O10: =+IF(BANGODSINDATA!H9=0,0,BANGODSINDATA!H9*Kalkylsammanställning!G$2) -> 14639898 | P10: =+IFERROR(BANGODSINDATA!I9,0) -> 1962 | Q10: =+IF(BANGODSINDATA!J9="-",0,BANGODSINDATA!J9) -> 629 | R10: =+IFERROR(BANGODSINDATA!K9,0) -> 1677 | S10: =+IFERROR(BANGODSINDATA!L9,0) -> 3543 | T10: =+IFERROR(BANGODSINDATA!M9,0) -> 1796 | U10: 34.37885714 | V10: =+IF(U10+Bangods_linjedel!K10<0,0,U10+Bangods_linjedel!K10) -> 34.37885714 | W10: 10.12285714 | X10: 24.256 | Y10: =(IF(AM10="nej",100%,INDATABLAD!$D$268)) -> 0 | Z10: =+IF(N10=0,0,SUMPRODUCT(P10:T10,Indata_Kalkylvärden!D$104:H$104)/N10) -> 67.14449303 | AA10: =+IF(N10=0,0,SUMPRODUCT($P10:$T10,Indata_Kalkylvärden!$D$105:$H$105)/Bangods_linjedel!$N10) -> 392.7649386 | AB10: =IF(N10=0,0,(CM10*INDATABLAD!D$266+INDATABLAD!D$267*CI10)/(N10*F10)) -> 37.32988998 | AC10: =+IF(B10='Beskrivning av åtgärd'!$D$171,'Beskrivning av åtgärd'!$B$171*$N10,0) -> 0 | AD10: =+IF(N10=0,0,SUMPRODUCT(P10:T10,Indata_Kalkylvärden!D$117:H$117/Bangods_linjedel!N10)) -> 54.39224042 | AE10: =+IF(N10=0,0,SUMPRODUCT(P10:T10,Indata_Kalkylvärden!$D$116:$H$116)/N10)*DN10 -> 22.66537781 | AF10: 63.94742561 | AG10: =+Indata_Kalkylvärden!T$96 -> 1.53 | AH10: =+Indata_Kalkylvärden!T$97 -> 5.355 | AI10: 41707.0064 | AJ10: 25116.30669 | AK10: 91939.61978 | AL10: =+IF(N10=0,0,SUMPRODUCT($P10:$T10,Indata_Kalkylvärden!$D$118:$H$118)/$N10) -> -0.4378841766 | AM10: =+VLOOKUP($G10,Länkar!$F:$V,16,FALSE) -> Ja | AN10: =+VLOOKUP($G10,Länkar!$F:$V,17,FALSE) -> Ja | AO10: =+IF(N10=0,0,(SUMPRODUCT(P10:T10,Indata_Kalkylvärden!$D$110:$H$110)/N10)) -> 1.794438547 | AP10: =+IFERROR(IF(B10=0,0,VLOOKUP(B10,'Kap.ber JA'!$B:$AI,7,FALSE)),0) -> esp | AQ10: =+IFERROR(IF(B10=0,0,VLOOKUP(B10,'Kap.ber UA'!B:H,7,FALSE)),0) -> esp | AR10: =+IFERROR(IF(B10=0,0,VLOOKUP(B10,'Kap.ber JA'!$B:$AI,8,FALSE)),0) -> 0.5906693568 | AS10: =+IFERROR(IF(B10=0,0,VLOOKUP(B10,'Kap.ber UA'!$B:$AL,8,FALSE)),0) -> 0.5906693568 | AT10: =+IF($AP10="esp",INDATABLAD!$D$568,INDATABLAD!$D$566) -> 2.58 | AU10: =+IF($AP10="Esp",INDATABLAD!$D$569,INDATABLAD!$D$567) -> 0.28 | AV10: =+IF($AQ10="Esp",INDATABLAD!$D$568,INDATABLAD!$D$566) -> 2.58 | AW10: =+IF($AQ10="Esp",INDATABLAD!$D$569,INDATABLAD!$D$567) -> 0.28 | AX10: =+INDATABLAD!$D$565 -> 0.3 | AY10: 0.4789118721 | AZ10: 0.1155 | BA10: 0.4789118721 | BB10: 0.1155 | BC10: =SUMIF('Gods_nya linjedelar_UA'!$D$4:$D$18,Bangods_linjedel!B10,'Gods_nya linjedelar_UA'!$J$4:$J$18) -> 0 | BD10: =SUMIF('Gods_nya linjedelar_UA'!$D$4:$D$18,Bangods_linjedel!B10,'Gods_nya linjedelar_UA'!$K$4:$K$18) -> 0 | BE10: =+Bangods_linjedel!H10 -> 0 | BF10: =+Bangods_linjedel!I10 -> 0 | BG10: -1.387778781e-17 | BH10: =+Bangods_linjedel!K10 -> 0 | BI10: =+IF(Bangods_linjedel!J10=0,(BA10-AY10)*0.05,Bangods_linjedel!J10) -> 0 | BJ10: 0 | BL10: -1.027255337e-11 | BM10: =+(($BG10+$BI10)*($AD10+AE10)*$N10)+Bangods_linjedel!M10 -> -1.027255337e-11 | BN10: =+(CJ10-CI10)*INDATABLAD!D$267+INDATABLAD!D$266*(CN10-CM10) -> 0 | BO10: 0 | BP10: -5.180819648e-12 | BQ10: 0 | BR10: =+IF(N10=0,0,('Beskrivning av åtgärd'!$C$165*(X10)+'Beskrivning av åtgärd'!$D$165*Bangods_linjedel!W10)/Bangods_linjedel!U10) -> 0.02165477451 | BS10: =+IF(O10=0,0,('Beskrivning av åtgärd'!$F$165*(X10)+'Beskrivning av åtgärd'!$G$165*Bangods_linjedel!W10)/Bangods_linjedel!U10) -> 0.02165477451 | BT10: =+IF(U10=0,0,('Beskrivning av åtgärd'!$C$166*(X10)+'Beskrivning av åtgärd'!$D$166*$W10)/$U10) -> 4.726154537 | BU10: =+IF(O10=0,0,('Beskrivning av åtgärd'!$F$166*(X10)+'Beskrivning av åtgärd'!$G$166*$W10)/$U10) -> 4.726154537 | BV10: 250 | BW10: 350 | BY10: 0 | BZ10: =+IF(O10=0,0,(((BM10+BN10+BO10*'Beskrivning av åtgärd'!$C$176)/(AK10*N10))*AL10)*O10) -> 7.456421042e-14 | CA10: 2.928620753e-11 | CB10: 5.255229969e-11 | CC10: 2.616018333e-32 | CD10: 0 | CE10: 0 | CF10: -2.63870504e-32 | CG10: 0 | CI10: =+(($N10*$F10*INDATABLAD!$D$254+Bangods_linjedel!$DF10*INDATABLAD!$D$255))*Y10 -> 0 | CJ10: =+IF($AN10="Nej",(($N10*($F10+$BF10)*INDATABLAD!$D$254+DG10*INDATABLAD!$D$255)),IF($BJ10="Ja",0,(($N10*($F10+$BF10)*INDATABLAD!$D$254+DG10*INDATABLAD!$D$255))*$Y10)) -> 0 | CK10: =+IF($AN10="Nej",(($N10*($F10+$BF10)*INDATABLAD!$D$254+DH10*INDATABLAD!$D$255)),IF($BJ10="ja",0,(($N10*($F10+$BF10)*INDATABLAD!$D$254+DH10*INDATABLAD!$D$255))*$Y10)) -> 0 | CL10: 0 | CM10: =+DF10*INDATABLAD!$D$256*(1-$Y10) -> 1972250.077 | CN10: =+IF(AN10="Ja",DG10*INDATABLAD!$D$256,IF(AN10="Nej",0,DG10*INDATABLAD!$D$256*(1-Y10))) -> 1972250.077 | CO10: 1972250.077 | CP10: 174787.8459 | CQ10: 2190186.19 | CR10: =+DF10*(INDATABLAD!$D$248)+F10*N10*INDATABLAD!$D$249 -> 2364974.036 | CT10: =+IFERROR(VLOOKUP(G10,' Bandelsspec avg o ext'!$A:$T,17,FALSE)*$F10*$N10*DQ10/500,0) -> 689169.1673 | CU10: 174787.8459 | CV10: 2190186.19 | CW10: =+IF(N10=0,0,DH10*(INDATABLAD!$D$248)+N10*(V10/U10)*(F10+BF10)*INDATABLAD!D$249) -> 2364974.036 | CY10: =+IFERROR(IF(V10=0,0,VLOOKUP(G10,' Bandelsspec avg o ext'!$A:$V,18,FALSE)*($F10+BF10)*$N10*(V10/U10)*(DR10/500)),0) -> 689169.1673 | CZ10: 0 | DA10: 0 | DB10: 0 | DC10: 0 | DD10: 0 | DE10: 0 | DF10: 101141029.6 | DG10: 101141029.6 | DH10: 101141029.6 | DI10: 174787.8459 | DJ10: 2190186.19 | DK10: 0 | DL10: =+IF(N10=0,0,SUMPRODUCT(P10:T10,Indata_Kalkylvärden!D$106:H$106)/N10) -> 1433.937198 | DM10: 1524.036852 | DN10: 1.062833752 | DO10: =+IF(N10=0,0,SUMPRODUCT(P10:T10,Indata_Kalkylvärden!D$109:H$109)/Bangods_linjedel!N10) -> 0.4972991601 | DP10: 3.860162317e-18 | DQ10: =+IF(N10=0,0,(SUMPRODUCT(P10:T10,Indata_Kalkylvärden!D$108:H$108)/Bangods_linjedel!N10)*DN10) -> 523.1498885 | DR10: =+IF(Bangods_linjedel!L10=0,DQ10+DP10,DQ10+DP10+Bangods_linjedel!L10) -> 523.1498885 | DS10: =+Bangods_linjedel!Z10 -> 67.14449303 | DT10: =+Bangods_linjedel!AB10 -> 37.32988998 | DU10: =+Bangods_linjedel!AF10 -> 63.94742561 | DV10: =+Bangods_linjedel!AD10+Bangods_linjedel!AE10 -> 77.05761823 | DW10: =+Bangods_linjedel!AG10 -> 1.53 | DX10: =+Bangods_linjedel!AH10 -> 5.355 | DY10: =+Bangods_linjedel!BG10 -> -1.387778781e-17 | DZ10: =+(Bangods_linjedel!BM10+Bangods_linjedel!CD10)/1000000 -> -1.027255337e-17 | EA10: =+(Bangods_linjedel!BO10+Bangods_linjedel!CE10)/1000000 -> 0 | EB10: =+(Bangods_linjedel!BP10+Bangods_linjedel!CF10)/1000000 -> -5.180819648e-18 | EC10: =+(Bangods_linjedel!BQ10+Bangods_linjedel!CG10)/1000000 -> 0 | ED10: =+Bangods_linjedel!DC10/1000000 -> 0 | EE10: =+Bangods_linjedel!DD10/1000000 -> 0 | EF10: =+Bangods_linjedel!DE10/1000000 -> 0 | EG10: =+Bangods_linjedel!DA10/1000000 -> 0 | EH10: =+Bangods_linjedel!DB10/1000000 -> 0 | EJ10: =+Bangods_linjedel!DQ10 -> 523.1498885 | EK10: =+Bangods_linjedel!DR10 -> 523.1498885 | EL10: =+Bangods_linjedel!BA10-Bangods_linjedel!AY10 -> 0 | EM10: L107 | ET10: 358590.9232 | EU10: 740215.4807 | EV10: 22399043.94 | EW10: 78396653.79 | EX10: 3927169.247 | EY10: =+VLOOKUP(G10,' Bandelsspec avg o ext'!$A:$T,19,FALSE)*$F10*$N10 -> 1690474.751 | EZ10: 36983.1 | FB10: 63.94742561 | FE10: =+SUMIF(Länkar!I:I,Bangods_linjedel!B10,Länkar!Y:Y)/2 -> 3.849999905 | FG10: =+IF($N10=0,0,IF($G10="d",SUMPRODUCT($P10:$T10,Indata_Kalkylvärden!$I$139:$M$139))/$N10) -> 0 | FJ10: 56363607.3 | FK10: 56363607.3 | FN10: 1098806.404 | FQ10: 1380575.054 | FR10: 1797550.544 | FS10: 3178125.599
A11: =IFERROR(VLOOKUP(B11,' Fyrspår JA'!B:Z,25,FALSE),+VLOOKUP(B11,Länkar!I:AD,20,FALSE)) -> Malmbanan | B11: =+BANGODSINDATA!B10 -> L108 | C11: =+BANGODSINDATA!C10 -> Kiruna Malmbangård-Peuravaara | E11: =+BANGODSINDATA!D10 -> Peuravaara-Kiruna Malmbangård | F11: =+IFERROR(BANGODSINDATA!F10,FE11) -> 3.5 | G11: =IFERROR((+VLOOKUP(B11,Länkar!I:AD,22,FALSE)),VLOOKUP(B11,' Fyrspår JA'!B:Z,25,FALSE)) -> 112 | N11: =+IFERROR(BANGODSINDATA!G10,0) -> 14382 | O11: =+IF(BANGODSINDATA!H10=0,0,BANGODSINDATA!H10*Kalkylsammanställning!G$2) -> 45635174 | P11: =+IFERROR(BANGODSINDATA!I10,0) -> 1652 | Q11: =+IF(BANGODSINDATA!J10="-",0,BANGODSINDATA!J10) -> 0 | R11: =+IFERROR(BANGODSINDATA!K10,0) -> 0 | S11: =+IFERROR(BANGODSINDATA!L10,0) -> 12730 | T11: =+IFERROR(BANGODSINDATA!M10,0) -> 0 | U11: 42.97942857 | V11: =+IF(U11+Bangods_linjedel!K11<0,0,U11+Bangods_linjedel!K11) -> 42.97942857 | W11: 36.37142857 | X11: 6.608 | Y11: =(IF(AM11="nej",100%,INDATABLAD!$D$268)) -> 0 | Z11: =+IF(N11=0,0,SUMPRODUCT(P11:T11,Indata_Kalkylvärden!D$104:H$104)/N11) -> 47.87164511 | AA11: =+IF(N11=0,0,SUMPRODUCT($P11:$T11,Indata_Kalkylvärden!$D$105:$H$105)/Bangods_linjedel!$N11) -> 311.4865804 | AB11: =IF(N11=0,0,(CM11*INDATABLAD!D$266+INDATABLAD!D$267*CI11)/(N11*F11)) -> 71.5979152 | AC11: =+IF(B11='Beskrivning av åtgärd'!$D$171,'Beskrivning av åtgärd'!$B$171*$N11,0) -> 0 | AD11: =+IF(N11=0,0,SUMPRODUCT(P11:T11,Indata_Kalkylvärden!D$117:H$117/Bangods_linjedel!N11)) -> 83.7695689 | AE11: =+IF(N11=0,0,SUMPRODUCT(P11:T11,Indata_Kalkylvärden!$D$116:$H$116)/N11)*DN11 -> 31.7806881 | AF11: 118.3112614 | AG11: =+Indata_Kalkylvärden!T$96 -> 1.53 | AH11: =+Indata_Kalkylvärden!T$97 -> 5.355 | AI11: 67412.86253 | AJ11: 36852.37025 | AK11: 141117.603 | AL11: =+IF(N11=0,0,SUMPRODUCT($P11:$T11,Indata_Kalkylvärden!$D$118:$H$118)/$N11) -> -0.1350407871 | AM11: =+VLOOKUP($G11,Länkar!$F:$V,16,FALSE) -> Ja | AN11: =+VLOOKUP($G11,Länkar!$F:$V,17,FALSE) -> Ja | AO11: =+IF(N11=0,0,(SUMPRODUCT(P11:T11,Indata_Kalkylvärden!$D$110:$H$110)/N11)) -> 1.653054982 | AP11: =+IFERROR(IF(B11=0,0,VLOOKUP(B11,'Kap.ber JA'!$B:$AI,7,FALSE)),0) -> dsp | AQ11: =+IFERROR(IF(B11=0,0,VLOOKUP(B11,'Kap.ber UA'!B:H,7,FALSE)),0) -> dsp | AR11: =+IFERROR(IF(B11=0,0,VLOOKUP(B11,'Kap.ber JA'!$B:$AI,8,FALSE)),0) -> 0.1496613757 | AS11: =+IFERROR(IF(B11=0,0,VLOOKUP(B11,'Kap.ber UA'!$B:$AL,8,FALSE)),0) -> 0.1496613757 | AT11: =+IF($AP11="esp",INDATABLAD!$D$568,INDATABLAD!$D$566) -> 4 | AU11: =+IF($AP11="Esp",INDATABLAD!$D$569,INDATABLAD!$D$567) -> 2 | AV11: =+IF($AQ11="Esp",INDATABLAD!$D$568,INDATABLAD!$D$566) -> 4 | AW11: =+IF($AQ11="Esp",INDATABLAD!$D$569,INDATABLAD!$D$567) -> 2 | AX11: =+INDATABLAD!$D$565 -> 0.3 | AY11: 0 | AZ11: 0.105 | BA11: 0 | BB11: 0.105 | BC11: =SUMIF('Gods_nya linjedelar_UA'!$D$4:$D$18,Bangods_linjedel!B11,'Gods_nya linjedelar_UA'!$J$4:$J$18) -> 0 | BD11: =SUMIF('Gods_nya linjedelar_UA'!$D$4:$D$18,Bangods_linjedel!B11,'Gods_nya linjedelar_UA'!$K$4:$K$18) -> 0 | BE11: =+Bangods_linjedel!H11 -> 0 | BF11: =+Bangods_linjedel!I11 -> 0 | BG11: -1.387778781e-17 | BH11: =+Bangods_linjedel!K11 -> 0 | BI11: =+IF(Bangods_linjedel!J11=0,(BA11-AY11)*0.05,Bangods_linjedel!J11) -> 0 | BJ11: 0 | BL11: -2.306271557e-11 | BM11: =+(($BG11+$BI11)*($AD11+AE11)*$N11)+Bangods_linjedel!M11 -> -2.306271557e-11 | BN11: =+(CJ11-CI11)*INDATABLAD!D$267+INDATABLAD!D$266*(CN11-CM11) -> 0 | BO11: 0 | BP11: -1.614953916e-11 | BQ11: 0 | BR11: =+IF(N11=0,0,('Beskrivning av åtgärd'!$C$165*(X11)+'Beskrivning av åtgärd'!$D$165*Bangods_linjedel!W11)/Bangods_linjedel!U11) -> 0.02165477451 | BS11: =+IF(O11=0,0,('Beskrivning av åtgärd'!$F$165*(X11)+'Beskrivning av åtgärd'!$G$165*Bangods_linjedel!W11)/Bangods_linjedel!U11) -> 0.02165477451 | BT11: =+IF(U11=0,0,('Beskrivning av åtgärd'!$C$166*(X11)+'Beskrivning av åtgärd'!$D$166*$W11)/$U11) -> 4.726154537 | BU11: =+IF(O11=0,0,('Beskrivning av åtgärd'!$F$166*(X11)+'Beskrivning av åtgärd'!$G$166*$W11)/$U11) -> 4.726154537 | BV11: 250 | BW11: 350 | BY11: 0 | BZ11: =+IF(O11=0,0,(((BM11+BN11+BO11*'Beskrivning av åtgärd'!$C$176)/(AK11*N11))*AL11)*O11) -> 7.002847016e-14 | CA11: 2.18129287e-11 | CB11: 3.605797047e-11 | CC11: 1.769519592e-32 | CD11: 0 | CE11: 0 | CF11: -2.478192636e-32 | CG11: 0 | CI11: =+(($N11*$F11*INDATABLAD!$D$254+Bangods_linjedel!$DF11*INDATABLAD!$D$255))*Y11 -> 0 | CJ11: =+IF($AN11="Nej",(($N11*($F11+$BF11)*INDATABLAD!$D$254+DG11*INDATABLAD!$D$255)),IF($BJ11="Ja",0,(($N11*($F11+$BF11)*INDATABLAD!$D$254+DG11*INDATABLAD!$D$255))*$Y11)) -> 0 | CK11: =+IF($AN11="Nej",(($N11*($F11+$BF11)*INDATABLAD!$D$254+DH11*INDATABLAD!$D$255)),IF($BJ11="ja",0,(($N11*($F11+$BF11)*INDATABLAD!$D$254+DH11*INDATABLAD!$D$255))*$Y11)) -> 0 | CL11: 0 | CM11: =+DF11*INDATABLAD!$D$256*(1-$Y11) -> 5148606.082 | CN11: =+IF(AN11="Ja",DG11*INDATABLAD!$D$256,IF(AN11="Nej",0,DG11*INDATABLAD!$D$256*(1-Y11))) -> 5148606.082 | CO11: 5148606.082 | CP11: 237900.4409 | CQ11: 5717533.526 | CR11: =+DF11*(INDATABLAD!$D$248)+F11*N11*INDATABLAD!$D$249 -> 5955433.967 | CT11: =+IFERROR(VLOOKUP(G11,' Bandelsspec avg o ext'!$A:$T,17,FALSE)*$F11*$N11*DQ11/500,0) -> 578025.7862 | CU11: 237900.4409 | CV11: 5717533.526 | CW11: =+IF(N11=0,0,DH11*(INDATABLAD!$D$248)+N11*(V11/U11)*(F11+BF11)*INDATABLAD!D$249) -> 5955433.967 | CY11: =+IFERROR(IF(V11=0,0,VLOOKUP(G11,' Bandelsspec avg o ext'!$A:$V,18,FALSE)*($F11+BF11)*$N11*(V11/U11)*(DR11/500)),0) -> 578025.7862 | CZ11: 0 | DA11: 0 | DB11: 0 | DC11: 0 | DD11: 0 | DE11: 0 | DF11: 264031081.1 | DG11: 264031081.1 | DH11: 264031081.1 | DI11: 237900.4409 | DJ11: 5717533.526 | DK11: 0 | DL11: =+IF(N11=0,0,SUMPRODUCT(P11:T11,Indata_Kalkylvärden!D$106:H$106)/N11) -> 2714.900227 | DM11: 3173.07565 | DN11: 1.168763264 | DO11: =+IF(N11=0,0,SUMPRODUCT(P11:T11,Indata_Kalkylvärden!D$109:H$109)/Bangods_linjedel!N11) -> 0.2905283678 | DP11: 1.41463337e-18 | DQ11: =+IF(N11=0,0,(SUMPRODUCT(P11:T11,Indata_Kalkylvärden!D$108:H$108)/Bangods_linjedel!N11)*DN11) -> 828.3399851 | DR11: =+IF(Bangods_linjedel!L11=0,DQ11+DP11,DQ11+DP11+Bangods_linjedel!L11) -> 828.3399851 | DS11: =+Bangods_linjedel!Z11 -> 47.87164511 | DT11: =+Bangods_linjedel!AB11 -> 71.5979152 | DU11: =+Bangods_linjedel!AF11 -> 118.3112614 | DV11: =+Bangods_linjedel!AD11+Bangods_linjedel!AE11 -> 115.550257 | DW11: =+Bangods_linjedel!AG11 -> 1.53 | DX11: =+Bangods_linjedel!AH11 -> 5.355 | DY11: =+Bangods_linjedel!BG11 -> -1.387778781e-17 | DZ11: =+(Bangods_linjedel!BM11+Bangods_linjedel!CD11)/1000000 -> -2.306271557e-17 | EA11: =+(Bangods_linjedel!BO11+Bangods_linjedel!CE11)/1000000 -> 0 | EB11: =+(Bangods_linjedel!BP11+Bangods_linjedel!CF11)/1000000 -> -1.614953916e-17 | EC11: =+(Bangods_linjedel!BQ11+Bangods_linjedel!CG11)/1000000 -> 0 | ED11: =+Bangods_linjedel!DC11/1000000 -> 0 | EE11: =+Bangods_linjedel!DD11/1000000 -> 0 | EF11: =+Bangods_linjedel!DE11/1000000 -> 0 | EG11: =+Bangods_linjedel!DA11/1000000 -> 0 | EH11: =+Bangods_linjedel!DB11/1000000 -> 0 | EJ11: =+Bangods_linjedel!DQ11 -> 828.3399851 | EK11: =+Bangods_linjedel!DR11 -> 828.3399851 | EL11: =+Bangods_linjedel!BA11-Bangods_linjedel!AY11 -> 0 | EM11: L108 | ET11: 1029721.216 | EU11: 1661843.796 | EV11: 69821816.22 | EW11: 244376356.8 | EX11: 10894084.93 | EY11: =+VLOOKUP(G11,' Bandelsspec avg o ext'!$A:$T,19,FALSE)*$F11*$N11 -> 895462.8508 | EZ11: 50337 | FB11: 118.3112614 | FE11: =+SUMIF(Länkar!I:I,Bangods_linjedel!B11,Länkar!Y:Y)/2 -> 3.5 | FG11: =+IF($N11=0,0,IF($G11="d",SUMPRODUCT($P11:$T11,Indata_Kalkylvärden!$I$139:$M$139))/$N11) -> 0 | FJ11: 159723109 | FK11: 159723109 | FN11: 2691565.013 | FQ11: 3604024.257 | FR11: 5285018.444 | FS11: 8889042.702
A12: =IFERROR(VLOOKUP(B12,' Fyrspår JA'!B:Z,25,FALSE),+VLOOKUP(B12,Länkar!I:AD,20,FALSE)) -> Haparandabanan | B12: =+BANGODSINDATA!B11 -> L200 | C12: =+BANGODSINDATA!C11 -> Buddbyn-Kalix Östra | E12: =+BANGODSINDATA!D11 -> Gåsträsken-Sågbäcken | F12: =+IFERROR(BANGODSINDATA!F11,FE12) -> 107.27 | G12: =IFERROR((+VLOOKUP(B12,Länkar!I:AD,22,FALSE)),VLOOKUP(B12,' Fyrspår JA'!B:Z,25,FALSE)) -> 137 | N12: =+IFERROR(BANGODSINDATA!G11,0) -> 703 | O12: =+IF(BANGODSINDATA!H11=0,0,BANGODSINDATA!H11*Kalkylsammanställning!G$2) -> 208192 | P12: =+IFERROR(BANGODSINDATA!I11,0) -> 74 | Q12: =+IF(BANGODSINDATA!J11="-",0,BANGODSINDATA!J11) -> 629 | R12: =+IFERROR(BANGODSINDATA!K11,0) -> 0 | S12: =+IFERROR(BANGODSINDATA!L11,0) -> 0 | T12: =+IFERROR(BANGODSINDATA!M11,0) -> 0 | U12: 2.812 | V12: =+IF(U12+Bangods_linjedel!K12<0,0,U12+Bangods_linjedel!K12) -> 2.812 | W12: 0 | X12: 2.812 | Y12: =(IF(AM12="nej",100%,INDATABLAD!$D$268)) -> 0 | Z12: =+IF(N12=0,0,SUMPRODUCT(P12:T12,Indata_Kalkylvärden!D$104:H$104)/N12) -> 70 | AA12: =+IF(N12=0,0,SUMPRODUCT($P12:$T12,Indata_Kalkylvärden!$D$105:$H$105)/Bangods_linjedel!$N12) -> 310.5263158 | AB12: =IF(N12=0,0,(CM12*INDATABLAD!D$266+INDATABLAD!D$267*CI12)/(N12*F12)) -> 9.253479002 | AC12: =+IF(B12='Beskrivning av åtgärd'!$D$171,'Beskrivning av åtgärd'!$B$171*$N12,0) -> 0 | AD12: =+IF(N12=0,0,SUMPRODUCT(P12:T12,Indata_Kalkylvärden!D$117:H$117/Bangods_linjedel!N12)) -> 49.54274481 | AE12: =+IF(N12=0,0,SUMPRODUCT(P12:T12,Indata_Kalkylvärden!$D$116:$H$116)/N12)*DN12 -> 13.59755501 | AF12: 19.40615463 | AG12: =+Indata_Kalkylvärden!T$96 -> 1.53 | AH12: =+Indata_Kalkylvärden!T$97 -> 5.355 | AI12: 19679.21275 | AJ12: 6026.1217 | AK12: 31731.45616 | AL12: =+IF(N12=0,0,SUMPRODUCT($P12:$T12,Indata_Kalkylvärden!$D$118:$H$118)/$N12) -> -1.0038 | AM12: =+VLOOKUP($G12,Länkar!$F:$V,16,FALSE) -> Ja | AN12: =+VLOOKUP($G12,Länkar!$F:$V,17,FALSE) -> Ja | AO12: =+IF(N12=0,0,(SUMPRODUCT(P12:T12,Indata_Kalkylvärden!$D$110:$H$110)/N12)) -> 2.28909428 | AP12: =+IFERROR(IF(B12=0,0,VLOOKUP(B12,'Kap.ber JA'!$B:$AI,7,FALSE)),0) -> esp | AQ12: =+IFERROR(IF(B12=0,0,VLOOKUP(B12,'Kap.ber UA'!B:H,7,FALSE)),0) -> esp | AR12: =+IFERROR(IF(B12=0,0,VLOOKUP(B12,'Kap.ber JA'!$B:$AI,8,FALSE)),0) -> 0.2620296296 | AS12: =+IFERROR(IF(B12=0,0,VLOOKUP(B12,'Kap.ber UA'!$B:$AL,8,FALSE)),0) -> 0.2620296296 | AT12: =+IF($AP12="esp",INDATABLAD!$D$568,INDATABLAD!$D$566) -> 2.58 | AU12: =+IF($AP12="Esp",INDATABLAD!$D$569,INDATABLAD!$D$567) -> 0.28 | AV12: =+IF($AQ12="Esp",INDATABLAD!$D$568,INDATABLAD!$D$566) -> 2.58 | AW12: =+IF($AQ12="Esp",INDATABLAD!$D$569,INDATABLAD!$D$567) -> 0.28 | AX12: =+INDATABLAD!$D$565 -> 0.3 | AY12: 4.24828294 | AZ12: 3.2181 | BA12: 4.24828294 | BB12: 3.2181 | BC12: =SUMIF('Gods_nya linjedelar_UA'!$D$4:$D$18,Bangods_linjedel!B12,'Gods_nya linjedelar_UA'!$J$4:$J$18) -> 0 | BD12: =SUMIF('Gods_nya linjedelar_UA'!$D$4:$D$18,Bangods_linjedel!B12,'Gods_nya linjedelar_UA'!$K$4:$K$18) -> 0 | BE12: =+Bangods_linjedel!H12 -> 0 | BF12: =+Bangods_linjedel!I12 -> 0 | BG12: 4.440892099e-16 | BH12: =+Bangods_linjedel!K12 -> 0 | BI12: =+IF(Bangods_linjedel!J12=0,(BA12-AY12)*0.05,Bangods_linjedel!J12) -> 0 | BJ12: 0 | BL12: 1.971206788e-11 | BM12: =+(($BG12+$BI12)*($AD12+AE12)*$N12)+Bangods_linjedel!M12 -> 1.971206788e-11 | BN12: =+(CJ12-CI12)*INDATABLAD!D$267+INDATABLAD!D$266*(CN12-CM12) -> 0 | BO12: 0 | BP12: 2.35762343e-12 | BQ12: 0 | BR12: =+IF(N12=0,0,('Beskrivning av åtgärd'!$C$165*(X12)+'Beskrivning av åtgärd'!$D$165*Bangods_linjedel!W12)/Bangods_linjedel!U12) -> 0.02165477451 | BS12: =+IF(O12=0,0,('Beskrivning av åtgärd'!$F$165*(X12)+'Beskrivning av åtgärd'!$G$165*Bangods_linjedel!W12)/Bangods_linjedel!U12) -> 0.02165477451 | BT12: =+IF(U12=0,0,('Beskrivning av åtgärd'!$C$166*(X12)+'Beskrivning av åtgärd'!$D$166*$W12)/$U12) -> 4.726154537 | BU12: =+IF(O12=0,0,('Beskrivning av åtgärd'!$F$166*(X12)+'Beskrivning av åtgärd'!$G$166*$W12)/$U12) -> 4.726154537 | BV12: 250 | BW12: 350 | BY12: 0 | BZ12: =+IF(O12=0,0,(((BM12+BN12+BO12*'Beskrivning av åtgärd'!$C$176)/(AK12*N12))*AL12)*O12) -> -1.84670739e-13 | CA12: -5.734512423e-11 | CB12: -1.312683959e-10 | CC12: 8.742512063e-30 | CD12: 0 | CE12: 0 | CF12: 2.091262206e-30 | CG12: 0 | CI12: =+(($N12*$F12*INDATABLAD!$D$254+Bangods_linjedel!$DF12*INDATABLAD!$D$255))*Y12 -> 0 | CJ12: =+IF($AN12="Nej",(($N12*($F12+$BF12)*INDATABLAD!$D$254+DG12*INDATABLAD!$D$255)),IF($BJ12="Ja",0,(($N12*($F12+$BF12)*INDATABLAD!$D$254+DG12*INDATABLAD!$D$255))*$Y12)) -> 0 | CK12: =+IF($AN12="Nej",(($N12*($F12+$BF12)*INDATABLAD!$D$254+DH12*INDATABLAD!$D$255)),IF($BJ12="ja",0,(($N12*($F12+$BF12)*INDATABLAD!$D$254+DH12*INDATABLAD!$D$255))*$Y12)) -> 0 | CL12: 0 | CM12: =+DF12*INDATABLAD!$D$256*(1-$Y12) -> 996874.7812 | CN12: =+IF(AN12="Ja",DG12*INDATABLAD!$D$256,IF(AN12="Nej",0,DG12*INDATABLAD!$D$256*(1-Y12))) -> 996874.7812 | CO12: 996874.7812 | CP12: 356403.1419 | CQ12: 1107030.698 | CR12: =+DF12*(INDATABLAD!$D$248)+F12*N12*INDATABLAD!$D$249 -> 1463433.84 | CT12: =+IFERROR(VLOOKUP(G12,' Bandelsspec avg o ext'!$A:$T,17,FALSE)*$F12*$N12*DQ12/500,0) -> 1176.54034 | CU12: 356403.1419 | CV12: 1107030.698 | CW12: =+IF(N12=0,0,DH12*(INDATABLAD!$D$248)+N12*(V12/U12)*(F12+BF12)*INDATABLAD!D$249) -> 1463433.84 | CY12: =+IFERROR(IF(V12=0,0,VLOOKUP(G12,' Bandelsspec avg o ext'!$A:$V,18,FALSE)*($F12+BF12)*$N12*(V12/U12)*(DR12/500)),0) -> 1176.54034 | CZ12: 0 | DA12: 0 | DB12: 0 | DC12: 0 | DD12: 0 | DE12: 0 | DF12: 51121783.65 | DG12: 51121783.65 | DH12: 51121783.65 | DI12: 356403.1419 | DJ12: 1107030.698 | DK12: 0 | DL12: =+IF(N12=0,0,SUMPRODUCT(P12:T12,Indata_Kalkylvärden!D$106:H$106)/N12) -> 299.0373915 | DM12: 296.1479374 | DN12: 0.9903374821 | DO12: =+IF(N12=0,0,SUMPRODUCT(P12:T12,Indata_Kalkylvärden!D$109:H$109)/Bangods_linjedel!N12) -> 0.9002902304 | DP12: -2.364968168e-16 | DQ12: =+IF(N12=0,0,(SUMPRODUCT(P12:T12,Indata_Kalkylvärden!D$108:H$108)/Bangods_linjedel!N12)*DN12) -> 277.8776597 | DR12: =+IF(Bangods_linjedel!L12=0,DQ12+DP12,DQ12+DP12+Bangods_linjedel!L12) -> 277.8776597 | DS12: =+Bangods_linjedel!Z12 -> 70 | DT12: =+Bangods_linjedel!AB12 -> 9.253479002 | DU12: =+Bangods_linjedel!AF12 -> 19.40615463 | DV12: =+Bangods_linjedel!AD12+Bangods_linjedel!AE12 -> 63.14029982 | DW12: =+Bangods_linjedel!AG12 -> 1.53 | DX12: =+Bangods_linjedel!AH12 -> 5.355 | DY12: =+Bangods_linjedel!BG12 -> 4.440892099e-16 | DZ12: =+(Bangods_linjedel!BM12+Bangods_linjedel!CD12)/1000000 -> 1.971206788e-17 | EA12: =+(Bangods_linjedel!BO12+Bangods_linjedel!CE12)/1000000 -> 0 | EB12: =+(Bangods_linjedel!BP12+Bangods_linjedel!CF12)/1000000 -> 2.35762343e-18 | EC12: =+(Bangods_linjedel!BQ12+Bangods_linjedel!CG12)/1000000 -> 0 | ED12: =+Bangods_linjedel!DC12/1000000 -> 0 | EE12: =+Bangods_linjedel!DD12/1000000 -> 0 | EF12: =+Bangods_linjedel!DE12/1000000 -> 0 | EG12: =+Bangods_linjedel!DA12/1000000 -> 0 | EH12: =+Bangods_linjedel!DB12/1000000 -> 0 | EJ12: =+Bangods_linjedel!DQ12 -> 277.8776597 | EK12: =+Bangods_linjedel!DR12 -> 277.8776597 | EL12: =+Bangods_linjedel!BA12-Bangods_linjedel!AY12 -> 0 | EM12: L200 | ET12: 6505.195738 | EU12: 44387.63077 | EV12: 318533.76 | EW12: 1114868.16 | EX12: 4779064.764 | EY12: =+VLOOKUP(G12,' Bandelsspec avg o ext'!$A:$T,19,FALSE)*$F12*$N12 -> 5433.281121 | EZ12: 75410.81 | FB12: 19.40615463 | FE12: =+SUMIF(Länkar!I:I,Bangods_linjedel!B12,Länkar!Y:Y)/2 -> 107.2699995 | FG12: =+IF($N12=0,0,IF($G12="d",SUMPRODUCT($P12:$T12,Indata_Kalkylvärden!$I$139:$M$139))/$N12) -> 0 | FJ12: 22332755.84 | FK12: 22332755.84 | FN12: 50892.82651 | FQ12: 697812.3469 | FR12: 3202335.871 | FS12: 3900148.218
A13: =IFERROR(VLOOKUP(B13,' Fyrspår JA'!B:Z,25,FALSE),+VLOOKUP(B13,Länkar!I:AD,20,FALSE)) -> Haparandabanan | B13: =+BANGODSINDATA!B12 -> L201 | C13: =+BANGODSINDATA!C12 -> Kalix Östra-Haparanda | E13: =+BANGODSINDATA!D12 -> Bredviken-Vuonoskogen | F13: =+IFERROR(BANGODSINDATA!F12,FE13) -> 47.33 | G13: =IFERROR((+VLOOKUP(B13,Länkar!I:AD,22,FALSE)),VLOOKUP(B13,' Fyrspår JA'!B:Z,25,FALSE)) -> 132 | N13: =+IFERROR(BANGODSINDATA!G12,0) -> 703 | O13: =+IF(BANGODSINDATA!H12=0,0,BANGODSINDATA!H12*Kalkylsammanställning!G$2) -> 208192 | P13: =+IFERROR(BANGODSINDATA!I12,0) -> 74 | Q13: =+IF(BANGODSINDATA!J12="-",0,BANGODSINDATA!J12) -> 629 | R13: =+IFERROR(BANGODSINDATA!K12,0) -> 0 | S13: =+IFERROR(BANGODSINDATA!L12,0) -> 0 | T13: =+IFERROR(BANGODSINDATA!M12,0) -> 0 | U13: 2.812 | V13: =+IF(U13+Bangods_linjedel!K13<0,0,U13+Bangods_linjedel!K13) -> 2.812 | W13: 0 | X13: 2.812 | Y13: =(IF(AM13="nej",100%,INDATABLAD!$D$268)) -> 0 | Z13: =+IF(N13=0,0,SUMPRODUCT(P13:T13,Indata_Kalkylvärden!D$104:H$104)/N13) -> 70 | AA13: =+IF(N13=0,0,SUMPRODUCT($P13:$T13,Indata_Kalkylvärden!$D$105:$H$105)/Bangods_linjedel!$N13) -> 310.5263158 | AB13: =IF(N13=0,0,(CM13*INDATABLAD!D$266+INDATABLAD!D$267*CI13)/(N13*F13)) -> 9.253479002 | AC13: =+IF(B13='Beskrivning av åtgärd'!$D$171,'Beskrivning av åtgärd'!$B$171*$N13,0) -> 0 | AD13: =+IF(N13=0,0,SUMPRODUCT(P13:T13,Indata_Kalkylvärden!D$117:H$117/Bangods_linjedel!N13)) -> 49.54274481 | AE13: =+IF(N13=0,0,SUMPRODUCT(P13:T13,Indata_Kalkylvärden!$D$116:$H$116)/N13)*DN13 -> 13.59755501 | AF13: 19.40615463 | AG13: =+Indata_Kalkylvärden!T$96 -> 1.53 | AH13: =+Indata_Kalkylvärden!T$97 -> 5.355 | AI13: 19679.21275 | AJ13: 6026.1217 | AK13: 31731.45616 | AL13: =+IF(N13=0,0,SUMPRODUCT($P13:$T13,Indata_Kalkylvärden!$D$118:$H$118)/$N13) -> -1.0038 | AM13: =+VLOOKUP($G13,Länkar!$F:$V,16,FALSE) -> Ja | AN13: =+VLOOKUP($G13,Länkar!$F:$V,17,FALSE) -> Ja | AO13: =+IF(N13=0,0,(SUMPRODUCT(P13:T13,Indata_Kalkylvärden!$D$110:$H$110)/N13)) -> 2.28909428 | AP13: =+IFERROR(IF(B13=0,0,VLOOKUP(B13,'Kap.ber JA'!$B:$AI,7,FALSE)),0) -> esp | AQ13: =+IFERROR(IF(B13=0,0,VLOOKUP(B13,'Kap.ber UA'!B:H,7,FALSE)),0) -> esp | AR13: =+IFERROR(IF(B13=0,0,VLOOKUP(B13,'Kap.ber JA'!$B:$AI,8,FALSE)),0) -> 0.3347111111 | AS13: =+IFERROR(IF(B13=0,0,VLOOKUP(B13,'Kap.ber UA'!$B:$AL,8,FALSE)),0) -> 0.3347111111 | AT13: =+IF($AP13="esp",INDATABLAD!$D$568,INDATABLAD!$D$566) -> 2.58 | AU13: =+IF($AP13="Esp",INDATABLAD!$D$569,INDATABLAD!$D$567) -> 0.28 | AV13: =+IF($AQ13="Esp",INDATABLAD!$D$568,INDATABLAD!$D$566) -> 2.58 | AW13: =+IF($AQ13="Esp",INDATABLAD!$D$569,INDATABLAD!$D$567) -> 0.28 | AX13: =+INDATABLAD!$D$565 -> 0.3 | AY13: 2.761964237 | AZ13: 1.4199 | BA13: 2.761964237 | BB13: 1.4199 | BC13: =SUMIF('Gods_nya linjedelar_UA'!$D$4:$D$18,Bangods_linjedel!B13,'Gods_nya linjedelar_UA'!$J$4:$J$18) -> 0 | BD13: =SUMIF('Gods_nya linjedelar_UA'!$D$4:$D$18,Bangods_linjedel!B13,'Gods_nya linjedelar_UA'!$K$4:$K$18) -> 0 | BE13: =+Bangods_linjedel!H13 -> 0 | BF13: =+Bangods_linjedel!I13 -> 0 | BG13: 0 | BH13: =+Bangods_linjedel!K13 -> 0 | BI13: =+IF(Bangods_linjedel!J13=0,(BA13-AY13)*0.05,Bangods_linjedel!J13) -> 0 | BJ13: 0 | BL13: 0 | BM13: =+(($BG13+$BI13)*($AD13+AE13)*$N13)+Bangods_linjedel!M13 -> 0 | BN13: =+(CJ13-CI13)*INDATABLAD!D$267+INDATABLAD!D$266*(CN13-CM13) -> 0 | BO13: 0 | BP13: 0 | BQ13: 0 | BR13: =+IF(N13=0,0,('Beskrivning av åtgärd'!$C$165*(X13)+'Beskrivning av åtgärd'!$D$165*Bangods_linjedel!W13)/Bangods_linjedel!U13) -> 0.02165477451 | BS13: =+IF(O13=0,0,('Beskrivning av åtgärd'!$F$165*(X13)+'Beskrivning av åtgärd'!$G$165*Bangods_linjedel!W13)/Bangods_linjedel!U13) -> 0.02165477451 | BT13: =+IF(U13=0,0,('Beskrivning av åtgärd'!$C$166*(X13)+'Beskrivning av åtgärd'!$D$166*$W13)/$U13) -> 4.726154537 | BU13: =+IF(O13=0,0,('Beskrivning av åtgärd'!$F$166*(X13)+'Beskrivning av åtgärd'!$G$166*$W13)/$U13) -> 4.726154537 | BV13: 250 | BW13: 350 | BY13: 0 | BZ13: =+IF(O13=0,0,(((BM13+BN13+BO13*'Beskrivning av åtgärd'!$C$176)/(AK13*N13))*AL13)*O13) -> 0 | CA13: 0 | CB13: 0 | CC13: 0 | CD13: 0 | CE13: 0 | CF13: 0 | CG13: 0 | CI13: =+(($N13*$F13*INDATABLAD!$D$254+Bangods_linjedel!$DF13*INDATABLAD!$D$255))*Y13 -> 0 | CJ13: =+IF($AN13="Nej",(($N13*($F13+$BF13)*INDATABLAD!$D$254+DG13*INDATABLAD!$D$255)),IF($BJ13="Ja",0,(($N13*($F13+$BF13)*INDATABLAD!$D$254+DG13*INDATABLAD!$D$255))*$Y13)) -> 0 | CK13: =+IF($AN13="Nej",(($N13*($F13+$BF13)*INDATABLAD!$D$254+DH13*INDATABLAD!$D$255)),IF($BJ13="ja",0,(($N13*($F13+$BF13)*INDATABLAD!$D$254+DH13*INDATABLAD!$D$255))*$Y13)) -> 0 | CL13: 0 | CM13: =+DF13*INDATABLAD!$D$256*(1-$Y13) -> 439844.1633 | CN13: =+IF(AN13="Ja",DG13*INDATABLAD!$D$256,IF(AN13="Nej",0,DG13*INDATABLAD!$D$256*(1-Y13))) -> 439844.1633 | CO13: 439844.1633 | CP13: 157253.2927 | CQ13: 488447.4962 | CR13: =+DF13*(INDATABLAD!$D$248)+F13*N13*INDATABLAD!$D$249 -> 645700.7889 | CT13: =+IFERROR(VLOOKUP(G13,' Bandelsspec avg o ext'!$A:$T,17,FALSE)*$F13*$N13*DQ13/500,0) -> 10.571906 | CU13: 157253.2927 | CV13: 488447.4962 | CW13: =+IF(N13=0,0,DH13*(INDATABLAD!$D$248)+N13*(V13/U13)*(F13+BF13)*INDATABLAD!D$249) -> 645700.7889 | CY13: =+IFERROR(IF(V13=0,0,VLOOKUP(G13,' Bandelsspec avg o ext'!$A:$V,18,FALSE)*($F13+BF13)*$N13*(V13/U13)*(DR13/500)),0) -> 10.571906 | CZ13: 0 | DA13: 0 | DB13: 0 | DC13: 0 | DD13: 0 | DE13: 0 | DF13: 22556110.94 | DG13: 22556110.94 | DH13: 22556110.94 | DI13: 157253.2927 | DJ13: 488447.4962 | DK13: 0 | DL13: =+IF(N13=0,0,SUMPRODUCT(P13:T13,Indata_Kalkylvärden!D$106:H$106)/N13) -> 299.0373915 | DM13: 296.1479374 | DN13: 0.9903374821 | DO13: =+IF(N13=0,0,SUMPRODUCT(P13:T13,Indata_Kalkylvärden!D$109:H$109)/Bangods_linjedel!N13) -> 0.9002902304 | DP13: 0 | DQ13: =+IF(N13=0,0,(SUMPRODUCT(P13:T13,Indata_Kalkylvärden!D$108:H$108)/Bangods_linjedel!N13)*DN13) -> 277.8776597 | DR13: =+IF(Bangods_linjedel!L13=0,DQ13+DP13,DQ13+DP13+Bangods_linjedel!L13) -> 277.8776597 | DS13: =+Bangods_linjedel!Z13 -> 70 | DT13: =+Bangods_linjedel!AB13 -> 9.253479002 | DU13: =+Bangods_linjedel!AF13 -> 19.40615463 | DV13: =+Bangods_linjedel!AD13+Bangods_linjedel!AE13 -> 63.14029982 | DW13: =+Bangods_linjedel!AG13 -> 1.53 | DX13: =+Bangods_linjedel!AH13 -> 5.355 | DY13: =+Bangods_linjedel!BG13 -> 0 | DZ13: =+(Bangods_linjedel!BM13+Bangods_linjedel!CD13)/1000000 -> 0 | EA13: =+(Bangods_linjedel!BO13+Bangods_linjedel!CE13)/1000000 -> 0 | EB13: =+(Bangods_linjedel!BP13+Bangods_linjedel!CF13)/1000000 -> 0 | EC13: =+(Bangods_linjedel!BQ13+Bangods_linjedel!CG13)/1000000 -> 0 | ED13: =+Bangods_linjedel!DC13/1000000 -> 0 | EE13: =+Bangods_linjedel!DD13/1000000 -> 0 | EF13: =+Bangods_linjedel!DE13/1000000 -> 0 | EG13: =+Bangods_linjedel!DA13/1000000 -> 0 | EH13: =+Bangods_linjedel!DB13/1000000 -> 0 | EJ13: =+Bangods_linjedel!DQ13 -> 277.8776597 | EK13: =+Bangods_linjedel!DR13 -> 277.8776597 | EL13: =+Bangods_linjedel!BA13-Bangods_linjedel!AY13 -> 0 | EM13: L201 | ET13: 6505.195738 | EU13: 44387.63077 | EV13: 318533.76 | EW13: 1114868.16 | EX13: 2108633.684 | EY13: =+VLOOKUP(G13,' Bandelsspec avg o ext'!$A:$T,19,FALSE)*$F13*$N13 -> 48.82122209 | EZ13: 33272.99 | FB13: 19.40615463 | FE13: =+SUMIF(Länkar!I:I,Bangods_linjedel!B13,Länkar!Y:Y)/2 -> 47.3300038 | FG13: =+IF($N13=0,0,IF($G13="d",SUMPRODUCT($P13:$T13,Indata_Kalkylvärden!$I$139:$M$139))/$N13) -> 0 | FJ13: 9853727.36 | FK13: 9853727.36 | FN13: 50892.82651 | FQ13: 307890.9143 | FR13: 1412944.502 | FS13: 1720835.417
A14: =IFERROR(VLOOKUP(B14,' Fyrspår JA'!B:Z,25,FALSE),+VLOOKUP(B14,Länkar!I:AD,20,FALSE)) -> Haparandabanan | B14: =+BANGODSINDATA!B13 -> L202 | C14: =+BANGODSINDATA!C13 -> Bredviken-Karlsborgsbruk | E14: =+BANGODSINDATA!D13 -> Bredviken-Karlsborgsbruk | F14: =+IFERROR(BANGODSINDATA!F13,FE14) -> 5.03 | G14: =IFERROR((+VLOOKUP(B14,Länkar!I:AD,22,FALSE)),VLOOKUP(B14,' Fyrspår JA'!B:Z,25,FALSE)) -> 132 | O14: =+IF(BANGODSINDATA!H13=0,0,BANGODSINDATA!H13*Kalkylsammanställning!G$2) -> 0 | P14: =+IFERROR(BANGODSINDATA!I13,0) -> 0 | Q14: =+IF(BANGODSINDATA!J13="-",0,BANGODSINDATA!J13) -> 0 | R14: =+IFERROR(BANGODSINDATA!K13,0) -> 0 | S14: =+IFERROR(BANGODSINDATA!L13,0) -> 0 | T14: =+IFERROR(BANGODSINDATA!M13,0) -> 0 | U14: 0 | V14: =+IF(U14+Bangods_linjedel!K14<0,0,U14+Bangods_linjedel!K14) -> 0 | W14: 0 | X14: 0 | Y14: =(IF(AM14="nej",100%,INDATABLAD!$D$268)) -> 0 | Z14: =+IF(N14=0,0,SUMPRODUCT(P14:T14,Indata_Kalkylvärden!D$104:H$104)/N14) -> 0 | AA14: =+IF(N14=0,0,SUMPRODUCT($P14:$T14,Indata_Kalkylvärden!$D$105:$H$105)/Bangods_linjedel!$N14) -> 0 | AB14: =IF(N14=0,0,(CM14*INDATABLAD!D$266+INDATABLAD!D$267*CI14)/(N14*F14)) -> 0 | AC14: =+IF(B14='Beskrivning av åtgärd'!$D$171,'Beskrivning av åtgärd'!$B$171*$N14,0) -> 0 | AD14: =+IF(N14=0,0,SUMPRODUCT(P14:T14,Indata_Kalkylvärden!D$117:H$117/Bangods_linjedel!N14)) -> 0 | AE14: =+IF(N14=0,0,SUMPRODUCT(P14:T14,Indata_Kalkylvärden!$D$116:$H$116)/N14)*DN14 -> 0 | AF14: 0 | AG14: =+Indata_Kalkylvärden!T$96 -> 1.53 | AH14: =+Indata_Kalkylvärden!T$97 -> 5.355 | AI14: 0 | AJ14: 0 | AK14: 0 | AL14: =+IF(N14=0,0,SUMPRODUCT($P14:$T14,Indata_Kalkylvärden!$D$118:$H$118)/$N14) -> 0 | AM14: =+VLOOKUP($G14,Länkar!$F:$V,16,FALSE) -> Ja | AN14: =+VLOOKUP($G14,Länkar!$F:$V,17,FALSE) -> Ja | AO14: =+IF(N14=0,0,(SUMPRODUCT(P14:T14,Indata_Kalkylvärden!$D$110:$H$110)/N14)) -> 0 | AP14: =+IFERROR(IF(B14=0,0,VLOOKUP(B14,'Kap.ber JA'!$B:$AI,7,FALSE)),0) -> esp | AQ14: =+IFERROR(IF(B14=0,0,VLOOKUP(B14,'Kap.ber UA'!B:H,7,FALSE)),0) -> esp | AR14: =+IFERROR(IF(B14=0,0,VLOOKUP(B14,'Kap.ber JA'!$B:$AI,8,FALSE)),0) -> 0 | AS14: =+IFERROR(IF(B14=0,0,VLOOKUP(B14,'Kap.ber UA'!$B:$AL,8,FALSE)),0) -> 0 | AT14: =+IF($AP14="esp",INDATABLAD!$D$568,INDATABLAD!$D$566) -> 2.58 | AU14: =+IF($AP14="Esp",INDATABLAD!$D$569,INDATABLAD!$D$567) -> 0.28 | AV14: =+IF($AQ14="Esp",INDATABLAD!$D$568,INDATABLAD!$D$566) -> 2.58 | AW14: =+IF($AQ14="Esp",INDATABLAD!$D$569,INDATABLAD!$D$567) -> 0.28 | AX14: =+INDATABLAD!$D$565 -> 0.3 | AY14: 0 | AZ14: 0.1509 | BA14: 0 | BB14: 0.1509 | BC14: =SUMIF('Gods_nya linjedelar_UA'!$D$4:$D$18,Bangods_linjedel!B14,'Gods_nya linjedelar_UA'!$J$4:$J$18) -> 0 | BD14: =SUMIF('Gods_nya linjedelar_UA'!$D$4:$D$18,Bangods_linjedel!B14,'Gods_nya linjedelar_UA'!$K$4:$K$18) -> 0 | BE14: =+Bangods_linjedel!H14 -> 0 | BF14: =+Bangods_linjedel!I14 -> 0 | BG14: 0 | BH14: =+Bangods_linjedel!K14 -> 0 | BI14: =+IF(Bangods_linjedel!J14=0,(BA14-AY14)*0.05,Bangods_linjedel!J14) -> 0 | BJ14: 0 | BL14: 0 | BM14: =+(($BG14+$BI14)*($AD14+AE14)*$N14)+Bangods_linjedel!M14 -> 0 | BN14: =+(CJ14-CI14)*INDATABLAD!D$267+INDATABLAD!D$266*(CN14-CM14) -> 0 | BO14: 0 | BP14: 0 | BQ14: 0 | BR14: =+IF(N14=0,0,('Beskrivning av åtgärd'!$C$165*(X14)+'Beskrivning av åtgärd'!$D$165*Bangods_linjedel!W14)/Bangods_linjedel!U14) -> 0 | BS14: =+IF(O14=0,0,('Beskrivning av åtgärd'!$F$165*(X14)+'Beskrivning av åtgärd'!$G$165*Bangods_linjedel!W14)/Bangods_linjedel!U14) -> 0 | BT14: =+IF(U14=0,0,('Beskrivning av åtgärd'!$C$166*(X14)+'Beskrivning av åtgärd'!$D$166*$W14)/$U14) -> 0 | BU14: =+IF(O14=0,0,('Beskrivning av åtgärd'!$F$166*(X14)+'Beskrivning av åtgärd'!$G$166*$W14)/$U14) -> 0 | BV14: 250 | BW14: 350 | BY14: 0 | BZ14: =+IF(O14=0,0,(((BM14+BN14+BO14*'Beskrivning av åtgärd'!$C$176)/(AK14*N14))*AL14)*O14) -> 0 | CA14: 0 | CB14: 0 | CC14: 0 | CD14: 0 | CE14: 0 | CF14: 0 | CG14: 0 | CI14: =+(($N14*$F14*INDATABLAD!$D$254+Bangods_linjedel!$DF14*INDATABLAD!$D$255))*Y14 -> 0 | CJ14: =+IF($AN14="Nej",(($N14*($F14+$BF14)*INDATABLAD!$D$254+DG14*INDATABLAD!$D$255)),IF($BJ14="Ja",0,(($N14*($F14+$BF14)*INDATABLAD!$D$254+DG14*INDATABLAD!$D$255))*$Y14)) -> 0 | CK14: =+IF($AN14="Nej",(($N14*($F14+$BF14)*INDATABLAD!$D$254+DH14*INDATABLAD!$D$255)),IF($BJ14="ja",0,(($N14*($F14+$BF14)*INDATABLAD!$D$254+DH14*INDATABLAD!$D$255))*$Y14)) -> 0 | CL14: 0 | CM14: =+DF14*INDATABLAD!$D$256*(1-$Y14) -> 0 | CN14: =+IF(AN14="Ja",DG14*INDATABLAD!$D$256,IF(AN14="Nej",0,DG14*INDATABLAD!$D$256*(1-Y14))) -> 0 | CO14: 0 | CP14: 0 | CQ14: 0 | CR14: =+DF14*(INDATABLAD!$D$248)+F14*N14*INDATABLAD!$D$249 -> 0 | CT14: =+IFERROR(VLOOKUP(G14,' Bandelsspec avg o ext'!$A:$T,17,FALSE)*$F14*$N14*DQ14/500,0) -> 0 | CU14: 0 | CV14: 0 | CW14: =+IF(N14=0,0,DH14*(INDATABLAD!$D$248)+N14*(V14/U14)*(F14+BF14)*INDATABLAD!D$249) -> 0 | CY14: =+IFERROR(IF(V14=0,0,VLOOKUP(G14,' Bandelsspec avg o ext'!$A:$V,18,FALSE)*($F14+BF14)*$N14*(V14/U14)*(DR14/500)),0) -> 0 | CZ14: 0 | DA14: 0 | DB14: 0 | DC14: 0 | DD14: 0 | DE14: 0 | DF14: 0 | DG14: 0 | DH14: 0 | DI14: 0 | DJ14: 0 | DK14: 0 | DL14: =+IF(N14=0,0,SUMPRODUCT(P14:T14,Indata_Kalkylvärden!D$106:H$106)/N14) -> 0 | DM14: 0 | DN14: 0 | DO14: =+IF(N14=0,0,SUMPRODUCT(P14:T14,Indata_Kalkylvärden!D$109:H$109)/Bangods_linjedel!N14) -> 0 | DP14: 0 | DQ14: =+IF(N14=0,0,(SUMPRODUCT(P14:T14,Indata_Kalkylvärden!D$108:H$108)/Bangods_linjedel!N14)*DN14) -> 0 | DR14: =+IF(Bangods_linjedel!L14=0,DQ14+DP14,DQ14+DP14+Bangods_linjedel!L14) -> 0 | DS14: =+Bangods_linjedel!Z14 -> 0 | DT14: =+Bangods_linjedel!AB14 -> 0 | DU14: =+Bangods_linjedel!AF14 -> 0 | DV14: =+Bangods_linjedel!AD14+Bangods_linjedel!AE14 -> 0 | DW14: =+Bangods_linjedel!AG14 -> 1.53 | DX14: =+Bangods_linjedel!AH14 -> 5.355 | DY14: =+Bangods_linjedel!BG14 -> 0 | DZ14: =+(Bangods_linjedel!BM14+Bangods_linjedel!CD14)/1000000 -> 0 | EA14: =+(Bangods_linjedel!BO14+Bangods_linjedel!CE14)/1000000 -> 0 | EB14: =+(Bangods_linjedel!BP14+Bangods_linjedel!CF14)/1000000 -> 0 | EC14: =+(Bangods_linjedel!BQ14+Bangods_linjedel!CG14)/1000000 -> 0 | ED14: =+Bangods_linjedel!DC14/1000000 -> 0 | EE14: =+Bangods_linjedel!DD14/1000000 -> 0 | EF14: =+Bangods_linjedel!DE14/1000000 -> 0 | EG14: =+Bangods_linjedel!DA14/1000000 -> 0 | EH14: =+Bangods_linjedel!DB14/1000000 -> 0 | EJ14: =+Bangods_linjedel!DQ14 -> 0 | EK14: =+Bangods_linjedel!DR14 -> 0 | EL14: =+Bangods_linjedel!BA14-Bangods_linjedel!AY14 -> 0 | EM14: L202 | ET14: 0 | EU14: 0 | EV14: 0 | EW14: 0 | EX14: 0 | EY14: =+VLOOKUP(G14,' Bandelsspec avg o ext'!$A:$T,19,FALSE)*$F14*$N14 -> 0 | EZ14: 0 | FB14: 0 | FE14: =+SUMIF(Länkar!I:I,Bangods_linjedel!B14,Länkar!Y:Y)/2 -> 0 | FG14: =+IF($N14=0,0,IF($G14="d",SUMPRODUCT($P14:$T14,Indata_Kalkylvärden!$I$139:$M$139))/$N14) -> 0 | FJ14: 0 | FK14: 0 | FN14: 0 | FQ14: 0 | FR14: 0 | FS14: 0
A15: =IFERROR(VLOOKUP(B15,' Fyrspår JA'!B:Z,25,FALSE),+VLOOKUP(B15,Länkar!I:AD,20,FALSE)) -> Stambanan genom övre norrland | B15: =+BANGODSINDATA!B14 -> L300 | C15: =+BANGODSINDATA!C14 -> Bräcke-Långsele | E15: =+BANGODSINDATA!D14 -> Ragunda-Bispgården | F15: =+IFERROR(BANGODSINDATA!F14,FE15) -> 130.52 | G15: =IFERROR((+VLOOKUP(B15,Länkar!I:AD,22,FALSE)),VLOOKUP(B15,' Fyrspår JA'!B:Z,25,FALSE)) -> 211 | N15: =+IFERROR(BANGODSINDATA!G14,0) -> 8044 | O15: =+IF(BANGODSINDATA!H14=0,0,BANGODSINDATA!H14*Kalkylsammanställning!G$2) -> 4005588 | P15: =+IFERROR(BANGODSINDATA!I14,0) -> 3530 | Q15: =+IF(BANGODSINDATA!J14="-",0,BANGODSINDATA!J14) -> 0 | R15: =+IFERROR(BANGODSINDATA!K14,0) -> 1065 | S15: =+IFERROR(BANGODSINDATA!L14,0) -> 0 | T15: =+IFERROR(BANGODSINDATA!M14,0) -> 3450 | U15: 32.18 | V15: =+IF(U15+Bangods_linjedel!K15<0,0,U15+Bangods_linjedel!K15) -> 32.18 | W15: 0 | X15: 32.18 | Y15: =(IF(AM15="nej",100%,INDATABLAD!$D$268)) -> 0 | Z15: =+IF(N15=0,0,SUMPRODUCT(P15:T15,Indata_Kalkylvärden!D$104:H$104)/N15) -> 80.57247638 | AA15: =+IF(N15=0,0,SUMPRODUCT($P15:$T15,Indata_Kalkylvärden!$D$105:$H$105)/Bangods_linjedel!$N15) -> 456.1785182 | AB15: =IF(N15=0,0,(CM15*INDATABLAD!D$266+INDATABLAD!D$267*CI15)/(N15*F15)) -> 12.91528672 | AC15: =+IF(B15='Beskrivning av åtgärd'!$D$171,'Beskrivning av åtgärd'!$B$171*$N15,0) -> 0 | AD15: =+IF(N15=0,0,SUMPRODUCT(P15:T15,Indata_Kalkylvärden!D$117:H$117/Bangods_linjedel!N15)) -> 27.9448679 | AE15: =+IF(N15=0,0,SUMPRODUCT(P15:T15,Indata_Kalkylvärden!$D$116:$H$116)/N15)*DN15 -> 16.79454156 | AF15: 25.21535759 | AG15: =+Indata_Kalkylvärden!T$96 -> 1.53 | AH15: =+Indata_Kalkylvärden!T$97 -> 5.355 | AI15: 21089.78749 | AJ15: 11502.70446 | AK15: 44095.19642 | AL15: =+IF(N15=0,0,SUMPRODUCT($P15:$T15,Indata_Kalkylvärden!$D$118:$H$118)/$N15) -> -0.7990500373 | AM15: =+VLOOKUP($G15,Länkar!$F:$V,16,FALSE) -> Ja | AN15: =+VLOOKUP($G15,Länkar!$F:$V,17,FALSE) -> Ja | AO15: =+IF(N15=0,0,(SUMPRODUCT(P15:T15,Indata_Kalkylvärden!$D$110:$H$110)/N15)) -> 1.900103182 | AP15: =+IFERROR(IF(B15=0,0,VLOOKUP(B15,'Kap.ber JA'!$B:$AI,7,FALSE)),0) -> esp | AQ15: =+IFERROR(IF(B15=0,0,VLOOKUP(B15,'Kap.ber UA'!B:H,7,FALSE)),0) -> esp | AR15: =+IFERROR(IF(B15=0,0,VLOOKUP(B15,'Kap.ber JA'!$B:$AI,8,FALSE)),0) -> 0.5080268519 | AS15: =+IFERROR(IF(B15=0,0,VLOOKUP(B15,'Kap.ber UA'!$B:$AL,8,FALSE)),0) -> 0.5080268519 | AT15: =+IF($AP15="esp",INDATABLAD!$D$568,INDATABLAD!$D$566) -> 2.58 | AU15: =+IF($AP15="Esp",INDATABLAD!$D$569,INDATABLAD!$D$567) -> 0.28 | AV15: =+IF($AQ15="Esp",INDATABLAD!$D$568,INDATABLAD!$D$566) -> 2.58 | AW15: =+IF($AQ15="Esp",INDATABLAD!$D$569,INDATABLAD!$D$567) -> 0.28 | AX15: =+INDATABLAD!$D$565 -> 0.3 | AY15: 13.45281749 | AZ15: 3.9156 | BA15: 13.45281749 | BB15: 3.9156 | BC15: =SUMIF('Gods_nya linjedelar_UA'!$D$4:$D$18,Bangods_linjedel!B15,'Gods_nya linjedelar_UA'!$J$4:$J$18) -> 0 | BD15: =SUMIF('Gods_nya linjedelar_UA'!$D$4:$D$18,Bangods_linjedel!B15,'Gods_nya linjedelar_UA'!$K$4:$K$18) -> 0 | BE15: =+Bangods_linjedel!H15 -> 0 | BF15: =+Bangods_linjedel!I15 -> 0 | BG15: 4.440892099e-16 | BH15: =+Bangods_linjedel!K15 -> 0 | BI15: =+IF(Bangods_linjedel!J15=0,(BA15-AY15)*0.05,Bangods_linjedel!J15) -> 0 | BJ15: 0 | BL15: 1.598205167e-10 | BM15: =+(($BG15+$BI15)*($AD15+AE15)*$N15)+Bangods_linjedel!M15 -> 1.598205167e-10 | BN15: =+(CJ15-CI15)*INDATABLAD!D$267+INDATABLAD!D$266*(CN15-CM15) -> 0 | BO15: 0 | BP15: 4.536037945e-11 | BQ15: 0 | BR15: =+IF(N15=0,0,('Beskrivning av åtgärd'!$C$165*(X15)+'Beskrivning av åtgärd'!$D$165*Bangods_linjedel!W15)/Bangods_linjedel!U15) -> 0.02165477451 | BS15: =+IF(O15=0,0,('Beskrivning av åtgärd'!$F$165*(X15)+'Beskrivning av åtgärd'!$G$165*Bangods_linjedel!W15)/Bangods_linjedel!U15) -> 0.02165477451 | BT15: =+IF(U15=0,0,('Beskrivning av åtgärd'!$C$166*(X15)+'Beskrivning av åtgärd'!$D$166*$W15)/$U15) -> 4.726154537 | BU15: =+IF(O15=0,0,('Beskrivning av åtgärd'!$F$166*(X15)+'Beskrivning av åtgärd'!$G$166*$W15)/$U15) -> 4.726154537 | BV15: 250 | BW15: 350 | BY15: 0 | BZ15: =+IF(O15=0,0,(((BM15+BN15+BO15*'Beskrivning av åtgärd'!$C$176)/(AK15*N15))*AL15)*O15) -> -1.4421467e-12 | CA15: -6.578763443e-10 | CB15: -1.250032935e-09 | CC15: 2.87703866e-29 | CD15: 0 | CE15: 0 | CF15: 1.63312656e-29 | CG15: 0 | CI15: =+(($N15*$F15*INDATABLAD!$D$254+Bangods_linjedel!$DF15*INDATABLAD!$D$255))*Y15 -> 0 | CJ15: =+IF($AN15="Nej",(($N15*($F15+$BF15)*INDATABLAD!$D$254+DG15*INDATABLAD!$D$255)),IF($BJ15="Ja",0,(($N15*($F15+$BF15)*INDATABLAD!$D$254+DG15*INDATABLAD!$D$255))*$Y15)) -> 0 | CK15: =+IF($AN15="Nej",(($N15*($F15+$BF15)*INDATABLAD!$D$254+DH15*INDATABLAD!$D$255)),IF($BJ15="ja",0,(($N15*($F15+$BF15)*INDATABLAD!$D$254+DH15*INDATABLAD!$D$255))*$Y15)) -> 0 | CL15: 0 | CM15: =+DF15*INDATABLAD!$D$256*(1-$Y15) -> 19371138.18 | CN15: =+IF(AN15="Ja",DG15*INDATABLAD!$D$256,IF(AN15="Nej",0,DG15*INDATABLAD!$D$256*(1-Y15))) -> 19371138.18 | CO15: 19371138.18 | CP15: 4962003.26 | CQ15: 21511673.3 | CR15: =+DF15*(INDATABLAD!$D$248)+F15*N15*INDATABLAD!$D$249 -> 26473676.56 | CT15: =+IFERROR(VLOOKUP(G15,' Bandelsspec avg o ext'!$A:$T,17,FALSE)*$F15*$N15*DQ15/500,0) -> 369938.1863 | CU15: 4962003.26 | CV15: 21511673.3 | CW15: =+IF(N15=0,0,DH15*(INDATABLAD!$D$248)+N15*(V15/U15)*(F15+BF15)*INDATABLAD!D$249) -> 26473676.56 | CY15: =+IFERROR(IF(V15=0,0,VLOOKUP(G15,' Bandelsspec avg o ext'!$A:$V,18,FALSE)*($F15+BF15)*$N15*(V15/U15)*(DR15/500)),0) -> 369938.1863 | CZ15: 0 | DA15: 0 | DB15: 0 | DC15: 0 | DD15: 0 | DE15: 0 | DF15: 993391701.5 | DG15: 993391701.5 | DH15: 993391701.5 | DI15: 4962003.26 | DJ15: 21511673.3 | DK15: 0 | DL15: =+IF(N15=0,0,SUMPRODUCT(P15:T15,Indata_Kalkylvärden!D$106:H$106)/N15) -> 527.7099857 | DM15: 497.9597215 | DN15: 0.9436238371 | DO15: =+IF(N15=0,0,SUMPRODUCT(P15:T15,Indata_Kalkylvärden!D$109:H$109)/Bangods_linjedel!N15) -> 0.6560272914 | DP15: -1.176140717e-16 | DQ15: =+IF(N15=0,0,(SUMPRODUCT(P15:T15,Indata_Kalkylvärden!D$108:H$108)/Bangods_linjedel!N15)*DN15) -> 339.3493039 | DR15: =+IF(Bangods_linjedel!L15=0,DQ15+DP15,DQ15+DP15+Bangods_linjedel!L15) -> 339.3493039 | DS15: =+Bangods_linjedel!Z15 -> 80.57247638 | DT15: =+Bangods_linjedel!AB15 -> 12.91528672 | DU15: =+Bangods_linjedel!AF15 -> 25.21535759 | DV15: =+Bangods_linjedel!AD15+Bangods_linjedel!AE15 -> 44.73940946 | DW15: =+Bangods_linjedel!AG15 -> 1.53 | DX15: =+Bangods_linjedel!AH15 -> 5.355 | DY15: =+Bangods_linjedel!BG15 -> 4.440892099e-16 | DZ15: =+(Bangods_linjedel!BM15+Bangods_linjedel!CD15)/1000000 -> 1.598205167e-16 | EA15: =+(Bangods_linjedel!BO15+Bangods_linjedel!CE15)/1000000 -> 0 | EB15: =+(Bangods_linjedel!BP15+Bangods_linjedel!CF15)/1000000 -> 4.536037945e-17 | EC15: =+(Bangods_linjedel!BQ15+Bangods_linjedel!CG15)/1000000 -> 0 | ED15: =+Bangods_linjedel!DC15/1000000 -> 0 | EE15: =+Bangods_linjedel!DD15/1000000 -> 0 | EF15: =+Bangods_linjedel!DE15/1000000 -> 0 | EG15: =+Bangods_linjedel!DA15/1000000 -> 0 | EH15: =+Bangods_linjedel!DB15/1000000 -> 0 | EJ15: =+Bangods_linjedel!DQ15 -> 339.3493039 | EK15: =+Bangods_linjedel!DR15 -> 339.3493039 | EL15: =+Bangods_linjedel!BA15-Bangods_linjedel!AY15 -> 0 | EM15: L300 | ET15: 103890.5664 | EU15: 359883.8097 | EV15: 6128549.64 | EW15: 21449923.74 | EX15: 48538516.72 | EY15: =+VLOOKUP(G15,' Bandelsspec avg o ext'!$A:$T,19,FALSE)*$F15*$N15 -> 1398914.548 | EZ15: 1049902.88 | FB15: 25.21535759 | FE15: =+SUMIF(Länkar!I:I,Bangods_linjedel!B15,Länkar!Y:Y)/2 -> 0 | FG15: =+IF($N15=0,0,IF($G15="d",SUMPRODUCT($P15:$T15,Indata_Kalkylvärden!$I$139:$M$139))/$N15) -> 0 | FJ15: 522809345.8 | FK15: 522809345.8 | FN15: 463774.3761 | FQ15: 13559796.73 | FR15: 21848203.22 | FS15: 35407999.94
